Workbook

Sheet DYN_cyclist
A1: CyclistID | B1: Last name | C1: First name | D1: Flat | E1: Mountain | F1: Hill | G1: TT | H1: Stamina | I1: Resistance | J1: Recovery | K1: Cobbles | L1: Sprint | M1: Acceleration | N1: Fighter | O1: Downhill | P1: Prologue | Q1: 2025 Team | R1: 2024 Team | S1: Division | T1: Country | U1: Continent | V1: XP Level | W1: XP Points | X1: Day | Y1: Month | Z1: Year | AA1: Age | AB1: Potential | AC1: OVL | AD1: MM | AE1: Wage | AF1: PT RD | AG1: PCT RD | AH1: CT RD | AI1: Training eligible? | AJ1: Stagiare | AK1: Avenir | AL1: Height | AM1: Weight | AN1: National Champion | AO1: National TT Champion | AP1: World Champion | AQ1: World TT Champion | AR1: Former National Champion | AS1: Former National TT Champion | AT1: Former World Champion | AU1: Former World Champion TT | AV1: On Loan? | AW1: Loan In Team | AX1: Wage paid by loaning team (If different from Wage) | AY1: Clause | AZ1: Loaned From?
A2: 1 | B2: Evenepoel | C2: Remco | D2: 75 | E2: 76 | F2: 77 | G2: 79 | H2: 79 | I2: 81 | J2: 67 | K2: 63 | L2: 64 | M2: 71 | N2: 81 | O2: 66 | P2: 79 | Q2: Rabobank | R2: Rabobank | S2: PT | T2: BEL | U2: EU | V2: 4 | W2: 100 | X2: 25 | Y2: 1 | Z2: 2000 | AA2: =2025-Z2 -> 25 | AB2: 4 | AC2: 77.46833795 | AD2: =(Tabla1124434[[#This Row],[Mountain]]+Tabla1124434[[#This Row],[Hill]])/2 -> 76.5 | AE2: 350000 | AF2: =ROUND(IF($AC2>79,44-(($AC2-79)*(14/4)),IF($AC2>76,67-(($AC2-76)*(23/3)),IF(110-(($AC2-70.4)*(43/5.6))>119,119,110-(($AC2-70.4)*(43/5.6)))))*0.93,0) -> 52 | AG2: =ROUND(IF($AC2>79,37-(($AC2-79)*(9/4)),IF($AC2>76,54-(($AC2-76)*(17/3)),IF(93-(($AC2-70.4)*(39/5.6))>100,100,93-(($AC2-70.4)*(39/5.6)))))*0.93,0) -> 42 | AH2: =ROUND(IF($AC2>79,32-(($AC2-79)*(8/4)),IF($AC2>76,48-(($AC2-76)*(16/3)),IF(86-(($AC2-70.4)*(38/5.6))>95,95,86-(($AC2-70.4)*(38/5.6)))))*0.93,0) -> 37 | AL2: 171 | AM2: 61
A3: 4 | B3: Gaze | C3: Samuel | D3: 74 | E3: 63 | F3: 69 | G3: 58 | H3: 74 | I3: 79 | J3: 70 | K3: 70 | L3: 68 | M3: 71 | N3: 67 | O3: 72 | P3: 63 | Q3: Air New Zealand-Alfa Romeo | R3: Air New Zealand-Alfa Romeo | S3: CT | T3: NZL | U3: OC | V3: 4 | W3: 82 | X3: 12 | Y3: 12 | Z3: 1995 | AA3: =2025-Z3 -> 30 | AB3: 4 | AC3: 71.9728186 | AD3: =(Tabla1124434[[#This Row],[Mountain]]+Tabla1124434[[#This Row],[Hill]])/2 -> 66 | AE3: 50000 | AF3: =ROUND(IF($AC3>79,44-(($AC3-79)*(14/4)),IF($AC3>76,67-(($AC3-76)*(23/3)),IF(110-(($AC3-70.4)*(43/5.6))>119,119,110-(($AC3-70.4)*(43/5.6)))))*0.93,0) -> 91 | AG3: =ROUND(IF($AC3>79,37-(($AC3-79)*(9/4)),IF($AC3>76,54-(($AC3-76)*(17/3)),IF(93-(($AC3-70.4)*(39/5.6))>100,100,93-(($AC3-70.4)*(39/5.6)))))*0.93,0) -> 76 | AH3: =ROUND(IF($AC3>79,32-(($AC3-79)*(8/4)),IF($AC3>76,48-(($AC3-76)*(16/3)),IF(86-(($AC3-70.4)*(38/5.6))>95,95,86-(($AC3-70.4)*(38/5.6)))))*0.93,0) -> 70 | AL3: 0 | AM3: 0
A4: 6 | B4: Guzman Perez | C4: William | D4: 70 | E4: 60 | F4: 67 | G4: 68 | H4: 64 | I4: 65 | J4: 66 | K4: 61 | L4: 69 | M4: 70 | N4: 67 | O4: 67 | P4: 71 | Q4: Free Agent | R4: Free Agent | S4: - | T4: PUR | U4: NA | V4: 2 | W4: 0 | X4: 19 | Y4: 2 | Z4: 1996 | AA4: =2025-Z4 -> 29 | AB4: 3 | AC4: 68.51024425 | AD4: =(Tabla1124434[[#This Row],[Mountain]]+Tabla1124434[[#This Row],[Hill]])/2 -> 63.5 | AF4: =ROUND(IF($AC4>79,44-(($AC4-79)*(14/4)),IF($AC4>76,67-(($AC4-76)*(23/3)),IF(110-(($AC4-70.4)*(43/5.6))>119,119,110-(($AC4-70.4)*(43/5.6)))))*0.93,0) -> 111 | AG4: =ROUND(IF($AC4>79,37-(($AC4-79)*(9/4)),IF($AC4>76,54-(($AC4-76)*(17/3)),IF(93-(($AC4-70.4)*(39/5.6))>100,100,93-(($AC4-70.4)*(39/5.6)))))*0.93,0) -> 93 | AH4: =ROUND(IF($AC4>79,32-(($AC4-79)*(8/4)),IF($AC4>76,48-(($AC4-76)*(16/3)),IF(86-(($AC4-70.4)*(38/5.6))>95,95,86-(($AC4-70.4)*(38/5.6)))))*0.93,0) -> 88 | AL4: 170 | AM4: 58
A5: 7 | B5: Morey | C5: Drew | D5: 66 | E5: 67 | F5: 69 | G5: 61 | H5: 66 | I5: 68 | J5: 67 | K5: 60 | L5: 62 | M5: 63 | N5: 76 | O5: 62 | P5: 61 | Q5: Free Agent | R5: Free Agent | S5: - | T5: AUS | U5: OC | V5: 3 | W5: 35 | X5: 27 | Y5: 11 | Z5: 1996 | AA5: =2025-Z5 -> 29 | AB5: 6 | AC5: 68.59042481 | AD5: =(Tabla1124434[[#This Row],[Mountain]]+Tabla1124434[[#This Row],[Hill]])/2 -> 68 | AF5: =ROUND(IF($AC5>79,44-(($AC5-79)*(14/4)),IF($AC5>76,67-(($AC5-76)*(23/3)),IF(110-(($AC5-70.4)*(43/5.6))>119,119,110-(($AC5-70.4)*(43/5.6)))))*0.93,0) -> 111 | AG5: =ROUND(IF($AC5>79,37-(($AC5-79)*(9/4)),IF($AC5>76,54-(($AC5-76)*(17/3)),IF(93-(($AC5-70.4)*(39/5.6))>100,100,93-(($AC5-70.4)*(39/5.6)))))*0.93,0) -> 93 | AH5: =ROUND(IF($AC5>79,32-(($AC5-79)*(8/4)),IF($AC5>76,48-(($AC5-76)*(16/3)),IF(86-(($AC5-70.4)*(38/5.6))>95,95,86-(($AC5-70.4)*(38/5.6)))))*0.93,0) -> 88 | AL5: 0 | AM5: 0
A6: 8 | B6: Dyball | C6: Benjamin | D6: 61 | E6: 66 | F6: 63 | G6: 65 | H6: 61 | I6: 57 | J6: 58 | K6: 46 | L6: 51 | M6: 58 | N6: 59 | O6: 54 | P6: 63 | Q6: Free Agent | R6: Free Agent | S6: - | T6: AUS | U6: OC | V6: 4 | W6: 100 | X6: 20 | Y6: 4 | Z6: 1989 | AA6: =2025-Z6 -> 36 | AB6: 5 | AC6: 63.95440544 | AD6: =(Tabla1124434[[#This Row],[Mountain]]+Tabla1124434[[#This Row],[Hill]])/2 -> 64.5 | AF6: =ROUND(IF($AC6>79,44-(($AC6-79)*(14/4)),IF($AC6>76,67-(($AC6-76)*(23/3)),IF(110-(($AC6-70.4)*(43/5.6))>119,119,110-(($AC6-70.4)*(43/5.6)))))*0.93,0) -> 111 | AG6: =ROUND(IF($AC6>79,37-(($AC6-79)*(9/4)),IF($AC6>76,54-(($AC6-76)*(17/3)),IF(93-(($AC6-70.4)*(39/5.6))>100,100,93-(($AC6-70.4)*(39/5.6)))))*0.93,0) -> 93 | AH6: =ROUND(IF($AC6>79,32-(($AC6-79)*(8/4)),IF($AC6>76,48-(($AC6-76)*(16/3)),IF(86-(($AC6-70.4)*(38/5.6))>95,95,86-(($AC6-70.4)*(38/5.6)))))*0.93,0) -> 88 | AL6: 182 | AM6: 59
A7: 9 | B7: Muniz | C7: Jose Ramon | D7: 56 | E7: 68 | F7: 65 | G7: 54 | H7: 67 | I7: 68 | J7: 67 | K7: 54 | L7: 57 | M7: 68 | N7: 69 | O7: 65 | P7: 52 | Q7: Free Agent | R7: Free Agent | S7: - | T7: MEX | U7: NA | V7: 1 | W7: 0 | X7: 19 | Y7: 4 | Z7: 2002 | AA7: =2025-Z7 -> 23 | AB7: 3 | AC7: 66.21263488 | AD7: =(Tabla1124434[[#This Row],[Mountain]]+Tabla1124434[[#This Row],[Hill]])/2 -> 66.5 | AF7: =ROUND(IF($AC7>79,44-(($AC7-79)*(14/4)),IF($AC7>76,67-(($AC7-76)*(23/3)),IF(110-(($AC7-70.4)*(43/5.6))>119,119,110-(($AC7-70.4)*(43/5.6)))))*0.93,0) -> 111 | AG7: =ROUND(IF($AC7>79,37-(($AC7-79)*(9/4)),IF($AC7>76,54-(($AC7-76)*(17/3)),IF(93-(($AC7-70.4)*(39/5.6))>100,100,93-(($AC7-70.4)*(39/5.6)))))*0.93,0) -> 93 | AH7: =ROUND(IF($AC7>79,32-(($AC7-79)*(8/4)),IF($AC7>76,48-(($AC7-76)*(16/3)),IF(86-(($AC7-70.4)*(38/5.6))>95,95,86-(($AC7-70.4)*(38/5.6)))))*0.93,0) -> 88 | AJ7: Yes | AK7: Yes | AL7: 192 | AM7: 82
A8: 10 | B8: Silva | C8: Nihal | D8: 75 | E8: 62 | F8: 68 | G8: 62 | H8: 69 | I8: 70 | J8: 77 | K8: 72 | L8: 77 | M8: 78 | N8: 56 | O8: 60 | P8: 62 | Q8: Evonik - ELKO | R8: Evonik - ELKO | S8: PT | T8: SRI | U8: AS | V8: 4 | W8: 100 | X8: 3 | Y8: 12 | Z8: 1994 | AA8: =2025-Z8 -> 31 | AB8: 4 | AC8: 75.24926 | AD8: =(Tabla1124434[[#This Row],[Mountain]]+Tabla1124434[[#This Row],[Hill]])/2 -> 65 | AE8: 60000 | AF8: =ROUND(IF($AC8>79,44-(($AC8-79)*(14/4)),IF($AC8>76,67-(($AC8-76)*(23/3)),IF(110-(($AC8-70.4)*(43/5.6))>119,119,110-(($AC8-70.4)*(43/5.6)))))*0.93,0) -> 68 | AG8: =ROUND(IF($AC8>79,37-(($AC8-79)*(9/4)),IF($AC8>76,54-(($AC8-76)*(17/3)),IF(93-(($AC8-70.4)*(39/5.6))>100,100,93-(($AC8-70.4)*(39/5.6)))))*0.93,0) -> 55 | AH8: =ROUND(IF($AC8>79,32-(($AC8-79)*(8/4)),IF($AC8>76,48-(($AC8-76)*(16/3)),IF(86-(($AC8-70.4)*(38/5.6))>95,95,86-(($AC8-70.4)*(38/5.6)))))*0.93,0) -> 49 | AL8: 179 | AM8: 68
A9: 11 | B9: Noppe | C9: Christophe | D9: 75 | E9: 61 | F9: 69 | G9: 62 | H9: 74 | I9: 73 | J9: 68 | K9: 73 | L9: 75 | M9: 73 | N9: 66 | O9: 68 | P9: 63 | Q9: Duvel-Tsingtao | R9: Duvel-Tsingtao | S9: CT | T9: BEL | U9: EU | V9: 4 | W9: 100 | X9: 29 | Y9: 11 | Z9: 1994 | AA9: =2025-Z9 -> 31 | AB9: 4 | AC9: 73.73939291 | AD9: =(Tabla1124434[[#This Row],[Mountain]]+Tabla1124434[[#This Row],[Hill]])/2 -> 65 | AE9: 50000 | AF9: =ROUND(IF($AC9>79,44-(($AC9-79)*(14/4)),IF($AC9>76,67-(($AC9-76)*(23/3)),IF(110-(($AC9-70.4)*(43/5.6))>119,119,110-(($AC9-70.4)*(43/5.6)))))*0.93,0) -> 78 | AG9: =ROUND(IF($AC9>79,37-(($AC9-79)*(9/4)),IF($AC9>76,54-(($AC9-76)*(17/3)),IF(93-(($AC9-70.4)*(39/5.6))>100,100,93-(($AC9-70.4)*(39/5.6)))))*0.93,0) -> 65 | AH9: =ROUND(IF($AC9>79,32-(($AC9-79)*(8/4)),IF($AC9>76,48-(($AC9-76)*(16/3)),IF(86-(($AC9-70.4)*(38/5.6))>95,95,86-(($AC9-70.4)*(38/5.6)))))*0.93,0) -> 59 | AL9: 176 | AM9: 73
A10: 12 | B10: Copeland | C10: Tom | D10: 56 | E10: 65 | F10: 58 | G10: 61 | H10: 58 | I10: 54 | J10: 55 | K10: 46 | L10: 46 | M10: 49 | N10: 52 | O10: 49 | P10: 61 | Q10: Free Agent | R10: Free Agent | S10: - | T10: GBR | U10: EU | V10: 4 | W10: 100 | X10: 18 | Y10: 2 | Z10: 1989 | AA10: =2025-Z10 -> 36 | AB10: 5 | AC10: 61.31204274 | AD10: =(Tabla1124434[[#This Row],[Mountain]]+Tabla1124434[[#This Row],[Hill]])/2 -> 61.5 | AF10: =ROUND(IF($AC10>79,44-(($AC10-79)*(14/4)),IF($AC10>76,67-(($AC10-76)*(23/3)),IF(110-(($AC10-70.4)*(43/5.6))>119,119,110-(($AC10-70.4)*(43/5.6)))))*0.93,0) -> 111 | AG10: =ROUND(IF($AC10>79,37-(($AC10-79)*(9/4)),IF($AC10>76,54-(($AC10-76)*(17/3)),IF(93-(($AC10-70.4)*(39/5.6))>100,100,93-(($AC10-70.4)*(39/5.6)))))*0.93,0) -> 93 | AH10: =ROUND(IF($AC10>79,32-(($AC10-79)*(8/4)),IF($AC10>76,48-(($AC10-76)*(16/3)),IF(86-(($AC10-70.4)*(38/5.6))>95,95,86-(($AC10-70.4)*(38/5.6)))))*0.93,0) -> 88 | AL10: 0 | AM10: 0
A11: 13 | B11: Chiu | C11: Ho San | D11: 73 | E11: 67 | F11: 74 | G11: 62 | H11: 76 | I11: 73 | J11: 70 | K11: 73 | L11: 71 | M11: 73 | N11: 72 | O11: 68 | P11: 64 | Q11: King Power | R11: King Power | S11: PT | T11: HKG | U11: AS | V11: 4 | W11: 100 | X11: 15 | Y11: 12 | Z11: 1995 | AA11: =2025-Z11 -> 30 | AB11: 4 | AC11: 74.47952219 | AD11: =(Tabla1124434[[#This Row],[Mountain]]+Tabla1124434[[#This Row],[Hill]])/2 -> 70.5 | AE11: 70000 | AF11: =ROUND(IF($AC11>79,44-(($AC11-79)*(14/4)),IF($AC11>76,67-(($AC11-76)*(23/3)),IF(110-(($AC11-70.4)*(43/5.6))>119,119,110-(($AC11-70.4)*(43/5.6)))))*0.93,0) -> 73 | AG11: =ROUND(IF($AC11>79,37-(($AC11-79)*(9/4)),IF($AC11>76,54-(($AC11-76)*(17/3)),IF(93-(($AC11-70.4)*(39/5.6))>100,100,93-(($AC11-70.4)*(39/5.6)))))*0.93,0) -> 60 | AH11: =ROUND(IF($AC11>79,32-(($AC11-79)*(8/4)),IF($AC11>76,48-(($AC11-76)*(16/3)),IF(86-(($AC11-70.4)*(38/5.6))>95,95,86-(($AC11-70.4)*(38/5.6)))))*0.93,0) -> 54 | AL11: 0 | AM11: 0
A12: 14 | B12: Carstensen | C12: Lucas | D12: 68 | E12: 59 | F12: 62 | G12: 58 | H12: 66 | I12: 69 | J12: 64 | K12: 58 | L12: 70 | M12: 71 | N12: 63 | O12: 64 | P12: 60 | Q12: Free Agent | R12: Free Agent | S12: - | T12: GER | U12: EU | V12: 4 | W12: 100 | X12: 16 | Y12: 6 | Z12: 1994 | AA12: =2025-Z12 -> 31 | AB12: 5 | AC12: 68.20780372 | AD12: =(Tabla1124434[[#This Row],[Mountain]]+Tabla1124434[[#This Row],[Hill]])/2 -> 60.5 | AF12: =ROUND(IF($AC12>79,44-(($AC12-79)*(14/4)),IF($AC12>76,67-(($AC12-76)*(23/3)),IF(110-(($AC12-70.4)*(43/5.6))>119,119,110-(($AC12-70.4)*(43/5.6)))))*0.93,0) -> 111 | AG12: =ROUND(IF($AC12>79,37-(($AC12-79)*(9/4)),IF($AC12>76,54-(($AC12-76)*(17/3)),IF(93-(($AC12-70.4)*(39/5.6))>100,100,93-(($AC12-70.4)*(39/5.6)))))*0.93,0) -> 93 | AH12: =ROUND(IF($AC12>79,32-(($AC12-79)*(8/4)),IF($AC12>76,48-(($AC12-76)*(16/3)),IF(86-(($AC12-70.4)*(38/5.6))>95,95,86-(($AC12-70.4)*(38/5.6)))))*0.93,0) -> 88 | AI12: Yes | AL12: 0 | AM12: 0 | AR12: Yes
A13: 15 | B13: Gilmore | C13: Brady | D13: 71 | E13: 53 | F13: 55 | G13: 75 | H13: 73 | I13: 69 | J13: 68 | K13: 58 | L13: 60 | M13: 72 | N13: 75 | O13: 68 | P13: 75 | Q13: ZARA - Irizar | R13: ZARA - Irizar | S13: PT | T13: AUS | U13: OC | V13: 3 | W13: 10 | X13: 14 | Y13: 4 | Z13: 2001 | AA13: =2025-Z13 -> 24 | AB13: 6 | AC13: 70.93888274 | AD13: =(Tabla1124434[[#This Row],[Mountain]]+Tabla1124434[[#This Row],[Hill]])/2 -> 54 | AE13: 80000 | AF13: =ROUND(IF($AC13>79,44-(($AC13-79)*(14/4)),IF($AC13>76,67-(($AC13-76)*(23/3)),IF(110-(($AC13-70.4)*(43/5.6))>119,119,110-(($AC13-70.4)*(43/5.6)))))*0.93,0) -> 98 | AG13: =ROUND(IF($AC13>79,37-(($AC13-79)*(9/4)),IF($AC13>76,54-(($AC13-76)*(17/3)),IF(93-(($AC13-70.4)*(39/5.6))>100,100,93-(($AC13-70.4)*(39/5.6)))))*0.93,0) -> 83 | AH13: =ROUND(IF($AC13>79,32-(($AC13-79)*(8/4)),IF($AC13>76,48-(($AC13-76)*(16/3)),IF(86-(($AC13-70.4)*(38/5.6))>95,95,86-(($AC13-70.4)*(38/5.6)))))*0.93,0) -> 77 | AL13: 0 | AM13: 0
A14: 16 | B14: Budenieks | C14: Kristaps | D14: 69 | E14: 75 | F14: 75 | G14: 63 | H14: 70 | I14: 75 | J14: 72 | K14: 70 | L14: 69 | M14: 74 | N14: 75 | O14: 72 | P14: 61 | Q14: DK Zalgiris | R14: DK Zalgiris | S14: PCT | T14: LAT | U14: EU | V14: 4 | W14: 100 | X14: 24 | Y14: 1 | Z14: 1995 | AA14: =2025-Z14 -> 30 | AB14: 2 | AC14: 75.19314508 | AD14: =(Tabla1124434[[#This Row],[Mountain]]+Tabla1124434[[#This Row],[Hill]])/2 -> 75 | AE14: 90000 | AF14: =ROUND(IF($AC14>79,44-(($AC14-79)*(14/4)),IF($AC14>76,67-(($AC14-76)*(23/3)),IF(110-(($AC14-70.4)*(43/5.6))>119,119,110-(($AC14-70.4)*(43/5.6)))))*0.93,0) -> 68 | AG14: =ROUND(IF($AC14>79,37-(($AC14-79)*(9/4)),IF($AC14>76,54-(($AC14-76)*(17/3)),IF(93-(($AC14-70.4)*(39/5.6))>100,100,93-(($AC14-70.4)*(39/5.6)))))*0.93,0) -> 55 | AH14: =ROUND(IF($AC14>79,32-(($AC14-79)*(8/4)),IF($AC14>76,48-(($AC14-76)*(16/3)),IF(86-(($AC14-70.4)*(38/5.6))>95,95,86-(($AC14-70.4)*(38/5.6)))))*0.93,0) -> 50 | AL14: 0 | AM14: 0
A15: 17 | B15: Yzeiraj | C15: Marildo | D15: 77 | E15: 62 | F15: 66 | G15: 60 | H15: 74 | I15: 74 | J15: 65 | K15: 65 | L15: 62 | M15: 71 | N15: 85 | O15: 72 | P15: 66 | Q15: Free Agent | R15: Llapi-Vita | S15: PCT | T15: ALB | U15: EU | V15: 4 | W15: 100 | X15: 25 | Y15: 4 | Z15: 1994 | AA15: =2025-Z15 -> 31 | AB15: 3 | AC15: 71.49194816 | AD15: =(Tabla1124434[[#This Row],[Mountain]]+Tabla1124434[[#This Row],[Hill]])/2 -> 64 | AE15: 80000 | AF15: =ROUND(IF($AC15>79,44-(($AC15-79)*(14/4)),IF($AC15>76,67-(($AC15-76)*(23/3)),IF(110-(($AC15-70.4)*(43/5.6))>119,119,110-(($AC15-70.4)*(43/5.6)))))*0.93,0) -> 95 | AG15: =ROUND(IF($AC15>79,37-(($AC15-79)*(9/4)),IF($AC15>76,54-(($AC15-76)*(17/3)),IF(93-(($AC15-70.4)*(39/5.6))>100,100,93-(($AC15-70.4)*(39/5.6)))))*0.93,0) -> 79 | AH15: =ROUND(IF($AC15>79,32-(($AC15-79)*(8/4)),IF($AC15>76,48-(($AC15-76)*(16/3)),IF(86-(($AC15-70.4)*(38/5.6))>95,95,86-(($AC15-70.4)*(38/5.6)))))*0.93,0) -> 73 | AL15: 0 | AM15: 0
A16: 18 | B16: Sommer | C16: Jan | D16: 74 | E16: 60 | F16: 65 | G16: 65 | H16: 73 | I16: 72 | J16: 68 | K16: 73 | L16: 70 | M16: 70 | N16: 71 | O16: 66 | P16: 66 | Q16: Jura GIANTS | R16: Minions | S16: PCT | T16: SWI | U16: EU | V16: 4 | W16: 28 | X16: 22 | Y16: 8 | Z16: 2000 | AA16: =2025-Z16 -> 25 | AB16: 6 | AC16: 72.55868014 | AD16: =(Tabla1124434[[#This Row],[Mountain]]+Tabla1124434[[#This Row],[Hill]])/2 -> 62.5 | AE16: 50000 | AF16: =ROUND(IF($AC16>79,44-(($AC16-79)*(14/4)),IF($AC16>76,67-(($AC16-76)*(23/3)),IF(110-(($AC16-70.4)*(43/5.6))>119,119,110-(($AC16-70.4)*(43/5.6)))))*0.93,0) -> 87 | AG16: =ROUND(IF($AC16>79,37-(($AC16-79)*(9/4)),IF($AC16>76,54-(($AC16-76)*(17/3)),IF(93-(($AC16-70.4)*(39/5.6))>100,100,93-(($AC16-70.4)*(39/5.6)))))*0.93,0) -> 73 | AH16: =ROUND(IF($AC16>79,32-(($AC16-79)*(8/4)),IF($AC16>76,48-(($AC16-76)*(16/3)),IF(86-(($AC16-70.4)*(38/5.6))>95,95,86-(($AC16-70.4)*(38/5.6)))))*0.93,0) -> 66 | AL16: 185 | AM16: 0
A17: 19 | B17: Ringheim | C17: Jo Kogstad | D17: 69 | E17: 65 | F17: 64 | G17: 63 | H17: 70 | I17: 66 | J17: 68 | K17: 75 | L17: 70 | M17: 70 | N17: 63 | O17: 64 | P17: 63 | Q17: Euskadi-Murias | R17: Euskadi-Murias | S17: CT | T17: NOR | U17: EU | V17: 4 | W17: 100 | X17: 16 | Y17: 2 | Z17: 1991 | AA17: =2025-Z17 -> 34 | AB17: 5 | AC17: 72.13237395 | AD17: =(Tabla1124434[[#This Row],[Mountain]]+Tabla1124434[[#This Row],[Hill]])/2 -> 64.5 | AE17: 90000 | AF17: =ROUND(IF($AC17>79,44-(($AC17-79)*(14/4)),IF($AC17>76,67-(($AC17-76)*(23/3)),IF(110-(($AC17-70.4)*(43/5.6))>119,119,110-(($AC17-70.4)*(43/5.6)))))*0.93,0) -> 90 | AG17: =ROUND(IF($AC17>79,37-(($AC17-79)*(9/4)),IF($AC17>76,54-(($AC17-76)*(17/3)),IF(93-(($AC17-70.4)*(39/5.6))>100,100,93-(($AC17-70.4)*(39/5.6)))))*0.93,0) -> 75 | AH17: =ROUND(IF($AC17>79,32-(($AC17-79)*(8/4)),IF($AC17>76,48-(($AC17-76)*(16/3)),IF(86-(($AC17-70.4)*(38/5.6))>95,95,86-(($AC17-70.4)*(38/5.6)))))*0.93,0) -> 69 | AL17: 0 | AM17: 0
A18: 20 | B18: Schmid | C18: Mauro | D18: 72 | E18: 76 | F18: 79 | G18: 68 | H18: 71 | I18: 78 | J18: 73 | K18: 69 | L18: 70 | M18: 79 | N18: 78 | O18: 74 | P18: 66 | Q18: Jura GIANTS | R18: Jura GIANTS | S18: PT | T18: SWI | U18: EU | V18: 4 | W18: 100 | X18: 4 | Y18: 12 | Z18: 1999 | AA18: =2025-Z18 -> 26 | AB18: 4 | AC18: 78.28282112 | AD18: =(Tabla1124434[[#This Row],[Mountain]]+Tabla1124434[[#This Row],[Hill]])/2 -> 77.5 | AE18: 500000 | AF18: =ROUND(IF($AC18>79,44-(($AC18-79)*(14/4)),IF($AC18>76,67-(($AC18-76)*(23/3)),IF(110-(($AC18-70.4)*(43/5.6))>119,119,110-(($AC18-70.4)*(43/5.6)))))*0.93,0) -> 46 | AG18: =ROUND(IF($AC18>79,37-(($AC18-79)*(9/4)),IF($AC18>76,54-(($AC18-76)*(17/3)),IF(93-(($AC18-70.4)*(39/5.6))>100,100,93-(($AC18-70.4)*(39/5.6)))))*0.93,0) -> 38 | AH18: =ROUND(IF($AC18>79,32-(($AC18-79)*(8/4)),IF($AC18>76,48-(($AC18-76)*(16/3)),IF(86-(($AC18-70.4)*(38/5.6))>95,95,86-(($AC18-70.4)*(38/5.6)))))*0.93,0) -> 33 | AL18: 187 | AM18: 70
A19: 21 | B19: Rossi | C19: Diego | D19: 77 | E19: 65 | F19: 70 | G19: 72 | H19: 74 | I19: 73 | J19: 69 | K19: 75 | L19: 68 | M19: 69 | N19: 70 | O19: 65 | P19: 76 | Q19: Sauber Petronas Racing | R19: Sauber Petronas Racing | S19: PCT | T19: SMR | U19: EU | V19: 4 | W19: 32 | X19: 16 | Y19: 8 | Z19: 2000 | AA19: =2025-Z19 -> 25 | AB19: 3 | AC19: 74.71511831 | AD19: =(Tabla1124434[[#This Row],[Mountain]]+Tabla1124434[[#This Row],[Hill]])/2 -> 67.5 | AE19: 80000 | AF19: =ROUND(IF($AC19>79,44-(($AC19-79)*(14/4)),IF($AC19>76,67-(($AC19-76)*(23/3)),IF(110-(($AC19-70.4)*(43/5.6))>119,119,110-(($AC19-70.4)*(43/5.6)))))*0.93,0) -> 71 | AG19: =ROUND(IF($AC19>79,37-(($AC19-79)*(9/4)),IF($AC19>76,54-(($AC19-76)*(17/3)),IF(93-(($AC19-70.4)*(39/5.6))>100,100,93-(($AC19-70.4)*(39/5.6)))))*0.93,0) -> 59 | AH19: =ROUND(IF($AC19>79,32-(($AC19-79)*(8/4)),IF($AC19>76,48-(($AC19-76)*(16/3)),IF(86-(($AC19-70.4)*(38/5.6))>95,95,86-(($AC19-70.4)*(38/5.6)))))*0.93,0) -> 53 | AL19: 0 | AM19: 0
A20: 22 | B20: Currie | C20: Logan | D20: 73 | E20: 62 | F20: 63 | G20: 77 | H20: 72 | I20: 72 | J20: 70 | K20: 53 | L20: 65 | M20: 71 | N20: 64 | O20: 73 | P20: 75 | Q20: Cedevita | R20: Cedevita | S20: PT | T20: NZL | U20: OC | V20: 4 | W20: 74 | X20: 24 | Y20: 6 | Z20: 2001 | AA20: =2025-Z20 -> 24 | AB20: 5 | AC20: 73.06669768 | AD20: =(Tabla1124434[[#This Row],[Mountain]]+Tabla1124434[[#This Row],[Hill]])/2 -> 62.5 | AE20: 150000 | AF20: =ROUND(IF($AC20>79,44-(($AC20-79)*(14/4)),IF($AC20>76,67-(($AC20-76)*(23/3)),IF(110-(($AC20-70.4)*(43/5.6))>119,119,110-(($AC20-70.4)*(43/5.6)))))*0.93,0) -> 83 | AG20: =ROUND(IF($AC20>79,37-(($AC20-79)*(9/4)),IF($AC20>76,54-(($AC20-76)*(17/3)),IF(93-(($AC20-70.4)*(39/5.6))>100,100,93-(($AC20-70.4)*(39/5.6)))))*0.93,0) -> 69 | AH20: =ROUND(IF($AC20>79,32-(($AC20-79)*(8/4)),IF($AC20>76,48-(($AC20-76)*(16/3)),IF(86-(($AC20-70.4)*(38/5.6))>95,95,86-(($AC20-70.4)*(38/5.6)))))*0.93,0) -> 63 | AL20: 168 | AM20: 68
A21: 23 | B21: Kuznetsov | C21: Vyacheslav | D21: 66 | E21: 53 | F21: 60 | G21: 56 | H21: 61 | I21: 59 | J21: 55 | K21: 59 | L21: 62 | M21: 61 | N21: 66 | O21: 60 | P21: 56 | Q21: Free Agent | R21: Free Agent | S21: - | T21: RUS | U21: EU | V21: 4 | W21: 100 | X21: 24 | Y21: 6 | Z21: 1989 | AA21: =2025-Z21 -> 36 | AB21: 5 | AC21: 61.96811224 | AD21: =(Tabla1124434[[#This Row],[Mountain]]+Tabla1124434[[#This Row],[Hill]])/2 -> 56.5 | AF21: =ROUND(IF($AC21>79,44-(($AC21-79)*(14/4)),IF($AC21>76,67-(($AC21-76)*(23/3)),IF(110-(($AC21-70.4)*(43/5.6))>119,119,110-(($AC21-70.4)*(43/5.6)))))*0.93,0) -> 111 | AG21: =ROUND(IF($AC21>79,37-(($AC21-79)*(9/4)),IF($AC21>76,54-(($AC21-76)*(17/3)),IF(93-(($AC21-70.4)*(39/5.6))>100,100,93-(($AC21-70.4)*(39/5.6)))))*0.93,0) -> 93 | AH21: =ROUND(IF($AC21>79,32-(($AC21-79)*(8/4)),IF($AC21>76,48-(($AC21-76)*(16/3)),IF(86-(($AC21-70.4)*(38/5.6))>95,95,86-(($AC21-70.4)*(38/5.6)))))*0.93,0) -> 88 | AL21: 0 | AM21: 0
A22: 24 | B22: Jumchat | C22: Nattapol | D22: 72 | E22: 59 | F22: 64 | G22: 62 | H22: 69 | I22: 71 | J22: 63 | K22: 53 | L22: 72 | M22: 72 | N22: 71 | O22: 74 | P22: 66 | Q22: Free Agent | R22: Free Agent | S22: - | T22: THA | U22: AS | V22: 3 | W22: 0 | X22: 24 | Y22: 6 | Z22: 1996 | AA22: =2025-Z22 -> 29 | AB22: 5 | AC22: 70.1965156 | AD22: =(Tabla1124434[[#This Row],[Mountain]]+Tabla1124434[[#This Row],[Hill]])/2 -> 61.5 | AF22: =ROUND(IF($AC22>79,44-(($AC22-79)*(14/4)),IF($AC22>76,67-(($AC22-76)*(23/3)),IF(110-(($AC22-70.4)*(43/5.6))>119,119,110-(($AC22-70.4)*(43/5.6)))))*0.93,0) -> 104 | AG22: =ROUND(IF($AC22>79,37-(($AC22-79)*(9/4)),IF($AC22>76,54-(($AC22-76)*(17/3)),IF(93-(($AC22-70.4)*(39/5.6))>100,100,93-(($AC22-70.4)*(39/5.6)))))*0.93,0) -> 88 | AH22: =ROUND(IF($AC22>79,32-(($AC22-79)*(8/4)),IF($AC22>76,48-(($AC22-76)*(16/3)),IF(86-(($AC22-70.4)*(38/5.6))>95,95,86-(($AC22-70.4)*(38/5.6)))))*0.93,0) -> 81 | AL22: 0 | AM22: 0
A23: 25 | B23: Aniolkowski | C23: Stanislaw | D23: 76 | E23: 62 | F23: 66 | G23: 56 | H23: 76 | I23: 74 | J23: 79 | K23: 63 | L23: 80 | M23: 79 | N23: 57 | O23: 64 | P23: 59 | Q23: Free Agent | R23: Team Popo4Ever p/b Morshynska | S23: PCT | T23: POL | U23: EU | V23: 4 | W23: 100 | X23: 20 | Y23: 1 | Z23: 1997 | AA23: =2025-Z23 -> 28 | AB23: 5 | AC23: 77.10219511 | AD23: =(Tabla1124434[[#This Row],[Mountain]]+Tabla1124434[[#This Row],[Hill]])/2 -> 64 | AE23: 300000 | AF23: =ROUND(IF($AC23>79,44-(($AC23-79)*(14/4)),IF($AC23>76,67-(($AC23-76)*(23/3)),IF(110-(($AC23-70.4)*(43/5.6))>119,119,110-(($AC23-70.4)*(43/5.6)))))*0.93,0) -> 54 | AG23: =ROUND(IF($AC23>79,37-(($AC23-79)*(9/4)),IF($AC23>76,54-(($AC23-76)*(17/3)),IF(93-(($AC23-70.4)*(39/5.6))>100,100,93-(($AC23-70.4)*(39/5.6)))))*0.93,0) -> 44 | AH23: =ROUND(IF($AC23>79,32-(($AC23-79)*(8/4)),IF($AC23>76,48-(($AC23-76)*(16/3)),IF(86-(($AC23-70.4)*(38/5.6))>95,95,86-(($AC23-70.4)*(38/5.6)))))*0.93,0) -> 39 | AL23: 0 | AM23: 0
A24: 26 | B24: Taminiaux | C24: Lionel | D24: 72 | E24: 58 | F24: 68 | G24: 60 | H24: 74 | I24: 72 | J24: 64 | K24: 70 | L24: 71 | M24: 73 | N24: 73 | O24: 66 | P24: 63 | Q24: Free Agent | R24: Free Agent | S24: - | T24: BEL | U24: EU | V24: 4 | W24: 100 | X24: 21 | Y24: 5 | Z24: 1996 | AA24: =2025-Z24 -> 29 | AB24: 5 | AC24: 71.50023124 | AD24: =(Tabla1124434[[#This Row],[Mountain]]+Tabla1124434[[#This Row],[Hill]])/2 -> 63 | AF24: =ROUND(IF($AC24>79,44-(($AC24-79)*(14/4)),IF($AC24>76,67-(($AC24-76)*(23/3)),IF(110-(($AC24-70.4)*(43/5.6))>119,119,110-(($AC24-70.4)*(43/5.6)))))*0.93,0) -> 94 | AG24: =ROUND(IF($AC24>79,37-(($AC24-79)*(9/4)),IF($AC24>76,54-(($AC24-76)*(17/3)),IF(93-(($AC24-70.4)*(39/5.6))>100,100,93-(($AC24-70.4)*(39/5.6)))))*0.93,0) -> 79 | AH24: =ROUND(IF($AC24>79,32-(($AC24-79)*(8/4)),IF($AC24>76,48-(($AC24-76)*(16/3)),IF(86-(($AC24-70.4)*(38/5.6))>95,95,86-(($AC24-70.4)*(38/5.6)))))*0.93,0) -> 73 | AI24: Yes | AL24: 183 | AM24: 70
A25: 27 | B25: Mansouri | C25: Hamza | D25: 73 | E25: 73 | F25: 74 | G25: 74 | H25: 77 | I25: 75 | J25: 78 | K25: 62 | L25: 68 | M25: 76 | N25: 76 | O25: 65 | P25: 74 | Q25: Lidl Cycling | R25: Lidl Cycling | S25: PT | T25: ALG | U25: AF | V25: 4 | W25: 100 | X25: 13 | Y25: 4 | Z25: 1999 | AA25: =2025-Z25 -> 26 | AB25: 4 | AC25: 75.36998073 | AD25: =(Tabla1124434[[#This Row],[Mountain]]+Tabla1124434[[#This Row],[Hill]])/2 -> 73.5 | AE25: 100000 | AF25: =ROUND(IF($AC25>79,44-(($AC25-79)*(14/4)),IF($AC25>76,67-(($AC25-76)*(23/3)),IF(110-(($AC25-70.4)*(43/5.6))>119,119,110-(($AC25-70.4)*(43/5.6)))))*0.93,0) -> 67 | AG25: =ROUND(IF($AC25>79,37-(($AC25-79)*(9/4)),IF($AC25>76,54-(($AC25-76)*(17/3)),IF(93-(($AC25-70.4)*(39/5.6))>100,100,93-(($AC25-70.4)*(39/5.6)))))*0.93,0) -> 54 | AH25: =ROUND(IF($AC25>79,32-(($AC25-79)*(8/4)),IF($AC25>76,48-(($AC25-76)*(16/3)),IF(86-(($AC25-70.4)*(38/5.6))>95,95,86-(($AC25-70.4)*(38/5.6)))))*0.93,0) -> 49 | AL25: 0 | AM25: 0
A26: 28 | B26: Szarka | C26: Gergely | D26: 77 | E26: 62 | F26: 67 | G26: 61 | H26: 72 | I26: 73 | J26: 76 | K26: 60 | L26: 78 | M26: 78 | N26: 64 | O26: 66 | P26: 72 | Q26: Jura GIANTS | R26: Jura GIANTS | S26: PT | T26: HUN | U26: EU | V26: 4 | W26: 100 | X26: 29 | Y26: 1 | Z26: 1998 | AA26: =2025-Z26 -> 27 | AB26: 4 | AC26: 76.0041944 | AD26: =(Tabla1124434[[#This Row],[Mountain]]+Tabla1124434[[#This Row],[Hill]])/2 -> 64.5 | AE26: 115000 | AF26: =ROUND(IF($AC26>79,44-(($AC26-79)*(14/4)),IF($AC26>76,67-(($AC26-76)*(23/3)),IF(110-(($AC26-70.4)*(43/5.6))>119,119,110-(($AC26-70.4)*(43/5.6)))))*0.93,0) -> 62 | AG26: =ROUND(IF($AC26>79,37-(($AC26-79)*(9/4)),IF($AC26>76,54-(($AC26-76)*(17/3)),IF(93-(($AC26-70.4)*(39/5.6))>100,100,93-(($AC26-70.4)*(39/5.6)))))*0.93,0) -> 50 | AH26: =ROUND(IF($AC26>79,32-(($AC26-79)*(8/4)),IF($AC26>76,48-(($AC26-76)*(16/3)),IF(86-(($AC26-70.4)*(38/5.6))>95,95,86-(($AC26-70.4)*(38/5.6)))))*0.93,0) -> 45 | AL26: 181 | AM26: 67
A27: 30 | B27: Mohammad | C27: Fikri Azka | D27: 72 | E27: 70 | F27: 74 | G27: 74 | H27: 69 | I27: 72 | J27: 67 | K27: 61 | L27: 67 | M27: 72 | N27: 64 | O27: 65 | P27: 72 | Q27: McCormick Pro Cycling | R27: McCormick Pro Cycling | S27: PCT | T27: INA | U27: AS | V27: 4 | W27: 100 | X27: 6 | Y27: 11 | Z27: 1996 | AA27: =2025-Z27 -> 29 | AB27: 5 | AC27: 73.70947124 | AD27: =(Tabla1124434[[#This Row],[Mountain]]+Tabla1124434[[#This Row],[Hill]])/2 -> 72 | AE27: 50000 | AF27: =ROUND(IF($AC27>79,44-(($AC27-79)*(14/4)),IF($AC27>76,67-(($AC27-76)*(23/3)),IF(110-(($AC27-70.4)*(43/5.6))>119,119,110-(($AC27-70.4)*(43/5.6)))))*0.93,0) -> 79 | AG27: =ROUND(IF($AC27>79,37-(($AC27-79)*(9/4)),IF($AC27>76,54-(($AC27-76)*(17/3)),IF(93-(($AC27-70.4)*(39/5.6))>100,100,93-(($AC27-70.4)*(39/5.6)))))*0.93,0) -> 65 | AH27: =ROUND(IF($AC27>79,32-(($AC27-79)*(8/4)),IF($AC27>76,48-(($AC27-76)*(16/3)),IF(86-(($AC27-70.4)*(38/5.6))>95,95,86-(($AC27-70.4)*(38/5.6)))))*0.93,0) -> 59 | AL27: 169 | AM27: 54
A28: 31 | B28: Piganzoli | C28: Davide | D28: 66 | E28: 71 | F28: 69 | G28: 61 | H28: 71 | I28: 69 | J28: 68 | K28: 64 | L28: 64 | M28: 76 | N28: 69 | O28: 74 | P28: 59 | Q28: Air New Zealand-Alfa Romeo | R28: Air New Zealand-Alfa Romeo | S28: CT | T28: ITA | U28: EU | V28: 2 | W28: 97 | X28: 8 | Y28: 7 | Z28: 2002 | AA28: =2025-Z28 -> 23 | AB28: 4 | AC28: 70.86221572 | AD28: =(Tabla1124434[[#This Row],[Mountain]]+Tabla1124434[[#This Row],[Hill]])/2 -> 70 | AE28: 150000 | AF28: =ROUND(IF($AC28>79,44-(($AC28-79)*(14/4)),IF($AC28>76,67-(($AC28-76)*(23/3)),IF(110-(($AC28-70.4)*(43/5.6))>119,119,110-(($AC28-70.4)*(43/5.6)))))*0.93,0) -> 99 | AG28: =ROUND(IF($AC28>79,37-(($AC28-79)*(9/4)),IF($AC28>76,54-(($AC28-76)*(17/3)),IF(93-(($AC28-70.4)*(39/5.6))>100,100,93-(($AC28-70.4)*(39/5.6)))))*0.93,0) -> 83 | AH28: =ROUND(IF($AC28>79,32-(($AC28-79)*(8/4)),IF($AC28>76,48-(($AC28-76)*(16/3)),IF(86-(($AC28-70.4)*(38/5.6))>95,95,86-(($AC28-70.4)*(38/5.6)))))*0.93,0) -> 77 | AJ28: Yes | AK28: Yes | AL28: 192 | AM28: 79
A29: 33 | B29: Galvan Ramirez | C29: Oscar Samuel | D29: 72 | E29: 76 | F29: 72 | G29: 75 | H29: 72 | I29: 74 | J29: 74 | K29: 50 | L29: 64 | M29: 67 | N29: 70 | O29: 69 | P29: 76 | Q29: Oxxo - Frisby | R29: Oxxo - Frisby | S29: PT | T29: MEX | U29: NA | V29: 4 | W29: 100 | X29: 20 | Y29: 5 | Z29: 2000 | AA29: =2025-Z29 -> 25 | AB29: 4 | AC29: 74.83279211 | AD29: =(Tabla1124434[[#This Row],[Mountain]]+Tabla1124434[[#This Row],[Hill]])/2 -> 74 | AE29: 50000 | AF29: =ROUND(IF($AC29>79,44-(($AC29-79)*(14/4)),IF($AC29>76,67-(($AC29-76)*(23/3)),IF(110-(($AC29-70.4)*(43/5.6))>119,119,110-(($AC29-70.4)*(43/5.6)))))*0.93,0) -> 71 | AG29: =ROUND(IF($AC29>79,37-(($AC29-79)*(9/4)),IF($AC29>76,54-(($AC29-76)*(17/3)),IF(93-(($AC29-70.4)*(39/5.6))>100,100,93-(($AC29-70.4)*(39/5.6)))))*0.93,0) -> 58 | AH29: =ROUND(IF($AC29>79,32-(($AC29-79)*(8/4)),IF($AC29>76,48-(($AC29-76)*(16/3)),IF(86-(($AC29-70.4)*(38/5.6))>95,95,86-(($AC29-70.4)*(38/5.6)))))*0.93,0) -> 52 | AL29: 0 | AM29: 0
A30: 35 | B30: Cerny | C30: Josef | D30: 71 | E30: 70 | F30: 76 | G30: 68 | H30: 75 | I30: 67 | J30: 66 | K30: 61 | L30: 75 | M30: 79 | N30: 74 | O30: 66 | P30: 71 | Q30: Moser - Sygic | R30: Moser - Sygic | S30: PT | T30: CZE | U30: EU | V30: 4 | W30: 100 | X30: 11 | Y30: 5 | Z30: 1993 | AA30: =2025-Z30 -> 32 | AB30: 5 | AC30: 75.86108657 | AD30: =(Tabla1124434[[#This Row],[Mountain]]+Tabla1124434[[#This Row],[Hill]])/2 -> 73 | AE30: 120000 | AF30: =ROUND(IF($AC30>79,44-(($AC30-79)*(14/4)),IF($AC30>76,67-(($AC30-76)*(23/3)),IF(110-(($AC30-70.4)*(43/5.6))>119,119,110-(($AC30-70.4)*(43/5.6)))))*0.93,0) -> 63 | AG30: =ROUND(IF($AC30>79,37-(($AC30-79)*(9/4)),IF($AC30>76,54-(($AC30-76)*(17/3)),IF(93-(($AC30-70.4)*(39/5.6))>100,100,93-(($AC30-70.4)*(39/5.6)))))*0.93,0) -> 51 | AH30: =ROUND(IF($AC30>79,32-(($AC30-79)*(8/4)),IF($AC30>76,48-(($AC30-76)*(16/3)),IF(86-(($AC30-70.4)*(38/5.6))>95,95,86-(($AC30-70.4)*(38/5.6)))))*0.93,0) -> 46 | AL30: 0 | AM30: 0
A31: 36 | B31: Malecki | C31: Kamil | D31: 73 | E31: 73 | F31: 76 | G31: 70 | H31: 71 | I31: 75 | J31: 72 | K31: 73 | L31: 71 | M31: 76 | N31: 70 | O31: 72 | P31: 71 | Q31: Gazelle | R31: Gazelle | S31: PT | T31: POL | U31: EU | V31: 4 | W31: 100 | X31: 2 | Y31: 1 | Z31: 1996 | AA31: =2025-Z31 -> 29 | AB31: 5 | AC31: 76.23275191 | AD31: =(Tabla1124434[[#This Row],[Mountain]]+Tabla1124434[[#This Row],[Hill]])/2 -> 74.5 | AE31: 135000 | AF31: =ROUND(IF($AC31>79,44-(($AC31-79)*(14/4)),IF($AC31>76,67-(($AC31-76)*(23/3)),IF(110-(($AC31-70.4)*(43/5.6))>119,119,110-(($AC31-70.4)*(43/5.6)))))*0.93,0) -> 61 | AG31: =ROUND(IF($AC31>79,37-(($AC31-79)*(9/4)),IF($AC31>76,54-(($AC31-76)*(17/3)),IF(93-(($AC31-70.4)*(39/5.6))>100,100,93-(($AC31-70.4)*(39/5.6)))))*0.93,0) -> 49 | AH31: =ROUND(IF($AC31>79,32-(($AC31-79)*(8/4)),IF($AC31>76,48-(($AC31-76)*(16/3)),IF(86-(($AC31-70.4)*(38/5.6))>95,95,86-(($AC31-70.4)*(38/5.6)))))*0.93,0) -> 43 | AL31: 174 | AM31: 69
A32: 38 | B32: Pajek | C32: Luka | D32: 67 | E32: 59 | F32: 63 | G32: 60 | H32: 63 | I32: 66 | J32: 61 | K32: 62 | L32: 71 | M32: 72 | N32: 60 | O32: 63 | P32: 63 | Q32: Free Agent | R32: Free Agent | S32: - | T32: SLO | U32: EU | V32: 2 | W32: 58 | X32: 17 | Y32: 6 | Z32: 1996 | AA32: =2025-Z32 -> 29 | AB32: 4 | AC32: 68.78462345 | AD32: =(Tabla1124434[[#This Row],[Mountain]]+Tabla1124434[[#This Row],[Hill]])/2 -> 61 | AF32: =ROUND(IF($AC32>79,44-(($AC32-79)*(14/4)),IF($AC32>76,67-(($AC32-76)*(23/3)),IF(110-(($AC32-70.4)*(43/5.6))>119,119,110-(($AC32-70.4)*(43/5.6)))))*0.93,0) -> 111 | AG32: =ROUND(IF($AC32>79,37-(($AC32-79)*(9/4)),IF($AC32>76,54-(($AC32-76)*(17/3)),IF(93-(($AC32-70.4)*(39/5.6))>100,100,93-(($AC32-70.4)*(39/5.6)))))*0.93,0) -> 93 | AH32: =ROUND(IF($AC32>79,32-(($AC32-79)*(8/4)),IF($AC32>76,48-(($AC32-76)*(16/3)),IF(86-(($AC32-70.4)*(38/5.6))>95,95,86-(($AC32-70.4)*(38/5.6)))))*0.93,0) -> 88 | AL32: 165 | AM32: 53
A33: 39 | B33: Caiati | C33: Aldo | D33: 62 | E33: 66 | F33: 65 | G33: 60 | H33: 65 | I33: 65 | J33: 62 | K33: 60 | L33: 60 | M33: 64 | N33: 62 | O33: 62 | P33: 60 | Q33: Free Agent | R33: Free Agent | S33: - | T33: ITA | U33: EU | V33: 2 | W33: 0 | X33: 19 | Y33: 12 | Z33: 1998 | AA33: =2025-Z33 -> 27 | AB33: 5 | AC33: 65.80883957 | AD33: =(Tabla1124434[[#This Row],[Mountain]]+Tabla1124434[[#This Row],[Hill]])/2 -> 65.5 | AF33: =ROUND(IF($AC33>79,44-(($AC33-79)*(14/4)),IF($AC33>76,67-(($AC33-76)*(23/3)),IF(110-(($AC33-70.4)*(43/5.6))>119,119,110-(($AC33-70.4)*(43/5.6)))))*0.93,0) -> 111 | AG33: =ROUND(IF($AC33>79,37-(($AC33-79)*(9/4)),IF($AC33>76,54-(($AC33-76)*(17/3)),IF(93-(($AC33-70.4)*(39/5.6))>100,100,93-(($AC33-70.4)*(39/5.6)))))*0.93,0) -> 93 | AH33: =ROUND(IF($AC33>79,32-(($AC33-79)*(8/4)),IF($AC33>76,48-(($AC33-76)*(16/3)),IF(86-(($AC33-70.4)*(38/5.6))>95,95,86-(($AC33-70.4)*(38/5.6)))))*0.93,0) -> 88 | AL33: 170 | AM33: 56
A34: 40 | B34: Gudmestad | C34: Tord | D34: 68 | E34: 62 | F34: 64 | G34: 64 | H34: 66 | I34: 66 | J34: 64 | K34: 64 | L34: 69 | M34: 67 | N34: 70 | O34: 64 | P34: 67 | Q34: Gjensidige Pro Cycling Team | R34: Gjensidige Pro Cycling Team | S34: CT | T34: NOR | U34: EU | V34: 2 | W34: 5 | X34: 8 | Y34: 5 | Z34: 2001 | AA34: =2025-Z34 -> 24 | AB34: 4 | AC34: 67.1182359 | AD34: =(Tabla1124434[[#This Row],[Mountain]]+Tabla1124434[[#This Row],[Hill]])/2 -> 63 | AE34: 10000 | AF34: =ROUND(IF($AC34>79,44-(($AC34-79)*(14/4)),IF($AC34>76,67-(($AC34-76)*(23/3)),IF(110-(($AC34-70.4)*(43/5.6))>119,119,110-(($AC34-70.4)*(43/5.6)))))*0.93,0) -> 111 | AG34: =ROUND(IF($AC34>79,37-(($AC34-79)*(9/4)),IF($AC34>76,54-(($AC34-76)*(17/3)),IF(93-(($AC34-70.4)*(39/5.6))>100,100,93-(($AC34-70.4)*(39/5.6)))))*0.93,0) -> 93 | AH34: =ROUND(IF($AC34>79,32-(($AC34-79)*(8/4)),IF($AC34>76,48-(($AC34-76)*(16/3)),IF(86-(($AC34-70.4)*(38/5.6))>95,95,86-(($AC34-70.4)*(38/5.6)))))*0.93,0) -> 88 | AL34: 180 | AM34: 76
A35: 41 | B35: Eg | C35: Niklas | D35: 67 | E35: 77 | F35: 71 | G35: 74 | H35: 76 | I35: 74 | J35: 75 | K35: 59 | L35: 60 | M35: 68 | N35: 66 | O35: 65 | P35: 72 | Q35: Carlsberg - Danske Bank | R35: Carlsberg - Danske Bank | S35: PT | T35: DEN | U35: EU | V35: 4 | W35: 100 | X35: 6 | Y35: 1 | Z35: 1995 | AA35: =2025-Z35 -> 30 | AB35: 3 | AC35: 74.9355156 | AD35: =(Tabla1124434[[#This Row],[Mountain]]+Tabla1124434[[#This Row],[Hill]])/2 -> 74 | AE35: 85000 | AF35: =ROUND(IF($AC35>79,44-(($AC35-79)*(14/4)),IF($AC35>76,67-(($AC35-76)*(23/3)),IF(110-(($AC35-70.4)*(43/5.6))>119,119,110-(($AC35-70.4)*(43/5.6)))))*0.93,0) -> 70 | AG35: =ROUND(IF($AC35>79,37-(($AC35-79)*(9/4)),IF($AC35>76,54-(($AC35-76)*(17/3)),IF(93-(($AC35-70.4)*(39/5.6))>100,100,93-(($AC35-70.4)*(39/5.6)))))*0.93,0) -> 57 | AH35: =ROUND(IF($AC35>79,32-(($AC35-79)*(8/4)),IF($AC35>76,48-(($AC35-76)*(16/3)),IF(86-(($AC35-70.4)*(38/5.6))>95,95,86-(($AC35-70.4)*(38/5.6)))))*0.93,0) -> 51 | AL35: 165 | AM35: 58
A36: 42 | B36: Jacobs | C36: Johan | D36: 76 | E36: 60 | F36: 69 | G36: 62 | H36: 77 | I36: 76 | J36: 67 | K36: 79 | L36: 67 | M36: 68 | N36: 71 | O36: 73 | P36: 60 | Q36: Team UBS | R36: Team UBS | S36: PCT | T36: SWI | U36: EU | V36: 4 | W36: 100 | X36: 1 | Y36: 3 | Z36: 1997 | AA36: =2025-Z36 -> 28 | AB36: 6 | AC36: 76.03848698 | AD36: =(Tabla1124434[[#This Row],[Mountain]]+Tabla1124434[[#This Row],[Hill]])/2 -> 64.5 | AE36: 115000 | AF36: =ROUND(IF($AC36>79,44-(($AC36-79)*(14/4)),IF($AC36>76,67-(($AC36-76)*(23/3)),IF(110-(($AC36-70.4)*(43/5.6))>119,119,110-(($AC36-70.4)*(43/5.6)))))*0.93,0) -> 62 | AG36: =ROUND(IF($AC36>79,37-(($AC36-79)*(9/4)),IF($AC36>76,54-(($AC36-76)*(17/3)),IF(93-(($AC36-70.4)*(39/5.6))>100,100,93-(($AC36-70.4)*(39/5.6)))))*0.93,0) -> 50 | AH36: =ROUND(IF($AC36>79,32-(($AC36-79)*(8/4)),IF($AC36>76,48-(($AC36-76)*(16/3)),IF(86-(($AC36-70.4)*(38/5.6))>95,95,86-(($AC36-70.4)*(38/5.6)))))*0.93,0) -> 44 | AL36: 181 | AM36: 66
A37: 43 | B37: Venturini | C37: Clement | D37: 75 | E37: 63 | F37: 68 | G37: 65 | H37: 74 | I37: 74 | J37: 79 | K37: 72 | L37: 75 | M37: 77 | N37: 63 | O37: 73 | P37: 69 | Q37: Indosat Ooredoo | R37: Indosat Ooredoo | S37: PCT | T37: FRA | U37: EU | V37: 4 | W37: 100 | X37: 16 | Y37: 10 | Z37: 1993 | AA37: =2025-Z37 -> 32 | AB37: 5 | AC37: 74.28707377 | AD37: =(Tabla1124434[[#This Row],[Mountain]]+Tabla1124434[[#This Row],[Hill]])/2 -> 65.5 | AE37: 55000 | AF37: =ROUND(IF($AC37>79,44-(($AC37-79)*(14/4)),IF($AC37>76,67-(($AC37-76)*(23/3)),IF(110-(($AC37-70.4)*(43/5.6))>119,119,110-(($AC37-70.4)*(43/5.6)))))*0.93,0) -> 75 | AG37: =ROUND(IF($AC37>79,37-(($AC37-79)*(9/4)),IF($AC37>76,54-(($AC37-76)*(17/3)),IF(93-(($AC37-70.4)*(39/5.6))>100,100,93-(($AC37-70.4)*(39/5.6)))))*0.93,0) -> 61 | AH37: =ROUND(IF($AC37>79,32-(($AC37-79)*(8/4)),IF($AC37>76,48-(($AC37-76)*(16/3)),IF(86-(($AC37-70.4)*(38/5.6))>95,95,86-(($AC37-70.4)*(38/5.6)))))*0.93,0) -> 55 | AL37: 181 | AM37: 65
A38: 44 | B38: Haldimann | C38: Guillaume | D38: 70 | E38: 54 | F38: 59 | G38: 72 | H38: 65 | I38: 66 | J38: 69 | K38: 51 | L38: 59 | M38: 61 | N38: 67 | O38: 65 | P38: 72 | Q38: Free Agent | R38: Hilcona Racing Team | S38: CT | T38: LIE | U38: EU | V38: 3 | W38: 8 | X38: 15 | Y38: 10 | Z38: 2002 | AA38: =2025-Z38 -> 23 | AB38: 4 | AC38: 68.46365834 | AD38: =(Tabla1124434[[#This Row],[Mountain]]+Tabla1124434[[#This Row],[Hill]])/2 -> 56.5 | AE38: 50000 | AF38: =ROUND(IF($AC38>79,44-(($AC38-79)*(14/4)),IF($AC38>76,67-(($AC38-76)*(23/3)),IF(110-(($AC38-70.4)*(43/5.6))>119,119,110-(($AC38-70.4)*(43/5.6)))))*0.93,0) -> 111 | AG38: =ROUND(IF($AC38>79,37-(($AC38-79)*(9/4)),IF($AC38>76,54-(($AC38-76)*(17/3)),IF(93-(($AC38-70.4)*(39/5.6))>100,100,93-(($AC38-70.4)*(39/5.6)))))*0.93,0) -> 93 | AH38: =ROUND(IF($AC38>79,32-(($AC38-79)*(8/4)),IF($AC38>76,48-(($AC38-76)*(16/3)),IF(86-(($AC38-70.4)*(38/5.6))>95,95,86-(($AC38-70.4)*(38/5.6)))))*0.93,0) -> 88 | AL38: 188 | AM38: 82
A39: 45 | B39: Girmay | C39: Biniam | D39: 77 | E39: 64 | F39: 71 | G39: 61 | H39: 76 | I39: 76 | J39: 77 | K39: 79 | L39: 77 | M39: 76 | N39: 64 | O39: 71 | P39: 65 | Q39: Bralirwa - Cegeka | R39: Assa Abloy | S39: PT | T39: ERI | U39: AF | V39: 4 | W39: 100 | X39: 2 | Y39: 4 | Z39: 2000 | AA39: =2025-Z39 -> 25 | AB39: 4 | AC39: 77.59979129 | AD39: =(Tabla1124434[[#This Row],[Mountain]]+Tabla1124434[[#This Row],[Hill]])/2 -> 67.5 | AE39: 375000 | AF39: =ROUND(IF($AC39>79,44-(($AC39-79)*(14/4)),IF($AC39>76,67-(($AC39-76)*(23/3)),IF(110-(($AC39-70.4)*(43/5.6))>119,119,110-(($AC39-70.4)*(43/5.6)))))*0.93,0) -> 51 | AG39: =ROUND(IF($AC39>79,37-(($AC39-79)*(9/4)),IF($AC39>76,54-(($AC39-76)*(17/3)),IF(93-(($AC39-70.4)*(39/5.6))>100,100,93-(($AC39-70.4)*(39/5.6)))))*0.93,0) -> 42 | AH39: =ROUND(IF($AC39>79,32-(($AC39-79)*(8/4)),IF($AC39>76,48-(($AC39-76)*(16/3)),IF(86-(($AC39-70.4)*(38/5.6))>95,95,86-(($AC39-70.4)*(38/5.6)))))*0.93,0) -> 37 | AL39: 182 | AM39: 70
A40: 46 | B40: Arias Villanueva | C40: Sergio | D40: 73 | E40: 60 | F40: 63 | G40: 75 | H40: 73 | I40: 74 | J40: 70 | K40: 61 | L40: 62 | M40: 68 | N40: 70 | O40: 65 | P40: 75 | Q40: Free Agent | R40: Manada Coyote | S40: PCT | T40: CRC | U40: NA | V40: 4 | W40: 41 | X40: 13 | Y40: 9 | Z40: 1998 | AA40: =2025-Z40 -> 27 | AB40: 3 | AC40: 71.8363384 | AD40: =(Tabla1124434[[#This Row],[Mountain]]+Tabla1124434[[#This Row],[Hill]])/2 -> 61.5 | AE40: 50000 | AF40: =ROUND(IF($AC40>79,44-(($AC40-79)*(14/4)),IF($AC40>76,67-(($AC40-76)*(23/3)),IF(110-(($AC40-70.4)*(43/5.6))>119,119,110-(($AC40-70.4)*(43/5.6)))))*0.93,0) -> 92 | AG40: =ROUND(IF($AC40>79,37-(($AC40-79)*(9/4)),IF($AC40>76,54-(($AC40-76)*(17/3)),IF(93-(($AC40-70.4)*(39/5.6))>100,100,93-(($AC40-70.4)*(39/5.6)))))*0.93,0) -> 77 | AH40: =ROUND(IF($AC40>79,32-(($AC40-79)*(8/4)),IF($AC40>76,48-(($AC40-76)*(16/3)),IF(86-(($AC40-70.4)*(38/5.6))>95,95,86-(($AC40-70.4)*(38/5.6)))))*0.93,0) -> 71 | AL40: 0 | AM40: 0
A41: 47 | B41: Tratnik | C41: Jan | D41: 67 | E41: 69 | F41: 73 | G41: 58 | H41: 68 | I41: 69 | J41: 61 | K41: 58 | L41: 57 | M41: 64 | N41: 67 | O41: 61 | P41: 58 | Q41: Genii Hyundai N Cycling | R41: Genii Hyundai N Cycling | S41: CT | T41: SLO | U41: EU | V41: 4 | W41: 100 | X41: 23 | Y41: 2 | Z41: 1990 | AA41: =2025-Z41 -> 35 | AB41: 6 | AC41: 70.57419082 | AD41: =(Tabla1124434[[#This Row],[Mountain]]+Tabla1124434[[#This Row],[Hill]])/2 -> 71 | AE41: 50000 | AF41: =ROUND(IF($AC41>79,44-(($AC41-79)*(14/4)),IF($AC41>76,67-(($AC41-76)*(23/3)),IF(110-(($AC41-70.4)*(43/5.6))>119,119,110-(($AC41-70.4)*(43/5.6)))))*0.93,0) -> 101 | AG41: =ROUND(IF($AC41>79,37-(($AC41-79)*(9/4)),IF($AC41>76,54-(($AC41-76)*(17/3)),IF(93-(($AC41-70.4)*(39/5.6))>100,100,93-(($AC41-70.4)*(39/5.6)))))*0.93,0) -> 85 | AH41: =ROUND(IF($AC41>79,32-(($AC41-79)*(8/4)),IF($AC41>76,48-(($AC41-76)*(16/3)),IF(86-(($AC41-70.4)*(38/5.6))>95,95,86-(($AC41-70.4)*(38/5.6)))))*0.93,0) -> 79 | AL41: 172 | AM41: 61
A42: 48 | B42: McEvoy | C42: Jonathan | D42: 63 | E42: 57 | F42: 69 | G42: 58 | H42: 65 | I42: 60 | J42: 57 | K42: 58 | L42: 68 | M42: 69 | N42: 72 | O42: 59 | P42: 58 | Q42: Free Agent | R42: Free Agent | S42: - | T42: GBR | U42: EU | V42: 4 | W42: 100 | X42: 2 | Y42: 8 | Z42: 1989 | AA42: =2025-Z42 -> 36 | AB42: 6 | AC42: 67.49526961 | AD42: =(Tabla1124434[[#This Row],[Mountain]]+Tabla1124434[[#This Row],[Hill]])/2 -> 63 | AF42: =ROUND(IF($AC42>79,44-(($AC42-79)*(14/4)),IF($AC42>76,67-(($AC42-76)*(23/3)),IF(110-(($AC42-70.4)*(43/5.6))>119,119,110-(($AC42-70.4)*(43/5.6)))))*0.93,0) -> 111 | AG42: =ROUND(IF($AC42>79,37-(($AC42-79)*(9/4)),IF($AC42>76,54-(($AC42-76)*(17/3)),IF(93-(($AC42-70.4)*(39/5.6))>100,100,93-(($AC42-70.4)*(39/5.6)))))*0.93,0) -> 93 | AH42: =ROUND(IF($AC42>79,32-(($AC42-79)*(8/4)),IF($AC42>76,48-(($AC42-76)*(16/3)),IF(86-(($AC42-70.4)*(38/5.6))>95,95,86-(($AC42-70.4)*(38/5.6)))))*0.93,0) -> 88 | AL42: 183 | AM42: 67
A43: 49 | B43: Eriksson | C43: Lucas | D43: 72 | E43: 67 | F43: 78 | G43: 61 | H43: 78 | I43: 74 | J43: 75 | K43: 65 | L43: 65 | M43: 76 | N43: 75 | O43: 71 | P43: 61 | Q43: Tafjord Kraft | R43: Tafjord Kraft | S43: PCT | T43: SWD | U43: EU | V43: 4 | W43: 100 | X43: 10 | Y43: 4 | Z43: 1996 | AA43: =2025-Z43 -> 29 | AB43: 5 | AC43: 75.46347254 | AD43: =(Tabla1124434[[#This Row],[Mountain]]+Tabla1124434[[#This Row],[Hill]])/2 -> 72.5 | AE43: 130000 | AF43: =ROUND(IF($AC43>79,44-(($AC43-79)*(14/4)),IF($AC43>76,67-(($AC43-76)*(23/3)),IF(110-(($AC43-70.4)*(43/5.6))>119,119,110-(($AC43-70.4)*(43/5.6)))))*0.93,0) -> 66 | AG43: =ROUND(IF($AC43>79,37-(($AC43-79)*(9/4)),IF($AC43>76,54-(($AC43-76)*(17/3)),IF(93-(($AC43-70.4)*(39/5.6))>100,100,93-(($AC43-70.4)*(39/5.6)))))*0.93,0) -> 54 | AH43: =ROUND(IF($AC43>79,32-(($AC43-79)*(8/4)),IF($AC43>76,48-(($AC43-76)*(16/3)),IF(86-(($AC43-70.4)*(38/5.6))>95,95,86-(($AC43-70.4)*(38/5.6)))))*0.93,0) -> 48 | AL43: 178 | AM43: 69
A44: 50 | B44: Horvat | C44: Ziga | D44: 77 | E44: 66 | F44: 70 | G44: 56 | H44: 75 | I44: 77 | J44: 68 | K44: 74 | L44: 67 | M44: 71 | N44: 74 | O44: 69 | P44: 59 | Q44: Free Agent | R44: Xero Racing | S44: PT | T44: SLO | U44: EU | V44: 4 | W44: 100 | X44: 13 | Y44: 9 | Z44: 1998 | AA44: =2025-Z44 -> 27 | AB44: 6 | AC44: 74.7622941 | AD44: =(Tabla1124434[[#This Row],[Mountain]]+Tabla1124434[[#This Row],[Hill]])/2 -> 68 | AE44: 50000 | AF44: =ROUND(IF($AC44>79,44-(($AC44-79)*(14/4)),IF($AC44>76,67-(($AC44-76)*(23/3)),IF(110-(($AC44-70.4)*(43/5.6))>119,119,110-(($AC44-70.4)*(43/5.6)))))*0.93,0) -> 71 | AG44: =ROUND(IF($AC44>79,37-(($AC44-79)*(9/4)),IF($AC44>76,54-(($AC44-76)*(17/3)),IF(93-(($AC44-70.4)*(39/5.6))>100,100,93-(($AC44-70.4)*(39/5.6)))))*0.93,0) -> 58 | AH44: =ROUND(IF($AC44>79,32-(($AC44-79)*(8/4)),IF($AC44>76,48-(($AC44-76)*(16/3)),IF(86-(($AC44-70.4)*(38/5.6))>95,95,86-(($AC44-70.4)*(38/5.6)))))*0.93,0) -> 52 | AL44: 174 | AM44: 72
A45: 51 | B45: Hoole | C45: Daan | D45: 73 | E45: 68 | F45: 67 | G45: 74 | H45: 74 | I45: 76 | J45: 69 | K45: 75 | L45: 68 | M45: 69 | N45: 70 | O45: 70 | P45: 71 | Q45: Sony - Force India | R45: Fastned | S45: PT | T45: NED | U45: EU | V45: 4 | W45: 100 | X45: 22 | Y45: 2 | Z45: 1999 | AA45: =2025-Z45 -> 26 | AB45: 5 | AC45: 73.90752928 | AD45: =(Tabla1124434[[#This Row],[Mountain]]+Tabla1124434[[#This Row],[Hill]])/2 -> 67.5 | AE45: 50000 | AF45: =ROUND(IF($AC45>79,44-(($AC45-79)*(14/4)),IF($AC45>76,67-(($AC45-76)*(23/3)),IF(110-(($AC45-70.4)*(43/5.6))>119,119,110-(($AC45-70.4)*(43/5.6)))))*0.93,0) -> 77 | AG45: =ROUND(IF($AC45>79,37-(($AC45-79)*(9/4)),IF($AC45>76,54-(($AC45-76)*(17/3)),IF(93-(($AC45-70.4)*(39/5.6))>100,100,93-(($AC45-70.4)*(39/5.6)))))*0.93,0) -> 64 | AH45: =ROUND(IF($AC45>79,32-(($AC45-79)*(8/4)),IF($AC45>76,48-(($AC45-76)*(16/3)),IF(86-(($AC45-70.4)*(38/5.6))>95,95,86-(($AC45-70.4)*(38/5.6)))))*0.93,0) -> 58 | AL45: 198 | AM45: 82
A46: 52 | B46: Petrovski | C46: Mario | D46: 69 | E46: 61 | F46: 66 | G46: 69 | H46: 67 | I46: 70 | J46: 64 | K46: 55 | L46: 70 | M46: 71 | N46: 68 | O46: 68 | P46: 70 | Q46: Free Agent | R46: Free Agent | S46: - | T46: MCD | U46: EU | V46: 1 | W46: 0 | X46: 20 | Y46: 7 | Z46: 1998 | AA46: =2025-Z46 -> 27 | AB46: 2 | AC46: 68.80667324 | AD46: =(Tabla1124434[[#This Row],[Mountain]]+Tabla1124434[[#This Row],[Hill]])/2 -> 63.5 | AF46: =ROUND(IF($AC46>79,44-(($AC46-79)*(14/4)),IF($AC46>76,67-(($AC46-76)*(23/3)),IF(110-(($AC46-70.4)*(43/5.6))>119,119,110-(($AC46-70.4)*(43/5.6)))))*0.93,0) -> 111 | AG46: =ROUND(IF($AC46>79,37-(($AC46-79)*(9/4)),IF($AC46>76,54-(($AC46-76)*(17/3)),IF(93-(($AC46-70.4)*(39/5.6))>100,100,93-(($AC46-70.4)*(39/5.6)))))*0.93,0) -> 93 | AH46: =ROUND(IF($AC46>79,32-(($AC46-79)*(8/4)),IF($AC46>76,48-(($AC46-76)*(16/3)),IF(86-(($AC46-70.4)*(38/5.6))>95,95,86-(($AC46-70.4)*(38/5.6)))))*0.93,0) -> 88 | AL46: 0 | AM46: 0
A47: 54 | B47: Plapp | C47: Luke | D47: 72 | E47: 79 | F47: 76 | G47: 77 | H47: 74 | I47: 78 | J47: 76 | K47: 58 | L47: 62 | M47: 68 | N47: 73 | O47: 65 | P47: 78 | Q47: Evonik - ELKO | R47: Evonik - ELKO | S47: PT | T47: AUS | U47: OC | V47: 4 | W47: 100 | X47: 24 | Y47: 12 | Z47: 2000 | AA47: =2025-Z47 -> 25 | AB47: 5 | AC47: 77.80679643 | AD47: =(Tabla1124434[[#This Row],[Mountain]]+Tabla1124434[[#This Row],[Hill]])/2 -> 77.5 | AE47: 137000 | AF47: =ROUND(IF($AC47>79,44-(($AC47-79)*(14/4)),IF($AC47>76,67-(($AC47-76)*(23/3)),IF(110-(($AC47-70.4)*(43/5.6))>119,119,110-(($AC47-70.4)*(43/5.6)))))*0.93,0) -> 49 | AG47: =ROUND(IF($AC47>79,37-(($AC47-79)*(9/4)),IF($AC47>76,54-(($AC47-76)*(17/3)),IF(93-(($AC47-70.4)*(39/5.6))>100,100,93-(($AC47-70.4)*(39/5.6)))))*0.93,0) -> 41 | AH47: =ROUND(IF($AC47>79,32-(($AC47-79)*(8/4)),IF($AC47>76,48-(($AC47-76)*(16/3)),IF(86-(($AC47-70.4)*(38/5.6))>95,95,86-(($AC47-70.4)*(38/5.6)))))*0.93,0) -> 36 | AL47: 0 | AM47: 0
A48: 55 | B48: Renard | C48: Alexis | D48: 77 | E48: 62 | F48: 70 | G48: 67 | H48: 70 | I48: 76 | J48: 69 | K48: 69 | L48: 71 | M48: 71 | N48: 71 | O48: 68 | P48: 69 | Q48: Euskotren - Pays Basque | R48: Assa Abloy | S48: PT | T48: FRA | U48: EU | V48: 4 | W48: 100 | X48: 1 | Y48: 6 | Z48: 1999 | AA48: =2025-Z48 -> 26 | AB48: 4 | AC48: 72.41842458 | AD48: =(Tabla1124434[[#This Row],[Mountain]]+Tabla1124434[[#This Row],[Hill]])/2 -> 66 | AE48: 50000 | AF48: =ROUND(IF($AC48>79,44-(($AC48-79)*(14/4)),IF($AC48>76,67-(($AC48-76)*(23/3)),IF(110-(($AC48-70.4)*(43/5.6))>119,119,110-(($AC48-70.4)*(43/5.6)))))*0.93,0) -> 88 | AG48: =ROUND(IF($AC48>79,37-(($AC48-79)*(9/4)),IF($AC48>76,54-(($AC48-76)*(17/3)),IF(93-(($AC48-70.4)*(39/5.6))>100,100,93-(($AC48-70.4)*(39/5.6)))))*0.93,0) -> 73 | AH48: =ROUND(IF($AC48>79,32-(($AC48-79)*(8/4)),IF($AC48>76,48-(($AC48-76)*(16/3)),IF(86-(($AC48-70.4)*(38/5.6))>95,95,86-(($AC48-70.4)*(38/5.6)))))*0.93,0) -> 67 | AL48: 186 | AM48: 74
A49: 56 | B49: Salazar | C49: John | D49: 76 | E49: 71 | F49: 70 | G49: 70 | H49: 74 | I49: 73 | J49: 73 | K49: 69 | L49: 70 | M49: 73 | N49: 70 | O49: 69 | P49: 72 | Q49: King Power | R49: King Power | S49: PT | T49: PHI | U49: AS | V49: 4 | W49: 100 | X49: 18 | Y49: 6 | Z49: 1998 | AA49: =2025-Z49 -> 27 | AB49: 6 | AC49: 73.34762847 | AD49: =(Tabla1124434[[#This Row],[Mountain]]+Tabla1124434[[#This Row],[Hill]])/2 -> 70.5 | AE49: 55000 | AF49: =ROUND(IF($AC49>79,44-(($AC49-79)*(14/4)),IF($AC49>76,67-(($AC49-76)*(23/3)),IF(110-(($AC49-70.4)*(43/5.6))>119,119,110-(($AC49-70.4)*(43/5.6)))))*0.93,0) -> 81 | AG49: =ROUND(IF($AC49>79,37-(($AC49-79)*(9/4)),IF($AC49>76,54-(($AC49-76)*(17/3)),IF(93-(($AC49-70.4)*(39/5.6))>100,100,93-(($AC49-70.4)*(39/5.6)))))*0.93,0) -> 67 | AH49: =ROUND(IF($AC49>79,32-(($AC49-79)*(8/4)),IF($AC49>76,48-(($AC49-76)*(16/3)),IF(86-(($AC49-70.4)*(38/5.6))>95,95,86-(($AC49-70.4)*(38/5.6)))))*0.93,0) -> 61 | AL49: 0 | AM49: 0
A50: 59 | B50: Boivin | C50: Guillaume | D50: 67 | E50: 51 | F50: 63 | G50: 55 | H50: 64 | I50: 60 | J50: 65 | K50: 52 | L50: 72 | M50: 70 | N50: 66 | O50: 60 | P50: 59 | Q50: Free Agent | R50: Free Agent | S50: - | T50: CAN | U50: NA | V50: 4 | W50: 100 | X50: 25 | Y50: 9 | Z50: 1989 | AA50: =2025-Z50 -> 36 | AB50: 6 | AC50: 68.52707244 | AD50: =(Tabla1124434[[#This Row],[Mountain]]+Tabla1124434[[#This Row],[Hill]])/2 -> 57 | AF50: =ROUND(IF($AC50>79,44-(($AC50-79)*(14/4)),IF($AC50>76,67-(($AC50-76)*(23/3)),IF(110-(($AC50-70.4)*(43/5.6))>119,119,110-(($AC50-70.4)*(43/5.6)))))*0.93,0) -> 111 | AG50: =ROUND(IF($AC50>79,37-(($AC50-79)*(9/4)),IF($AC50>76,54-(($AC50-76)*(17/3)),IF(93-(($AC50-70.4)*(39/5.6))>100,100,93-(($AC50-70.4)*(39/5.6)))))*0.93,0) -> 93 | AH50: =ROUND(IF($AC50>79,32-(($AC50-79)*(8/4)),IF($AC50>76,48-(($AC50-76)*(16/3)),IF(86-(($AC50-70.4)*(38/5.6))>95,95,86-(($AC50-70.4)*(38/5.6)))))*0.93,0) -> 88 | AL50: 180 | AM50: 78 | AR50: yes
A51: 60 | B51: Milesi | C51: Lorenzo | D51: 71 | E51: 55 | F51: 61 | G51: 75 | H51: 73 | I51: 70 | J51: 73 | K51: 71 | L51: 60 | M51: 65 | N51: 72 | O51: 66 | P51: 74 | Q51: King Power | R51: McCormick Pro Cycling | S51: PCT | T51: ITA | U51: EU | V51: 3 | W51: 9 | X51: 19 | Y51: 3 | Z51: 2002 | AA51: =2025-Z51 -> 23 | AB51: 5 | AC51: 71.64960765 | AD51: =(Tabla1124434[[#This Row],[Mountain]]+Tabla1124434[[#This Row],[Hill]])/2 -> 58 | AE51: 175000 | AF51: =ROUND(IF($AC51>79,44-(($AC51-79)*(14/4)),IF($AC51>76,67-(($AC51-76)*(23/3)),IF(110-(($AC51-70.4)*(43/5.6))>119,119,110-(($AC51-70.4)*(43/5.6)))))*0.93,0) -> 93 | AG51: =ROUND(IF($AC51>79,37-(($AC51-79)*(9/4)),IF($AC51>76,54-(($AC51-76)*(17/3)),IF(93-(($AC51-70.4)*(39/5.6))>100,100,93-(($AC51-70.4)*(39/5.6)))))*0.93,0) -> 78 | AH51: =ROUND(IF($AC51>79,32-(($AC51-79)*(8/4)),IF($AC51>76,48-(($AC51-76)*(16/3)),IF(86-(($AC51-70.4)*(38/5.6))>95,95,86-(($AC51-70.4)*(38/5.6)))))*0.93,0) -> 72 | AL51: 173 | AM51: 61
A52: 61 | B52: Domont | C52: Axel | D52: 61 | E52: 64 | F52: 65 | G52: 55 | H52: 60 | I52: 62 | J52: 57 | K52: 49 | L52: 57 | M52: 61 | N52: 65 | O52: 62 | P52: 57 | Q52: Free Agent | R52: Free Agent | S52: - | T52: FRA | U52: EU | V52: 4 | W52: 100 | X52: 7 | Y52: 8 | Z52: 1990 | AA52: =2025-Z52 -> 35 | AB52: 3 | AC52: 64.37082301 | AD52: =(Tabla1124434[[#This Row],[Mountain]]+Tabla1124434[[#This Row],[Hill]])/2 -> 64.5 | AF52: =ROUND(IF($AC52>79,44-(($AC52-79)*(14/4)),IF($AC52>76,67-(($AC52-76)*(23/3)),IF(110-(($AC52-70.4)*(43/5.6))>119,119,110-(($AC52-70.4)*(43/5.6)))))*0.93,0) -> 111 | AG52: =ROUND(IF($AC52>79,37-(($AC52-79)*(9/4)),IF($AC52>76,54-(($AC52-76)*(17/3)),IF(93-(($AC52-70.4)*(39/5.6))>100,100,93-(($AC52-70.4)*(39/5.6)))))*0.93,0) -> 93 | AH52: =ROUND(IF($AC52>79,32-(($AC52-79)*(8/4)),IF($AC52>76,48-(($AC52-76)*(16/3)),IF(86-(($AC52-70.4)*(38/5.6))>95,95,86-(($AC52-70.4)*(38/5.6)))))*0.93,0) -> 88 | AL52: 171 | AM52: 61
A53: 63 | B53: Baroncini | C53: Filippo | D53: 75 | E53: 65 | F53: 75 | G53: 74 | H53: 74 | I53: 78 | J53: 72 | K53: 63 | L53: 67 | M53: 72 | N53: 75 | O53: 70 | P53: 72 | Q53: Specialized | R53: Evonik - ELKO | S53: PT | T53: ITA | U53: EU | V53: 4 | W53: 100 | X53: 26 | Y53: 8 | Z53: 2000 | AA53: =2025-Z53 -> 25 | AB53: 4 | AC53: 74.42234161 | AD53: =(Tabla1124434[[#This Row],[Mountain]]+Tabla1124434[[#This Row],[Hill]])/2 -> 70 | AE53: 50000 | AF53: =ROUND(IF($AC53>79,44-(($AC53-79)*(14/4)),IF($AC53>76,67-(($AC53-76)*(23/3)),IF(110-(($AC53-70.4)*(43/5.6))>119,119,110-(($AC53-70.4)*(43/5.6)))))*0.93,0) -> 74 | AG53: =ROUND(IF($AC53>79,37-(($AC53-79)*(9/4)),IF($AC53>76,54-(($AC53-76)*(17/3)),IF(93-(($AC53-70.4)*(39/5.6))>100,100,93-(($AC53-70.4)*(39/5.6)))))*0.93,0) -> 60 | AH53: =ROUND(IF($AC53>79,32-(($AC53-79)*(8/4)),IF($AC53>76,48-(($AC53-76)*(16/3)),IF(86-(($AC53-70.4)*(38/5.6))>95,95,86-(($AC53-70.4)*(38/5.6)))))*0.93,0) -> 55 | AL53: 188 | AM53: 0
A54: 64 | B54: Cote | C54: Pier-Andre | D54: 69 | E54: 64 | F54: 68 | G54: 57 | H54: 72 | I54: 71 | J54: 67 | K54: 60 | L54: 67 | M54: 69 | N54: 66 | O54: 68 | P54: 57 | Q54: Free Agent | R54: Free Agent | S54: - | T54: CAN | U54: NA | V54: 3 | W54: 23 | X54: 24 | Y54: 4 | Z54: 1997 | AA54: =2025-Z54 -> 28 | AB54: 5 | AC54: 69.29501086 | AD54: =(Tabla1124434[[#This Row],[Mountain]]+Tabla1124434[[#This Row],[Hill]])/2 -> 66 | AF54: =ROUND(IF($AC54>79,44-(($AC54-79)*(14/4)),IF($AC54>76,67-(($AC54-76)*(23/3)),IF(110-(($AC54-70.4)*(43/5.6))>119,119,110-(($AC54-70.4)*(43/5.6)))))*0.93,0) -> 110 | AG54: =ROUND(IF($AC54>79,37-(($AC54-79)*(9/4)),IF($AC54>76,54-(($AC54-76)*(17/3)),IF(93-(($AC54-70.4)*(39/5.6))>100,100,93-(($AC54-70.4)*(39/5.6)))))*0.93,0) -> 93 | AH54: =ROUND(IF($AC54>79,32-(($AC54-79)*(8/4)),IF($AC54>76,48-(($AC54-76)*(16/3)),IF(86-(($AC54-70.4)*(38/5.6))>95,95,86-(($AC54-70.4)*(38/5.6)))))*0.93,0) -> 87 | AL54: 0 | AM54: 0
A55: 65 | B55: Chumil | C55: Sergio | D55: 66 | E55: 74 | F55: 71 | G55: 71 | H55: 73 | I55: 72 | J55: 72 | K55: 55 | L55: 62 | M55: 67 | N55: 67 | O55: 68 | P55: 71 | Q55: Free Agent | R55: Manada Coyote | S55: PCT | T55: GUA | U55: NA | V55: 4 | W55: 58 | X55: 8 | Y55: 10 | Z55: 2000 | AA55: =2025-Z55 -> 25 | AB55: 5 | AC55: 72.80916593 | AD55: =(Tabla1124434[[#This Row],[Mountain]]+Tabla1124434[[#This Row],[Hill]])/2 -> 72.5 | AE55: 50000 | AF55: =ROUND(IF($AC55>79,44-(($AC55-79)*(14/4)),IF($AC55>76,67-(($AC55-76)*(23/3)),IF(110-(($AC55-70.4)*(43/5.6))>119,119,110-(($AC55-70.4)*(43/5.6)))))*0.93,0) -> 85 | AG55: =ROUND(IF($AC55>79,37-(($AC55-79)*(9/4)),IF($AC55>76,54-(($AC55-76)*(17/3)),IF(93-(($AC55-70.4)*(39/5.6))>100,100,93-(($AC55-70.4)*(39/5.6)))))*0.93,0) -> 71 | AH55: =ROUND(IF($AC55>79,32-(($AC55-79)*(8/4)),IF($AC55>76,48-(($AC55-76)*(16/3)),IF(86-(($AC55-70.4)*(38/5.6))>95,95,86-(($AC55-70.4)*(38/5.6)))))*0.93,0) -> 65 | AL55: 0 | AM55: 0
A56: 67 | B56: Stewart | C56: Campbell | D56: 63 | E56: 64 | F56: 66 | G56: 59 | H56: 62 | I56: 66 | J56: 64 | K56: 61 | L56: 65 | M56: 66 | N56: 66 | O56: 63 | P56: 61 | Q56: Free Agent | R56: Free Agent | S56: - | T56: NZL | U56: OC | V56: 3 | W56: 60 | X56: 25 | Y56: 8 | Z56: 1995 | AA56: =2025-Z56 -> 30 | AB56: 4 | AC56: 66.53045672 | AD56: =(Tabla1124434[[#This Row],[Mountain]]+Tabla1124434[[#This Row],[Hill]])/2 -> 65 | AF56: =ROUND(IF($AC56>79,44-(($AC56-79)*(14/4)),IF($AC56>76,67-(($AC56-76)*(23/3)),IF(110-(($AC56-70.4)*(43/5.6))>119,119,110-(($AC56-70.4)*(43/5.6)))))*0.93,0) -> 111 | AG56: =ROUND(IF($AC56>79,37-(($AC56-79)*(9/4)),IF($AC56>76,54-(($AC56-76)*(17/3)),IF(93-(($AC56-70.4)*(39/5.6))>100,100,93-(($AC56-70.4)*(39/5.6)))))*0.93,0) -> 93 | AH56: =ROUND(IF($AC56>79,32-(($AC56-79)*(8/4)),IF($AC56>76,48-(($AC56-76)*(16/3)),IF(86-(($AC56-70.4)*(38/5.6))>95,95,86-(($AC56-70.4)*(38/5.6)))))*0.93,0) -> 88 | AL56: 0 | AM56: 0
A57: 68 | B57: Turgis | C57: Anthony | D57: 73 | E57: 67 | F57: 79 | G57: 66 | H57: 76 | I57: 78 | J57: 70 | K57: 65 | L57: 70 | M57: 77 | N57: 83 | O57: 67 | P57: 68 | Q57: Kraftwerk Man Machine | R57: Kraftwerk Man Machine | S57: PCT | T57: FRA | U57: EU | V57: 4 | W57: 100 | X57: 16 | Y57: 5 | Z57: 1994 | AA57: =2025-Z57 -> 31 | AB57: 6 | AC57: 76.74286854 | AD57: =(Tabla1124434[[#This Row],[Mountain]]+Tabla1124434[[#This Row],[Hill]])/2 -> 73 | AE57: 330000 | AF57: =ROUND(IF($AC57>79,44-(($AC57-79)*(14/4)),IF($AC57>76,67-(($AC57-76)*(23/3)),IF(110-(($AC57-70.4)*(43/5.6))>119,119,110-(($AC57-70.4)*(43/5.6)))))*0.93,0) -> 57 | AG57: =ROUND(IF($AC57>79,37-(($AC57-79)*(9/4)),IF($AC57>76,54-(($AC57-76)*(17/3)),IF(93-(($AC57-70.4)*(39/5.6))>100,100,93-(($AC57-70.4)*(39/5.6)))))*0.93,0) -> 46 | AH57: =ROUND(IF($AC57>79,32-(($AC57-79)*(8/4)),IF($AC57>76,48-(($AC57-76)*(16/3)),IF(86-(($AC57-70.4)*(38/5.6))>95,95,86-(($AC57-70.4)*(38/5.6)))))*0.93,0) -> 41 | AL57: 179 | AM57: 69
A58: 69 | B58: Brochu | C58: Jordan | D58: 68 | E58: 58 | F58: 64 | G58: 69 | H58: 60 | I58: 64 | J58: 56 | K58: 57 | L58: 58 | M58: 60 | N58: 65 | O58: 62 | P58: 68 | Q58: Free Agent | R58: Free Agent | S58: - | T58: CAN | U58: NA | V58: 4 | W58: 0 | X58: 23 | Y58: 10 | Z58: 1992 | AA58: =2025-Z58 -> 33 | AB58: 3 | AC58: 66.28640206 | AD58: =(Tabla1124434[[#This Row],[Mountain]]+Tabla1124434[[#This Row],[Hill]])/2 -> 61 | AF58: =ROUND(IF($AC58>79,44-(($AC58-79)*(14/4)),IF($AC58>76,67-(($AC58-76)*(23/3)),IF(110-(($AC58-70.4)*(43/5.6))>119,119,110-(($AC58-70.4)*(43/5.6)))))*0.93,0) -> 111 | AG58: =ROUND(IF($AC58>79,37-(($AC58-79)*(9/4)),IF($AC58>76,54-(($AC58-76)*(17/3)),IF(93-(($AC58-70.4)*(39/5.6))>100,100,93-(($AC58-70.4)*(39/5.6)))))*0.93,0) -> 93 | AH58: =ROUND(IF($AC58>79,32-(($AC58-79)*(8/4)),IF($AC58>76,48-(($AC58-76)*(16/3)),IF(86-(($AC58-70.4)*(38/5.6))>95,95,86-(($AC58-70.4)*(38/5.6)))))*0.93,0) -> 88 | AL58: 0 | AM58: 0
A59: 71 | B59: Bloem | C59: Joren | D59: 77 | E59: 61 | F59: 69 | G59: 62 | H59: 74 | I59: 76 | J59: 72 | K59: 67 | L59: 70 | M59: 70 | N59: 69 | O59: 62 | P59: 67 | Q59: Rabobank | R59: Xero Racing | S59: PT | T59: NED | U59: EU | V59: 4 | W59: 100 | X59: 21 | Y59: 12 | Z59: 1999 | AA59: =2025-Z59 -> 26 | AB59: 4 | AC59: 71.6944736 | AD59: =(Tabla1124434[[#This Row],[Mountain]]+Tabla1124434[[#This Row],[Hill]])/2 -> 65 | AE59: 55000 | AF59: =ROUND(IF($AC59>79,44-(($AC59-79)*(14/4)),IF($AC59>76,67-(($AC59-76)*(23/3)),IF(110-(($AC59-70.4)*(43/5.6))>119,119,110-(($AC59-70.4)*(43/5.6)))))*0.93,0) -> 93 | AG59: =ROUND(IF($AC59>79,37-(($AC59-79)*(9/4)),IF($AC59>76,54-(($AC59-76)*(17/3)),IF(93-(($AC59-70.4)*(39/5.6))>100,100,93-(($AC59-70.4)*(39/5.6)))))*0.93,0) -> 78 | AH59: =ROUND(IF($AC59>79,32-(($AC59-79)*(8/4)),IF($AC59>76,48-(($AC59-76)*(16/3)),IF(86-(($AC59-70.4)*(38/5.6))>95,95,86-(($AC59-70.4)*(38/5.6)))))*0.93,0) -> 72 | AL59: 0 | AM59: 0
A60: 72 | B60: Cioban | C60: Sergiu | D60: 62 | E60: 59 | F60: 69 | G60: 58 | H60: 61 | I60: 57 | J60: 55 | K60: 56 | L60: 58 | M60: 57 | N60: 66 | O60: 64 | P60: 57 | Q60: Free Agent | R60: Free Agent | S60: - | T60: MOL | U60: EU | V60: 4 | W60: 100 | X60: 17 | Y60: 7 | Z60: 1990 | AA60: =2025-Z60 -> 35 | AB60: 3 | AC60: 64.8840598 | AD60: =(Tabla1124434[[#This Row],[Mountain]]+Tabla1124434[[#This Row],[Hill]])/2 -> 64 | AF60: =ROUND(IF($AC60>79,44-(($AC60-79)*(14/4)),IF($AC60>76,67-(($AC60-76)*(23/3)),IF(110-(($AC60-70.4)*(43/5.6))>119,119,110-(($AC60-70.4)*(43/5.6)))))*0.93,0) -> 111 | AG60: =ROUND(IF($AC60>79,37-(($AC60-79)*(9/4)),IF($AC60>76,54-(($AC60-76)*(17/3)),IF(93-(($AC60-70.4)*(39/5.6))>100,100,93-(($AC60-70.4)*(39/5.6)))))*0.93,0) -> 93 | AH60: =ROUND(IF($AC60>79,32-(($AC60-79)*(8/4)),IF($AC60>76,48-(($AC60-76)*(16/3)),IF(86-(($AC60-70.4)*(38/5.6))>95,95,86-(($AC60-70.4)*(38/5.6)))))*0.93,0) -> 88 | AL60: 180 | AM60: 68 | AS60: Yes
A61: 73 | B61: Bol | C61: Jetse | D61: 65 | E61: 58 | F61: 66 | G61: 58 | H61: 57 | I61: 56 | J61: 60 | K61: 52 | L61: 52 | M61: 53 | N61: 63 | O61: 54 | P61: 58 | Q61: Free Agent | R61: Free Agent | S61: - | T61: NED | U61: EU | V61: 4 | W61: 100 | X61: 8 | Y61: 9 | Z61: 1989 | AA61: =2025-Z61 -> 36 | AB61: 5 | AC61: 62.86188068 | AD61: =(Tabla1124434[[#This Row],[Mountain]]+Tabla1124434[[#This Row],[Hill]])/2 -> 62 | AF61: =ROUND(IF($AC61>79,44-(($AC61-79)*(14/4)),IF($AC61>76,67-(($AC61-76)*(23/3)),IF(110-(($AC61-70.4)*(43/5.6))>119,119,110-(($AC61-70.4)*(43/5.6)))))*0.93,0) -> 111 | AG61: =ROUND(IF($AC61>79,37-(($AC61-79)*(9/4)),IF($AC61>76,54-(($AC61-76)*(17/3)),IF(93-(($AC61-70.4)*(39/5.6))>100,100,93-(($AC61-70.4)*(39/5.6)))))*0.93,0) -> 93 | AH61: =ROUND(IF($AC61>79,32-(($AC61-79)*(8/4)),IF($AC61>76,48-(($AC61-76)*(16/3)),IF(86-(($AC61-70.4)*(38/5.6))>95,95,86-(($AC61-70.4)*(38/5.6)))))*0.93,0) -> 88 | AL61: 184 | AM61: 73
A62: 74 | B62: Kusuma | C62: Terry | D62: 70 | E62: 68 | F62: 71 | G62: 69 | H62: 68 | I62: 73 | J62: 69 | K62: 57 | L62: 59 | M62: 70 | N62: 65 | O62: 73 | P62: 70 | Q62: Indosat Ooredoo | R62: Indosat Ooredoo | S62: PCT | T62: INA | U62: AS | V62: 3 | W62: 58 | X62: 7 | Y62: 8 | Z62: 1998 | AA62: =2025-Z62 -> 27 | AB62: 3 | AC62: 71.04902287 | AD62: =(Tabla1124434[[#This Row],[Mountain]]+Tabla1124434[[#This Row],[Hill]])/2 -> 69.5 | AE62: 50000 | AF62: =ROUND(IF($AC62>79,44-(($AC62-79)*(14/4)),IF($AC62>76,67-(($AC62-76)*(23/3)),IF(110-(($AC62-70.4)*(43/5.6))>119,119,110-(($AC62-70.4)*(43/5.6)))))*0.93,0) -> 98 | AG62: =ROUND(IF($AC62>79,37-(($AC62-79)*(9/4)),IF($AC62>76,54-(($AC62-76)*(17/3)),IF(93-(($AC62-70.4)*(39/5.6))>100,100,93-(($AC62-70.4)*(39/5.6)))))*0.93,0) -> 82 | AH62: =ROUND(IF($AC62>79,32-(($AC62-79)*(8/4)),IF($AC62>76,48-(($AC62-76)*(16/3)),IF(86-(($AC62-70.4)*(38/5.6))>95,95,86-(($AC62-70.4)*(38/5.6)))))*0.93,0) -> 76 | AL62: 180 | AM62: 0
A63: 75 | B63: Mengoulas | C63: Alex | D63: 76 | E63: 65 | F63: 69 | G63: 75 | H63: 76 | I63: 72 | J63: 68 | K63: 75 | L63: 65 | M63: 74 | N63: 73 | O63: 68 | P63: 75 | Q63: ELCO - ABEA | R63: Newton Foundation p/b Zwift | S63: CT | T63: GRE | U63: EU | V63: 4 | W63: 100 | X63: 13 | Y63: 7 | Z63: 1997 | AA63: =2025-Z63 -> 28 | AB63: 5 | AC63: 75.11501522 | AD63: =(Tabla1124434[[#This Row],[Mountain]]+Tabla1124434[[#This Row],[Hill]])/2 -> 67 | AE63: 50000 | AF63: =ROUND(IF($AC63>79,44-(($AC63-79)*(14/4)),IF($AC63>76,67-(($AC63-76)*(23/3)),IF(110-(($AC63-70.4)*(43/5.6))>119,119,110-(($AC63-70.4)*(43/5.6)))))*0.93,0) -> 69 | AG63: =ROUND(IF($AC63>79,37-(($AC63-79)*(9/4)),IF($AC63>76,54-(($AC63-76)*(17/3)),IF(93-(($AC63-70.4)*(39/5.6))>100,100,93-(($AC63-70.4)*(39/5.6)))))*0.93,0) -> 56 | AH63: =ROUND(IF($AC63>79,32-(($AC63-79)*(8/4)),IF($AC63>76,48-(($AC63-76)*(16/3)),IF(86-(($AC63-70.4)*(38/5.6))>95,95,86-(($AC63-70.4)*(38/5.6)))))*0.93,0) -> 50 | AL63: 176 | AM63: 64
A64: 76 | B64: Milan | C64: Jonathan | D64: 77 | E64: 58 | F64: 63 | G64: 77 | H64: 72 | I64: 80 | J64: 69 | K64: 63 | L64: 74 | M64: 73 | N64: 66 | O64: 64 | P64: 79 | Q64: Specialized | R64: Specialized | S64: PCT | T64: ITA | U64: EU | V64: 4 | W64: 100 | X64: 1 | Y64: 10 | Z64: 2000 | AA64: =2025-Z64 -> 25 | AB64: 5 | AC64: 74.53651543 | AD64: =(Tabla1124434[[#This Row],[Mountain]]+Tabla1124434[[#This Row],[Hill]])/2 -> 60.5 | AE64: 50000 | AF64: =ROUND(IF($AC64>79,44-(($AC64-79)*(14/4)),IF($AC64>76,67-(($AC64-76)*(23/3)),IF(110-(($AC64-70.4)*(43/5.6))>119,119,110-(($AC64-70.4)*(43/5.6)))))*0.93,0) -> 73 | AG64: =ROUND(IF($AC64>79,37-(($AC64-79)*(9/4)),IF($AC64>76,54-(($AC64-76)*(17/3)),IF(93-(($AC64-70.4)*(39/5.6))>100,100,93-(($AC64-70.4)*(39/5.6)))))*0.93,0) -> 60 | AH64: =ROUND(IF($AC64>79,32-(($AC64-79)*(8/4)),IF($AC64>76,48-(($AC64-76)*(16/3)),IF(86-(($AC64-70.4)*(38/5.6))>95,95,86-(($AC64-70.4)*(38/5.6)))))*0.93,0) -> 54 | AL64: 166 | AM64: 59
A65: 77 | B65: Tagliani | C65: Filippo | D65: 65 | E65: 65 | F65: 66 | G65: 60 | H65: 63 | I65: 68 | J65: 66 | K65: 59 | L65: 67 | M65: 68 | N65: 65 | O65: 63 | P65: 59 | Q65: Free Agent | R65: Free Agent | S65: - | T65: ITA | U65: EU | V65: 3 | W65: 53 | X65: 14 | Y65: 8 | Z65: 1995 | AA65: =2025-Z65 -> 30 | AB65: 4 | AC65: 67.50937724 | AD65: =(Tabla1124434[[#This Row],[Mountain]]+Tabla1124434[[#This Row],[Hill]])/2 -> 65.5 | AF65: =ROUND(IF($AC65>79,44-(($AC65-79)*(14/4)),IF($AC65>76,67-(($AC65-76)*(23/3)),IF(110-(($AC65-70.4)*(43/5.6))>119,119,110-(($AC65-70.4)*(43/5.6)))))*0.93,0) -> 111 | AG65: =ROUND(IF($AC65>79,37-(($AC65-79)*(9/4)),IF($AC65>76,54-(($AC65-76)*(17/3)),IF(93-(($AC65-70.4)*(39/5.6))>100,100,93-(($AC65-70.4)*(39/5.6)))))*0.93,0) -> 93 | AH65: =ROUND(IF($AC65>79,32-(($AC65-79)*(8/4)),IF($AC65>76,48-(($AC65-76)*(16/3)),IF(86-(($AC65-70.4)*(38/5.6))>95,95,86-(($AC65-70.4)*(38/5.6)))))*0.93,0) -> 88 | AL65: 0 | AM65: 0
A66: 78 | B66: Sleen | C66: Torjus | D66: 69 | E66: 73 | F66: 72 | G66: 75 | H66: 70 | I66: 73 | J66: 75 | K66: 60 | L66: 63 | M66: 69 | N66: 71 | O66: 64 | P66: 73 | Q66: Tryg - Eni | R66: Tryg - Eni | S66: PCT | T66: NOR | U66: EU | V66: 4 | W66: 100 | X66: 30 | Y66: 3 | Z66: 1997 | AA66: =2025-Z66 -> 28 | AB66: 4 | AC66: 73.52009259 | AD66: =(Tabla1124434[[#This Row],[Mountain]]+Tabla1124434[[#This Row],[Hill]])/2 -> 72.5 | AE66: 50000 | AF66: =ROUND(IF($AC66>79,44-(($AC66-79)*(14/4)),IF($AC66>76,67-(($AC66-76)*(23/3)),IF(110-(($AC66-70.4)*(43/5.6))>119,119,110-(($AC66-70.4)*(43/5.6)))))*0.93,0) -> 80 | AG66: =ROUND(IF($AC66>79,37-(($AC66-79)*(9/4)),IF($AC66>76,54-(($AC66-76)*(17/3)),IF(93-(($AC66-70.4)*(39/5.6))>100,100,93-(($AC66-70.4)*(39/5.6)))))*0.93,0) -> 66 | AH66: =ROUND(IF($AC66>79,32-(($AC66-79)*(8/4)),IF($AC66>76,48-(($AC66-76)*(16/3)),IF(86-(($AC66-70.4)*(38/5.6))>95,95,86-(($AC66-70.4)*(38/5.6)))))*0.93,0) -> 60 | AL66: 170 | AM66: 65
A67: 80 | B67: Skivild | C67: Robin Juel | D67: 66 | E67: 74 | F67: 71 | G67: 71 | H67: 70 | I67: 74 | J67: 69 | K67: 57 | L67: 58 | M67: 68 | N67: 64 | O67: 68 | P67: 73 | Q67: Sauber Petronas Racing | R67: Sauber Petronas Racing | S67: PCT | T67: DEN | U67: EU | V67: 4 | W67: 25 | X67: 21 | Y67: 8 | Z67: 2001 | AA67: =2025-Z67 -> 24 | AB67: 5 | AC67: 72.81767825 | AD67: =(Tabla1124434[[#This Row],[Mountain]]+Tabla1124434[[#This Row],[Hill]])/2 -> 72.5 | AE67: 60000 | AF67: =ROUND(IF($AC67>79,44-(($AC67-79)*(14/4)),IF($AC67>76,67-(($AC67-76)*(23/3)),IF(110-(($AC67-70.4)*(43/5.6))>119,119,110-(($AC67-70.4)*(43/5.6)))))*0.93,0) -> 85 | AG67: =ROUND(IF($AC67>79,37-(($AC67-79)*(9/4)),IF($AC67>76,54-(($AC67-76)*(17/3)),IF(93-(($AC67-70.4)*(39/5.6))>100,100,93-(($AC67-70.4)*(39/5.6)))))*0.93,0) -> 71 | AH67: =ROUND(IF($AC67>79,32-(($AC67-79)*(8/4)),IF($AC67>76,48-(($AC67-76)*(16/3)),IF(86-(($AC67-70.4)*(38/5.6))>95,95,86-(($AC67-70.4)*(38/5.6)))))*0.93,0) -> 65 | AL67: 183 | AM67: 73
A68: 82 | B68: Skjelmose Jensen | C68: Mattias | D68: 73 | E68: 79 | F68: 74 | G68: 76 | H68: 73 | I68: 77 | J68: 75 | K68: 58 | L68: 64 | M68: 66 | N68: 70 | O68: 66 | P68: 76 | Q68: Carlsberg - Danske Bank | R68: Carlsberg - Danske Bank | S68: PT | T68: DEN | U68: EU | V68: 4 | W68: 100 | X68: 26 | Y68: 9 | Z68: 2000 | AA68: =2025-Z68 -> 25 | AB68: 5 | AC68: 77.03630682 | AD68: =(Tabla1124434[[#This Row],[Mountain]]+Tabla1124434[[#This Row],[Hill]])/2 -> 76.5 | AE68: 105000 | AF68: =ROUND(IF($AC68>79,44-(($AC68-79)*(14/4)),IF($AC68>76,67-(($AC68-76)*(23/3)),IF(110-(($AC68-70.4)*(43/5.6))>119,119,110-(($AC68-70.4)*(43/5.6)))))*0.93,0) -> 55 | AG68: =ROUND(IF($AC68>79,37-(($AC68-79)*(9/4)),IF($AC68>76,54-(($AC68-76)*(17/3)),IF(93-(($AC68-70.4)*(39/5.6))>100,100,93-(($AC68-70.4)*(39/5.6)))))*0.93,0) -> 45 | AH68: =ROUND(IF($AC68>79,32-(($AC68-79)*(8/4)),IF($AC68>76,48-(($AC68-76)*(16/3)),IF(86-(($AC68-70.4)*(38/5.6))>95,95,86-(($AC68-70.4)*(38/5.6)))))*0.93,0) -> 39 | AL68: 170 | AM68: 60
A69: 83 | B69: Sprenger | C69: Felix | D69: 73 | E69: 70 | F69: 71 | G69: 68 | H69: 75 | I69: 71 | J69: 70 | K69: 65 | L69: 67 | M69: 79 | N69: 75 | O69: 78 | P69: 70 | Q69: Benetton Bimex Cycling | R69: Benetton Bimex Cycling | S69: PCT | T69: LIE | U69: EU | V69: 4 | W69: 43 | X69: 18 | Y69: 9 | Z69: 1999 | AA69: =2025-Z69 -> 26 | AB69: 5 | AC69: 73.2603472 | AD69: =(Tabla1124434[[#This Row],[Mountain]]+Tabla1124434[[#This Row],[Hill]])/2 -> 70.5 | AE69: 50000 | AF69: =ROUND(IF($AC69>79,44-(($AC69-79)*(14/4)),IF($AC69>76,67-(($AC69-76)*(23/3)),IF(110-(($AC69-70.4)*(43/5.6))>119,119,110-(($AC69-70.4)*(43/5.6)))))*0.93,0) -> 82 | AG69: =ROUND(IF($AC69>79,37-(($AC69-79)*(9/4)),IF($AC69>76,54-(($AC69-76)*(17/3)),IF(93-(($AC69-70.4)*(39/5.6))>100,100,93-(($AC69-70.4)*(39/5.6)))))*0.93,0) -> 68 | AH69: =ROUND(IF($AC69>79,32-(($AC69-79)*(8/4)),IF($AC69>76,48-(($AC69-76)*(16/3)),IF(86-(($AC69-70.4)*(38/5.6))>95,95,86-(($AC69-70.4)*(38/5.6)))))*0.93,0) -> 62 | AL69: 172 | AM69: 62
A70: 86 | B70: Vader | C70: Milan | D70: 75 | E70: 74 | F70: 69 | G70: 67 | H70: 72 | I70: 78 | J70: 72 | K70: 62 | L70: 62 | M70: 66 | N70: 70 | O70: 68 | P70: 71 | Q70: Rabobank | R70: Rabobank | S70: PT | T70: NED | U70: EU | V70: 4 | W70: 100 | X70: 18 | Y70: 2 | Z70: 1996 | AA70: =2025-Z70 -> 29 | AB70: 4 | AC70: 72.80324856 | AD70: =(Tabla1124434[[#This Row],[Mountain]]+Tabla1124434[[#This Row],[Hill]])/2 -> 71.5 | AE70: 50000 | AF70: =ROUND(IF($AC70>79,44-(($AC70-79)*(14/4)),IF($AC70>76,67-(($AC70-76)*(23/3)),IF(110-(($AC70-70.4)*(43/5.6))>119,119,110-(($AC70-70.4)*(43/5.6)))))*0.93,0) -> 85 | AG70: =ROUND(IF($AC70>79,37-(($AC70-79)*(9/4)),IF($AC70>76,54-(($AC70-76)*(17/3)),IF(93-(($AC70-70.4)*(39/5.6))>100,100,93-(($AC70-70.4)*(39/5.6)))))*0.93,0) -> 71 | AH70: =ROUND(IF($AC70>79,32-(($AC70-79)*(8/4)),IF($AC70>76,48-(($AC70-76)*(16/3)),IF(86-(($AC70-70.4)*(38/5.6))>95,95,86-(($AC70-70.4)*(38/5.6)))))*0.93,0) -> 65 | AL70: 173 | AM70: 63
A71: 87 | B71: Dall'Oste | C71: Daniele | D71: 67 | E71: 73 | F71: 73 | G71: 64 | H71: 66 | I71: 69 | J71: 70 | K71: 53 | L71: 55 | M71: 66 | N71: 70 | O71: 68 | P71: 64 | Q71: Minions | R71: Minions | S71: PCT | T71: ITA | U71: EU | V71: 4 | W71: 100 | X71: 24 | Y71: 5 | Z71: 1991 | AA71: =2025-Z71 -> 34 | AB71: 5 | AC71: 71.72503069 | AD71: =(Tabla1124434[[#This Row],[Mountain]]+Tabla1124434[[#This Row],[Hill]])/2 -> 73 | AE71: 50000 | AF71: =ROUND(IF($AC71>79,44-(($AC71-79)*(14/4)),IF($AC71>76,67-(($AC71-76)*(23/3)),IF(110-(($AC71-70.4)*(43/5.6))>119,119,110-(($AC71-70.4)*(43/5.6)))))*0.93,0) -> 93 | AG71: =ROUND(IF($AC71>79,37-(($AC71-79)*(9/4)),IF($AC71>76,54-(($AC71-76)*(17/3)),IF(93-(($AC71-70.4)*(39/5.6))>100,100,93-(($AC71-70.4)*(39/5.6)))))*0.93,0) -> 78 | AH71: =ROUND(IF($AC71>79,32-(($AC71-79)*(8/4)),IF($AC71>76,48-(($AC71-76)*(16/3)),IF(86-(($AC71-70.4)*(38/5.6))>95,95,86-(($AC71-70.4)*(38/5.6)))))*0.93,0) -> 72 | AL71: 0 | AM71: 0
A72: 88 | B72: Ramirez | C72: Donovan | D72: 69 | E72: 59 | F72: 67 | G72: 67 | H72: 71 | I72: 69 | J72: 69 | K72: 57 | L72: 66 | M72: 69 | N72: 63 | O72: 64 | P72: 71 | Q72: Free Agent | R72: Manada Coyote | S72: PCT | T72: CRC | U72: NA | V72: 2 | W72: 6 | X72: 3 | Y72: 5 | Z72: 2002 | AA72: =2025-Z72 -> 23 | AB72: 4 | AC72: 68.05063222 | AD72: =(Tabla1124434[[#This Row],[Mountain]]+Tabla1124434[[#This Row],[Hill]])/2 -> 63 | AE72: 50000 | AF72: =ROUND(IF($AC72>79,44-(($AC72-79)*(14/4)),IF($AC72>76,67-(($AC72-76)*(23/3)),IF(110-(($AC72-70.4)*(43/5.6))>119,119,110-(($AC72-70.4)*(43/5.6)))))*0.93,0) -> 111 | AG72: =ROUND(IF($AC72>79,37-(($AC72-79)*(9/4)),IF($AC72>76,54-(($AC72-76)*(17/3)),IF(93-(($AC72-70.4)*(39/5.6))>100,100,93-(($AC72-70.4)*(39/5.6)))))*0.93,0) -> 93 | AH72: =ROUND(IF($AC72>79,32-(($AC72-79)*(8/4)),IF($AC72>76,48-(($AC72-76)*(16/3)),IF(86-(($AC72-70.4)*(38/5.6))>95,95,86-(($AC72-70.4)*(38/5.6)))))*0.93,0) -> 88 | AL72: 175 | AM72: 75
A73: 89 | B73: Willems | C73: Jago | D73: 73 | E73: 57 | F73: 64 | G73: 63 | H73: 72 | I73: 77 | J73: 70 | K73: 55 | L73: 77 | M73: 77 | N73: 66 | O73: 67 | P73: 70 | Q73: Bralirwa - Cegeka | R73: Bralirwa - Cegeka | S73: PCT | T73: BEL | U73: EU | V73: 4 | W73: 44 | X73: 12 | Y73: 11 | Z73: 2001 | AA73: =2025-Z73 -> 24 | AB73: 4 | AC73: 74.03669851 | AD73: =(Tabla1124434[[#This Row],[Mountain]]+Tabla1124434[[#This Row],[Hill]])/2 -> 60.5 | AE73: 75000 | AF73: =ROUND(IF($AC73>79,44-(($AC73-79)*(14/4)),IF($AC73>76,67-(($AC73-76)*(23/3)),IF(110-(($AC73-70.4)*(43/5.6))>119,119,110-(($AC73-70.4)*(43/5.6)))))*0.93,0) -> 76 | AG73: =ROUND(IF($AC73>79,37-(($AC73-79)*(9/4)),IF($AC73>76,54-(($AC73-76)*(17/3)),IF(93-(($AC73-70.4)*(39/5.6))>100,100,93-(($AC73-70.4)*(39/5.6)))))*0.93,0) -> 63 | AH73: =ROUND(IF($AC73>79,32-(($AC73-79)*(8/4)),IF($AC73>76,48-(($AC73-76)*(16/3)),IF(86-(($AC73-70.4)*(38/5.6))>95,95,86-(($AC73-70.4)*(38/5.6)))))*0.93,0) -> 57 | AL73: 183 | AM73: 73
A74: 90 | B74: Van Dijke | C74: Tim | D74: 77 | E74: 61 | F74: 70 | G74: 75 | H74: 73 | I74: 76 | J74: 74 | K74: 66 | L74: 73 | M74: 71 | N74: 65 | O74: 73 | P74: 77 | Q74: Sony - Force India | R74: Sony - Force India | S74: PCT | T74: NED | U74: EU | V74: 4 | W74: 100 | X74: 20 | Y74: 3 | Z74: 2000 | AA74: =2025-Z74 -> 25 | AB74: 5 | AC74: 73.07350931 | AD74: =(Tabla1124434[[#This Row],[Mountain]]+Tabla1124434[[#This Row],[Hill]])/2 -> 65.5 | AE74: 50000 | AF74: =ROUND(IF($AC74>79,44-(($AC74-79)*(14/4)),IF($AC74>76,67-(($AC74-76)*(23/3)),IF(110-(($AC74-70.4)*(43/5.6))>119,119,110-(($AC74-70.4)*(43/5.6)))))*0.93,0) -> 83 | AG74: =ROUND(IF($AC74>79,37-(($AC74-79)*(9/4)),IF($AC74>76,54-(($AC74-76)*(17/3)),IF(93-(($AC74-70.4)*(39/5.6))>100,100,93-(($AC74-70.4)*(39/5.6)))))*0.93,0) -> 69 | AH74: =ROUND(IF($AC74>79,32-(($AC74-79)*(8/4)),IF($AC74>76,48-(($AC74-76)*(16/3)),IF(86-(($AC74-70.4)*(38/5.6))>95,95,86-(($AC74-70.4)*(38/5.6)))))*0.93,0) -> 63 | AL74: 0 | AM74: 0
A75: 91 | B75: Double | C75: Paul | D75: 63 | E75: 66 | F75: 67 | G75: 58 | H75: 65 | I75: 66 | J75: 68 | K75: 58 | L75: 60 | M75: 68 | N75: 64 | O75: 69 | P75: 58 | Q75: Free Agent | R75: Free Agent | S75: - | T75: GBR | U75: EU | V75: 3 | W75: 50 | X75: 25 | Y75: 6 | Z75: 1996 | AA75: =2025-Z75 -> 29 | AB75: 4 | AC75: 67.2338809 | AD75: =(Tabla1124434[[#This Row],[Mountain]]+Tabla1124434[[#This Row],[Hill]])/2 -> 66.5 | AF75: =ROUND(IF($AC75>79,44-(($AC75-79)*(14/4)),IF($AC75>76,67-(($AC75-76)*(23/3)),IF(110-(($AC75-70.4)*(43/5.6))>119,119,110-(($AC75-70.4)*(43/5.6)))))*0.93,0) -> 111 | AG75: =ROUND(IF($AC75>79,37-(($AC75-79)*(9/4)),IF($AC75>76,54-(($AC75-76)*(17/3)),IF(93-(($AC75-70.4)*(39/5.6))>100,100,93-(($AC75-70.4)*(39/5.6)))))*0.93,0) -> 93 | AH75: =ROUND(IF($AC75>79,32-(($AC75-79)*(8/4)),IF($AC75>76,48-(($AC75-76)*(16/3)),IF(86-(($AC75-70.4)*(38/5.6))>95,95,86-(($AC75-70.4)*(38/5.6)))))*0.93,0) -> 88 | AL75: 186 | AM75: 69
A76: 92 | B76: Artz | C76: Huub | D76: 68 | E76: 59 | F76: 71 | G76: 58 | H76: 68 | I76: 69 | J76: 68 | K76: 59 | L76: 68 | M76: 73 | N76: 62 | O76: 66 | P76: 58 | Q76: Free Agent | R76: Hilcona Racing Team | S76: CT | T76: NED | U76: EU | V76: 3 | W76: 4 | X76: 14 | Y76: 5 | Z76: 2002 | AA76: =2025-Z76 -> 23 | AB76: 5 | AC76: 70.19508068 | AD76: =(Tabla1124434[[#This Row],[Mountain]]+Tabla1124434[[#This Row],[Hill]])/2 -> 65 | AE76: 50000 | AF76: =ROUND(IF($AC76>79,44-(($AC76-79)*(14/4)),IF($AC76>76,67-(($AC76-76)*(23/3)),IF(110-(($AC76-70.4)*(43/5.6))>119,119,110-(($AC76-70.4)*(43/5.6)))))*0.93,0) -> 104 | AG76: =ROUND(IF($AC76>79,37-(($AC76-79)*(9/4)),IF($AC76>76,54-(($AC76-76)*(17/3)),IF(93-(($AC76-70.4)*(39/5.6))>100,100,93-(($AC76-70.4)*(39/5.6)))))*0.93,0) -> 88 | AH76: =ROUND(IF($AC76>79,32-(($AC76-79)*(8/4)),IF($AC76>76,48-(($AC76-76)*(16/3)),IF(86-(($AC76-70.4)*(38/5.6))>95,95,86-(($AC76-70.4)*(38/5.6)))))*0.93,0) -> 81 | AL76: 180 | AM76: 72
A77: 94 | B77: Haavardsholm | C77: Ole | D77: 54 | E77: 59 | F77: 65 | G77: 52 | H77: 53 | I77: 55 | J77: 51 | K77: 46 | L77: 59 | M77: 66 | N77: 62 | O77: 61 | P77: 52 | Q77: Free Agent | R77: Free Agent | S77: - | T77: NOR | U77: EU | V77: 4 | W77: 100 | X77: 18 | Y77: 7 | Z77: 1989 | AA77: =2025-Z77 -> 36 | AB77: 4 | AC77: 62.51538903 | AD77: =(Tabla1124434[[#This Row],[Mountain]]+Tabla1124434[[#This Row],[Hill]])/2 -> 62 | AF77: =ROUND(IF($AC77>79,44-(($AC77-79)*(14/4)),IF($AC77>76,67-(($AC77-76)*(23/3)),IF(110-(($AC77-70.4)*(43/5.6))>119,119,110-(($AC77-70.4)*(43/5.6)))))*0.93,0) -> 111 | AG77: =ROUND(IF($AC77>79,37-(($AC77-79)*(9/4)),IF($AC77>76,54-(($AC77-76)*(17/3)),IF(93-(($AC77-70.4)*(39/5.6))>100,100,93-(($AC77-70.4)*(39/5.6)))))*0.93,0) -> 93 | AH77: =ROUND(IF($AC77>79,32-(($AC77-79)*(8/4)),IF($AC77>76,48-(($AC77-76)*(16/3)),IF(86-(($AC77-70.4)*(38/5.6))>95,95,86-(($AC77-70.4)*(38/5.6)))))*0.93,0) -> 88 | AL77: 187 | AM77: 70
A78: 95 | B78: Stavrakakis | C78: Georgios | D78: 76 | E78: 61 | F78: 68 | G78: 75 | H78: 74 | I78: 70 | J78: 66 | K78: 77 | L78: 64 | M78: 68 | N78: 70 | O78: 62 | P78: 77 | Q78: ELCO - ABEA | R78: ELCO - ABEA | S78: PCT | T78: GRE | U78: EU | V78: 4 | W78: 100 | X78: 22 | Y78: 4 | Z78: 1998 | AA78: =2025-Z78 -> 27 | AB78: 5 | AC78: 75.1377616 | AD78: =(Tabla1124434[[#This Row],[Mountain]]+Tabla1124434[[#This Row],[Hill]])/2 -> 64.5 | AE78: 90000 | AF78: =ROUND(IF($AC78>79,44-(($AC78-79)*(14/4)),IF($AC78>76,67-(($AC78-76)*(23/3)),IF(110-(($AC78-70.4)*(43/5.6))>119,119,110-(($AC78-70.4)*(43/5.6)))))*0.93,0) -> 68 | AG78: =ROUND(IF($AC78>79,37-(($AC78-79)*(9/4)),IF($AC78>76,54-(($AC78-76)*(17/3)),IF(93-(($AC78-70.4)*(39/5.6))>100,100,93-(($AC78-70.4)*(39/5.6)))))*0.93,0) -> 56 | AH78: =ROUND(IF($AC78>79,32-(($AC78-79)*(8/4)),IF($AC78>76,48-(($AC78-76)*(16/3)),IF(86-(($AC78-70.4)*(38/5.6))>95,95,86-(($AC78-70.4)*(38/5.6)))))*0.93,0) -> 50 | AL78: 175 | AM78: 71
A79: 98 | B79: Mas | C79: Lluis | D79: 68 | E79: 51 | F79: 55 | G79: 58 | H79: 52 | I79: 57 | J79: 47 | K79: 47 | L79: 61 | M79: 64 | N79: 58 | O79: 55 | P79: 60 | Q79: Free Agent | R79: Free Agent | S79: - | T79: ESP | U79: EU | V79: 4 | W79: 100 | X79: 15 | Y79: 1 | Z79: 1989 | AA79: =2025-Z79 -> 36 | AB79: 4 | AC79: 61.74518476 | AD79: =(Tabla1124434[[#This Row],[Mountain]]+Tabla1124434[[#This Row],[Hill]])/2 -> 53 | AF79: =ROUND(IF($AC79>79,44-(($AC79-79)*(14/4)),IF($AC79>76,67-(($AC79-76)*(23/3)),IF(110-(($AC79-70.4)*(43/5.6))>119,119,110-(($AC79-70.4)*(43/5.6)))))*0.93,0) -> 111 | AG79: =ROUND(IF($AC79>79,37-(($AC79-79)*(9/4)),IF($AC79>76,54-(($AC79-76)*(17/3)),IF(93-(($AC79-70.4)*(39/5.6))>100,100,93-(($AC79-70.4)*(39/5.6)))))*0.93,0) -> 93 | AH79: =ROUND(IF($AC79>79,32-(($AC79-79)*(8/4)),IF($AC79>76,48-(($AC79-76)*(16/3)),IF(86-(($AC79-70.4)*(38/5.6))>95,95,86-(($AC79-70.4)*(38/5.6)))))*0.93,0) -> 88 | AL79: 0 | AM79: 0
A80: 100 | B80: White | C80: Connor | D80: 75 | E80: 66 | F80: 69 | G80: 74 | H80: 71 | I80: 72 | J80: 68 | K80: 63 | L80: 71 | M80: 70 | N80: 71 | O80: 73 | P80: 76 | Q80: Podium Ambition | R80: Podium Ambition | S80: PCT | T80: BER | U80: NA | V80: 4 | W80: 50 | X80: 19 | Y80: 10 | Z80: 1999 | AA80: =2025-Z80 -> 26 | AB80: 5 | AC80: 72.27643097 | AD80: =(Tabla1124434[[#This Row],[Mountain]]+Tabla1124434[[#This Row],[Hill]])/2 -> 67.5 | AE80: 50000 | AF80: =ROUND(IF($AC80>79,44-(($AC80-79)*(14/4)),IF($AC80>76,67-(($AC80-76)*(23/3)),IF(110-(($AC80-70.4)*(43/5.6))>119,119,110-(($AC80-70.4)*(43/5.6)))))*0.93,0) -> 89 | AG80: =ROUND(IF($AC80>79,37-(($AC80-79)*(9/4)),IF($AC80>76,54-(($AC80-76)*(17/3)),IF(93-(($AC80-70.4)*(39/5.6))>100,100,93-(($AC80-70.4)*(39/5.6)))))*0.93,0) -> 74 | AH80: =ROUND(IF($AC80>79,32-(($AC80-79)*(8/4)),IF($AC80>76,48-(($AC80-76)*(16/3)),IF(86-(($AC80-70.4)*(38/5.6))>95,95,86-(($AC80-70.4)*(38/5.6)))))*0.93,0) -> 68 | AL80: 189 | AM80: 72
A81: 101 | B81: Madsen | C81: Erik Nygaard | D81: 70 | E81: 55 | F81: 59 | G81: 59 | H81: 65 | I81: 71 | J81: 70 | K81: 61 | L81: 70 | M81: 72 | N81: 59 | O81: 59 | P81: 72 | Q81: Gjensidige Pro Cycling Team | R81: Gjensidige Pro Cycling Team | S81: CT | T81: NOR | U81: EU | V81: 3 | W81: 18 | X81: 2 | Y81: 7 | Z81: 2002 | AA81: =2025-Z81 -> 23 | AB81: 4 | AC81: 68.45058539 | AD81: =(Tabla1124434[[#This Row],[Mountain]]+Tabla1124434[[#This Row],[Hill]])/2 -> 57 | AE81: 50000 | AF81: =ROUND(IF($AC81>79,44-(($AC81-79)*(14/4)),IF($AC81>76,67-(($AC81-76)*(23/3)),IF(110-(($AC81-70.4)*(43/5.6))>119,119,110-(($AC81-70.4)*(43/5.6)))))*0.93,0) -> 111 | AG81: =ROUND(IF($AC81>79,37-(($AC81-79)*(9/4)),IF($AC81>76,54-(($AC81-76)*(17/3)),IF(93-(($AC81-70.4)*(39/5.6))>100,100,93-(($AC81-70.4)*(39/5.6)))))*0.93,0) -> 93 | AH81: =ROUND(IF($AC81>79,32-(($AC81-79)*(8/4)),IF($AC81>76,48-(($AC81-76)*(16/3)),IF(86-(($AC81-70.4)*(38/5.6))>95,95,86-(($AC81-70.4)*(38/5.6)))))*0.93,0) -> 88 | AL81: 190 | AM81: 80
A82: 102 | B82: Nsengimana | C82: Jean Bosco | D82: 64 | E82: 73 | F82: 71 | G82: 73 | H82: 70 | I82: 69 | J82: 72 | K82: 52 | L82: 65 | M82: 70 | N82: 73 | O82: 65 | P82: 75 | Q82: Gazelle | R82: Gazelle | S82: PT | T82: RWA | U82: AF | V82: 4 | W82: 100 | X82: 4 | Y82: 11 | Z82: 1992 | AA82: =2025-Z82 -> 33 | AB82: 4 | AC82: 72.38204871 | AD82: =(Tabla1124434[[#This Row],[Mountain]]+Tabla1124434[[#This Row],[Hill]])/2 -> 72 | AE82: 50000 | AF82: =ROUND(IF($AC82>79,44-(($AC82-79)*(14/4)),IF($AC82>76,67-(($AC82-76)*(23/3)),IF(110-(($AC82-70.4)*(43/5.6))>119,119,110-(($AC82-70.4)*(43/5.6)))))*0.93,0) -> 88 | AG82: =ROUND(IF($AC82>79,37-(($AC82-79)*(9/4)),IF($AC82>76,54-(($AC82-76)*(17/3)),IF(93-(($AC82-70.4)*(39/5.6))>100,100,93-(($AC82-70.4)*(39/5.6)))))*0.93,0) -> 74 | AH82: =ROUND(IF($AC82>79,32-(($AC82-79)*(8/4)),IF($AC82>76,48-(($AC82-76)*(16/3)),IF(86-(($AC82-70.4)*(38/5.6))>95,95,86-(($AC82-70.4)*(38/5.6)))))*0.93,0) -> 67 | AL82: 0 | AM82: 0
A83: 103 | B83: Hulgaard | C83: Morten | D83: 71 | E83: 67 | F83: 70 | G83: 76 | H83: 74 | I83: 71 | J83: 71 | K83: 58 | L83: 65 | M83: 65 | N83: 67 | O83: 67 | P83: 75 | Q83: Grieg-Maersk | R83: Grieg-Maersk | S83: PT | T83: DEN | U83: EU | V83: 4 | W83: 100 | X83: 23 | Y83: 8 | Z83: 1998 | AA83: =2025-Z83 -> 27 | AB83: 5 | AC83: 73.15871258 | AD83: =(Tabla1124434[[#This Row],[Mountain]]+Tabla1124434[[#This Row],[Hill]])/2 -> 68.5 | AE83: 65000 | AF83: =ROUND(IF($AC83>79,44-(($AC83-79)*(14/4)),IF($AC83>76,67-(($AC83-76)*(23/3)),IF(110-(($AC83-70.4)*(43/5.6))>119,119,110-(($AC83-70.4)*(43/5.6)))))*0.93,0) -> 83 | AG83: =ROUND(IF($AC83>79,37-(($AC83-79)*(9/4)),IF($AC83>76,54-(($AC83-76)*(17/3)),IF(93-(($AC83-70.4)*(39/5.6))>100,100,93-(($AC83-70.4)*(39/5.6)))))*0.93,0) -> 69 | AH83: =ROUND(IF($AC83>79,32-(($AC83-79)*(8/4)),IF($AC83>76,48-(($AC83-76)*(16/3)),IF(86-(($AC83-70.4)*(38/5.6))>95,95,86-(($AC83-70.4)*(38/5.6)))))*0.93,0) -> 63 | AL83: 162 | AM83: 48
A84: 104 | B84: Yates | C84: Joel | D84: 71 | E84: 65 | F84: 78 | G84: 69 | H84: 77 | I84: 74 | J84: 71 | K84: 63 | L84: 62 | M84: 69 | N84: 73 | O84: 69 | P84: 69 | Q84: Spark Team NZ | R84: Spark Team NZ | S84: CT | T84: NZL | U84: OC | V84: 4 | W84: 100 | X84: 29 | Y84: 11 | Z84: 1996 | AA84: =2025-Z84 -> 29 | AB84: 4 | AC84: 74.25235798 | AD84: =(Tabla1124434[[#This Row],[Mountain]]+Tabla1124434[[#This Row],[Hill]])/2 -> 71.5 | AE84: 60000 | AF84: =ROUND(IF($AC84>79,44-(($AC84-79)*(14/4)),IF($AC84>76,67-(($AC84-76)*(23/3)),IF(110-(($AC84-70.4)*(43/5.6))>119,119,110-(($AC84-70.4)*(43/5.6)))))*0.93,0) -> 75 | AG84: =ROUND(IF($AC84>79,37-(($AC84-79)*(9/4)),IF($AC84>76,54-(($AC84-76)*(17/3)),IF(93-(($AC84-70.4)*(39/5.6))>100,100,93-(($AC84-70.4)*(39/5.6)))))*0.93,0) -> 62 | AH84: =ROUND(IF($AC84>79,32-(($AC84-79)*(8/4)),IF($AC84>76,48-(($AC84-76)*(16/3)),IF(86-(($AC84-70.4)*(38/5.6))>95,95,86-(($AC84-70.4)*(38/5.6)))))*0.93,0) -> 56 | AL84: 0 | AM84: 0
A85: 106 | B85: Fernandes | C85: Jose | D85: 71 | E85: 75 | F85: 70 | G85: 77 | H85: 78 | I85: 77 | J85: 76 | K85: 53 | L85: 62 | M85: 67 | N85: 60 | O85: 68 | P85: 77 | Q85: Lidl Cycling | R85: Lidl Cycling | S85: PT | T85: POR | U85: EU | V85: 4 | W85: 100 | X85: 30 | Y85: 10 | Z85: 1995 | AA85: =2025-Z85 -> 30 | AB85: 4 | AC85: 75.29279777 | AD85: =(Tabla1124434[[#This Row],[Mountain]]+Tabla1124434[[#This Row],[Hill]])/2 -> 72.5 | AE85: 130000 | AF85: =ROUND(IF($AC85>79,44-(($AC85-79)*(14/4)),IF($AC85>76,67-(($AC85-76)*(23/3)),IF(110-(($AC85-70.4)*(43/5.6))>119,119,110-(($AC85-70.4)*(43/5.6)))))*0.93,0) -> 67 | AG85: =ROUND(IF($AC85>79,37-(($AC85-79)*(9/4)),IF($AC85>76,54-(($AC85-76)*(17/3)),IF(93-(($AC85-70.4)*(39/5.6))>100,100,93-(($AC85-70.4)*(39/5.6)))))*0.93,0) -> 55 | AH85: =ROUND(IF($AC85>79,32-(($AC85-79)*(8/4)),IF($AC85>76,48-(($AC85-76)*(16/3)),IF(86-(($AC85-70.4)*(38/5.6))>95,95,86-(($AC85-70.4)*(38/5.6)))))*0.93,0) -> 49 | AL85: 175 | AM85: 60
A86: 107 | B86: Berlin | C86: Antoine | D86: 60 | E86: 65 | F86: 63 | G86: 60 | H86: 63 | I86: 57 | J86: 54 | K86: 46 | L86: 47 | M86: 55 | N86: 60 | O86: 61 | P86: 58 | Q86: Free Agent | R86: Free Agent | S86: - | T86: MCO | U86: EU | V86: 4 | W86: 100 | X86: 2 | Y86: 8 | Z86: 1989 | AA86: =2025-Z86 -> 36 | AB86: 4 | AC86: 62.70020895 | AD86: =(Tabla1124434[[#This Row],[Mountain]]+Tabla1124434[[#This Row],[Hill]])/2 -> 64 | AF86: =ROUND(IF($AC86>79,44-(($AC86-79)*(14/4)),IF($AC86>76,67-(($AC86-76)*(23/3)),IF(110-(($AC86-70.4)*(43/5.6))>119,119,110-(($AC86-70.4)*(43/5.6)))))*0.93,0) -> 111 | AG86: =ROUND(IF($AC86>79,37-(($AC86-79)*(9/4)),IF($AC86>76,54-(($AC86-76)*(17/3)),IF(93-(($AC86-70.4)*(39/5.6))>100,100,93-(($AC86-70.4)*(39/5.6)))))*0.93,0) -> 93 | AH86: =ROUND(IF($AC86>79,32-(($AC86-79)*(8/4)),IF($AC86>76,48-(($AC86-76)*(16/3)),IF(86-(($AC86-70.4)*(38/5.6))>95,95,86-(($AC86-70.4)*(38/5.6)))))*0.93,0) -> 88 | AL86: 185 | AM86: 70 | AR86: yes | AS86: yes
A87: 108 | B87: Braet | C87: Vito | D87: 69 | E87: 60 | F87: 66 | G87: 58 | H87: 70 | I87: 71 | J87: 63 | K87: 68 | L87: 68 | M87: 67 | N87: 62 | O87: 60 | P87: 64 | Q87: Free Agent | R87: Free Agent | S87: - | T87: BEL | U87: EU | V87: 1 | W87: 95 | X87: 2 | Y87: 11 | Z87: 2000 | AA87: =2025-Z87 -> 25 | AB87: 3 | AC87: 68.67405618 | AD87: =(Tabla1124434[[#This Row],[Mountain]]+Tabla1124434[[#This Row],[Hill]])/2 -> 63 | AF87: =ROUND(IF($AC87>79,44-(($AC87-79)*(14/4)),IF($AC87>76,67-(($AC87-76)*(23/3)),IF(110-(($AC87-70.4)*(43/5.6))>119,119,110-(($AC87-70.4)*(43/5.6)))))*0.93,0) -> 111 | AG87: =ROUND(IF($AC87>79,37-(($AC87-79)*(9/4)),IF($AC87>76,54-(($AC87-76)*(17/3)),IF(93-(($AC87-70.4)*(39/5.6))>100,100,93-(($AC87-70.4)*(39/5.6)))))*0.93,0) -> 93 | AH87: =ROUND(IF($AC87>79,32-(($AC87-79)*(8/4)),IF($AC87>76,48-(($AC87-76)*(16/3)),IF(86-(($AC87-70.4)*(38/5.6))>95,95,86-(($AC87-70.4)*(38/5.6)))))*0.93,0) -> 88 | AL87: 184 | AM87: 70
A88: 109 | B88: Germani | C88: Lorenzo | D88: 68 | E88: 54 | F88: 56 | G88: 62 | H88: 58 | I88: 68 | J88: 68 | K88: 57 | L88: 64 | M88: 68 | N88: 65 | O88: 63 | P88: 69 | Q88: Free Agent | R88: Free Agent | S88: - | T88: ITA | U88: EU | V88: 1 | W88: 0 | X88: 3 | Y88: 3 | Z88: 2002 | AA88: =2025-Z88 -> 23 | AB88: 4 | AC88: 64.03169972 | AD88: =(Tabla1124434[[#This Row],[Mountain]]+Tabla1124434[[#This Row],[Hill]])/2 -> 55 | AF88: =ROUND(IF($AC88>79,44-(($AC88-79)*(14/4)),IF($AC88>76,67-(($AC88-76)*(23/3)),IF(110-(($AC88-70.4)*(43/5.6))>119,119,110-(($AC88-70.4)*(43/5.6)))))*0.93,0) -> 111 | AG88: =ROUND(IF($AC88>79,37-(($AC88-79)*(9/4)),IF($AC88>76,54-(($AC88-76)*(17/3)),IF(93-(($AC88-70.4)*(39/5.6))>100,100,93-(($AC88-70.4)*(39/5.6)))))*0.93,0) -> 93 | AH88: =ROUND(IF($AC88>79,32-(($AC88-79)*(8/4)),IF($AC88>76,48-(($AC88-76)*(16/3)),IF(86-(($AC88-70.4)*(38/5.6))>95,95,86-(($AC88-70.4)*(38/5.6)))))*0.93,0) -> 88 | AJ88: Yes | AK88: Yes | AL88: 190 | AM88: 70
A89: 110 | B89: Curley | C89: Liam | D89: 73 | E89: 60 | F89: 69 | G89: 69 | H89: 72 | I89: 70 | J89: 69 | K89: 71 | L89: 67 | M89: 68 | N89: 74 | O89: 71 | P89: 70 | Q89: Glanbia | R89: Glanbia | S89: CT | T89: IRL | U89: EU | V89: 4 | W89: 8 | X89: 26 | Y89: 2 | Z89: 2000 | AA89: =2025-Z89 -> 25 | AB89: 4 | AC89: 71.66721454 | AD89: =(Tabla1124434[[#This Row],[Mountain]]+Tabla1124434[[#This Row],[Hill]])/2 -> 64.5 | AE89: 50000 | AF89: =ROUND(IF($AC89>79,44-(($AC89-79)*(14/4)),IF($AC89>76,67-(($AC89-76)*(23/3)),IF(110-(($AC89-70.4)*(43/5.6))>119,119,110-(($AC89-70.4)*(43/5.6)))))*0.93,0) -> 93 | AG89: =ROUND(IF($AC89>79,37-(($AC89-79)*(9/4)),IF($AC89>76,54-(($AC89-76)*(17/3)),IF(93-(($AC89-70.4)*(39/5.6))>100,100,93-(($AC89-70.4)*(39/5.6)))))*0.93,0) -> 78 | AH89: =ROUND(IF($AC89>79,32-(($AC89-79)*(8/4)),IF($AC89>76,48-(($AC89-76)*(16/3)),IF(86-(($AC89-70.4)*(38/5.6))>95,95,86-(($AC89-70.4)*(38/5.6)))))*0.93,0) -> 72 | AL89: 187 | AM89: 67
A90: 111 | B90: Guavita | C90: Cesar David | D90: 65 | E90: 71 | F90: 51 | G90: 71 | H90: 72 | I90: 62 | J90: 73 | K90: 63 | L90: 50 | M90: 54 | N90: 78 | O90: 64 | P90: 71 | Q90: Minions | R90: Minions | S90: PCT | T90: COL | U90: SA | V90: 3 | W90: 61 | X90: 13 | Y90: 1 | Z90: 2002 | AA90: =2025-Z90 -> 23 | AB90: 5 | AC90: 68.71121567 | AD90: =(Tabla1124434[[#This Row],[Mountain]]+Tabla1124434[[#This Row],[Hill]])/2 -> 61 | AE90: 50000 | AF90: =ROUND(IF($AC90>79,44-(($AC90-79)*(14/4)),IF($AC90>76,67-(($AC90-76)*(23/3)),IF(110-(($AC90-70.4)*(43/5.6))>119,119,110-(($AC90-70.4)*(43/5.6)))))*0.93,0) -> 111 | AG90: =ROUND(IF($AC90>79,37-(($AC90-79)*(9/4)),IF($AC90>76,54-(($AC90-76)*(17/3)),IF(93-(($AC90-70.4)*(39/5.6))>100,100,93-(($AC90-70.4)*(39/5.6)))))*0.93,0) -> 93 | AH90: =ROUND(IF($AC90>79,32-(($AC90-79)*(8/4)),IF($AC90>76,48-(($AC90-76)*(16/3)),IF(86-(($AC90-70.4)*(38/5.6))>95,95,86-(($AC90-70.4)*(38/5.6)))))*0.93,0) -> 88 | AL90: 189 | AM90: 78
A91: 112 | B91: Dujardin | C91: Sandy | D91: 76 | E91: 65 | F91: 70 | G91: 61 | H91: 74 | I91: 78 | J91: 69 | K91: 67 | L91: 72 | M91: 78 | N91: 73 | O91: 76 | P91: 67 | Q91: cycleYorkshire | R91: cycleYorkshire | S91: PT | T91: FRA | U91: EU | V91: 4 | W91: 100 | X91: 29 | Y91: 5 | Z91: 1997 | AA91: =2025-Z91 -> 28 | AB91: 4 | AC91: 73.68880604 | AD91: =(Tabla1124434[[#This Row],[Mountain]]+Tabla1124434[[#This Row],[Hill]])/2 -> 67.5 | AE91: 65000 | AF91: =ROUND(IF($AC91>79,44-(($AC91-79)*(14/4)),IF($AC91>76,67-(($AC91-76)*(23/3)),IF(110-(($AC91-70.4)*(43/5.6))>119,119,110-(($AC91-70.4)*(43/5.6)))))*0.93,0) -> 79 | AG91: =ROUND(IF($AC91>79,37-(($AC91-79)*(9/4)),IF($AC91>76,54-(($AC91-76)*(17/3)),IF(93-(($AC91-70.4)*(39/5.6))>100,100,93-(($AC91-70.4)*(39/5.6)))))*0.93,0) -> 65 | AH91: =ROUND(IF($AC91>79,32-(($AC91-79)*(8/4)),IF($AC91>76,48-(($AC91-76)*(16/3)),IF(86-(($AC91-70.4)*(38/5.6))>95,95,86-(($AC91-70.4)*(38/5.6)))))*0.93,0) -> 59 | AL91: 177 | AM91: 70
A92: 113 | B92: Molano | C92: Juan Sebastian | D92: 70 | E92: 61 | F92: 66 | G92: 61 | H92: 65 | I92: 71 | J92: 75 | K92: 62 | L92: 75 | M92: 77 | N92: 63 | O92: 65 | P92: 62 | Q92: Free Agent | R92: Free Agent | S92: - | T92: COL | U92: SA | V92: 4 | W92: 100 | X92: 4 | Y92: 11 | Z92: 1994 | AA92: =2025-Z92 -> 31 | AB92: 5 | AC92: 72.69362406 | AD92: =(Tabla1124434[[#This Row],[Mountain]]+Tabla1124434[[#This Row],[Hill]])/2 -> 63.5 | AF92: =ROUND(IF($AC92>79,44-(($AC92-79)*(14/4)),IF($AC92>76,67-(($AC92-76)*(23/3)),IF(110-(($AC92-70.4)*(43/5.6))>119,119,110-(($AC92-70.4)*(43/5.6)))))*0.93,0) -> 86 | AG92: =ROUND(IF($AC92>79,37-(($AC92-79)*(9/4)),IF($AC92>76,54-(($AC92-76)*(17/3)),IF(93-(($AC92-70.4)*(39/5.6))>100,100,93-(($AC92-70.4)*(39/5.6)))))*0.93,0) -> 72 | AH92: =ROUND(IF($AC92>79,32-(($AC92-79)*(8/4)),IF($AC92>76,48-(($AC92-76)*(16/3)),IF(86-(($AC92-70.4)*(38/5.6))>95,95,86-(($AC92-70.4)*(38/5.6)))))*0.93,0) -> 66 | AI92: Yes | AL92: 183 | AM92: 70
A93: 114 | B93: Giulietti | C93: Luigi | D93: 73 | E93: 65 | F93: 69 | G93: 73 | H93: 75 | I93: 73 | J93: 73 | K93: 75 | L93: 66 | M93: 69 | N93: 63 | O93: 74 | P93: 73 | Q93: Sauber Petronas Racing | R93: Gazelle | S93: PT | T93: SMR | U93: EU | V93: 4 | W93: 100 | X93: 24 | Y93: 4 | Z93: 1999 | AA93: =2025-Z93 -> 26 | AB93: 4 | AC93: 73.5887629 | AD93: =(Tabla1124434[[#This Row],[Mountain]]+Tabla1124434[[#This Row],[Hill]])/2 -> 67 | AE93: 50000 | AF93: =ROUND(IF($AC93>79,44-(($AC93-79)*(14/4)),IF($AC93>76,67-(($AC93-76)*(23/3)),IF(110-(($AC93-70.4)*(43/5.6))>119,119,110-(($AC93-70.4)*(43/5.6)))))*0.93,0) -> 80 | AG93: =ROUND(IF($AC93>79,37-(($AC93-79)*(9/4)),IF($AC93>76,54-(($AC93-76)*(17/3)),IF(93-(($AC93-70.4)*(39/5.6))>100,100,93-(($AC93-70.4)*(39/5.6)))))*0.93,0) -> 66 | AH93: =ROUND(IF($AC93>79,32-(($AC93-79)*(8/4)),IF($AC93>76,48-(($AC93-76)*(16/3)),IF(86-(($AC93-70.4)*(38/5.6))>95,95,86-(($AC93-70.4)*(38/5.6)))))*0.93,0) -> 60 | AL93: 177 | AM93: 69
A94: 115 | B94: Van der Kooij | C94: Bas | D94: 73 | E94: 62 | F94: 69 | G94: 60 | H94: 75 | I94: 74 | J94: 83 | K94: 66 | L94: 78 | M94: 77 | N94: 62 | O94: 66 | P94: 66 | Q94: Rabobank | R94: Rabobank | S94: PT | T94: NED | U94: EU | V94: 4 | W94: 100 | X94: 16 | Y94: 11 | Z94: 1995 | AA94: =2025-Z94 -> 30 | AB94: 4 | AC94: 75.10272363 | AD94: =(Tabla1124434[[#This Row],[Mountain]]+Tabla1124434[[#This Row],[Hill]])/2 -> 65.5 | AE94: 80000 | AF94: =ROUND(IF($AC94>79,44-(($AC94-79)*(14/4)),IF($AC94>76,67-(($AC94-76)*(23/3)),IF(110-(($AC94-70.4)*(43/5.6))>119,119,110-(($AC94-70.4)*(43/5.6)))))*0.93,0) -> 69 | AG94: =ROUND(IF($AC94>79,37-(($AC94-79)*(9/4)),IF($AC94>76,54-(($AC94-76)*(17/3)),IF(93-(($AC94-70.4)*(39/5.6))>100,100,93-(($AC94-70.4)*(39/5.6)))))*0.93,0) -> 56 | AH94: =ROUND(IF($AC94>79,32-(($AC94-79)*(8/4)),IF($AC94>76,48-(($AC94-76)*(16/3)),IF(86-(($AC94-70.4)*(38/5.6))>95,95,86-(($AC94-70.4)*(38/5.6)))))*0.93,0) -> 50 | AL94: 176 | AM94: 70
A95: 116 | B95: Ockeloen | C95: Jasper | D95: 62 | E95: 67 | F95: 68 | G95: 58 | H95: 60 | I95: 61 | J95: 61 | K95: 54 | L95: 62 | M95: 59 | N95: 62 | O95: 64 | P95: 58 | Q95: Free Agent | R95: Free Agent | S95: - | T95: NED | U95: EU | V95: 4 | W95: 100 | X95: 10 | Y95: 5 | Z95: 1990 | AA95: =2025-Z95 -> 35 | AB95: 4 | AC95: 66.61104754 | AD95: =(Tabla1124434[[#This Row],[Mountain]]+Tabla1124434[[#This Row],[Hill]])/2 -> 67.5 | AF95: =ROUND(IF($AC95>79,44-(($AC95-79)*(14/4)),IF($AC95>76,67-(($AC95-76)*(23/3)),IF(110-(($AC95-70.4)*(43/5.6))>119,119,110-(($AC95-70.4)*(43/5.6)))))*0.93,0) -> 111 | AG95: =ROUND(IF($AC95>79,37-(($AC95-79)*(9/4)),IF($AC95>76,54-(($AC95-76)*(17/3)),IF(93-(($AC95-70.4)*(39/5.6))>100,100,93-(($AC95-70.4)*(39/5.6)))))*0.93,0) -> 93 | AH95: =ROUND(IF($AC95>79,32-(($AC95-79)*(8/4)),IF($AC95>76,48-(($AC95-76)*(16/3)),IF(86-(($AC95-70.4)*(38/5.6))>95,95,86-(($AC95-70.4)*(38/5.6)))))*0.93,0) -> 88 | AL95: 186 | AM95: 66
A96: 118 | B96: Phinney | C96: Taylor | D96: 69 | E96: 81 | F96: 73 | G96: 79 | H96: 71 | I96: 68 | J96: 70 | K96: 54 | L96: 68 | M96: 69 | N96: 64 | O96: 67 | P96: 79 | Q96: Fastned | R96: Fastned | S96: PT | T96: USA | U96: NA | V96: 4 | W96: 100 | X96: 27 | Y96: 6 | Z96: 1990 | AA96: =2025-Z96 -> 35 | AB96: 7 | AC96: 77.20553117 | AD96: =(Tabla1124434[[#This Row],[Mountain]]+Tabla1124434[[#This Row],[Hill]])/2 -> 77 | AE96: 900000 | AF96: =ROUND(IF($AC96>79,44-(($AC96-79)*(14/4)),IF($AC96>76,67-(($AC96-76)*(23/3)),IF(110-(($AC96-70.4)*(43/5.6))>119,119,110-(($AC96-70.4)*(43/5.6)))))*0.93,0) -> 54 | AG96: =ROUND(IF($AC96>79,37-(($AC96-79)*(9/4)),IF($AC96>76,54-(($AC96-76)*(17/3)),IF(93-(($AC96-70.4)*(39/5.6))>100,100,93-(($AC96-70.4)*(39/5.6)))))*0.93,0) -> 44 | AH96: =ROUND(IF($AC96>79,32-(($AC96-79)*(8/4)),IF($AC96>76,48-(($AC96-76)*(16/3)),IF(86-(($AC96-70.4)*(38/5.6))>95,95,86-(($AC96-70.4)*(38/5.6)))))*0.93,0) -> 39 | AL96: 197 | AM96: 82
A97: 119 | B97: Rubenis | C97: Pauls | D97: 73 | E97: 60 | F97: 62 | G97: 59 | H97: 70 | I97: 73 | J97: 68 | K97: 73 | L97: 72 | M97: 71 | N97: 67 | O97: 69 | P97: 64 | Q97: Indosat Ooredoo | R97: Indosat Ooredoo | S97: PCT | T97: LAT | U97: EU | V97: 4 | W97: 13 | X97: 17 | Y97: 6 | Z97: 2001 | AA97: =2025-Z97 -> 24 | AB97: 6 | AC97: 72.26386224 | AD97: =(Tabla1124434[[#This Row],[Mountain]]+Tabla1124434[[#This Row],[Hill]])/2 -> 61 | AE97: 50000 | AF97: =ROUND(IF($AC97>79,44-(($AC97-79)*(14/4)),IF($AC97>76,67-(($AC97-76)*(23/3)),IF(110-(($AC97-70.4)*(43/5.6))>119,119,110-(($AC97-70.4)*(43/5.6)))))*0.93,0) -> 89 | AG97: =ROUND(IF($AC97>79,37-(($AC97-79)*(9/4)),IF($AC97>76,54-(($AC97-76)*(17/3)),IF(93-(($AC97-70.4)*(39/5.6))>100,100,93-(($AC97-70.4)*(39/5.6)))))*0.93,0) -> 74 | AH97: =ROUND(IF($AC97>79,32-(($AC97-79)*(8/4)),IF($AC97>76,48-(($AC97-76)*(16/3)),IF(86-(($AC97-70.4)*(38/5.6))>95,95,86-(($AC97-70.4)*(38/5.6)))))*0.93,0) -> 68 | AL97: 186 | AM97: 68
A98: 120 | B98: Jakobsen | C98: Fabio | D98: 74 | E98: 59 | F98: 67 | G98: 59 | H98: 75 | I98: 73 | J98: 81 | K98: 73 | L98: 80 | M98: 80 | N98: 67 | O98: 68 | P98: 69 | Q98: ZARA - Irizar | R98: ZARA - Irizar | S98: PT | T98: NED | U98: EU | V98: 4 | W98: 100 | X98: 31 | Y98: 8 | Z98: 1996 | AA98: =2025-Z98 -> 29 | AB98: 6 | AC98: 77.25886165 | AD98: =(Tabla1124434[[#This Row],[Mountain]]+Tabla1124434[[#This Row],[Hill]])/2 -> 63 | AE98: 290000 | AF98: =ROUND(IF($AC98>79,44-(($AC98-79)*(14/4)),IF($AC98>76,67-(($AC98-76)*(23/3)),IF(110-(($AC98-70.4)*(43/5.6))>119,119,110-(($AC98-70.4)*(43/5.6)))))*0.93,0) -> 53 | AG98: =ROUND(IF($AC98>79,37-(($AC98-79)*(9/4)),IF($AC98>76,54-(($AC98-76)*(17/3)),IF(93-(($AC98-70.4)*(39/5.6))>100,100,93-(($AC98-70.4)*(39/5.6)))))*0.93,0) -> 44 | AH98: =ROUND(IF($AC98>79,32-(($AC98-79)*(8/4)),IF($AC98>76,48-(($AC98-76)*(16/3)),IF(86-(($AC98-70.4)*(38/5.6))>95,95,86-(($AC98-70.4)*(38/5.6)))))*0.93,0) -> 38 | AL98: 181 | AM98: 78
A99: 121 | B99: Heidemann | C99: Miguel | D99: 72 | E99: 68 | F99: 69 | G99: 77 | H99: 68 | I99: 74 | J99: 71 | K99: 58 | L99: 60 | M99: 60 | N99: 63 | O99: 64 | P99: 75 | Q99: Team Puma - SAP | R99: Team Puma - SAP | S99: PT | T99: GER | U99: EU | V99: 4 | W99: 100 | X99: 27 | Y99: 1 | Z99: 1998 | AA99: =2025-Z99 -> 27 | AB99: 4 | AC99: 73.8623005 | AD99: =(Tabla1124434[[#This Row],[Mountain]]+Tabla1124434[[#This Row],[Hill]])/2 -> 68.5 | AE99: 50000 | AF99: =ROUND(IF($AC99>79,44-(($AC99-79)*(14/4)),IF($AC99>76,67-(($AC99-76)*(23/3)),IF(110-(($AC99-70.4)*(43/5.6))>119,119,110-(($AC99-70.4)*(43/5.6)))))*0.93,0) -> 78 | AG99: =ROUND(IF($AC99>79,37-(($AC99-79)*(9/4)),IF($AC99>76,54-(($AC99-76)*(17/3)),IF(93-(($AC99-70.4)*(39/5.6))>100,100,93-(($AC99-70.4)*(39/5.6)))))*0.93,0) -> 64 | AH99: =ROUND(IF($AC99>79,32-(($AC99-79)*(8/4)),IF($AC99>76,48-(($AC99-76)*(16/3)),IF(86-(($AC99-70.4)*(38/5.6))>95,95,86-(($AC99-70.4)*(38/5.6)))))*0.93,0) -> 58 | AL99: 187 | AM99: 69
A100: 122 | B100: Richardson | C100: Chequan | D100: 71 | E100: 61 | F100: 67 | G100: 63 | H100: 68 | I100: 68 | J100: 64 | K100: 78 | L100: 60 | M100: 61 | N100: 75 | O100: 66 | P100: 63 | Q100: SEE Turtles | R100: SEE Turtles | S100: CT | T100: BER | U100: NA | V100: 4 | W100: 100 | X100: 23 | Y100: 9 | Z100: 1993 | AA100: =2025-Z100 -> 32 | AB100: 4 | AC100: 73.3394636 | AD100: =(Tabla1124434[[#This Row],[Mountain]]+Tabla1124434[[#This Row],[Hill]])/2 -> 64 | AE100: 50000 | AF100: =ROUND(IF($AC100>79,44-(($AC100-79)*(14/4)),IF($AC100>76,67-(($AC100-76)*(23/3)),IF(110-(($AC100-70.4)*(43/5.6))>119,119,110-(($AC100-70.4)*(43/5.6)))))*0.93,0) -> 81 | AG100: =ROUND(IF($AC100>79,37-(($AC100-79)*(9/4)),IF($AC100>76,54-(($AC100-76)*(17/3)),IF(93-(($AC100-70.4)*(39/5.6))>100,100,93-(($AC100-70.4)*(39/5.6)))))*0.93,0) -> 67 | AH100: =ROUND(IF($AC100>79,32-(($AC100-79)*(8/4)),IF($AC100>76,48-(($AC100-76)*(16/3)),IF(86-(($AC100-70.4)*(38/5.6))>95,95,86-(($AC100-70.4)*(38/5.6)))))*0.93,0) -> 61 | AL100: 0 | AM100: 0
A101: 125 | B101: Quaade | C101: Rasmus | D101: 65 | E101: 50 | F101: 57 | G101: 72 | H101: 63 | I101: 61 | J101: 56 | K101: 53 | L101: 55 | M101: 54 | N101: 60 | O101: 54 | P101: 70 | Q101: Trans Looney Tunes | R101: Trans Looney Tunes | S101: CT | T101: DEN | U101: EU | V101: 4 | W101: 100 | X101: 7 | Y101: 1 | Z101: 1990 | AA101: =2025-Z101 -> 35 | AB101: 4 | AC101: 67.18393849 | AD101: =(Tabla1124434[[#This Row],[Mountain]]+Tabla1124434[[#This Row],[Hill]])/2 -> 53.5 | AE101: 0 | AF101: =ROUND(IF($AC101>79,44-(($AC101-79)*(14/4)),IF($AC101>76,67-(($AC101-76)*(23/3)),IF(110-(($AC101-70.4)*(43/5.6))>119,119,110-(($AC101-70.4)*(43/5.6)))))*0.93,0) -> 111 | AG101: =ROUND(IF($AC101>79,37-(($AC101-79)*(9/4)),IF($AC101>76,54-(($AC101-76)*(17/3)),IF(93-(($AC101-70.4)*(39/5.6))>100,100,93-(($AC101-70.4)*(39/5.6)))))*0.93,0) -> 93 | AH101: =ROUND(IF($AC101>79,32-(($AC101-79)*(8/4)),IF($AC101>76,48-(($AC101-76)*(16/3)),IF(86-(($AC101-70.4)*(38/5.6))>95,95,86-(($AC101-70.4)*(38/5.6)))))*0.93,0) -> 88 | AL101: 188 | AM101: 77
A102: 128 | B102: Bolor-Erdene | C102: Enkhtaivan | D102: 77 | E102: 62 | F102: 66 | G102: 71 | H102: 71 | I102: 77 | J102: 70 | K102: 63 | L102: 65 | M102: 73 | N102: 71 | O102: 71 | P102: 71 | Q102: Aker - MOT | R102: Aker - MOT | S102: PT | T102: MGL | U102: AS | V102: 4 | W102: 100 | X102: 8 | Y102: 6 | Z102: 1995 | AA102: =2025-Z102 -> 30 | AB102: 4 | AC102: 71.09173091 | AD102: =(Tabla1124434[[#This Row],[Mountain]]+Tabla1124434[[#This Row],[Hill]])/2 -> 64 | AE102: 50000 | AF102: =ROUND(IF($AC102>79,44-(($AC102-79)*(14/4)),IF($AC102>76,67-(($AC102-76)*(23/3)),IF(110-(($AC102-70.4)*(43/5.6))>119,119,110-(($AC102-70.4)*(43/5.6)))))*0.93,0) -> 97 | AG102: =ROUND(IF($AC102>79,37-(($AC102-79)*(9/4)),IF($AC102>76,54-(($AC102-76)*(17/3)),IF(93-(($AC102-70.4)*(39/5.6))>100,100,93-(($AC102-70.4)*(39/5.6)))))*0.93,0) -> 82 | AH102: =ROUND(IF($AC102>79,32-(($AC102-79)*(8/4)),IF($AC102>76,48-(($AC102-76)*(16/3)),IF(86-(($AC102-70.4)*(38/5.6))>95,95,86-(($AC102-70.4)*(38/5.6)))))*0.93,0) -> 76 | AL102: 171 | AM102: 64
A103: 129 | B103: Daniel | C103: Gregory | D103: 75 | E103: 67 | F103: 72 | G103: 77 | H103: 75 | I103: 74 | J103: 72 | K103: 55 | L103: 56 | M103: 68 | N103: 73 | O103: 69 | P103: 76 | Q103: McCormick Pro Cycling | R103: McCormick Pro Cycling | S103: PCT | T103: USA | U103: NA | V103: 4 | W103: 100 | X103: 8 | Y103: 11 | Z103: 1994 | AA103: =2025-Z103 -> 31 | AB103: 5 | AC103: 74.25098579 | AD103: =(Tabla1124434[[#This Row],[Mountain]]+Tabla1124434[[#This Row],[Hill]])/2 -> 69.5 | AE103: 85000 | AF103: =ROUND(IF($AC103>79,44-(($AC103-79)*(14/4)),IF($AC103>76,67-(($AC103-76)*(23/3)),IF(110-(($AC103-70.4)*(43/5.6))>119,119,110-(($AC103-70.4)*(43/5.6)))))*0.93,0) -> 75 | AG103: =ROUND(IF($AC103>79,37-(($AC103-79)*(9/4)),IF($AC103>76,54-(($AC103-76)*(17/3)),IF(93-(($AC103-70.4)*(39/5.6))>100,100,93-(($AC103-70.4)*(39/5.6)))))*0.93,0) -> 62 | AH103: =ROUND(IF($AC103>79,32-(($AC103-79)*(8/4)),IF($AC103>76,48-(($AC103-76)*(16/3)),IF(86-(($AC103-70.4)*(38/5.6))>95,95,86-(($AC103-70.4)*(38/5.6)))))*0.93,0) -> 56 | AL103: 178 | AM103: 66
A104: 130 | B104: Hoang | C104: Thai Phan | D104: 70 | E104: 71 | F104: 72 | G104: 65 | H104: 71 | I104: 73 | J104: 72 | K104: 57 | L104: 69 | M104: 72 | N104: 72 | O104: 68 | P104: 67 | Q104: Lidl Cycling | R104: Lidl Cycling | S104: PT | T104: VIE | U104: AS | V104: 4 | W104: 5 | X104: 15 | Y104: 4 | Z104: 1998 | AA104: =2025-Z104 -> 27 | AB104: 6 | AC104: 72.97748735 | AD104: =(Tabla1124434[[#This Row],[Mountain]]+Tabla1124434[[#This Row],[Hill]])/2 -> 71.5 | AE104: 50000 | AF104: =ROUND(IF($AC104>79,44-(($AC104-79)*(14/4)),IF($AC104>76,67-(($AC104-76)*(23/3)),IF(110-(($AC104-70.4)*(43/5.6))>119,119,110-(($AC104-70.4)*(43/5.6)))))*0.93,0) -> 84 | AG104: =ROUND(IF($AC104>79,37-(($AC104-79)*(9/4)),IF($AC104>76,54-(($AC104-76)*(17/3)),IF(93-(($AC104-70.4)*(39/5.6))>100,100,93-(($AC104-70.4)*(39/5.6)))))*0.93,0) -> 70 | AH104: =ROUND(IF($AC104>79,32-(($AC104-79)*(8/4)),IF($AC104>76,48-(($AC104-76)*(16/3)),IF(86-(($AC104-70.4)*(38/5.6))>95,95,86-(($AC104-70.4)*(38/5.6)))))*0.93,0) -> 64 | AL104: 183 | AM104: 66
A105: 131 | B105: Rowe | C105: Luke | D105: 72 | E105: 50 | F105: 60 | G105: 59 | H105: 67 | I105: 61 | J105: 70 | K105: 69 | L105: 73 | M105: 71 | N105: 69 | O105: 65 | P105: 68 | Q105: Genii Hyundai N Cycling | R105: Genii Hyundai N Cycling | S105: CT | T105: GBR | U105: EU | V105: 4 | W105: 100 | X105: 10 | Y105: 3 | Z105: 1990 | AA105: =2025-Z105 -> 35 | AB105: 5 | AC105: 70.49602311 | AD105: =(Tabla1124434[[#This Row],[Mountain]]+Tabla1124434[[#This Row],[Hill]])/2 -> 55 | AE105: 55000 | AF105: =ROUND(IF($AC105>79,44-(($AC105-79)*(14/4)),IF($AC105>76,67-(($AC105-76)*(23/3)),IF(110-(($AC105-70.4)*(43/5.6))>119,119,110-(($AC105-70.4)*(43/5.6)))))*0.93,0) -> 102 | AG105: =ROUND(IF($AC105>79,37-(($AC105-79)*(9/4)),IF($AC105>76,54-(($AC105-76)*(17/3)),IF(93-(($AC105-70.4)*(39/5.6))>100,100,93-(($AC105-70.4)*(39/5.6)))))*0.93,0) -> 86 | AH105: =ROUND(IF($AC105>79,32-(($AC105-79)*(8/4)),IF($AC105>76,48-(($AC105-76)*(16/3)),IF(86-(($AC105-70.4)*(38/5.6))>95,95,86-(($AC105-70.4)*(38/5.6)))))*0.93,0) -> 79 | AL105: 185 | AM105: 72
A106: 132 | B106: Kaloniatis | C106: Georgios | D106: 74 | E106: 70 | F106: 69 | G106: 73 | H106: 75 | I106: 73 | J106: 74 | K106: 66 | L106: 67 | M106: 71 | N106: 77 | O106: 70 | P106: 76 | Q106: Tryg - Eni | R106: Assa Abloy | S106: PT | T106: GRE | U106: EU | V106: 4 | W106: 100 | X106: 7 | Y106: 1 | Z106: 1999 | AA106: =2025-Z106 -> 26 | AB106: 5 | AC106: 72.18687902 | AD106: =(Tabla1124434[[#This Row],[Mountain]]+Tabla1124434[[#This Row],[Hill]])/2 -> 69.5 | AE106: 50000 | AF106: =ROUND(IF($AC106>79,44-(($AC106-79)*(14/4)),IF($AC106>76,67-(($AC106-76)*(23/3)),IF(110-(($AC106-70.4)*(43/5.6))>119,119,110-(($AC106-70.4)*(43/5.6)))))*0.93,0) -> 90 | AG106: =ROUND(IF($AC106>79,37-(($AC106-79)*(9/4)),IF($AC106>76,54-(($AC106-76)*(17/3)),IF(93-(($AC106-70.4)*(39/5.6))>100,100,93-(($AC106-70.4)*(39/5.6)))))*0.93,0) -> 75 | AH106: =ROUND(IF($AC106>79,32-(($AC106-79)*(8/4)),IF($AC106>76,48-(($AC106-76)*(16/3)),IF(86-(($AC106-70.4)*(38/5.6))>95,95,86-(($AC106-70.4)*(38/5.6)))))*0.93,0) -> 69 | AL106: 186 | AM106: 75
A107: 133 | B107: Kmieliauskas | C107: Rokas | D107: 74 | E107: 70 | F107: 70 | G107: 81 | H107: 74 | I107: 71 | J107: 74 | K107: 60 | L107: 63 | M107: 69 | N107: 75 | O107: 66 | P107: 81 | Q107: DK Zalgiris | R107: DK Zalgiris | S107: PCT | T107: LTU | U107: EU | V107: 4 | W107: 100 | X107: 22 | Y107: 8 | Z107: 2000 | AA107: =2025-Z107 -> 25 | AB107: 5 | AC107: 77.42358057 | AD107: =(Tabla1124434[[#This Row],[Mountain]]+Tabla1124434[[#This Row],[Hill]])/2 -> 70 | AE107: 140000 | AF107: =ROUND(IF($AC107>79,44-(($AC107-79)*(14/4)),IF($AC107>76,67-(($AC107-76)*(23/3)),IF(110-(($AC107-70.4)*(43/5.6))>119,119,110-(($AC107-70.4)*(43/5.6)))))*0.93,0) -> 52 | AG107: =ROUND(IF($AC107>79,37-(($AC107-79)*(9/4)),IF($AC107>76,54-(($AC107-76)*(17/3)),IF(93-(($AC107-70.4)*(39/5.6))>100,100,93-(($AC107-70.4)*(39/5.6)))))*0.93,0) -> 43 | AH107: =ROUND(IF($AC107>79,32-(($AC107-79)*(8/4)),IF($AC107>76,48-(($AC107-76)*(16/3)),IF(86-(($AC107-70.4)*(38/5.6))>95,95,86-(($AC107-70.4)*(38/5.6)))))*0.93,0) -> 38 | AL107: 179 | AM107: 67
A108: 135 | B108: Kolze Changizi | C108: Sebastian | D108: 69 | E108: 60 | F108: 63 | G108: 59 | H108: 69 | I108: 71 | J108: 61 | K108: 61 | L108: 65 | M108: 64 | N108: 67 | O108: 63 | P108: 59 | Q108: Free Agent | R108: Free Agent | S108: - | T108: DEN | U108: EU | V108: 1 | W108: 33 | X108: 29 | Y108: 12 | Z108: 2000 | AA108: =2025-Z108 -> 25 | AB108: 4 | AC108: 65.98777406 | AD108: =(Tabla1124434[[#This Row],[Mountain]]+Tabla1124434[[#This Row],[Hill]])/2 -> 61.5 | AF108: =ROUND(IF($AC108>79,44-(($AC108-79)*(14/4)),IF($AC108>76,67-(($AC108-76)*(23/3)),IF(110-(($AC108-70.4)*(43/5.6))>119,119,110-(($AC108-70.4)*(43/5.6)))))*0.93,0) -> 111 | AG108: =ROUND(IF($AC108>79,37-(($AC108-79)*(9/4)),IF($AC108>76,54-(($AC108-76)*(17/3)),IF(93-(($AC108-70.4)*(39/5.6))>100,100,93-(($AC108-70.4)*(39/5.6)))))*0.93,0) -> 93 | AH108: =ROUND(IF($AC108>79,32-(($AC108-79)*(8/4)),IF($AC108>76,48-(($AC108-76)*(16/3)),IF(86-(($AC108-70.4)*(38/5.6))>95,95,86-(($AC108-70.4)*(38/5.6)))))*0.93,0) -> 88 | AL108: 191 | AM108: 80
A109: 136 | B109: Wirtgen | C109: Luc | D109: 70 | E109: 75 | F109: 75 | G109: 64 | H109: 73 | I109: 72 | J109: 74 | K109: 58 | L109: 66 | M109: 68 | N109: 70 | O109: 69 | P109: 64 | Q109: EA Vesuvio | R109: EA Vesuvio | S109: PT | T109: LUX | U109: EU | V109: 4 | W109: 100 | X109: 7 | Y109: 7 | Z109: 1998 | AA109: =2025-Z109 -> 27 | AB109: 5 | AC109: 74.48693282 | AD109: =(Tabla1124434[[#This Row],[Mountain]]+Tabla1124434[[#This Row],[Hill]])/2 -> 75 | AE109: 60000 | AF109: =ROUND(IF($AC109>79,44-(($AC109-79)*(14/4)),IF($AC109>76,67-(($AC109-76)*(23/3)),IF(110-(($AC109-70.4)*(43/5.6))>119,119,110-(($AC109-70.4)*(43/5.6)))))*0.93,0) -> 73 | AG109: =ROUND(IF($AC109>79,37-(($AC109-79)*(9/4)),IF($AC109>76,54-(($AC109-76)*(17/3)),IF(93-(($AC109-70.4)*(39/5.6))>100,100,93-(($AC109-70.4)*(39/5.6)))))*0.93,0) -> 60 | AH109: =ROUND(IF($AC109>79,32-(($AC109-79)*(8/4)),IF($AC109>76,48-(($AC109-76)*(16/3)),IF(86-(($AC109-70.4)*(38/5.6))>95,95,86-(($AC109-70.4)*(38/5.6)))))*0.93,0) -> 54 | AL109: 179 | AM109: 63
A110: 137 | B110: Vandevelde | C110: Yentl | D110: 75 | E110: 59 | F110: 65 | G110: 78 | H110: 72 | I110: 74 | J110: 72 | K110: 60 | L110: 62 | M110: 65 | N110: 73 | O110: 66 | P110: 78 | Q110: ZARA - Irizar | R110: ZARA - Irizar | S110: PT | T110: BEL | U110: EU | V110: 4 | W110: 100 | X110: 31 | Y110: 10 | Z110: 2000 | AA110: =2025-Z110 -> 25 | AB110: 6 | AC110: 74.24420749 | AD110: =(Tabla1124434[[#This Row],[Mountain]]+Tabla1124434[[#This Row],[Hill]])/2 -> 62 | AE110: 55000 | AF110: =ROUND(IF($AC110>79,44-(($AC110-79)*(14/4)),IF($AC110>76,67-(($AC110-76)*(23/3)),IF(110-(($AC110-70.4)*(43/5.6))>119,119,110-(($AC110-70.4)*(43/5.6)))))*0.93,0) -> 75 | AG110: =ROUND(IF($AC110>79,37-(($AC110-79)*(9/4)),IF($AC110>76,54-(($AC110-76)*(17/3)),IF(93-(($AC110-70.4)*(39/5.6))>100,100,93-(($AC110-70.4)*(39/5.6)))))*0.93,0) -> 62 | AH110: =ROUND(IF($AC110>79,32-(($AC110-79)*(8/4)),IF($AC110>76,48-(($AC110-76)*(16/3)),IF(86-(($AC110-70.4)*(38/5.6))>95,95,86-(($AC110-70.4)*(38/5.6)))))*0.93,0) -> 56 | AL110: 188 | AM110: 69
A111: 138 | B111: Pelegri | C111: Oscar | D111: 68 | E111: 62 | F111: 68 | G111: 61 | H111: 65 | I111: 68 | J111: 64 | K111: 60 | L111: 69 | M111: 71 | N111: 64 | O111: 66 | P111: 64 | Q111: Free Agent | R111: Free Agent | S111: - | T111: ESP | U111: EU | V111: 3 | W111: 41 | X111: 30 | Y111: 5 | Z111: 1994 | AA111: =2025-Z111 -> 31 | AB111: 4 | AC111: 69.10833695 | AD111: =(Tabla1124434[[#This Row],[Mountain]]+Tabla1124434[[#This Row],[Hill]])/2 -> 65 | AF111: =ROUND(IF($AC111>79,44-(($AC111-79)*(14/4)),IF($AC111>76,67-(($AC111-76)*(23/3)),IF(110-(($AC111-70.4)*(43/5.6))>119,119,110-(($AC111-70.4)*(43/5.6)))))*0.93,0) -> 111 | AG111: =ROUND(IF($AC111>79,37-(($AC111-79)*(9/4)),IF($AC111>76,54-(($AC111-76)*(17/3)),IF(93-(($AC111-70.4)*(39/5.6))>100,100,93-(($AC111-70.4)*(39/5.6)))))*0.93,0) -> 93 | AH111: =ROUND(IF($AC111>79,32-(($AC111-79)*(8/4)),IF($AC111>76,48-(($AC111-76)*(16/3)),IF(86-(($AC111-70.4)*(38/5.6))>95,95,86-(($AC111-70.4)*(38/5.6)))))*0.93,0) -> 88 | AL111: 0 | AM111: 0
A112: 139 | B112: Tejada | C112: Harold | D112: 68 | E112: 77 | F112: 73 | G112: 71 | H112: 72 | I112: 76 | J112: 72 | K112: 57 | L112: 59 | M112: 70 | N112: 66 | O112: 64 | P112: 71 | Q112: Free Agent | R112: Manada Coyote | S112: PCT | T112: COL | U112: SA | V112: 4 | W112: 100 | X112: 27 | Y112: 4 | Z112: 1997 | AA112: =2025-Z112 -> 28 | AB112: 6 | AC112: 75.10915639 | AD112: =(Tabla1124434[[#This Row],[Mountain]]+Tabla1124434[[#This Row],[Hill]])/2 -> 75 | AE112: 110000 | AF112: =ROUND(IF($AC112>79,44-(($AC112-79)*(14/4)),IF($AC112>76,67-(($AC112-76)*(23/3)),IF(110-(($AC112-70.4)*(43/5.6))>119,119,110-(($AC112-70.4)*(43/5.6)))))*0.93,0) -> 69 | AG112: =ROUND(IF($AC112>79,37-(($AC112-79)*(9/4)),IF($AC112>76,54-(($AC112-76)*(17/3)),IF(93-(($AC112-70.4)*(39/5.6))>100,100,93-(($AC112-70.4)*(39/5.6)))))*0.93,0) -> 56 | AH112: =ROUND(IF($AC112>79,32-(($AC112-79)*(8/4)),IF($AC112>76,48-(($AC112-76)*(16/3)),IF(86-(($AC112-70.4)*(38/5.6))>95,95,86-(($AC112-70.4)*(38/5.6)))))*0.93,0) -> 50 | AL112: 180 | AM112: 63
A113: 144 | B113: Kopecky | C113: Tomas | D113: 69 | E113: 58 | F113: 62 | G113: 66 | H113: 66 | I113: 71 | J113: 60 | K113: 65 | L113: 64 | M113: 63 | N113: 65 | O113: 70 | P113: 67 | Q113: Free Agent | R113: Free Agent | S113: - | T113: CZE | U113: EU | V113: 1 | W113: 0 | X113: 8 | Y113: 4 | Z113: 2000 | AA113: =2025-Z113 -> 25 | AB113: 3 | AC113: 66.27905085 | AD113: =(Tabla1124434[[#This Row],[Mountain]]+Tabla1124434[[#This Row],[Hill]])/2 -> 60 | AF113: =ROUND(IF($AC113>79,44-(($AC113-79)*(14/4)),IF($AC113>76,67-(($AC113-76)*(23/3)),IF(110-(($AC113-70.4)*(43/5.6))>119,119,110-(($AC113-70.4)*(43/5.6)))))*0.93,0) -> 111 | AG113: =ROUND(IF($AC113>79,37-(($AC113-79)*(9/4)),IF($AC113>76,54-(($AC113-76)*(17/3)),IF(93-(($AC113-70.4)*(39/5.6))>100,100,93-(($AC113-70.4)*(39/5.6)))))*0.93,0) -> 93 | AH113: =ROUND(IF($AC113>79,32-(($AC113-79)*(8/4)),IF($AC113>76,48-(($AC113-76)*(16/3)),IF(86-(($AC113-70.4)*(38/5.6))>95,95,86-(($AC113-70.4)*(38/5.6)))))*0.93,0) -> 88 | AL113: 0 | AM113: 0
A114: 145 | B114: Nzafashwanayo | C114: Jean Claude | D114: 72 | E114: 65 | F114: 67 | G114: 62 | H114: 70 | I114: 73 | J114: 69 | K114: 60 | L114: 62 | M114: 54 | N114: 70 | O114: 68 | P114: 62 | Q114: Free Agent | R114: Free Agent | S114: - | T114: RWA | U114: AF | V114: 3 | W114: 5 | X114: 4 | Y114: 8 | Z114: 2000 | AA114: =2025-Z114 -> 25 | AB114: 4 | AC114: 68.06334253 | AD114: =(Tabla1124434[[#This Row],[Mountain]]+Tabla1124434[[#This Row],[Hill]])/2 -> 66 | AF114: =ROUND(IF($AC114>79,44-(($AC114-79)*(14/4)),IF($AC114>76,67-(($AC114-76)*(23/3)),IF(110-(($AC114-70.4)*(43/5.6))>119,119,110-(($AC114-70.4)*(43/5.6)))))*0.93,0) -> 111 | AG114: =ROUND(IF($AC114>79,37-(($AC114-79)*(9/4)),IF($AC114>76,54-(($AC114-76)*(17/3)),IF(93-(($AC114-70.4)*(39/5.6))>100,100,93-(($AC114-70.4)*(39/5.6)))))*0.93,0) -> 93 | AH114: =ROUND(IF($AC114>79,32-(($AC114-79)*(8/4)),IF($AC114>76,48-(($AC114-76)*(16/3)),IF(86-(($AC114-70.4)*(38/5.6))>95,95,86-(($AC114-70.4)*(38/5.6)))))*0.93,0) -> 88 | AL114: 189 | AM114: 76
A115: 147 | B115: Örken | C115: Ahmet | D115: 69 | E115: 65 | F115: 68 | G115: 62 | H115: 67 | I115: 71 | J115: 67 | K115: 58 | L115: 70 | M115: 71 | N115: 70 | O115: 67 | P115: 66 | Q115: Free Agent | R115: Free Agent | S115: - | T115: TUR | U115: EU | V115: 2 | W115: 8 | X115: 22 | Y115: 12 | Z115: 1999 | AA115: =2025-Z115 -> 26 | AB115: 4 | AC115: 70.0022613 | AD115: =(Tabla1124434[[#This Row],[Mountain]]+Tabla1124434[[#This Row],[Hill]])/2 -> 66.5 | AF115: =ROUND(IF($AC115>79,44-(($AC115-79)*(14/4)),IF($AC115>76,67-(($AC115-76)*(23/3)),IF(110-(($AC115-70.4)*(43/5.6))>119,119,110-(($AC115-70.4)*(43/5.6)))))*0.93,0) -> 105 | AG115: =ROUND(IF($AC115>79,37-(($AC115-79)*(9/4)),IF($AC115>76,54-(($AC115-76)*(17/3)),IF(93-(($AC115-70.4)*(39/5.6))>100,100,93-(($AC115-70.4)*(39/5.6)))))*0.93,0) -> 89 | AH115: =ROUND(IF($AC115>79,32-(($AC115-79)*(8/4)),IF($AC115>76,48-(($AC115-76)*(16/3)),IF(86-(($AC115-70.4)*(38/5.6))>95,95,86-(($AC115-70.4)*(38/5.6)))))*0.93,0) -> 82 | AL115: 0 | AM115: 0 | AR115: yes
A116: 149 | B116: Paquot | C116: Tom | D116: 69 | E116: 63 | F116: 66 | G116: 57 | H116: 69 | I116: 70 | J116: 59 | K116: 65 | L116: 66 | M116: 68 | N116: 69 | O116: 63 | P116: 58 | Q116: Free Agent | R116: Free Agent | S116: - | T116: BEL | U116: EU | V116: 2 | W116: 0 | X116: 22 | Y116: 9 | Z116: 1999 | AA116: =2025-Z116 -> 26 | AB116: 4 | AC116: 68.24522816 | AD116: =(Tabla1124434[[#This Row],[Mountain]]+Tabla1124434[[#This Row],[Hill]])/2 -> 64.5 | AF116: =ROUND(IF($AC116>79,44-(($AC116-79)*(14/4)),IF($AC116>76,67-(($AC116-76)*(23/3)),IF(110-(($AC116-70.4)*(43/5.6))>119,119,110-(($AC116-70.4)*(43/5.6)))))*0.93,0) -> 111 | AG116: =ROUND(IF($AC116>79,37-(($AC116-79)*(9/4)),IF($AC116>76,54-(($AC116-76)*(17/3)),IF(93-(($AC116-70.4)*(39/5.6))>100,100,93-(($AC116-70.4)*(39/5.6)))))*0.93,0) -> 93 | AH116: =ROUND(IF($AC116>79,32-(($AC116-79)*(8/4)),IF($AC116>76,48-(($AC116-76)*(16/3)),IF(86-(($AC116-70.4)*(38/5.6))>95,95,86-(($AC116-70.4)*(38/5.6)))))*0.93,0) -> 88 | AL116: 179 | AM116: 63
A117: 150 | B117: Polnicky | C117: Jiri | D117: 61 | E117: 55 | F117: 62 | G117: 53 | H117: 60 | I117: 57 | J117: 54 | K117: 65 | L117: 53 | M117: 56 | N117: 58 | O117: 65 | P117: 59 | Q117: Free Agent | R117: Free Agent | S117: - | T117: CZE | U117: EU | V117: 4 | W117: 100 | X117: 12 | Y117: 12 | Z117: 1989 | AA117: =2025-Z117 -> 36 | AB117: 4 | AC117: 62.88733868 | AD117: =(Tabla1124434[[#This Row],[Mountain]]+Tabla1124434[[#This Row],[Hill]])/2 -> 58.5 | AF117: =ROUND(IF($AC117>79,44-(($AC117-79)*(14/4)),IF($AC117>76,67-(($AC117-76)*(23/3)),IF(110-(($AC117-70.4)*(43/5.6))>119,119,110-(($AC117-70.4)*(43/5.6)))))*0.93,0) -> 111 | AG117: =ROUND(IF($AC117>79,37-(($AC117-79)*(9/4)),IF($AC117>76,54-(($AC117-76)*(17/3)),IF(93-(($AC117-70.4)*(39/5.6))>100,100,93-(($AC117-70.4)*(39/5.6)))))*0.93,0) -> 93 | AH117: =ROUND(IF($AC117>79,32-(($AC117-79)*(8/4)),IF($AC117>76,48-(($AC117-76)*(16/3)),IF(86-(($AC117-70.4)*(38/5.6))>95,95,86-(($AC117-70.4)*(38/5.6)))))*0.93,0) -> 88 | AL117: 183 | AM117: 68
A118: 151 | B118: Diaz Gallego | C118: Jose | D118: 66 | E118: 73 | F118: 69 | G118: 59 | H118: 70 | I118: 69 | J118: 69 | K118: 60 | L118: 59 | M118: 69 | N118: 67 | O118: 67 | P118: 59 | Q118: Free Agent | R118: Free Agent | S118: - | T118: ESP | U118: EU | V118: 4 | W118: 100 | X118: 18 | Y118: 1 | Z118: 1995 | AA118: =2025-Z118 -> 30 | AB118: 4 | AC118: 70.35486066 | AD118: =(Tabla1124434[[#This Row],[Mountain]]+Tabla1124434[[#This Row],[Hill]])/2 -> 71 | AF118: =ROUND(IF($AC118>79,44-(($AC118-79)*(14/4)),IF($AC118>76,67-(($AC118-76)*(23/3)),IF(110-(($AC118-70.4)*(43/5.6))>119,119,110-(($AC118-70.4)*(43/5.6)))))*0.93,0) -> 103 | AG118: =ROUND(IF($AC118>79,37-(($AC118-79)*(9/4)),IF($AC118>76,54-(($AC118-76)*(17/3)),IF(93-(($AC118-70.4)*(39/5.6))>100,100,93-(($AC118-70.4)*(39/5.6)))))*0.93,0) -> 87 | AH118: =ROUND(IF($AC118>79,32-(($AC118-79)*(8/4)),IF($AC118>76,48-(($AC118-76)*(16/3)),IF(86-(($AC118-70.4)*(38/5.6))>95,95,86-(($AC118-70.4)*(38/5.6)))))*0.93,0) -> 80 | AI118: Yes | AL118: 0 | AM118: 0
A119: 153 | B119: Grigrian | C119: Artur | D119: 58 | E119: 66 | F119: 61 | G119: 62 | H119: 58 | I119: 54 | J119: 57 | K119: 46 | L119: 46 | M119: 59 | N119: 52 | O119: 46 | P119: 62 | Q119: Free Agent | R119: Free Agent | S119: - | T119: ARM | U119: EU | V119: 4 | W119: 100 | X119: 10 | Y119: 2 | Z119: 1989 | AA119: =2025-Z119 -> 36 | AB119: 5 | AC119: 62.82371164 | AD119: =(Tabla1124434[[#This Row],[Mountain]]+Tabla1124434[[#This Row],[Hill]])/2 -> 63.5 | AF119: =ROUND(IF($AC119>79,44-(($AC119-79)*(14/4)),IF($AC119>76,67-(($AC119-76)*(23/3)),IF(110-(($AC119-70.4)*(43/5.6))>119,119,110-(($AC119-70.4)*(43/5.6)))))*0.93,0) -> 111 | AG119: =ROUND(IF($AC119>79,37-(($AC119-79)*(9/4)),IF($AC119>76,54-(($AC119-76)*(17/3)),IF(93-(($AC119-70.4)*(39/5.6))>100,100,93-(($AC119-70.4)*(39/5.6)))))*0.93,0) -> 93 | AH119: =ROUND(IF($AC119>79,32-(($AC119-79)*(8/4)),IF($AC119>76,48-(($AC119-76)*(16/3)),IF(86-(($AC119-70.4)*(38/5.6))>95,95,86-(($AC119-70.4)*(38/5.6)))))*0.93,0) -> 88 | AL119: 0 | AM119: 0 | AR119: Yes | AS119: Yes
A120: 154 | B120: Noia | C120: Carlo | D120: 76 | E120: 58 | F120: 60 | G120: 78 | H120: 70 | I120: 74 | J120: 70 | K120: 62 | L120: 61 | M120: 69 | N120: 70 | O120: 65 | P120: 77 | Q120: Sauber Petronas Racing | R120: Sauber Petronas Racing | S120: PCT | T120: SMR | U120: EU | V120: 4 | W120: 100 | X120: 6 | Y120: 1 | Z120: 1996 | AA120: =2025-Z120 -> 29 | AB120: 3 | AC120: 74.08201944 | AD120: =(Tabla1124434[[#This Row],[Mountain]]+Tabla1124434[[#This Row],[Hill]])/2 -> 59 | AE120: 65000 | AF120: =ROUND(IF($AC120>79,44-(($AC120-79)*(14/4)),IF($AC120>76,67-(($AC120-76)*(23/3)),IF(110-(($AC120-70.4)*(43/5.6))>119,119,110-(($AC120-70.4)*(43/5.6)))))*0.93,0) -> 76 | AG120: =ROUND(IF($AC120>79,37-(($AC120-79)*(9/4)),IF($AC120>76,54-(($AC120-76)*(17/3)),IF(93-(($AC120-70.4)*(39/5.6))>100,100,93-(($AC120-70.4)*(39/5.6)))))*0.93,0) -> 63 | AH120: =ROUND(IF($AC120>79,32-(($AC120-79)*(8/4)),IF($AC120>76,48-(($AC120-76)*(16/3)),IF(86-(($AC120-70.4)*(38/5.6))>95,95,86-(($AC120-70.4)*(38/5.6)))))*0.93,0) -> 57 | AL120: 178 | AM120: 67
A121: 155 | B121: Rumsas | C121: Raimondas | D121: 65 | E121: 57 | F121: 63 | G121: 72 | H121: 65 | I121: 65 | J121: 66 | K121: 52 | L121: 53 | M121: 62 | N121: 67 | O121: 63 | P121: 70 | Q121: Free Agent | R121: Free Agent | S121: - | T121: LTU | U121: EU | V121: 4 | W121: 100 | X121: 20 | Y121: 8 | Z121: 1994 | AA121: =2025-Z121 -> 31 | AB121: 7 | AC121: 68.17151623 | AD121: =(Tabla1124434[[#This Row],[Mountain]]+Tabla1124434[[#This Row],[Hill]])/2 -> 60 | AF121: =ROUND(IF($AC121>79,44-(($AC121-79)*(14/4)),IF($AC121>76,67-(($AC121-76)*(23/3)),IF(110-(($AC121-70.4)*(43/5.6))>119,119,110-(($AC121-70.4)*(43/5.6)))))*0.93,0) -> 111 | AG121: =ROUND(IF($AC121>79,37-(($AC121-79)*(9/4)),IF($AC121>76,54-(($AC121-76)*(17/3)),IF(93-(($AC121-70.4)*(39/5.6))>100,100,93-(($AC121-70.4)*(39/5.6)))))*0.93,0) -> 93 | AH121: =ROUND(IF($AC121>79,32-(($AC121-79)*(8/4)),IF($AC121>76,48-(($AC121-76)*(16/3)),IF(86-(($AC121-70.4)*(38/5.6))>95,95,86-(($AC121-70.4)*(38/5.6)))))*0.93,0) -> 88 | AI121: Yes | AL121: 0 | AM121: 0
A122: 156 | B122: Quinn | C122: Sean | D122: 70 | E122: 74 | F122: 73 | G122: 70 | H122: 72 | I122: 76 | J122: 73 | K122: 60 | L122: 66 | M122: 69 | N122: 64 | O122: 63 | P122: 73 | Q122: Newton Foundation p/b Zwift | R122: Newton Foundation p/b Zwift | S122: CT | T122: USA | U122: NA | V122: 4 | W122: 59 | X122: 10 | Y122: 5 | Z122: 2000 | AA122: =2025-Z122 -> 25 | AB122: 4 | AC122: 73.93134503 | AD122: =(Tabla1124434[[#This Row],[Mountain]]+Tabla1124434[[#This Row],[Hill]])/2 -> 73.5 | AE122: 50000 | AF122: =ROUND(IF($AC122>79,44-(($AC122-79)*(14/4)),IF($AC122>76,67-(($AC122-76)*(23/3)),IF(110-(($AC122-70.4)*(43/5.6))>119,119,110-(($AC122-70.4)*(43/5.6)))))*0.93,0) -> 77 | AG122: =ROUND(IF($AC122>79,37-(($AC122-79)*(9/4)),IF($AC122>76,54-(($AC122-76)*(17/3)),IF(93-(($AC122-70.4)*(39/5.6))>100,100,93-(($AC122-70.4)*(39/5.6)))))*0.93,0) -> 64 | AH122: =ROUND(IF($AC122>79,32-(($AC122-79)*(8/4)),IF($AC122>76,48-(($AC122-76)*(16/3)),IF(86-(($AC122-70.4)*(38/5.6))>95,95,86-(($AC122-70.4)*(38/5.6)))))*0.93,0) -> 58 | AL122: 173 | AM122: 62
A123: 157 | B123: Tene | C123: Rotem | D123: 69 | E123: 60 | F123: 61 | G123: 65 | H123: 68 | I123: 65 | J123: 69 | K123: 66 | L123: 64 | M123: 69 | N123: 70 | O123: 69 | P123: 66 | Q123: Free Agent | R123: Free Agent | S123: - | T123: ISR | U123: EU | V123: 1 | W123: 0 | X123: 30 | Y123: 3 | Z123: 2001 | AA123: =2025-Z123 -> 24 | AB123: 3 | AC123: 67.38112822 | AD123: =(Tabla1124434[[#This Row],[Mountain]]+Tabla1124434[[#This Row],[Hill]])/2 -> 60.5 | AF123: =ROUND(IF($AC123>79,44-(($AC123-79)*(14/4)),IF($AC123>76,67-(($AC123-76)*(23/3)),IF(110-(($AC123-70.4)*(43/5.6))>119,119,110-(($AC123-70.4)*(43/5.6)))))*0.93,0) -> 111 | AG123: =ROUND(IF($AC123>79,37-(($AC123-79)*(9/4)),IF($AC123>76,54-(($AC123-76)*(17/3)),IF(93-(($AC123-70.4)*(39/5.6))>100,100,93-(($AC123-70.4)*(39/5.6)))))*0.93,0) -> 93 | AH123: =ROUND(IF($AC123>79,32-(($AC123-79)*(8/4)),IF($AC123>76,48-(($AC123-76)*(16/3)),IF(86-(($AC123-70.4)*(38/5.6))>95,95,86-(($AC123-70.4)*(38/5.6)))))*0.93,0) -> 88 | AJ123: Yes | AK123: Yes | AL123: 0 | AM123: 0
A124: 158 | B124: Evans | C124: Alexander | D124: 65 | E124: 77 | F124: 72 | G124: 74 | H124: 70 | I124: 72 | J124: 73 | K124: 61 | L124: 57 | M124: 67 | N124: 67 | O124: 62 | P124: 71 | Q124: Kraftwerk Man Machine | R124: Kraftwerk Man Machine | S124: PCT | T124: AUS | U124: OC | V124: 4 | W124: 100 | X124: 28 | Y124: 1 | Z124: 1997 | AA124: =2025-Z124 -> 28 | AB124: 4 | AC124: 74.73511358 | AD124: =(Tabla1124434[[#This Row],[Mountain]]+Tabla1124434[[#This Row],[Hill]])/2 -> 74.5 | AE124: 150000 | AF124: =ROUND(IF($AC124>79,44-(($AC124-79)*(14/4)),IF($AC124>76,67-(($AC124-76)*(23/3)),IF(110-(($AC124-70.4)*(43/5.6))>119,119,110-(($AC124-70.4)*(43/5.6)))))*0.93,0) -> 71 | AG124: =ROUND(IF($AC124>79,37-(($AC124-79)*(9/4)),IF($AC124>76,54-(($AC124-76)*(17/3)),IF(93-(($AC124-70.4)*(39/5.6))>100,100,93-(($AC124-70.4)*(39/5.6)))))*0.93,0) -> 58 | AH124: =ROUND(IF($AC124>79,32-(($AC124-79)*(8/4)),IF($AC124>76,48-(($AC124-76)*(16/3)),IF(86-(($AC124-70.4)*(38/5.6))>95,95,86-(($AC124-70.4)*(38/5.6)))))*0.93,0) -> 53 | AL124: 0 | AM124: 0
A125: 159 | B125: Siskevicius | C125: Paulius | D125: 69 | E125: 65 | F125: 71 | G125: 62 | H125: 67 | I125: 70 | J125: 68 | K125: 50 | L125: 62 | M125: 67 | N125: 64 | O125: 61 | P125: 62 | Q125: Free Agent | R125: Free Agent | S125: - | T125: LTU | U125: EU | V125: 3 | W125: 65 | X125: 7 | Y125: 9 | Z125: 1993 | AA125: =2025-Z125 -> 32 | AB125: 5 | AC125: 69.92404801 | AD125: =(Tabla1124434[[#This Row],[Mountain]]+Tabla1124434[[#This Row],[Hill]])/2 -> 68 | AF125: =ROUND(IF($AC125>79,44-(($AC125-79)*(14/4)),IF($AC125>76,67-(($AC125-76)*(23/3)),IF(110-(($AC125-70.4)*(43/5.6))>119,119,110-(($AC125-70.4)*(43/5.6)))))*0.93,0) -> 106 | AG125: =ROUND(IF($AC125>79,37-(($AC125-79)*(9/4)),IF($AC125>76,54-(($AC125-76)*(17/3)),IF(93-(($AC125-70.4)*(39/5.6))>100,100,93-(($AC125-70.4)*(39/5.6)))))*0.93,0) -> 90 | AH125: =ROUND(IF($AC125>79,32-(($AC125-79)*(8/4)),IF($AC125>76,48-(($AC125-76)*(16/3)),IF(86-(($AC125-70.4)*(38/5.6))>95,95,86-(($AC125-70.4)*(38/5.6)))))*0.93,0) -> 83 | AL125: 0 | AM125: 0 | AR125: Yes
A126: 160 | B126: Main | C126: Kent | D126: 68 | E126: 75 | F126: 71 | G126: 74 | H126: 72 | I126: 75 | J126: 76 | K126: 58 | L126: 63 | M126: 69 | N126: 73 | O126: 71 | P126: 74 | Q126: Glanbia | R126: Glanbia | S126: CT | T126: RSA | U126: AF | V126: 4 | W126: 100 | X126: 8 | Y126: 1 | Z126: 1996 | AA126: =2025-Z126 -> 29 | AB126: 3 | AC126: 74.19158869 | AD126: =(Tabla1124434[[#This Row],[Mountain]]+Tabla1124434[[#This Row],[Hill]])/2 -> 73 | AE126: 100000 | AF126: =ROUND(IF($AC126>79,44-(($AC126-79)*(14/4)),IF($AC126>76,67-(($AC126-76)*(23/3)),IF(110-(($AC126-70.4)*(43/5.6))>119,119,110-(($AC126-70.4)*(43/5.6)))))*0.93,0) -> 75 | AG126: =ROUND(IF($AC126>79,37-(($AC126-79)*(9/4)),IF($AC126>76,54-(($AC126-76)*(17/3)),IF(93-(($AC126-70.4)*(39/5.6))>100,100,93-(($AC126-70.4)*(39/5.6)))))*0.93,0) -> 62 | AH126: =ROUND(IF($AC126>79,32-(($AC126-79)*(8/4)),IF($AC126>76,48-(($AC126-76)*(16/3)),IF(86-(($AC126-70.4)*(38/5.6))>95,95,86-(($AC126-70.4)*(38/5.6)))))*0.93,0) -> 56 | AL126: 0 | AM126: 0
A127: 162 | B127: Fritsch | C127: Sven | D127: 72 | E127: 67 | F127: 76 | G127: 65 | H127: 74 | I127: 68 | J127: 71 | K127: 61 | L127: 68 | M127: 71 | N127: 68 | O127: 68 | P127: 69 | Q127: Free Agent | R127: Free Agent | S127: - | T127: LUX | U127: EU | V127: 4 | W127: 100 | X127: 29 | Y127: 5 | Z127: 1994 | AA127: =2025-Z127 -> 31 | AB127: 5 | AC127: 73.81731113 | AD127: =(Tabla1124434[[#This Row],[Mountain]]+Tabla1124434[[#This Row],[Hill]])/2 -> 71.5 | AF127: =ROUND(IF($AC127>79,44-(($AC127-79)*(14/4)),IF($AC127>76,67-(($AC127-76)*(23/3)),IF(110-(($AC127-70.4)*(43/5.6))>119,119,110-(($AC127-70.4)*(43/5.6)))))*0.93,0) -> 78 | AG127: =ROUND(IF($AC127>79,37-(($AC127-79)*(9/4)),IF($AC127>76,54-(($AC127-76)*(17/3)),IF(93-(($AC127-70.4)*(39/5.6))>100,100,93-(($AC127-70.4)*(39/5.6)))))*0.93,0) -> 64 | AH127: =ROUND(IF($AC127>79,32-(($AC127-79)*(8/4)),IF($AC127>76,48-(($AC127-76)*(16/3)),IF(86-(($AC127-70.4)*(38/5.6))>95,95,86-(($AC127-70.4)*(38/5.6)))))*0.93,0) -> 58 | AI127: Yes | AL127: 0 | AM127: 0 | AR127: Yes
A128: 163 | B128: Menicucci | C128: Samuele | D128: 71 | E128: 63 | F128: 72 | G128: 61 | H128: 74 | I128: 74 | J128: 73 | K128: 72 | L128: 63 | M128: 68 | N128: 70 | O128: 69 | P128: 63 | Q128: Sauber Petronas Racing | R128: Sauber Petronas Racing | S128: PCT | T128: SMR | U128: EU | V128: 4 | W128: 100 | X128: 24 | Y128: 9 | Z128: 1997 | AA128: =2025-Z128 -> 28 | AB128: 3 | AC128: 72.17852439 | AD128: =(Tabla1124434[[#This Row],[Mountain]]+Tabla1124434[[#This Row],[Hill]])/2 -> 67.5 | AE128: 50000 | AF128: =ROUND(IF($AC128>79,44-(($AC128-79)*(14/4)),IF($AC128>76,67-(($AC128-76)*(23/3)),IF(110-(($AC128-70.4)*(43/5.6))>119,119,110-(($AC128-70.4)*(43/5.6)))))*0.93,0) -> 90 | AG128: =ROUND(IF($AC128>79,37-(($AC128-79)*(9/4)),IF($AC128>76,54-(($AC128-76)*(17/3)),IF(93-(($AC128-70.4)*(39/5.6))>100,100,93-(($AC128-70.4)*(39/5.6)))))*0.93,0) -> 75 | AH128: =ROUND(IF($AC128>79,32-(($AC128-79)*(8/4)),IF($AC128>76,48-(($AC128-76)*(16/3)),IF(86-(($AC128-70.4)*(38/5.6))>95,95,86-(($AC128-70.4)*(38/5.6)))))*0.93,0) -> 69 | AL128: 0 | AM128: 0
A129: 164 | B129: Rex | C129: Laurenz | D129: 69 | E129: 58 | F129: 59 | G129: 62 | H129: 69 | I129: 69 | J129: 65 | K129: 68 | L129: 65 | M129: 65 | N129: 65 | O129: 64 | P129: 64 | Q129: Free Agent | R129: Free Agent | S129: - | T129: BEL | U129: EU | V129: 2 | W129: 0 | X129: 15 | Y129: 12 | Z129: 1999 | AA129: =2025-Z129 -> 26 | AB129: 4 | AC129: 67.52485825 | AD129: =(Tabla1124434[[#This Row],[Mountain]]+Tabla1124434[[#This Row],[Hill]])/2 -> 58.5 | AF129: =ROUND(IF($AC129>79,44-(($AC129-79)*(14/4)),IF($AC129>76,67-(($AC129-76)*(23/3)),IF(110-(($AC129-70.4)*(43/5.6))>119,119,110-(($AC129-70.4)*(43/5.6)))))*0.93,0) -> 111 | AG129: =ROUND(IF($AC129>79,37-(($AC129-79)*(9/4)),IF($AC129>76,54-(($AC129-76)*(17/3)),IF(93-(($AC129-70.4)*(39/5.6))>100,100,93-(($AC129-70.4)*(39/5.6)))))*0.93,0) -> 93 | AH129: =ROUND(IF($AC129>79,32-(($AC129-79)*(8/4)),IF($AC129>76,48-(($AC129-76)*(16/3)),IF(86-(($AC129-70.4)*(38/5.6))>95,95,86-(($AC129-70.4)*(38/5.6)))))*0.93,0) -> 88 | AL129: 187 | AM129: 72
A130: 166 | B130: Zekavica | C130: Jovan | D130: 69 | E130: 58 | F130: 63 | G130: 60 | H130: 62 | I130: 66 | J130: 66 | K130: 61 | L130: 72 | M130: 71 | N130: 61 | O130: 68 | P130: 68 | Q130: Free Agent | R130: Free Agent | S130: - | T130: SER | U130: EU | V130: 4 | W130: 4 | X130: 20 | Y130: 1 | Z130: 1991 | AA130: =2025-Z130 -> 34 | AB130: 5 | AC130: 69.2921052 | AD130: =(Tabla1124434[[#This Row],[Mountain]]+Tabla1124434[[#This Row],[Hill]])/2 -> 60.5 | AF130: =ROUND(IF($AC130>79,44-(($AC130-79)*(14/4)),IF($AC130>76,67-(($AC130-76)*(23/3)),IF(110-(($AC130-70.4)*(43/5.6))>119,119,110-(($AC130-70.4)*(43/5.6)))))*0.93,0) -> 110 | AG130: =ROUND(IF($AC130>79,37-(($AC130-79)*(9/4)),IF($AC130>76,54-(($AC130-76)*(17/3)),IF(93-(($AC130-70.4)*(39/5.6))>100,100,93-(($AC130-70.4)*(39/5.6)))))*0.93,0) -> 93 | AH130: =ROUND(IF($AC130>79,32-(($AC130-79)*(8/4)),IF($AC130>76,48-(($AC130-76)*(16/3)),IF(86-(($AC130-70.4)*(38/5.6))>95,95,86-(($AC130-70.4)*(38/5.6)))))*0.93,0) -> 87 | AL130: 0 | AM130: 0
A131: 167 | B131: Ranaweera | C131: Suranga | D131: 67 | E131: 80 | F131: 73 | G131: 76 | H131: 75 | I131: 75 | J131: 74 | K131: 52 | L131: 58 | M131: 65 | N131: 57 | O131: 69 | P131: 73 | Q131: Ekoi - Le Creuset | R131: Ekoi - Le Creuset | S131: PCT | T131: SRI | U131: AS | V131: 4 | W131: 100 | X131: 30 | Y131: 12 | Z131: 1995 | AA131: =2025-Z131 -> 30 | AB131: 5 | AC131: 77.06289968 | AD131: =(Tabla1124434[[#This Row],[Mountain]]+Tabla1124434[[#This Row],[Hill]])/2 -> 76.5 | AE131: 235000 | AF131: =ROUND(IF($AC131>79,44-(($AC131-79)*(14/4)),IF($AC131>76,67-(($AC131-76)*(23/3)),IF(110-(($AC131-70.4)*(43/5.6))>119,119,110-(($AC131-70.4)*(43/5.6)))))*0.93,0) -> 55 | AG131: =ROUND(IF($AC131>79,37-(($AC131-79)*(9/4)),IF($AC131>76,54-(($AC131-76)*(17/3)),IF(93-(($AC131-70.4)*(39/5.6))>100,100,93-(($AC131-70.4)*(39/5.6)))))*0.93,0) -> 45 | AH131: =ROUND(IF($AC131>79,32-(($AC131-79)*(8/4)),IF($AC131>76,48-(($AC131-76)*(16/3)),IF(86-(($AC131-70.4)*(38/5.6))>95,95,86-(($AC131-70.4)*(38/5.6)))))*0.93,0) -> 39 | AL131: 176 | AM131: 65
A132: 169 | B132: Hindley | C132: Jai | D132: 71 | E132: 72 | F132: 76 | G132: 67 | H132: 75 | I132: 72 | J132: 72 | K132: 55 | L132: 67 | M132: 73 | N132: 76 | O132: 70 | P132: 67 | Q132: Everesting | R132: Everesting | S132: PCT | T132: AUS | U132: OC | V132: 4 | W132: 100 | X132: 5 | Y132: 5 | Z132: 1996 | AA132: =2025-Z132 -> 29 | AB132: 6 | AC132: 75.03994022 | AD132: =(Tabla1124434[[#This Row],[Mountain]]+Tabla1124434[[#This Row],[Hill]])/2 -> 74 | AE132: 90000 | AF132: =ROUND(IF($AC132>79,44-(($AC132-79)*(14/4)),IF($AC132>76,67-(($AC132-76)*(23/3)),IF(110-(($AC132-70.4)*(43/5.6))>119,119,110-(($AC132-70.4)*(43/5.6)))))*0.93,0) -> 69 | AG132: =ROUND(IF($AC132>79,37-(($AC132-79)*(9/4)),IF($AC132>76,54-(($AC132-76)*(17/3)),IF(93-(($AC132-70.4)*(39/5.6))>100,100,93-(($AC132-70.4)*(39/5.6)))))*0.93,0) -> 56 | AH132: =ROUND(IF($AC132>79,32-(($AC132-79)*(8/4)),IF($AC132>76,48-(($AC132-76)*(16/3)),IF(86-(($AC132-70.4)*(38/5.6))>95,95,86-(($AC132-70.4)*(38/5.6)))))*0.93,0) -> 51 | AL132: 175 | AM132: 60
A133: 170 | B133: Mcdunphy | C133: Conn | D133: 65 | E133: 62 | F133: 64 | G133: 62 | H133: 63 | I133: 61 | J133: 62 | K133: 56 | L133: 64 | M133: 65 | N133: 64 | O133: 56 | P133: 59 | Q133: Free Agent | R133: Free Agent | S133: - | T133: IRL | U133: EU | V133: 1 | W133: 0 | X133: 3 | Y133: 2 | Z133: 1997 | AA133: =2025-Z133 -> 28 | AB133: 2 | AC133: 65.12113733 | AD133: =(Tabla1124434[[#This Row],[Mountain]]+Tabla1124434[[#This Row],[Hill]])/2 -> 63 | AF133: =ROUND(IF($AC133>79,44-(($AC133-79)*(14/4)),IF($AC133>76,67-(($AC133-76)*(23/3)),IF(110-(($AC133-70.4)*(43/5.6))>119,119,110-(($AC133-70.4)*(43/5.6)))))*0.93,0) -> 111 | AG133: =ROUND(IF($AC133>79,37-(($AC133-79)*(9/4)),IF($AC133>76,54-(($AC133-76)*(17/3)),IF(93-(($AC133-70.4)*(39/5.6))>100,100,93-(($AC133-70.4)*(39/5.6)))))*0.93,0) -> 93 | AH133: =ROUND(IF($AC133>79,32-(($AC133-79)*(8/4)),IF($AC133>76,48-(($AC133-76)*(16/3)),IF(86-(($AC133-70.4)*(38/5.6))>95,95,86-(($AC133-70.4)*(38/5.6)))))*0.93,0) -> 88 | AL133: 181 | AM133: 68
A134: 171 | B134: Uhiriwe | C134: Renus | D134: 73 | E134: 64 | F134: 68 | G134: 75 | H134: 71 | I134: 71 | J134: 67 | K134: 60 | L134: 63 | M134: 68 | N134: 75 | O134: 65 | P134: 75 | Q134: Bralirwa - Cegeka | R134: Bralirwa - Cegeka | S134: PCT | T134: RWA | U134: AF | V134: 4 | W134: 39 | X134: 1 | Y134: 4 | Z134: 2001 | AA134: =2025-Z134 -> 24 | AB134: 5 | AC134: 72.24390996 | AD134: =(Tabla1124434[[#This Row],[Mountain]]+Tabla1124434[[#This Row],[Hill]])/2 -> 66 | AE134: 50000 | AF134: =ROUND(IF($AC134>79,44-(($AC134-79)*(14/4)),IF($AC134>76,67-(($AC134-76)*(23/3)),IF(110-(($AC134-70.4)*(43/5.6))>119,119,110-(($AC134-70.4)*(43/5.6)))))*0.93,0) -> 89 | AG134: =ROUND(IF($AC134>79,37-(($AC134-79)*(9/4)),IF($AC134>76,54-(($AC134-76)*(17/3)),IF(93-(($AC134-70.4)*(39/5.6))>100,100,93-(($AC134-70.4)*(39/5.6)))))*0.93,0) -> 75 | AH134: =ROUND(IF($AC134>79,32-(($AC134-79)*(8/4)),IF($AC134>76,48-(($AC134-76)*(16/3)),IF(86-(($AC134-70.4)*(38/5.6))>95,95,86-(($AC134-70.4)*(38/5.6)))))*0.93,0) -> 68 | AL134: 180 | AM134: 0
A135: 172 | B135: Willwohl | C135: Willi | D135: 73 | E135: 53 | F135: 65 | G135: 56 | H135: 71 | I135: 67 | J135: 78 | K135: 66 | L135: 79 | M135: 78 | N135: 61 | O135: 64 | P135: 56 | Q135: Team Würth MODYF | R135: Team Würth MODYF | S135: CT | T135: GER | U135: EU | V135: 4 | W135: 100 | X135: 31 | Y135: 8 | Z135: 1994 | AA135: =2025-Z135 -> 31 | AB135: 6 | AC135: 75.08339984 | AD135: =(Tabla1124434[[#This Row],[Mountain]]+Tabla1124434[[#This Row],[Hill]])/2 -> 59 | AE135: 100000 | AF135: =ROUND(IF($AC135>79,44-(($AC135-79)*(14/4)),IF($AC135>76,67-(($AC135-76)*(23/3)),IF(110-(($AC135-70.4)*(43/5.6))>119,119,110-(($AC135-70.4)*(43/5.6)))))*0.93,0) -> 69 | AG135: =ROUND(IF($AC135>79,37-(($AC135-79)*(9/4)),IF($AC135>76,54-(($AC135-76)*(17/3)),IF(93-(($AC135-70.4)*(39/5.6))>100,100,93-(($AC135-70.4)*(39/5.6)))))*0.93,0) -> 56 | AH135: =ROUND(IF($AC135>79,32-(($AC135-79)*(8/4)),IF($AC135>76,48-(($AC135-76)*(16/3)),IF(86-(($AC135-70.4)*(38/5.6))>95,95,86-(($AC135-70.4)*(38/5.6)))))*0.93,0) -> 50 | AL135: 180 | AM135: 67
A136: 173 | B136: Van Sintmaartensdijk | C136: Daan | D136: 69 | E136: 58 | F136: 60 | G136: 58 | H136: 70 | I136: 69 | J136: 62 | K136: 65 | L136: 66 | M136: 64 | N136: 67 | O136: 62 | P136: 60 | Q136: Free Agent | R136: Free Agent | S136: - | T136: NED | U136: EU | V136: 3 | W136: 0 | X136: 11 | Y136: 6 | Z136: 1998 | AA136: =2025-Z136 -> 27 | AB136: 5 | AC136: 66.3272894 | AD136: =(Tabla1124434[[#This Row],[Mountain]]+Tabla1124434[[#This Row],[Hill]])/2 -> 59 | AF136: =ROUND(IF($AC136>79,44-(($AC136-79)*(14/4)),IF($AC136>76,67-(($AC136-76)*(23/3)),IF(110-(($AC136-70.4)*(43/5.6))>119,119,110-(($AC136-70.4)*(43/5.6)))))*0.93,0) -> 111 | AG136: =ROUND(IF($AC136>79,37-(($AC136-79)*(9/4)),IF($AC136>76,54-(($AC136-76)*(17/3)),IF(93-(($AC136-70.4)*(39/5.6))>100,100,93-(($AC136-70.4)*(39/5.6)))))*0.93,0) -> 93 | AH136: =ROUND(IF($AC136>79,32-(($AC136-79)*(8/4)),IF($AC136>76,48-(($AC136-76)*(16/3)),IF(86-(($AC136-70.4)*(38/5.6))>95,95,86-(($AC136-70.4)*(38/5.6)))))*0.93,0) -> 88 | AL136: 0 | AM136: 0
A137: 175 | B137: Vermaerke | C137: Kevin | D137: 70 | E137: 71 | F137: 73 | G137: 72 | H137: 75 | I137: 75 | J137: 70 | K137: 62 | L137: 65 | M137: 68 | N137: 64 | O137: 64 | P137: 70 | Q137: SEE Turtles | R137: EA Vesuvio | S137: PT | T137: USA | U137: NA | V137: 4 | W137: 100 | X137: 16 | Y137: 10 | Z137: 2000 | AA137: =2025-Z137 -> 25 | AB137: 4 | AC137: 73.12677793 | AD137: =(Tabla1124434[[#This Row],[Mountain]]+Tabla1124434[[#This Row],[Hill]])/2 -> 72 | AE137: 50000 | AF137: =ROUND(IF($AC137>79,44-(($AC137-79)*(14/4)),IF($AC137>76,67-(($AC137-76)*(23/3)),IF(110-(($AC137-70.4)*(43/5.6))>119,119,110-(($AC137-70.4)*(43/5.6)))))*0.93,0) -> 83 | AG137: =ROUND(IF($AC137>79,37-(($AC137-79)*(9/4)),IF($AC137>76,54-(($AC137-76)*(17/3)),IF(93-(($AC137-70.4)*(39/5.6))>100,100,93-(($AC137-70.4)*(39/5.6)))))*0.93,0) -> 69 | AH137: =ROUND(IF($AC137>79,32-(($AC137-79)*(8/4)),IF($AC137>76,48-(($AC137-76)*(16/3)),IF(86-(($AC137-70.4)*(38/5.6))>95,95,86-(($AC137-70.4)*(38/5.6)))))*0.93,0) -> 63 | AL137: 187 | AM137: 74
A138: 177 | B138: Arashiro | C138: Yudai | D138: 81 | E138: 60 | F138: 64 | G138: 62 | H138: 71 | I138: 67 | J138: 73 | K138: 68 | L138: 70 | M138: 75 | N138: 78 | O138: 68 | P138: 66 | Q138: Babymetal | R138: Babymetal | S138: CT | T138: JPN | U138: AS | V138: 4 | W138: 100 | X138: 3 | Y138: 7 | Z138: 1995 | AA138: =2025-Z138 -> 30 | AB138: 2 | AC138: 73.88867323 | AD138: =(Tabla1124434[[#This Row],[Mountain]]+Tabla1124434[[#This Row],[Hill]])/2 -> 62 | AE138: 60000 | AF138: =ROUND(IF($AC138>79,44-(($AC138-79)*(14/4)),IF($AC138>76,67-(($AC138-76)*(23/3)),IF(110-(($AC138-70.4)*(43/5.6))>119,119,110-(($AC138-70.4)*(43/5.6)))))*0.93,0) -> 77 | AG138: =ROUND(IF($AC138>79,37-(($AC138-79)*(9/4)),IF($AC138>76,54-(($AC138-76)*(17/3)),IF(93-(($AC138-70.4)*(39/5.6))>100,100,93-(($AC138-70.4)*(39/5.6)))))*0.93,0) -> 64 | AH138: =ROUND(IF($AC138>79,32-(($AC138-79)*(8/4)),IF($AC138>76,48-(($AC138-76)*(16/3)),IF(86-(($AC138-70.4)*(38/5.6))>95,95,86-(($AC138-70.4)*(38/5.6)))))*0.93,0) -> 58 | AL138: 176 | AM138: 65
A139: 178 | B139: Fisher-Black | C139: Finn | D139: 65 | E139: 65 | F139: 66 | G139: 66 | H139: 68 | I139: 73 | J139: 65 | K139: 60 | L139: 60 | M139: 72 | N139: 70 | O139: 67 | P139: 76 | Q139: Oxxo - Frisby | R139: SEE Turtles | S139: CT | T139: NZL | U139: OC | V139: 3 | W139: 87 | X139: 21 | Y139: 12 | Z139: 2001 | AA139: =2025-Z139 -> 24 | AB139: 7 | AC139: 67.94442465 | AD139: =(Tabla1124434[[#This Row],[Mountain]]+Tabla1124434[[#This Row],[Hill]])/2 -> 65.5 | AE139: 83000 | AF139: =ROUND(IF($AC139>79,44-(($AC139-79)*(14/4)),IF($AC139>76,67-(($AC139-76)*(23/3)),IF(110-(($AC139-70.4)*(43/5.6))>119,119,110-(($AC139-70.4)*(43/5.6)))))*0.93,0) -> 111 | AG139: =ROUND(IF($AC139>79,37-(($AC139-79)*(9/4)),IF($AC139>76,54-(($AC139-76)*(17/3)),IF(93-(($AC139-70.4)*(39/5.6))>100,100,93-(($AC139-70.4)*(39/5.6)))))*0.93,0) -> 93 | AH139: =ROUND(IF($AC139>79,32-(($AC139-79)*(8/4)),IF($AC139>76,48-(($AC139-76)*(16/3)),IF(86-(($AC139-70.4)*(38/5.6))>95,95,86-(($AC139-70.4)*(38/5.6)))))*0.93,0) -> 88 | AL139: 189 | AM139: 73
A140: 179 | B140: Rahbek | C140: Mads | D140: 68 | E140: 65 | F140: 70 | G140: 68 | H140: 70 | I140: 71 | J140: 70 | K140: 60 | L140: 63 | M140: 69 | N140: 72 | O140: 65 | P140: 66 | Q140: Free Agent | R140: Free Agent | S140: - | T140: DEN | U140: EU | V140: 4 | W140: 100 | X140: 19 | Y140: 10 | Z140: 1995 | AA140: =2025-Z140 -> 30 | AB140: 4 | AC140: 69.93942115 | AD140: =(Tabla1124434[[#This Row],[Mountain]]+Tabla1124434[[#This Row],[Hill]])/2 -> 67.5 | AF140: =ROUND(IF($AC140>79,44-(($AC140-79)*(14/4)),IF($AC140>76,67-(($AC140-76)*(23/3)),IF(110-(($AC140-70.4)*(43/5.6))>119,119,110-(($AC140-70.4)*(43/5.6)))))*0.93,0) -> 106 | AG140: =ROUND(IF($AC140>79,37-(($AC140-79)*(9/4)),IF($AC140>76,54-(($AC140-76)*(17/3)),IF(93-(($AC140-70.4)*(39/5.6))>100,100,93-(($AC140-70.4)*(39/5.6)))))*0.93,0) -> 89 | AH140: =ROUND(IF($AC140>79,32-(($AC140-79)*(8/4)),IF($AC140>76,48-(($AC140-76)*(16/3)),IF(86-(($AC140-70.4)*(38/5.6))>95,95,86-(($AC140-70.4)*(38/5.6)))))*0.93,0) -> 83 | AI140: Yes | AL140: 173 | AM140: 66 | AS140: Yes
A141: 180 | B141: Parra | C141: Jose Felix | D141: 67 | E141: 58 | F141: 61 | G141: 60 | H141: 61 | I141: 63 | J141: 66 | K141: 58 | L141: 67 | M141: 70 | N141: 63 | O141: 60 | P141: 60 | Q141: Free Agent | R141: Free Agent | S141: - | T141: ESP | U141: EU | V141: 3 | W141: 10 | X141: 19 | Y141: 4 | Z141: 1994 | AA141: =2025-Z141 -> 31 | AB141: 4 | AC141: 66.10481313 | AD141: =(Tabla1124434[[#This Row],[Mountain]]+Tabla1124434[[#This Row],[Hill]])/2 -> 59.5 | AF141: =ROUND(IF($AC141>79,44-(($AC141-79)*(14/4)),IF($AC141>76,67-(($AC141-76)*(23/3)),IF(110-(($AC141-70.4)*(43/5.6))>119,119,110-(($AC141-70.4)*(43/5.6)))))*0.93,0) -> 111 | AG141: =ROUND(IF($AC141>79,37-(($AC141-79)*(9/4)),IF($AC141>76,54-(($AC141-76)*(17/3)),IF(93-(($AC141-70.4)*(39/5.6))>100,100,93-(($AC141-70.4)*(39/5.6)))))*0.93,0) -> 93 | AH141: =ROUND(IF($AC141>79,32-(($AC141-79)*(8/4)),IF($AC141>76,48-(($AC141-76)*(16/3)),IF(86-(($AC141-70.4)*(38/5.6))>95,95,86-(($AC141-70.4)*(38/5.6)))))*0.93,0) -> 88 | AL141: 173 | AM141: 68 | AS141: Yes
A142: 182 | B142: Nordhagen | C142: Truls | D142: 68 | E142: 55 | F142: 60 | G142: 67 | H142: 64 | I142: 63 | J142: 67 | K142: 55 | L142: 58 | M142: 64 | N142: 65 | O142: 63 | P142: 68 | Q142: Free Agent | R142: Free Agent | S142: - | T142: NOR | U142: EU | V142: 1 | W142: 0 | X142: 29 | Y142: 12 | Z142: 2002 | AA142: =2025-Z142 -> 23 | AB142: 3 | AC142: 64.66504225 | AD142: =(Tabla1124434[[#This Row],[Mountain]]+Tabla1124434[[#This Row],[Hill]])/2 -> 57.5 | AF142: =ROUND(IF($AC142>79,44-(($AC142-79)*(14/4)),IF($AC142>76,67-(($AC142-76)*(23/3)),IF(110-(($AC142-70.4)*(43/5.6))>119,119,110-(($AC142-70.4)*(43/5.6)))))*0.93,0) -> 111 | AG142: =ROUND(IF($AC142>79,37-(($AC142-79)*(9/4)),IF($AC142>76,54-(($AC142-76)*(17/3)),IF(93-(($AC142-70.4)*(39/5.6))>100,100,93-(($AC142-70.4)*(39/5.6)))))*0.93,0) -> 93 | AH142: =ROUND(IF($AC142>79,32-(($AC142-79)*(8/4)),IF($AC142>76,48-(($AC142-76)*(16/3)),IF(86-(($AC142-70.4)*(38/5.6))>95,95,86-(($AC142-70.4)*(38/5.6)))))*0.93,0) -> 88 | AJ142: Yes | AK142: Yes | AL142: 0 | AM142: 0
A143: 183 | B143: Blums | C143: Martins | D143: 72 | E143: 77 | F143: 77 | G143: 68 | H143: 71 | I143: 73 | J143: 74 | K143: 63 | L143: 64 | M143: 70 | N143: 73 | O143: 78 | P143: 71 | Q143: Evonik - ELKO | R143: Evonik - ELKO | S143: PT | T143: LAT | U143: EU | V143: 4 | W143: 100 | X143: 17 | Y143: 10 | Z143: 1995 | AA143: =2025-Z143 -> 30 | AB143: 5 | AC143: 76.10585615 | AD143: =(Tabla1124434[[#This Row],[Mountain]]+Tabla1124434[[#This Row],[Hill]])/2 -> 77 | AE143: 125000 | AF143: =ROUND(IF($AC143>79,44-(($AC143-79)*(14/4)),IF($AC143>76,67-(($AC143-76)*(23/3)),IF(110-(($AC143-70.4)*(43/5.6))>119,119,110-(($AC143-70.4)*(43/5.6)))))*0.93,0) -> 62 | AG143: =ROUND(IF($AC143>79,37-(($AC143-79)*(9/4)),IF($AC143>76,54-(($AC143-76)*(17/3)),IF(93-(($AC143-70.4)*(39/5.6))>100,100,93-(($AC143-70.4)*(39/5.6)))))*0.93,0) -> 50 | AH143: =ROUND(IF($AC143>79,32-(($AC143-79)*(8/4)),IF($AC143>76,48-(($AC143-76)*(16/3)),IF(86-(($AC143-70.4)*(38/5.6))>95,95,86-(($AC143-70.4)*(38/5.6)))))*0.93,0) -> 44 | AL143: 0 | AM143: 0
A144: 186 | B144: Van Gils | C144: Maxim | D144: 69 | E144: 78 | F144: 76 | G144: 61 | H144: 71 | I144: 75 | J144: 75 | K144: 60 | L144: 68 | M144: 76 | N144: 72 | O144: 69 | P144: 61 | Q144: Lierse SK - Pizza Ullo PCTeam | R144: Lierse SK - Pizza Ullo PCTeam | S144: PCT | T144: BEL | U144: EU | V144: 4 | W144: 100 | X144: 25 | Y144: 11 | Z144: 1999 | AA144: =2025-Z144 -> 26 | AB144: 5 | AC144: 76.32101043 | AD144: =(Tabla1124434[[#This Row],[Mountain]]+Tabla1124434[[#This Row],[Hill]])/2 -> 77 | AE144: 200000 | AF144: =ROUND(IF($AC144>79,44-(($AC144-79)*(14/4)),IF($AC144>76,67-(($AC144-76)*(23/3)),IF(110-(($AC144-70.4)*(43/5.6))>119,119,110-(($AC144-70.4)*(43/5.6)))))*0.93,0) -> 60 | AG144: =ROUND(IF($AC144>79,37-(($AC144-79)*(9/4)),IF($AC144>76,54-(($AC144-76)*(17/3)),IF(93-(($AC144-70.4)*(39/5.6))>100,100,93-(($AC144-70.4)*(39/5.6)))))*0.93,0) -> 49 | AH144: =ROUND(IF($AC144>79,32-(($AC144-79)*(8/4)),IF($AC144>76,48-(($AC144-76)*(16/3)),IF(86-(($AC144-70.4)*(38/5.6))>95,95,86-(($AC144-70.4)*(38/5.6)))))*0.93,0) -> 43 | AL144: 0 | AM144: 0
A145: 187 | B145: Aguilar Mendez | C145: Jose Pablo | D145: 74 | E145: 57 | F145: 57 | G145: 78 | H145: 72 | I145: 72 | J145: 72 | K145: 51 | L145: 64 | M145: 69 | N145: 65 | O145: 66 | P145: 78 | Q145: Oxxo - Frisby | R145: Oxxo - Frisby | S145: PT | T145: MEX | U145: NA | V145: 4 | W145: 100 | X145: 26 | Y145: 1 | Z145: 2000 | AA145: =2025-Z145 -> 25 | AB145: 5 | AC145: 73.77104654 | AD145: =(Tabla1124434[[#This Row],[Mountain]]+Tabla1124434[[#This Row],[Hill]])/2 -> 57 | AE145: 50000 | AF145: =ROUND(IF($AC145>79,44-(($AC145-79)*(14/4)),IF($AC145>76,67-(($AC145-76)*(23/3)),IF(110-(($AC145-70.4)*(43/5.6))>119,119,110-(($AC145-70.4)*(43/5.6)))))*0.93,0) -> 78 | AG145: =ROUND(IF($AC145>79,37-(($AC145-79)*(9/4)),IF($AC145>76,54-(($AC145-76)*(17/3)),IF(93-(($AC145-70.4)*(39/5.6))>100,100,93-(($AC145-70.4)*(39/5.6)))))*0.93,0) -> 65 | AH145: =ROUND(IF($AC145>79,32-(($AC145-79)*(8/4)),IF($AC145>76,48-(($AC145-76)*(16/3)),IF(86-(($AC145-70.4)*(38/5.6))>95,95,86-(($AC145-70.4)*(38/5.6)))))*0.93,0) -> 59 | AL145: 186 | AM145: 75
A146: 188 | B146: Pidcock | C146: Thomas | D146: 78 | E146: 75 | F146: 76 | G146: 72 | H146: 75 | I146: 78 | J146: 73 | K146: 74 | L146: 74 | M146: 81 | N146: 74 | O146: 83 | P146: 72 | Q146: Xero Racing | R146: Xero Racing | S146: PT | T146: GBR | U146: EU | V146: 4 | W146: 100 | X146: 30 | Y146: 7 | Z146: 1999 | AA146: =2025-Z146 -> 26 | AB146: 4 | AC146: 78.38880218 | AD146: =(Tabla1124434[[#This Row],[Mountain]]+Tabla1124434[[#This Row],[Hill]])/2 -> 75.5 | AE146: 540000 | AF146: =ROUND(IF($AC146>79,44-(($AC146-79)*(14/4)),IF($AC146>76,67-(($AC146-76)*(23/3)),IF(110-(($AC146-70.4)*(43/5.6))>119,119,110-(($AC146-70.4)*(43/5.6)))))*0.93,0) -> 45 | AG146: =ROUND(IF($AC146>79,37-(($AC146-79)*(9/4)),IF($AC146>76,54-(($AC146-76)*(17/3)),IF(93-(($AC146-70.4)*(39/5.6))>100,100,93-(($AC146-70.4)*(39/5.6)))))*0.93,0) -> 38 | AH146: =ROUND(IF($AC146>79,32-(($AC146-79)*(8/4)),IF($AC146>76,48-(($AC146-76)*(16/3)),IF(86-(($AC146-70.4)*(38/5.6))>95,95,86-(($AC146-70.4)*(38/5.6)))))*0.93,0) -> 33 | AL146: 170 | AM146: 58
A147: 190 | B147: Sangulin | C147: Robert | D147: 71 | E147: 69 | F147: 71 | G147: 61 | H147: 72 | I147: 71 | J147: 68 | K147: 72 | L147: 57 | M147: 71 | N147: 67 | O147: 80 | P147: 61 | Q147: Free Agent | R147: Free Agent | S147: - | T147: CRO | U147: EU | V147: 4 | W147: 100 | X147: 28 | Y147: 9 | Z147: 1993 | AA147: =2025-Z147 -> 32 | AB147: 2 | AC147: 72.35405024 | AD147: =(Tabla1124434[[#This Row],[Mountain]]+Tabla1124434[[#This Row],[Hill]])/2 -> 70 | AF147: =ROUND(IF($AC147>79,44-(($AC147-79)*(14/4)),IF($AC147>76,67-(($AC147-76)*(23/3)),IF(110-(($AC147-70.4)*(43/5.6))>119,119,110-(($AC147-70.4)*(43/5.6)))))*0.93,0) -> 88 | AG147: =ROUND(IF($AC147>79,37-(($AC147-79)*(9/4)),IF($AC147>76,54-(($AC147-76)*(17/3)),IF(93-(($AC147-70.4)*(39/5.6))>100,100,93-(($AC147-70.4)*(39/5.6)))))*0.93,0) -> 74 | AH147: =ROUND(IF($AC147>79,32-(($AC147-79)*(8/4)),IF($AC147>76,48-(($AC147-76)*(16/3)),IF(86-(($AC147-70.4)*(38/5.6))>95,95,86-(($AC147-70.4)*(38/5.6)))))*0.93,0) -> 68 | AL147: 0 | AM147: 0 | AR147: Yes
A148: 192 | B148: Hodeg | C148: Alvaro | D148: 72 | E148: 53 | F148: 65 | G148: 67 | H148: 69 | I148: 74 | J148: 70 | K148: 51 | L148: 79 | M148: 78 | N148: 53 | O148: 64 | P148: 73 | Q148: Ekoi - Le Creuset | R148: Ekoi - Le Creuset | S148: PCT | T148: COL | U148: SA | V148: 4 | W148: 100 | X148: 16 | Y148: 9 | Z148: 1996 | AA148: =2025-Z148 -> 29 | AB148: 5 | AC148: 75.00714195 | AD148: =(Tabla1124434[[#This Row],[Mountain]]+Tabla1124434[[#This Row],[Hill]])/2 -> 59 | AE148: 90000 | AF148: =ROUND(IF($AC148>79,44-(($AC148-79)*(14/4)),IF($AC148>76,67-(($AC148-76)*(23/3)),IF(110-(($AC148-70.4)*(43/5.6))>119,119,110-(($AC148-70.4)*(43/5.6)))))*0.93,0) -> 69 | AG148: =ROUND(IF($AC148>79,37-(($AC148-79)*(9/4)),IF($AC148>76,54-(($AC148-76)*(17/3)),IF(93-(($AC148-70.4)*(39/5.6))>100,100,93-(($AC148-70.4)*(39/5.6)))))*0.93,0) -> 57 | AH148: =ROUND(IF($AC148>79,32-(($AC148-79)*(8/4)),IF($AC148>76,48-(($AC148-76)*(16/3)),IF(86-(($AC148-70.4)*(38/5.6))>95,95,86-(($AC148-70.4)*(38/5.6)))))*0.93,0) -> 51 | AL148: 186 | AM148: 76
A149: 193 | B149: Fernandez | C149: Ruben | D149: 63 | E149: 72 | F149: 72 | G149: 63 | H149: 67 | I149: 64 | J149: 67 | K149: 54 | L149: 57 | M149: 61 | N149: 69 | O149: 69 | P149: 62 | Q149: Free Agent | R149: Free Agent | S149: - | T149: ESP | U149: EU | V149: 4 | W149: 100 | X149: 1 | Y149: 3 | Z149: 1991 | AA149: =2025-Z149 -> 34 | AB149: 5 | AC149: 70.08665498 | AD149: =(Tabla1124434[[#This Row],[Mountain]]+Tabla1124434[[#This Row],[Hill]])/2 -> 72 | AF149: =ROUND(IF($AC149>79,44-(($AC149-79)*(14/4)),IF($AC149>76,67-(($AC149-76)*(23/3)),IF(110-(($AC149-70.4)*(43/5.6))>119,119,110-(($AC149-70.4)*(43/5.6)))))*0.93,0) -> 105 | AG149: =ROUND(IF($AC149>79,37-(($AC149-79)*(9/4)),IF($AC149>76,54-(($AC149-76)*(17/3)),IF(93-(($AC149-70.4)*(39/5.6))>100,100,93-(($AC149-70.4)*(39/5.6)))))*0.93,0) -> 89 | AH149: =ROUND(IF($AC149>79,32-(($AC149-79)*(8/4)),IF($AC149>76,48-(($AC149-76)*(16/3)),IF(86-(($AC149-70.4)*(38/5.6))>95,95,86-(($AC149-70.4)*(38/5.6)))))*0.93,0) -> 82 | AL149: 177 | AM149: 60
A150: 194 | B150: Andersen | C150: Mads | D150: 68 | E150: 58 | F150: 63 | G150: 60 | H150: 65 | I150: 70 | J150: 62 | K150: 58 | L150: 62 | M150: 60 | N150: 68 | O150: 63 | P150: 58 | Q150: Free Agent | R150: Free Agent | S150: - | T150: DEN | U150: EU | V150: 1 | W150: 37 | X150: 27 | Y150: 11 | Z150: 2000 | AA150: =2025-Z150 -> 25 | AB150: 3 | AC150: 64.70616552 | AD150: =(Tabla1124434[[#This Row],[Mountain]]+Tabla1124434[[#This Row],[Hill]])/2 -> 60.5 | AF150: =ROUND(IF($AC150>79,44-(($AC150-79)*(14/4)),IF($AC150>76,67-(($AC150-76)*(23/3)),IF(110-(($AC150-70.4)*(43/5.6))>119,119,110-(($AC150-70.4)*(43/5.6)))))*0.93,0) -> 111 | AG150: =ROUND(IF($AC150>79,37-(($AC150-79)*(9/4)),IF($AC150>76,54-(($AC150-76)*(17/3)),IF(93-(($AC150-70.4)*(39/5.6))>100,100,93-(($AC150-70.4)*(39/5.6)))))*0.93,0) -> 93 | AH150: =ROUND(IF($AC150>79,32-(($AC150-79)*(8/4)),IF($AC150>76,48-(($AC150-76)*(16/3)),IF(86-(($AC150-70.4)*(38/5.6))>95,95,86-(($AC150-70.4)*(38/5.6)))))*0.93,0) -> 88 | AL150: 0 | AM150: 0
A151: 195 | B151: Moreno | C151: Ivan | D151: 62 | E151: 66 | F151: 66 | G151: 58 | H151: 64 | I151: 66 | J151: 68 | K151: 58 | L151: 59 | M151: 61 | N151: 63 | O151: 60 | P151: 58 | Q151: Free Agent | R151: Free Agent | S151: - | T151: ESP | U151: EU | V151: 3 | W151: 54 | X151: 27 | Y151: 5 | Z151: 1996 | AA151: =2025-Z151 -> 29 | AB151: 4 | AC151: 65.98308465 | AD151: =(Tabla1124434[[#This Row],[Mountain]]+Tabla1124434[[#This Row],[Hill]])/2 -> 66 | AF151: =ROUND(IF($AC151>79,44-(($AC151-79)*(14/4)),IF($AC151>76,67-(($AC151-76)*(23/3)),IF(110-(($AC151-70.4)*(43/5.6))>119,119,110-(($AC151-70.4)*(43/5.6)))))*0.93,0) -> 111 | AG151: =ROUND(IF($AC151>79,37-(($AC151-79)*(9/4)),IF($AC151>76,54-(($AC151-76)*(17/3)),IF(93-(($AC151-70.4)*(39/5.6))>100,100,93-(($AC151-70.4)*(39/5.6)))))*0.93,0) -> 93 | AH151: =ROUND(IF($AC151>79,32-(($AC151-79)*(8/4)),IF($AC151>76,48-(($AC151-76)*(16/3)),IF(86-(($AC151-70.4)*(38/5.6))>95,95,86-(($AC151-70.4)*(38/5.6)))))*0.93,0) -> 88 | AL151: 0 | AM151: 0
A152: 196 | B152: Antonelli | C152: Michael | D152: 69 | E152: 75 | F152: 74 | G152: 63 | H152: 68 | I152: 72 | J152: 72 | K152: 56 | L152: 65 | M152: 76 | N152: 75 | O152: 76 | P152: 64 | Q152: Sauber Petronas Racing | R152: Polar | S152: PT | T152: SMR | U152: EU | V152: 4 | W152: 100 | X152: 30 | Y152: 11 | Z152: 1999 | AA152: =2025-Z152 -> 26 | AB152: 4 | AC152: 74.38936178 | AD152: =(Tabla1124434[[#This Row],[Mountain]]+Tabla1124434[[#This Row],[Hill]])/2 -> 74.5 | AE152: 50000 | AF152: =ROUND(IF($AC152>79,44-(($AC152-79)*(14/4)),IF($AC152>76,67-(($AC152-76)*(23/3)),IF(110-(($AC152-70.4)*(43/5.6))>119,119,110-(($AC152-70.4)*(43/5.6)))))*0.93,0) -> 74 | AG152: =ROUND(IF($AC152>79,37-(($AC152-79)*(9/4)),IF($AC152>76,54-(($AC152-76)*(17/3)),IF(93-(($AC152-70.4)*(39/5.6))>100,100,93-(($AC152-70.4)*(39/5.6)))))*0.93,0) -> 61 | AH152: =ROUND(IF($AC152>79,32-(($AC152-79)*(8/4)),IF($AC152>76,48-(($AC152-76)*(16/3)),IF(86-(($AC152-70.4)*(38/5.6))>95,95,86-(($AC152-70.4)*(38/5.6)))))*0.93,0) -> 55 | AL152: 0 | AM152: 0
A153: 197 | B153: Andersen | C153: Sander | D153: 66 | E153: 64 | F153: 68 | G153: 64 | H153: 66 | I153: 66 | J153: 68 | K153: 61 | L153: 64 | M153: 69 | N153: 67 | O153: 70 | P153: 64 | Q153: Free Agent | R153: Free Agent | S153: - | T153: DEN | U153: EU | V153: 2 | W153: 81 | X153: 24 | Y153: 10 | Z153: 1999 | AA153: =2025-Z153 -> 26 | AB153: 3 | AC153: 68.1777535 | AD153: =(Tabla1124434[[#This Row],[Mountain]]+Tabla1124434[[#This Row],[Hill]])/2 -> 66 | AF153: =ROUND(IF($AC153>79,44-(($AC153-79)*(14/4)),IF($AC153>76,67-(($AC153-76)*(23/3)),IF(110-(($AC153-70.4)*(43/5.6))>119,119,110-(($AC153-70.4)*(43/5.6)))))*0.93,0) -> 111 | AG153: =ROUND(IF($AC153>79,37-(($AC153-79)*(9/4)),IF($AC153>76,54-(($AC153-76)*(17/3)),IF(93-(($AC153-70.4)*(39/5.6))>100,100,93-(($AC153-70.4)*(39/5.6)))))*0.93,0) -> 93 | AH153: =ROUND(IF($AC153>79,32-(($AC153-79)*(8/4)),IF($AC153>76,48-(($AC153-76)*(16/3)),IF(86-(($AC153-70.4)*(38/5.6))>95,95,86-(($AC153-70.4)*(38/5.6)))))*0.93,0) -> 88 | AL153: 0 | AM153: 0
A154: 198 | B154: Bonello | C154: Daniel | D154: 72 | E154: 66 | F154: 69 | G154: 69 | H154: 72 | I154: 71 | J154: 70 | K154: 72 | L154: 66 | M154: 67 | N154: 65 | O154: 70 | P154: 70 | Q154: Benetton Bimex Cycling | R154: Benetton Bimex Cycling | S154: PCT | T154: MLT | U154: EU | V154: 4 | W154: 83 | X154: 11 | Y154: 11 | Z154: 2000 | AA154: =2025-Z154 -> 25 | AB154: 4 | AC154: 71.80859838 | AD154: =(Tabla1124434[[#This Row],[Mountain]]+Tabla1124434[[#This Row],[Hill]])/2 -> 67.5 | AE154: 50000 | AF154: =ROUND(IF($AC154>79,44-(($AC154-79)*(14/4)),IF($AC154>76,67-(($AC154-76)*(23/3)),IF(110-(($AC154-70.4)*(43/5.6))>119,119,110-(($AC154-70.4)*(43/5.6)))))*0.93,0) -> 92 | AG154: =ROUND(IF($AC154>79,37-(($AC154-79)*(9/4)),IF($AC154>76,54-(($AC154-76)*(17/3)),IF(93-(($AC154-70.4)*(39/5.6))>100,100,93-(($AC154-70.4)*(39/5.6)))))*0.93,0) -> 77 | AH154: =ROUND(IF($AC154>79,32-(($AC154-79)*(8/4)),IF($AC154>76,48-(($AC154-76)*(16/3)),IF(86-(($AC154-70.4)*(38/5.6))>95,95,86-(($AC154-70.4)*(38/5.6)))))*0.93,0) -> 71 | AL154: 190 | AM154: 67
A155: 199 | B155: Carr | C155: Simon | D155: 68 | E155: 70 | F155: 77 | G155: 57 | H155: 74 | I155: 71 | J155: 71 | K155: 55 | L155: 59 | M155: 72 | N155: 65 | O155: 59 | P155: 58 | Q155: Free Agent | R155: Hilcona Racing Team | S155: CT | T155: GBR | U155: EU | V155: 4 | W155: 100 | X155: 29 | Y155: 8 | Z155: 1998 | AA155: =2025-Z155 -> 27 | AB155: 4 | AC155: 73.82074686 | AD155: =(Tabla1124434[[#This Row],[Mountain]]+Tabla1124434[[#This Row],[Hill]])/2 -> 73.5 | AE155: 50000 | AF155: =ROUND(IF($AC155>79,44-(($AC155-79)*(14/4)),IF($AC155>76,67-(($AC155-76)*(23/3)),IF(110-(($AC155-70.4)*(43/5.6))>119,119,110-(($AC155-70.4)*(43/5.6)))))*0.93,0) -> 78 | AG155: =ROUND(IF($AC155>79,37-(($AC155-79)*(9/4)),IF($AC155>76,54-(($AC155-76)*(17/3)),IF(93-(($AC155-70.4)*(39/5.6))>100,100,93-(($AC155-70.4)*(39/5.6)))))*0.93,0) -> 64 | AH155: =ROUND(IF($AC155>79,32-(($AC155-79)*(8/4)),IF($AC155>76,48-(($AC155-76)*(16/3)),IF(86-(($AC155-70.4)*(38/5.6))>95,95,86-(($AC155-70.4)*(38/5.6)))))*0.93,0) -> 58 | AL155: 182 | AM155: 63
A156: 200 | B156: Matsuda | C156: Shoi | D156: 76 | E156: 65 | F156: 71 | G156: 77 | H156: 70 | I156: 76 | J156: 67 | K156: 60 | L156: 71 | M156: 71 | N156: 61 | O156: 64 | P156: 79 | Q156: King Power | R156: King Power | S156: PT | T156: JPN | U156: AS | V156: 4 | W156: 100 | X156: 13 | Y156: 9 | Z156: 1999 | AA156: =2025-Z156 -> 26 | AB156: 5 | AC156: 74.7484914 | AD156: =(Tabla1124434[[#This Row],[Mountain]]+Tabla1124434[[#This Row],[Hill]])/2 -> 68 | AE156: 90000 | AF156: =ROUND(IF($AC156>79,44-(($AC156-79)*(14/4)),IF($AC156>76,67-(($AC156-76)*(23/3)),IF(110-(($AC156-70.4)*(43/5.6))>119,119,110-(($AC156-70.4)*(43/5.6)))))*0.93,0) -> 71 | AG156: =ROUND(IF($AC156>79,37-(($AC156-79)*(9/4)),IF($AC156>76,54-(($AC156-76)*(17/3)),IF(93-(($AC156-70.4)*(39/5.6))>100,100,93-(($AC156-70.4)*(39/5.6)))))*0.93,0) -> 58 | AH156: =ROUND(IF($AC156>79,32-(($AC156-79)*(8/4)),IF($AC156>76,48-(($AC156-76)*(16/3)),IF(86-(($AC156-70.4)*(38/5.6))>95,95,86-(($AC156-70.4)*(38/5.6)))))*0.93,0) -> 53 | AL156: 184 | AM156: 75
A157: 202 | B157: Kristensen | C157: Mads Ostergaard | D157: 72 | E157: 60 | F157: 64 | G157: 66 | H157: 71 | I157: 73 | J157: 63 | K157: 63 | L157: 66 | M157: 66 | N157: 69 | O157: 59 | P157: 66 | Q157: Free Agent | R157: Free Agent | S157: - | T157: DEN | U157: EU | V157: 2 | W157: 84 | X157: 26 | Y157: 1 | Z157: 1998 | AA157: =2025-Z157 -> 27 | AB157: 5 | AC157: 67.49894262 | AD157: =(Tabla1124434[[#This Row],[Mountain]]+Tabla1124434[[#This Row],[Hill]])/2 -> 62 | AF157: =ROUND(IF($AC157>79,44-(($AC157-79)*(14/4)),IF($AC157>76,67-(($AC157-76)*(23/3)),IF(110-(($AC157-70.4)*(43/5.6))>119,119,110-(($AC157-70.4)*(43/5.6)))))*0.93,0) -> 111 | AG157: =ROUND(IF($AC157>79,37-(($AC157-79)*(9/4)),IF($AC157>76,54-(($AC157-76)*(17/3)),IF(93-(($AC157-70.4)*(39/5.6))>100,100,93-(($AC157-70.4)*(39/5.6)))))*0.93,0) -> 93 | AH157: =ROUND(IF($AC157>79,32-(($AC157-79)*(8/4)),IF($AC157>76,48-(($AC157-76)*(16/3)),IF(86-(($AC157-70.4)*(38/5.6))>95,95,86-(($AC157-70.4)*(38/5.6)))))*0.93,0) -> 88 | AL157: 0 | AM157: 0
A158: 203 | B158: Bonneu | C158: Kamiel | D158: 69 | E158: 65 | F158: 72 | G158: 58 | H158: 74 | I158: 71 | J158: 64 | K158: 62 | L158: 60 | M158: 67 | N158: 65 | O158: 62 | P158: 58 | Q158: Free Agent | R158: Free Agent | S158: - | T158: BEL | U158: EU | V158: 3 | W158: 50 | X158: 1 | Y158: 8 | Z158: 1999 | AA158: =2025-Z158 -> 26 | AB158: 4 | AC158: 70.43828015 | AD158: =(Tabla1124434[[#This Row],[Mountain]]+Tabla1124434[[#This Row],[Hill]])/2 -> 68.5 | AF158: =ROUND(IF($AC158>79,44-(($AC158-79)*(14/4)),IF($AC158>76,67-(($AC158-76)*(23/3)),IF(110-(($AC158-70.4)*(43/5.6))>119,119,110-(($AC158-70.4)*(43/5.6)))))*0.93,0) -> 102 | AG158: =ROUND(IF($AC158>79,37-(($AC158-79)*(9/4)),IF($AC158>76,54-(($AC158-76)*(17/3)),IF(93-(($AC158-70.4)*(39/5.6))>100,100,93-(($AC158-70.4)*(39/5.6)))))*0.93,0) -> 86 | AH158: =ROUND(IF($AC158>79,32-(($AC158-79)*(8/4)),IF($AC158>76,48-(($AC158-76)*(16/3)),IF(86-(($AC158-70.4)*(38/5.6))>95,95,86-(($AC158-70.4)*(38/5.6)))))*0.93,0) -> 80 | AL158: 170 | AM158: 64
A159: 204 | B159: Bouts | C159: Jordy | D159: 68 | E159: 63 | F159: 64 | G159: 60 | H159: 66 | I159: 69 | J159: 64 | K159: 64 | L159: 62 | M159: 68 | N159: 65 | O159: 65 | P159: 59 | Q159: Free Agent | R159: Free Agent | S159: - | T159: BEL | U159: EU | V159: 2 | W159: 92 | X159: 8 | Y159: 8 | Z159: 1996 | AA159: =2025-Z159 -> 29 | AB159: 4 | AC159: 66.72268931 | AD159: =(Tabla1124434[[#This Row],[Mountain]]+Tabla1124434[[#This Row],[Hill]])/2 -> 63.5 | AF159: =ROUND(IF($AC159>79,44-(($AC159-79)*(14/4)),IF($AC159>76,67-(($AC159-76)*(23/3)),IF(110-(($AC159-70.4)*(43/5.6))>119,119,110-(($AC159-70.4)*(43/5.6)))))*0.93,0) -> 111 | AG159: =ROUND(IF($AC159>79,37-(($AC159-79)*(9/4)),IF($AC159>76,54-(($AC159-76)*(17/3)),IF(93-(($AC159-70.4)*(39/5.6))>100,100,93-(($AC159-70.4)*(39/5.6)))))*0.93,0) -> 93 | AH159: =ROUND(IF($AC159>79,32-(($AC159-79)*(8/4)),IF($AC159>76,48-(($AC159-76)*(16/3)),IF(86-(($AC159-70.4)*(38/5.6))>95,95,86-(($AC159-70.4)*(38/5.6)))))*0.93,0) -> 88 | AL159: 171 | AM159: 55
A160: 205 | B160: Kukrle | C160: Michal | D160: 72 | E160: 68 | F160: 66 | G160: 78 | H160: 74 | I160: 74 | J160: 70 | K160: 58 | L160: 65 | M160: 71 | N160: 58 | O160: 63 | P160: 79 | Q160: Moser - Sygic | R160: Moser - Sygic | S160: PT | T160: CZE | U160: EU | V160: 4 | W160: 100 | X160: 17 | Y160: 11 | Z160: 1994 | AA160: =2025-Z160 -> 31 | AB160: 4 | AC160: 74.9221665 | AD160: =(Tabla1124434[[#This Row],[Mountain]]+Tabla1124434[[#This Row],[Hill]])/2 -> 67 | AE160: 85000 | AF160: =ROUND(IF($AC160>79,44-(($AC160-79)*(14/4)),IF($AC160>76,67-(($AC160-76)*(23/3)),IF(110-(($AC160-70.4)*(43/5.6))>119,119,110-(($AC160-70.4)*(43/5.6)))))*0.93,0) -> 70 | AG160: =ROUND(IF($AC160>79,37-(($AC160-79)*(9/4)),IF($AC160>76,54-(($AC160-76)*(17/3)),IF(93-(($AC160-70.4)*(39/5.6))>100,100,93-(($AC160-70.4)*(39/5.6)))))*0.93,0) -> 57 | AH160: =ROUND(IF($AC160>79,32-(($AC160-79)*(8/4)),IF($AC160>76,48-(($AC160-76)*(16/3)),IF(86-(($AC160-70.4)*(38/5.6))>95,95,86-(($AC160-70.4)*(38/5.6)))))*0.93,0) -> 51 | AL160: 0 | AM160: 0
A161: 206 | B161: Cepeda | C161: Jefferson Alexander | D161: 69 | E161: 74 | F161: 71 | G161: 65 | H161: 71 | I161: 71 | J161: 68 | K161: 57 | L161: 60 | M161: 70 | N161: 64 | O161: 60 | P161: 64 | Q161: Free Agent | R161: Manada Coyote | S161: PCT | T161: ECU | U161: SA | V161: 4 | W161: 2 | X161: 16 | Y161: 6 | Z161: 1998 | AA161: =2025-Z161 -> 27 | AB161: 6 | AC161: 72.10286168 | AD161: =(Tabla1124434[[#This Row],[Mountain]]+Tabla1124434[[#This Row],[Hill]])/2 -> 72.5 | AE161: 60000 | AF161: =ROUND(IF($AC161>79,44-(($AC161-79)*(14/4)),IF($AC161>76,67-(($AC161-76)*(23/3)),IF(110-(($AC161-70.4)*(43/5.6))>119,119,110-(($AC161-70.4)*(43/5.6)))))*0.93,0) -> 90 | AG161: =ROUND(IF($AC161>79,37-(($AC161-79)*(9/4)),IF($AC161>76,54-(($AC161-76)*(17/3)),IF(93-(($AC161-70.4)*(39/5.6))>100,100,93-(($AC161-70.4)*(39/5.6)))))*0.93,0) -> 75 | AH161: =ROUND(IF($AC161>79,32-(($AC161-79)*(8/4)),IF($AC161>76,48-(($AC161-76)*(16/3)),IF(86-(($AC161-70.4)*(38/5.6))>95,95,86-(($AC161-70.4)*(38/5.6)))))*0.93,0) -> 69 | AL161: 180 | AM161: 70
A162: 207 | B162: Kasa | C162: Gabor | D162: 60 | E162: 61 | F162: 62 | G162: 64 | H162: 60 | I162: 56 | J162: 57 | K162: 48 | L162: 53 | M162: 52 | N162: 57 | O162: 55 | P162: 64 | Q162: Free Agent | R162: Free Agent | S162: - | T162: SER | U162: EU | V162: 4 | W162: 100 | X162: 3 | Y162: 2 | Z162: 1989 | AA162: =2025-Z162 -> 36 | AB162: 4 | AC162: 62.07135021 | AD162: =(Tabla1124434[[#This Row],[Mountain]]+Tabla1124434[[#This Row],[Hill]])/2 -> 61.5 | AF162: =ROUND(IF($AC162>79,44-(($AC162-79)*(14/4)),IF($AC162>76,67-(($AC162-76)*(23/3)),IF(110-(($AC162-70.4)*(43/5.6))>119,119,110-(($AC162-70.4)*(43/5.6)))))*0.93,0) -> 111 | AG162: =ROUND(IF($AC162>79,37-(($AC162-79)*(9/4)),IF($AC162>76,54-(($AC162-76)*(17/3)),IF(93-(($AC162-70.4)*(39/5.6))>100,100,93-(($AC162-70.4)*(39/5.6)))))*0.93,0) -> 93 | AH162: =ROUND(IF($AC162>79,32-(($AC162-79)*(8/4)),IF($AC162>76,48-(($AC162-76)*(16/3)),IF(86-(($AC162-70.4)*(38/5.6))>95,95,86-(($AC162-70.4)*(38/5.6)))))*0.93,0) -> 88 | AL162: 180 | AM162: 72 | AR162: Yes | AS162: Yes
A163: 208 | B163: Broxham | C163: Ricardo | D163: 69 | E163: 71 | F163: 71 | G163: 73 | H163: 70 | I163: 70 | J163: 70 | K163: 60 | L163: 67 | M163: 68 | N163: 68 | O163: 65 | P163: 73 | Q163: Glanbia | R163: Tryg - Eni | S163: PCT | T163: RSA | U163: AF | V163: 4 | W163: 57 | X163: 11 | Y163: 8 | Z163: 2000 | AA163: =2025-Z163 -> 25 | AB163: 4 | AC163: 71.84345435 | AD163: =(Tabla1124434[[#This Row],[Mountain]]+Tabla1124434[[#This Row],[Hill]])/2 -> 71 | AE163: 50000 | AF163: =ROUND(IF($AC163>79,44-(($AC163-79)*(14/4)),IF($AC163>76,67-(($AC163-76)*(23/3)),IF(110-(($AC163-70.4)*(43/5.6))>119,119,110-(($AC163-70.4)*(43/5.6)))))*0.93,0) -> 92 | AG163: =ROUND(IF($AC163>79,37-(($AC163-79)*(9/4)),IF($AC163>76,54-(($AC163-76)*(17/3)),IF(93-(($AC163-70.4)*(39/5.6))>100,100,93-(($AC163-70.4)*(39/5.6)))))*0.93,0) -> 77 | AH163: =ROUND(IF($AC163>79,32-(($AC163-79)*(8/4)),IF($AC163>76,48-(($AC163-76)*(16/3)),IF(86-(($AC163-70.4)*(38/5.6))>95,95,86-(($AC163-70.4)*(38/5.6)))))*0.93,0) -> 71 | AL163: 188 | AM163: 74
A164: 209 | B164: Teggart | C164: Matthew | D164: 73 | E164: 62 | F164: 69 | G164: 58 | H164: 76 | I164: 73 | J164: 71 | K164: 76 | L164: 72 | M164: 70 | N164: 55 | O164: 64 | P164: 65 | Q164: Bralirwa - Cegeka | R164: Bralirwa - Cegeka | S164: PCT | T164: IRL | U164: EU | V164: 4 | W164: 100 | X164: 8 | Y164: 1 | Z164: 1996 | AA164: =2025-Z164 -> 29 | AB164: 5 | AC164: 73.89305402 | AD164: =(Tabla1124434[[#This Row],[Mountain]]+Tabla1124434[[#This Row],[Hill]])/2 -> 65.5 | AE164: 70000 | AF164: =ROUND(IF($AC164>79,44-(($AC164-79)*(14/4)),IF($AC164>76,67-(($AC164-76)*(23/3)),IF(110-(($AC164-70.4)*(43/5.6))>119,119,110-(($AC164-70.4)*(43/5.6)))))*0.93,0) -> 77 | AG164: =ROUND(IF($AC164>79,37-(($AC164-79)*(9/4)),IF($AC164>76,54-(($AC164-76)*(17/3)),IF(93-(($AC164-70.4)*(39/5.6))>100,100,93-(($AC164-70.4)*(39/5.6)))))*0.93,0) -> 64 | AH164: =ROUND(IF($AC164>79,32-(($AC164-79)*(8/4)),IF($AC164>76,48-(($AC164-76)*(16/3)),IF(86-(($AC164-70.4)*(38/5.6))>95,95,86-(($AC164-70.4)*(38/5.6)))))*0.93,0) -> 58 | AL164: 179 | AM164: 63
A165: 210 | B165: Lichnovsky | C165: Ludek | D165: 70 | E165: 57 | F165: 63 | G165: 60 | H165: 65 | I165: 66 | J165: 63 | K165: 50 | L165: 61 | M165: 63 | N165: 68 | O165: 53 | P165: 61 | Q165: Free Agent | R165: Free Agent | S165: - | T165: CZE | U165: EU | V165: 1 | W165: 0 | X165: 9 | Y165: 2 | Z165: 1995 | AA165: =2025-Z165 -> 30 | AB165: 3 | AC165: 64.9439972 | AD165: =(Tabla1124434[[#This Row],[Mountain]]+Tabla1124434[[#This Row],[Hill]])/2 -> 60 | AF165: =ROUND(IF($AC165>79,44-(($AC165-79)*(14/4)),IF($AC165>76,67-(($AC165-76)*(23/3)),IF(110-(($AC165-70.4)*(43/5.6))>119,119,110-(($AC165-70.4)*(43/5.6)))))*0.93,0) -> 111 | AG165: =ROUND(IF($AC165>79,37-(($AC165-79)*(9/4)),IF($AC165>76,54-(($AC165-76)*(17/3)),IF(93-(($AC165-70.4)*(39/5.6))>100,100,93-(($AC165-70.4)*(39/5.6)))))*0.93,0) -> 93 | AH165: =ROUND(IF($AC165>79,32-(($AC165-79)*(8/4)),IF($AC165>76,48-(($AC165-76)*(16/3)),IF(86-(($AC165-70.4)*(38/5.6))>95,95,86-(($AC165-70.4)*(38/5.6)))))*0.93,0) -> 88 | AL165: 0 | AM165: 0
A166: 211 | B166: Naesen | C166: Lawrence | D166: 72 | E166: 58 | F166: 68 | G166: 58 | H166: 70 | I166: 72 | J166: 61 | K166: 69 | L166: 71 | M166: 70 | N166: 69 | O166: 61 | P166: 59 | Q166: Free Agent | R166: Free Agent | S166: - | T166: BEL | U166: EU | V166: 4 | W166: 100 | X166: 28 | Y166: 8 | Z166: 1992 | AA166: =2025-Z166 -> 33 | AB166: 4 | AC166: 70.50216866 | AD166: =(Tabla1124434[[#This Row],[Mountain]]+Tabla1124434[[#This Row],[Hill]])/2 -> 63 | AF166: =ROUND(IF($AC166>79,44-(($AC166-79)*(14/4)),IF($AC166>76,67-(($AC166-76)*(23/3)),IF(110-(($AC166-70.4)*(43/5.6))>119,119,110-(($AC166-70.4)*(43/5.6)))))*0.93,0) -> 102 | AG166: =ROUND(IF($AC166>79,37-(($AC166-79)*(9/4)),IF($AC166>76,54-(($AC166-76)*(17/3)),IF(93-(($AC166-70.4)*(39/5.6))>100,100,93-(($AC166-70.4)*(39/5.6)))))*0.93,0) -> 86 | AH166: =ROUND(IF($AC166>79,32-(($AC166-79)*(8/4)),IF($AC166>76,48-(($AC166-76)*(16/3)),IF(86-(($AC166-70.4)*(38/5.6))>95,95,86-(($AC166-70.4)*(38/5.6)))))*0.93,0) -> 79 | AL166: 184 | AM166: 77
A167: 212 | B167: Zariff | C167: Nur Aiman | D167: 70 | E167: 59 | F167: 61 | G167: 60 | H167: 71 | I167: 67 | J167: 77 | K167: 60 | L167: 80 | M167: 80 | N167: 60 | O167: 67 | P167: 72 | Q167: Simba Cement - Tanga Fresh | R167: Simba Cement - Tanga Fresh | S167: CT | T167: MAS | U167: AS | V167: 4 | W167: 100 | X167: 1 | Y167: 10 | Z167: 1997 | AA167: =2025-Z167 -> 28 | AB167: 5 | AC167: 75.65352895 | AD167: =(Tabla1124434[[#This Row],[Mountain]]+Tabla1124434[[#This Row],[Hill]])/2 -> 60 | AE167: 190000 | AF167: =ROUND(IF($AC167>79,44-(($AC167-79)*(14/4)),IF($AC167>76,67-(($AC167-76)*(23/3)),IF(110-(($AC167-70.4)*(43/5.6))>119,119,110-(($AC167-70.4)*(43/5.6)))))*0.93,0) -> 65 | AG167: =ROUND(IF($AC167>79,37-(($AC167-79)*(9/4)),IF($AC167>76,54-(($AC167-76)*(17/3)),IF(93-(($AC167-70.4)*(39/5.6))>100,100,93-(($AC167-70.4)*(39/5.6)))))*0.93,0) -> 52 | AH167: =ROUND(IF($AC167>79,32-(($AC167-79)*(8/4)),IF($AC167>76,48-(($AC167-76)*(16/3)),IF(86-(($AC167-70.4)*(38/5.6))>95,95,86-(($AC167-70.4)*(38/5.6)))))*0.93,0) -> 47 | AL167: 173 | AM167: 63
A168: 213 | B168: Reynders | C168: Jens | D168: 67 | E168: 61 | F168: 64 | G168: 60 | H168: 68 | I168: 68 | J168: 67 | K168: 69 | L168: 66 | M168: 69 | N168: 65 | O168: 64 | P168: 62 | Q168: Free Agent | R168: Free Agent | S168: - | T168: BEL | U168: EU | V168: 3 | W168: 10 | X168: 25 | Y168: 5 | Z168: 1998 | AA168: =2025-Z168 -> 27 | AB168: 6 | AC168: 68.63936391 | AD168: =(Tabla1124434[[#This Row],[Mountain]]+Tabla1124434[[#This Row],[Hill]])/2 -> 62.5 | AF168: =ROUND(IF($AC168>79,44-(($AC168-79)*(14/4)),IF($AC168>76,67-(($AC168-76)*(23/3)),IF(110-(($AC168-70.4)*(43/5.6))>119,119,110-(($AC168-70.4)*(43/5.6)))))*0.93,0) -> 111 | AG168: =ROUND(IF($AC168>79,37-(($AC168-79)*(9/4)),IF($AC168>76,54-(($AC168-76)*(17/3)),IF(93-(($AC168-70.4)*(39/5.6))>100,100,93-(($AC168-70.4)*(39/5.6)))))*0.93,0) -> 93 | AH168: =ROUND(IF($AC168>79,32-(($AC168-79)*(8/4)),IF($AC168>76,48-(($AC168-76)*(16/3)),IF(86-(($AC168-70.4)*(38/5.6))>95,95,86-(($AC168-70.4)*(38/5.6)))))*0.93,0) -> 88 | AL168: 173 | AM168: 59
A169: 214 | B169: Brustenga | C169: Marc | D169: 68 | E169: 60 | F169: 64 | G169: 58 | H169: 60 | I169: 70 | J169: 64 | K169: 60 | L169: 67 | M169: 70 | N169: 61 | O169: 71 | P169: 58 | Q169: Free Agent | R169: Free Agent | S169: - | T169: ESP | U169: EU | V169: 2 | W169: 60 | X169: 4 | Y169: 9 | Z169: 1999 | AA169: =2025-Z169 -> 26 | AB169: 4 | AC169: 66.85556193 | AD169: =(Tabla1124434[[#This Row],[Mountain]]+Tabla1124434[[#This Row],[Hill]])/2 -> 62 | AF169: =ROUND(IF($AC169>79,44-(($AC169-79)*(14/4)),IF($AC169>76,67-(($AC169-76)*(23/3)),IF(110-(($AC169-70.4)*(43/5.6))>119,119,110-(($AC169-70.4)*(43/5.6)))))*0.93,0) -> 111 | AG169: =ROUND(IF($AC169>79,37-(($AC169-79)*(9/4)),IF($AC169>76,54-(($AC169-76)*(17/3)),IF(93-(($AC169-70.4)*(39/5.6))>100,100,93-(($AC169-70.4)*(39/5.6)))))*0.93,0) -> 93 | AH169: =ROUND(IF($AC169>79,32-(($AC169-79)*(8/4)),IF($AC169>76,48-(($AC169-76)*(16/3)),IF(86-(($AC169-70.4)*(38/5.6))>95,95,86-(($AC169-70.4)*(38/5.6)))))*0.93,0) -> 88 | AL169: 0 | AM169: 0
A170: 215 | B170: Daniels | C170: Simon | D170: 68 | E170: 58 | F170: 60 | G170: 58 | H170: 67 | I170: 66 | J170: 64 | K170: 62 | L170: 67 | M170: 67 | N170: 58 | O170: 58 | P170: 58 | Q170: Free Agent | R170: Free Agent | S170: - | T170: BEL | U170: EU | V170: 2 | W170: 50 | X170: 23 | Y170: 1 | Z170: 1997 | AA170: =2025-Z170 -> 28 | AB170: 4 | AC170: 65.69636097 | AD170: =(Tabla1124434[[#This Row],[Mountain]]+Tabla1124434[[#This Row],[Hill]])/2 -> 59 | AF170: =ROUND(IF($AC170>79,44-(($AC170-79)*(14/4)),IF($AC170>76,67-(($AC170-76)*(23/3)),IF(110-(($AC170-70.4)*(43/5.6))>119,119,110-(($AC170-70.4)*(43/5.6)))))*0.93,0) -> 111 | AG170: =ROUND(IF($AC170>79,37-(($AC170-79)*(9/4)),IF($AC170>76,54-(($AC170-76)*(17/3)),IF(93-(($AC170-70.4)*(39/5.6))>100,100,93-(($AC170-70.4)*(39/5.6)))))*0.93,0) -> 93 | AH170: =ROUND(IF($AC170>79,32-(($AC170-79)*(8/4)),IF($AC170>76,48-(($AC170-76)*(16/3)),IF(86-(($AC170-70.4)*(38/5.6))>95,95,86-(($AC170-70.4)*(38/5.6)))))*0.93,0) -> 88 | AL170: 178 | AM170: 68
A171: 216 | B171: Couanon | C171: Jonathan | D171: 68 | E171: 62 | F171: 66 | G171: 58 | H171: 66 | I171: 68 | J171: 67 | K171: 63 | L171: 66 | M171: 69 | N171: 64 | O171: 65 | P171: 58 | Q171: Free Agent | R171: Free Agent | S171: - | T171: FRA | U171: EU | V171: 3 | W171: 90 | X171: 8 | Y171: 4 | Z171: 1997 | AA171: =2025-Z171 -> 28 | AB171: 4 | AC171: 67.6729717 | AD171: =(Tabla1124434[[#This Row],[Mountain]]+Tabla1124434[[#This Row],[Hill]])/2 -> 64 | AF171: =ROUND(IF($AC171>79,44-(($AC171-79)*(14/4)),IF($AC171>76,67-(($AC171-76)*(23/3)),IF(110-(($AC171-70.4)*(43/5.6))>119,119,110-(($AC171-70.4)*(43/5.6)))))*0.93,0) -> 111 | AG171: =ROUND(IF($AC171>79,37-(($AC171-79)*(9/4)),IF($AC171>76,54-(($AC171-76)*(17/3)),IF(93-(($AC171-70.4)*(39/5.6))>100,100,93-(($AC171-70.4)*(39/5.6)))))*0.93,0) -> 93 | AH171: =ROUND(IF($AC171>79,32-(($AC171-79)*(8/4)),IF($AC171>76,48-(($AC171-76)*(16/3)),IF(86-(($AC171-70.4)*(38/5.6))>95,95,86-(($AC171-70.4)*(38/5.6)))))*0.93,0) -> 88 | AL171: 174 | AM171: 53
A172: 218 | B172: De Jong | C172: Timo | D172: 68 | E172: 58 | F172: 63 | G172: 61 | H172: 66 | I172: 70 | J172: 61 | K172: 61 | L172: 64 | M172: 62 | N172: 70 | O172: 60 | P172: 62 | Q172: Free Agent | R172: Free Agent | S172: - | T172: NED | U172: EU | V172: 2 | W172: 0 | X172: 8 | Y172: 3 | Z172: 1999 | AA172: =2025-Z172 -> 26 | AB172: 4 | AC172: 65.18953885 | AD172: =(Tabla1124434[[#This Row],[Mountain]]+Tabla1124434[[#This Row],[Hill]])/2 -> 60.5 | AF172: =ROUND(IF($AC172>79,44-(($AC172-79)*(14/4)),IF($AC172>76,67-(($AC172-76)*(23/3)),IF(110-(($AC172-70.4)*(43/5.6))>119,119,110-(($AC172-70.4)*(43/5.6)))))*0.93,0) -> 111 | AG172: =ROUND(IF($AC172>79,37-(($AC172-79)*(9/4)),IF($AC172>76,54-(($AC172-76)*(17/3)),IF(93-(($AC172-70.4)*(39/5.6))>100,100,93-(($AC172-70.4)*(39/5.6)))))*0.93,0) -> 93 | AH172: =ROUND(IF($AC172>79,32-(($AC172-79)*(8/4)),IF($AC172>76,48-(($AC172-76)*(16/3)),IF(86-(($AC172-70.4)*(38/5.6))>95,95,86-(($AC172-70.4)*(38/5.6)))))*0.93,0) -> 88 | AL172: 0 | AM172: 0
A173: 220 | B173: Gaudu | C173: David | D173: 73 | E173: 71 | F173: 78 | G173: 66 | H173: 78 | I173: 75 | J173: 71 | K173: 57 | L173: 68 | M173: 70 | N173: 69 | O173: 69 | P173: 66 | Q173: Grieg-Maersk | R173: Grieg-Maersk | S173: PT | T173: FRA | U173: EU | V173: 4 | W173: 100 | X173: 10 | Y173: 10 | Z173: 1996 | AA173: =2025-Z173 -> 29 | AB173: 5 | AC173: 76.04843213 | AD173: =(Tabla1124434[[#This Row],[Mountain]]+Tabla1124434[[#This Row],[Hill]])/2 -> 74.5 | AE173: 120000 | AF173: =ROUND(IF($AC173>79,44-(($AC173-79)*(14/4)),IF($AC173>76,67-(($AC173-76)*(23/3)),IF(110-(($AC173-70.4)*(43/5.6))>119,119,110-(($AC173-70.4)*(43/5.6)))))*0.93,0) -> 62 | AG173: =ROUND(IF($AC173>79,37-(($AC173-79)*(9/4)),IF($AC173>76,54-(($AC173-76)*(17/3)),IF(93-(($AC173-70.4)*(39/5.6))>100,100,93-(($AC173-70.4)*(39/5.6)))))*0.93,0) -> 50 | AH173: =ROUND(IF($AC173>79,32-(($AC173-79)*(8/4)),IF($AC173>76,48-(($AC173-76)*(16/3)),IF(86-(($AC173-70.4)*(38/5.6))>95,95,86-(($AC173-70.4)*(38/5.6)))))*0.93,0) -> 44 | AL173: 173 | AM173: 53
A174: 221 | B174: Kennaugh | C174: Tim | D174: 71 | E174: 74 | F174: 67 | G174: 71 | H174: 66 | I174: 65 | J174: 65 | K174: 51 | L174: 63 | M174: 58 | N174: 69 | O174: 56 | P174: 69 | Q174: MOL Cycling Team | R174: MOL Cycling Team | S174: PT | T174: GBR | U174: EU | V174: 4 | W174: 100 | X174: 28 | Y174: 11 | Z174: 1991 | AA174: =2025-Z174 -> 34 | AB174: 5 | AC174: 70.67621039 | AD174: =(Tabla1124434[[#This Row],[Mountain]]+Tabla1124434[[#This Row],[Hill]])/2 -> 70.5 | AE174: 55000 | AF174: =ROUND(IF($AC174>79,44-(($AC174-79)*(14/4)),IF($AC174>76,67-(($AC174-76)*(23/3)),IF(110-(($AC174-70.4)*(43/5.6))>119,119,110-(($AC174-70.4)*(43/5.6)))))*0.93,0) -> 100 | AG174: =ROUND(IF($AC174>79,37-(($AC174-79)*(9/4)),IF($AC174>76,54-(($AC174-76)*(17/3)),IF(93-(($AC174-70.4)*(39/5.6))>100,100,93-(($AC174-70.4)*(39/5.6)))))*0.93,0) -> 85 | AH174: =ROUND(IF($AC174>79,32-(($AC174-79)*(8/4)),IF($AC174>76,48-(($AC174-76)*(16/3)),IF(86-(($AC174-70.4)*(38/5.6))>95,95,86-(($AC174-70.4)*(38/5.6)))))*0.93,0) -> 78 | AL174: 0 | AM174: 0
A175: 222 | B175: De La Cruz Chapulin | C175: Luis Fernando | D175: 69 | E175: 69 | F175: 77 | G175: 61 | H175: 75 | I175: 76 | J175: 71 | K175: 64 | L175: 68 | M175: 77 | N175: 77 | O175: 68 | P175: 66 | Q175: ZARA - Irizar | R175: ZARA - Irizar | S175: PT | T175: MEX | U175: NA | V175: 4 | W175: 100 | X175: 22 | Y175: 3 | Z175: 2000 | AA175: =2025-Z175 -> 25 | AB175: 4 | AC175: 75.32199939 | AD175: =(Tabla1124434[[#This Row],[Mountain]]+Tabla1124434[[#This Row],[Hill]])/2 -> 73 | AE175: 60000 | AF175: =ROUND(IF($AC175>79,44-(($AC175-79)*(14/4)),IF($AC175>76,67-(($AC175-76)*(23/3)),IF(110-(($AC175-70.4)*(43/5.6))>119,119,110-(($AC175-70.4)*(43/5.6)))))*0.93,0) -> 67 | AG175: =ROUND(IF($AC175>79,37-(($AC175-79)*(9/4)),IF($AC175>76,54-(($AC175-76)*(17/3)),IF(93-(($AC175-70.4)*(39/5.6))>100,100,93-(($AC175-70.4)*(39/5.6)))))*0.93,0) -> 55 | AH175: =ROUND(IF($AC175>79,32-(($AC175-79)*(8/4)),IF($AC175>76,48-(($AC175-76)*(16/3)),IF(86-(($AC175-70.4)*(38/5.6))>95,95,86-(($AC175-70.4)*(38/5.6)))))*0.93,0) -> 49 | AL175: 175 | AM175: 66
A176: 224 | B176: Jungels | C176: Bob | D176: 71 | E176: 63 | F176: 67 | G176: 77 | H176: 73 | I176: 74 | J176: 67 | K176: 53 | L176: 62 | M176: 62 | N176: 71 | O176: 69 | P176: 77 | Q176: EA Vesuvio | R176: EA Vesuvio | S176: PT | T176: LUX | U176: EU | V176: 4 | W176: 100 | X176: 22 | Y176: 9 | Z176: 1992 | AA176: =2025-Z176 -> 33 | AB176: 6 | AC176: 73.5577721 | AD176: =(Tabla1124434[[#This Row],[Mountain]]+Tabla1124434[[#This Row],[Hill]])/2 -> 65 | AE176: 65000 | AF176: =ROUND(IF($AC176>79,44-(($AC176-79)*(14/4)),IF($AC176>76,67-(($AC176-76)*(23/3)),IF(110-(($AC176-70.4)*(43/5.6))>119,119,110-(($AC176-70.4)*(43/5.6)))))*0.93,0) -> 80 | AG176: =ROUND(IF($AC176>79,37-(($AC176-79)*(9/4)),IF($AC176>76,54-(($AC176-76)*(17/3)),IF(93-(($AC176-70.4)*(39/5.6))>100,100,93-(($AC176-70.4)*(39/5.6)))))*0.93,0) -> 66 | AH176: =ROUND(IF($AC176>79,32-(($AC176-79)*(8/4)),IF($AC176>76,48-(($AC176-76)*(16/3)),IF(86-(($AC176-70.4)*(38/5.6))>95,95,86-(($AC176-70.4)*(38/5.6)))))*0.93,0) -> 60 | AL176: 188 | AM176: 69
A177: 225 | B177: Arifin | C177: Muhammad Imam | D177: 66 | E177: 76 | F177: 74 | G177: 66 | H177: 67 | I177: 71 | J177: 73 | K177: 52 | L177: 58 | M177: 72 | N177: 82 | O177: 63 | P177: 66 | Q177: Indosat Ooredoo | R177: Indosat Ooredoo | S177: PCT | T177: INA | U177: AS | V177: 4 | W177: 100 | X177: 16 | Y177: 12 | Z177: 1995 | AA177: =2025-Z177 -> 30 | AB177: 5 | AC177: 73.98544789 | AD177: =(Tabla1124434[[#This Row],[Mountain]]+Tabla1124434[[#This Row],[Hill]])/2 -> 75 | AE177: 65000 | AF177: =ROUND(IF($AC177>79,44-(($AC177-79)*(14/4)),IF($AC177>76,67-(($AC177-76)*(23/3)),IF(110-(($AC177-70.4)*(43/5.6))>119,119,110-(($AC177-70.4)*(43/5.6)))))*0.93,0) -> 77 | AG177: =ROUND(IF($AC177>79,37-(($AC177-79)*(9/4)),IF($AC177>76,54-(($AC177-76)*(17/3)),IF(93-(($AC177-70.4)*(39/5.6))>100,100,93-(($AC177-70.4)*(39/5.6)))))*0.93,0) -> 63 | AH177: =ROUND(IF($AC177>79,32-(($AC177-79)*(8/4)),IF($AC177>76,48-(($AC177-76)*(16/3)),IF(86-(($AC177-70.4)*(38/5.6))>95,95,86-(($AC177-70.4)*(38/5.6)))))*0.93,0) -> 57 | AL177: 165 | AM177: 59
A178: 226 | B178: Atkins | C178: George | D178: 74 | E178: 48 | F178: 55 | G178: 52 | H178: 64 | I178: 59 | J178: 55 | K178: 70 | L178: 69 | M178: 61 | N178: 58 | O178: 55 | P178: 52 | Q178: Free Agent | R178: Free Agent | S178: - | T178: GBR | U178: EU | V178: 4 | W178: 100 | X178: 18 | Y178: 8 | Z178: 1991 | AA178: =2025-Z178 -> 34 | AB178: 4 | AC178: 68.47830095 | AD178: =(Tabla1124434[[#This Row],[Mountain]]+Tabla1124434[[#This Row],[Hill]])/2 -> 51.5 | AF178: =ROUND(IF($AC178>79,44-(($AC178-79)*(14/4)),IF($AC178>76,67-(($AC178-76)*(23/3)),IF(110-(($AC178-70.4)*(43/5.6))>119,119,110-(($AC178-70.4)*(43/5.6)))))*0.93,0) -> 111 | AG178: =ROUND(IF($AC178>79,37-(($AC178-79)*(9/4)),IF($AC178>76,54-(($AC178-76)*(17/3)),IF(93-(($AC178-70.4)*(39/5.6))>100,100,93-(($AC178-70.4)*(39/5.6)))))*0.93,0) -> 93 | AH178: =ROUND(IF($AC178>79,32-(($AC178-79)*(8/4)),IF($AC178>76,48-(($AC178-76)*(16/3)),IF(86-(($AC178-70.4)*(38/5.6))>95,95,86-(($AC178-70.4)*(38/5.6)))))*0.93,0) -> 88 | AL178: 180 | AM178: 71
A179: 227 | B179: Ratto | C179: Daniele | D179: 69 | E179: 46 | F179: 50 | G179: 49 | H179: 60 | I179: 52 | J179: 63 | K179: 46 | L179: 65 | M179: 59 | N179: 46 | O179: 51 | P179: 49 | Q179: Free Agent | R179: Free Agent | S179: - | T179: ITA | U179: EU | V179: 4 | W179: 100 | X179: 23 | Y179: 1 | Z179: 1989 | AA179: =2025-Z179 -> 36 | AB179: 4 | AC179: 62.37378706 | AD179: =(Tabla1124434[[#This Row],[Mountain]]+Tabla1124434[[#This Row],[Hill]])/2 -> 48 | AF179: =ROUND(IF($AC179>79,44-(($AC179-79)*(14/4)),IF($AC179>76,67-(($AC179-76)*(23/3)),IF(110-(($AC179-70.4)*(43/5.6))>119,119,110-(($AC179-70.4)*(43/5.6)))))*0.93,0) -> 111 | AG179: =ROUND(IF($AC179>79,37-(($AC179-79)*(9/4)),IF($AC179>76,54-(($AC179-76)*(17/3)),IF(93-(($AC179-70.4)*(39/5.6))>100,100,93-(($AC179-70.4)*(39/5.6)))))*0.93,0) -> 93 | AH179: =ROUND(IF($AC179>79,32-(($AC179-79)*(8/4)),IF($AC179>76,48-(($AC179-76)*(16/3)),IF(86-(($AC179-70.4)*(38/5.6))>95,95,86-(($AC179-70.4)*(38/5.6)))))*0.93,0) -> 88 | AL179: 180 | AM179: 74
A180: 228 | B180: Natarov | C180: Yuriy | D180: 65 | E180: 78 | F180: 72 | G180: 70 | H180: 66 | I180: 70 | J180: 78 | K180: 60 | L180: 65 | M180: 67 | N180: 79 | O180: 57 | P180: 69 | Q180: Sauber Petronas Racing | R180: Sauber Petronas Racing | S180: PCT | T180: KAZ | U180: AS | V180: 4 | W180: 100 | X180: 28 | Y180: 12 | Z180: 1996 | AA180: =2025-Z180 -> 29 | AB180: 5 | AC180: 74.94203928 | AD180: =(Tabla1124434[[#This Row],[Mountain]]+Tabla1124434[[#This Row],[Hill]])/2 -> 75 | AE180: 100000 | AF180: =ROUND(IF($AC180>79,44-(($AC180-79)*(14/4)),IF($AC180>76,67-(($AC180-76)*(23/3)),IF(110-(($AC180-70.4)*(43/5.6))>119,119,110-(($AC180-70.4)*(43/5.6)))))*0.93,0) -> 70 | AG180: =ROUND(IF($AC180>79,37-(($AC180-79)*(9/4)),IF($AC180>76,54-(($AC180-76)*(17/3)),IF(93-(($AC180-70.4)*(39/5.6))>100,100,93-(($AC180-70.4)*(39/5.6)))))*0.93,0) -> 57 | AH180: =ROUND(IF($AC180>79,32-(($AC180-79)*(8/4)),IF($AC180>76,48-(($AC180-76)*(16/3)),IF(86-(($AC180-70.4)*(38/5.6))>95,95,86-(($AC180-70.4)*(38/5.6)))))*0.93,0) -> 51 | AL180: 0 | AM180: 0
A181: 229 | B181: Eriksson | C181: Jacob | D181: 68 | E181: 67 | F181: 68 | G181: 58 | H181: 66 | I181: 68 | J181: 65 | K181: 64 | L181: 61 | M181: 65 | N181: 65 | O181: 65 | P181: 59 | Q181: Free Agent | R181: Free Agent | S181: - | T181: SWD | U181: EU | V181: 2 | W181: 47 | X181: 1 | Y181: 10 | Z181: 1999 | AA181: =2025-Z181 -> 26 | AB181: 5 | AC181: 68.4035706 | AD181: =(Tabla1124434[[#This Row],[Mountain]]+Tabla1124434[[#This Row],[Hill]])/2 -> 67.5 | AF181: =ROUND(IF($AC181>79,44-(($AC181-79)*(14/4)),IF($AC181>76,67-(($AC181-76)*(23/3)),IF(110-(($AC181-70.4)*(43/5.6))>119,119,110-(($AC181-70.4)*(43/5.6)))))*0.93,0) -> 111 | AG181: =ROUND(IF($AC181>79,37-(($AC181-79)*(9/4)),IF($AC181>76,54-(($AC181-76)*(17/3)),IF(93-(($AC181-70.4)*(39/5.6))>100,100,93-(($AC181-70.4)*(39/5.6)))))*0.93,0) -> 93 | AH181: =ROUND(IF($AC181>79,32-(($AC181-79)*(8/4)),IF($AC181>76,48-(($AC181-76)*(16/3)),IF(86-(($AC181-70.4)*(38/5.6))>95,95,86-(($AC181-70.4)*(38/5.6)))))*0.93,0) -> 88 | AL181: 179 | AM181: 67
A182: 230 | B182: Evangelos | C182: Sarris | D182: 73 | E182: 63 | F182: 66 | G182: 69 | H182: 75 | I182: 70 | J182: 67 | K182: 72 | L182: 73 | M182: 73 | N182: 68 | O182: 72 | P182: 70 | Q182: Lidl Cycling | R182: Genii Hyundai N Cycling | S182: CT | T182: GRE | U182: EU | V182: 4 | W182: 9 | X182: 29 | Y182: 7 | Z182: 2001 | AA182: =2025-Z182 -> 24 | AB182: 4 | AC182: 72.60641415 | AD182: =(Tabla1124434[[#This Row],[Mountain]]+Tabla1124434[[#This Row],[Hill]])/2 -> 64.5 | AE182: 50000 | AF182: =ROUND(IF($AC182>79,44-(($AC182-79)*(14/4)),IF($AC182>76,67-(($AC182-76)*(23/3)),IF(110-(($AC182-70.4)*(43/5.6))>119,119,110-(($AC182-70.4)*(43/5.6)))))*0.93,0) -> 87 | AG182: =ROUND(IF($AC182>79,37-(($AC182-79)*(9/4)),IF($AC182>76,54-(($AC182-76)*(17/3)),IF(93-(($AC182-70.4)*(39/5.6))>100,100,93-(($AC182-70.4)*(39/5.6)))))*0.93,0) -> 72 | AH182: =ROUND(IF($AC182>79,32-(($AC182-79)*(8/4)),IF($AC182>76,48-(($AC182-76)*(16/3)),IF(86-(($AC182-70.4)*(38/5.6))>95,95,86-(($AC182-70.4)*(38/5.6)))))*0.93,0) -> 66 | AL182: 186 | AM182: 80
A183: 231 | B183: Wirtgen | C183: Tom | D183: 73 | E183: 78 | F183: 75 | G183: 84 | H183: 76 | I183: 75 | J183: 75 | K183: 65 | L183: 63 | M183: 72 | N183: 73 | O183: 64 | P183: 80 | Q183: EA Vesuvio | R183: EA Vesuvio | S183: PT | T183: LUX | U183: EU | V183: 4 | W183: 100 | X183: 4 | Y183: 3 | Z183: 1996 | AA183: =2025-Z183 -> 29 | AB183: 4 | AC183: 80.60973495 | AD183: =(Tabla1124434[[#This Row],[Mountain]]+Tabla1124434[[#This Row],[Hill]])/2 -> 76.5 | AE183: 700000 | AF183: =ROUND(IF($AC183>79,44-(($AC183-79)*(14/4)),IF($AC183>76,67-(($AC183-76)*(23/3)),IF(110-(($AC183-70.4)*(43/5.6))>119,119,110-(($AC183-70.4)*(43/5.6)))))*0.93,0) -> 36 | AG183: =ROUND(IF($AC183>79,37-(($AC183-79)*(9/4)),IF($AC183>76,54-(($AC183-76)*(17/3)),IF(93-(($AC183-70.4)*(39/5.6))>100,100,93-(($AC183-70.4)*(39/5.6)))))*0.93,0) -> 31 | AH183: =ROUND(IF($AC183>79,32-(($AC183-79)*(8/4)),IF($AC183>76,48-(($AC183-76)*(16/3)),IF(86-(($AC183-70.4)*(38/5.6))>95,95,86-(($AC183-70.4)*(38/5.6)))))*0.93,0) -> 27 | AL183: 0 | AM183: 0
A184: 232 | B184: Hindsgaul Madsen | C184: Jacob | D184: 68 | E184: 64 | F184: 66 | G184: 65 | H184: 66 | I184: 71 | J184: 66 | K184: 63 | L184: 66 | M184: 66 | N184: 66 | O184: 67 | P184: 67 | Q184: Free Agent | R184: Free Agent | S184: - | T184: DEN | U184: EU | V184: 1 | W184: 0 | X184: 14 | Y184: 8 | Z184: 2000 | AA184: =2025-Z184 -> 25 | AB184: 3 | AC184: 67.81285854 | AD184: =(Tabla1124434[[#This Row],[Mountain]]+Tabla1124434[[#This Row],[Hill]])/2 -> 65 | AF184: =ROUND(IF($AC184>79,44-(($AC184-79)*(14/4)),IF($AC184>76,67-(($AC184-76)*(23/3)),IF(110-(($AC184-70.4)*(43/5.6))>119,119,110-(($AC184-70.4)*(43/5.6)))))*0.93,0) -> 111 | AG184: =ROUND(IF($AC184>79,37-(($AC184-79)*(9/4)),IF($AC184>76,54-(($AC184-76)*(17/3)),IF(93-(($AC184-70.4)*(39/5.6))>100,100,93-(($AC184-70.4)*(39/5.6)))))*0.93,0) -> 93 | AH184: =ROUND(IF($AC184>79,32-(($AC184-79)*(8/4)),IF($AC184>76,48-(($AC184-76)*(16/3)),IF(86-(($AC184-70.4)*(38/5.6))>95,95,86-(($AC184-70.4)*(38/5.6)))))*0.93,0) -> 88 | AL184: 181 | AM184: 79
A185: 234 | B185: Goncalves | C185: Gaspar | D185: 69 | E185: 73 | F185: 75 | G185: 56 | H185: 71 | I185: 70 | J185: 67 | K185: 56 | L185: 68 | M185: 74 | N185: 62 | O185: 66 | P185: 62 | Q185: Ethiopian Airlines | R185: Ethiopian Airlines | S185: CT | T185: POR | U185: EU | V185: 4 | W185: 100 | X185: 24 | Y185: 5 | Z185: 1995 | AA185: =2025-Z185 -> 30 | AB185: 4 | AC185: 74.21531739 | AD185: =(Tabla1124434[[#This Row],[Mountain]]+Tabla1124434[[#This Row],[Hill]])/2 -> 74 | AE185: 0 | AF185: =ROUND(IF($AC185>79,44-(($AC185-79)*(14/4)),IF($AC185>76,67-(($AC185-76)*(23/3)),IF(110-(($AC185-70.4)*(43/5.6))>119,119,110-(($AC185-70.4)*(43/5.6)))))*0.93,0) -> 75 | AG185: =ROUND(IF($AC185>79,37-(($AC185-79)*(9/4)),IF($AC185>76,54-(($AC185-76)*(17/3)),IF(93-(($AC185-70.4)*(39/5.6))>100,100,93-(($AC185-70.4)*(39/5.6)))))*0.93,0) -> 62 | AH185: =ROUND(IF($AC185>79,32-(($AC185-79)*(8/4)),IF($AC185>76,48-(($AC185-76)*(16/3)),IF(86-(($AC185-70.4)*(38/5.6))>95,95,86-(($AC185-70.4)*(38/5.6)))))*0.93,0) -> 56 | AL185: 180 | AM185: 64
A186: 235 | B186: Karatsivis | C186: Panagiotis | D186: 70 | E186: 76 | F186: 72 | G186: 70 | H186: 72 | I186: 74 | J186: 73 | K186: 60 | L186: 64 | M186: 74 | N186: 74 | O186: 67 | P186: 69 | Q186: ELCO - ABEA | R186: Spark Team NZ | S186: CT | T186: GRE | U186: EU | V186: 4 | W186: 36 | X186: 23 | Y186: 4 | Z186: 2001 | AA186: =2025-Z186 -> 24 | AB186: 4 | AC186: 74.42529526 | AD186: =(Tabla1124434[[#This Row],[Mountain]]+Tabla1124434[[#This Row],[Hill]])/2 -> 74 | AE186: 55000 | AF186: =ROUND(IF($AC186>79,44-(($AC186-79)*(14/4)),IF($AC186>76,67-(($AC186-76)*(23/3)),IF(110-(($AC186-70.4)*(43/5.6))>119,119,110-(($AC186-70.4)*(43/5.6)))))*0.93,0) -> 74 | AG186: =ROUND(IF($AC186>79,37-(($AC186-79)*(9/4)),IF($AC186>76,54-(($AC186-76)*(17/3)),IF(93-(($AC186-70.4)*(39/5.6))>100,100,93-(($AC186-70.4)*(39/5.6)))))*0.93,0) -> 60 | AH186: =ROUND(IF($AC186>79,32-(($AC186-79)*(8/4)),IF($AC186>76,48-(($AC186-76)*(16/3)),IF(86-(($AC186-70.4)*(38/5.6))>95,95,86-(($AC186-70.4)*(38/5.6)))))*0.93,0) -> 55 | AL186: 0 | AM186: 0
A187: 236 | B187: Kielich | C187: Timo | D187: 71 | E187: 60 | F187: 66 | G187: 58 | H187: 67 | I187: 71 | J187: 68 | K187: 66 | L187: 71 | M187: 75 | N187: 63 | O187: 69 | P187: 62 | Q187: Free Agent | R187: Free Agent | S187: - | T187: BEL | U187: EU | V187: 3 | W187: 20 | X187: 5 | Y187: 8 | Z187: 1999 | AA187: =2025-Z187 -> 26 | AB187: 4 | AC187: 70.40208237 | AD187: =(Tabla1124434[[#This Row],[Mountain]]+Tabla1124434[[#This Row],[Hill]])/2 -> 63 | AF187: =ROUND(IF($AC187>79,44-(($AC187-79)*(14/4)),IF($AC187>76,67-(($AC187-76)*(23/3)),IF(110-(($AC187-70.4)*(43/5.6))>119,119,110-(($AC187-70.4)*(43/5.6)))))*0.93,0) -> 102 | AG187: =ROUND(IF($AC187>79,37-(($AC187-79)*(9/4)),IF($AC187>76,54-(($AC187-76)*(17/3)),IF(93-(($AC187-70.4)*(39/5.6))>100,100,93-(($AC187-70.4)*(39/5.6)))))*0.93,0) -> 86 | AH187: =ROUND(IF($AC187>79,32-(($AC187-79)*(8/4)),IF($AC187>76,48-(($AC187-76)*(16/3)),IF(86-(($AC187-70.4)*(38/5.6))>95,95,86-(($AC187-70.4)*(38/5.6)))))*0.93,0) -> 80 | AL187: 188 | AM187: 75
A188: 237 | B188: Putti | C188: Riccardo | D188: 69 | E188: 70 | F188: 74 | G188: 62 | H188: 74 | I188: 71 | J188: 72 | K188: 70 | L188: 59 | M188: 67 | N188: 80 | O188: 70 | P188: 62 | Q188: Sauber Petronas Racing | R188: Sauber Petronas Racing | S188: PCT | T188: SMR | U188: EU | V188: 4 | W188: 100 | X188: 17 | Y188: 10 | Z188: 1996 | AA188: =2025-Z188 -> 29 | AB188: 2 | AC188: 72.47570576 | AD188: =(Tabla1124434[[#This Row],[Mountain]]+Tabla1124434[[#This Row],[Hill]])/2 -> 72 | AE188: 50000 | AF188: =ROUND(IF($AC188>79,44-(($AC188-79)*(14/4)),IF($AC188>76,67-(($AC188-76)*(23/3)),IF(110-(($AC188-70.4)*(43/5.6))>119,119,110-(($AC188-70.4)*(43/5.6)))))*0.93,0) -> 87 | AG188: =ROUND(IF($AC188>79,37-(($AC188-79)*(9/4)),IF($AC188>76,54-(($AC188-76)*(17/3)),IF(93-(($AC188-70.4)*(39/5.6))>100,100,93-(($AC188-70.4)*(39/5.6)))))*0.93,0) -> 73 | AH188: =ROUND(IF($AC188>79,32-(($AC188-79)*(8/4)),IF($AC188>76,48-(($AC188-76)*(16/3)),IF(86-(($AC188-70.4)*(38/5.6))>95,95,86-(($AC188-70.4)*(38/5.6)))))*0.93,0) -> 67 | AL188: 0 | AM188: 0
A189: 238 | B189: Hailemaryam | C189: Kibrom | D189: 67 | E189: 65 | F189: 66 | G189: 58 | H189: 62 | I189: 61 | J189: 64 | K189: 58 | L189: 61 | M189: 65 | N189: 62 | O189: 60 | P189: 65 | Q189: Free Agent | R189: Free Agent | S189: - | T189: ETH | U189: AF | V189: 1 | W189: 0 | X189: 19 | Y189: 7 | Z189: 1997 | AA189: =2025-Z189 -> 28 | AB189: 3 | AC189: 66.40491551 | AD189: =(Tabla1124434[[#This Row],[Mountain]]+Tabla1124434[[#This Row],[Hill]])/2 -> 65.5 | AF189: =ROUND(IF($AC189>79,44-(($AC189-79)*(14/4)),IF($AC189>76,67-(($AC189-76)*(23/3)),IF(110-(($AC189-70.4)*(43/5.6))>119,119,110-(($AC189-70.4)*(43/5.6)))))*0.93,0) -> 111 | AG189: =ROUND(IF($AC189>79,37-(($AC189-79)*(9/4)),IF($AC189>76,54-(($AC189-76)*(17/3)),IF(93-(($AC189-70.4)*(39/5.6))>100,100,93-(($AC189-70.4)*(39/5.6)))))*0.93,0) -> 93 | AH189: =ROUND(IF($AC189>79,32-(($AC189-79)*(8/4)),IF($AC189>76,48-(($AC189-76)*(16/3)),IF(86-(($AC189-70.4)*(38/5.6))>95,95,86-(($AC189-70.4)*(38/5.6)))))*0.93,0) -> 88 | AL189: 179 | AM189: 70
A190: 239 | B190: Ahlsson | C190: Jacob | D190: 62 | E190: 58 | F190: 58 | G190: 65 | H190: 60 | I190: 68 | J190: 60 | K190: 58 | L190: 58 | M190: 58 | N190: 58 | O190: 58 | P190: 65 | Q190: Free Agent | R190: Free Agent | S190: - | T190: SWD | U190: EU | V190: 1 | W190: 74 | X190: 3 | Y190: 8 | Z190: 1998 | AA190: =2025-Z190 -> 27 | AB190: 4 | AC190: 63.04897183 | AD190: =(Tabla1124434[[#This Row],[Mountain]]+Tabla1124434[[#This Row],[Hill]])/2 -> 58 | AF190: =ROUND(IF($AC190>79,44-(($AC190-79)*(14/4)),IF($AC190>76,67-(($AC190-76)*(23/3)),IF(110-(($AC190-70.4)*(43/5.6))>119,119,110-(($AC190-70.4)*(43/5.6)))))*0.93,0) -> 111 | AG190: =ROUND(IF($AC190>79,37-(($AC190-79)*(9/4)),IF($AC190>76,54-(($AC190-76)*(17/3)),IF(93-(($AC190-70.4)*(39/5.6))>100,100,93-(($AC190-70.4)*(39/5.6)))))*0.93,0) -> 93 | AH190: =ROUND(IF($AC190>79,32-(($AC190-79)*(8/4)),IF($AC190>76,48-(($AC190-76)*(16/3)),IF(86-(($AC190-70.4)*(38/5.6))>95,95,86-(($AC190-70.4)*(38/5.6)))))*0.93,0) -> 88 | AL190: 0 | AM190: 0
A191: 240 | B191: Pluimers | C191: Rick | D191: 71 | E191: 61 | F191: 67 | G191: 61 | H191: 72 | I191: 75 | J191: 66 | K191: 65 | L191: 68 | M191: 66 | N191: 72 | O191: 64 | P191: 64 | Q191: Free Agent | R191: Free Agent | S191: - | T191: NED | U191: EU | V191: 3 | W191: 55 | X191: 7 | Y191: 12 | Z191: 2000 | AA191: =2025-Z191 -> 25 | AB191: 4 | AC191: 69.12257433 | AD191: =(Tabla1124434[[#This Row],[Mountain]]+Tabla1124434[[#This Row],[Hill]])/2 -> 64 | AF191: =ROUND(IF($AC191>79,44-(($AC191-79)*(14/4)),IF($AC191>76,67-(($AC191-76)*(23/3)),IF(110-(($AC191-70.4)*(43/5.6))>119,119,110-(($AC191-70.4)*(43/5.6)))))*0.93,0) -> 111 | AG191: =ROUND(IF($AC191>79,37-(($AC191-79)*(9/4)),IF($AC191>76,54-(($AC191-76)*(17/3)),IF(93-(($AC191-70.4)*(39/5.6))>100,100,93-(($AC191-70.4)*(39/5.6)))))*0.93,0) -> 93 | AH191: =ROUND(IF($AC191>79,32-(($AC191-79)*(8/4)),IF($AC191>76,48-(($AC191-76)*(16/3)),IF(86-(($AC191-70.4)*(38/5.6))>95,95,86-(($AC191-70.4)*(38/5.6)))))*0.93,0) -> 88 | AL191: 180 | AM191: 67
A192: 242 | B192: Koch | C192: Christian | D192: 67 | E192: 64 | F192: 67 | G192: 62 | H192: 64 | I192: 68 | J192: 66 | K192: 63 | L192: 67 | M192: 70 | N192: 66 | O192: 65 | P192: 64 | Q192: Free Agent | R192: Free Agent | S192: - | T192: GER | U192: EU | V192: 3 | W192: 94 | X192: 29 | Y192: 10 | Z192: 1996 | AA192: =2025-Z192 -> 29 | AB192: 4 | AC192: 68.33599406 | AD192: =(Tabla1124434[[#This Row],[Mountain]]+Tabla1124434[[#This Row],[Hill]])/2 -> 65.5 | AF192: =ROUND(IF($AC192>79,44-(($AC192-79)*(14/4)),IF($AC192>76,67-(($AC192-76)*(23/3)),IF(110-(($AC192-70.4)*(43/5.6))>119,119,110-(($AC192-70.4)*(43/5.6)))))*0.93,0) -> 111 | AG192: =ROUND(IF($AC192>79,37-(($AC192-79)*(9/4)),IF($AC192>76,54-(($AC192-76)*(17/3)),IF(93-(($AC192-70.4)*(39/5.6))>100,100,93-(($AC192-70.4)*(39/5.6)))))*0.93,0) -> 93 | AH192: =ROUND(IF($AC192>79,32-(($AC192-79)*(8/4)),IF($AC192>76,48-(($AC192-76)*(16/3)),IF(86-(($AC192-70.4)*(38/5.6))>95,95,86-(($AC192-70.4)*(38/5.6)))))*0.93,0) -> 88 | AL192: 185 | AM192: 79 | AS192: Yes
A193: 244 | B193: Cosnefroy | C193: Benoit | D193: 76 | E193: 68 | F193: 71 | G193: 78 | H193: 78 | I193: 81 | J193: 72 | K193: 69 | L193: 69 | M193: 69 | N193: 81 | O193: 74 | P193: 78 | Q193: ZARA - Irizar | R193: ZARA - Irizar | S193: PT | T193: FRA | U193: EU | V193: 4 | W193: 100 | X193: 17 | Y193: 10 | Z193: 1995 | AA193: =2025-Z193 -> 30 | AB193: 3 | AC193: 75.69038117 | AD193: =(Tabla1124434[[#This Row],[Mountain]]+Tabla1124434[[#This Row],[Hill]])/2 -> 69.5 | AE193: 175000 | AF193: =ROUND(IF($AC193>79,44-(($AC193-79)*(14/4)),IF($AC193>76,67-(($AC193-76)*(23/3)),IF(110-(($AC193-70.4)*(43/5.6))>119,119,110-(($AC193-70.4)*(43/5.6)))))*0.93,0) -> 65 | AG193: =ROUND(IF($AC193>79,37-(($AC193-79)*(9/4)),IF($AC193>76,54-(($AC193-76)*(17/3)),IF(93-(($AC193-70.4)*(39/5.6))>100,100,93-(($AC193-70.4)*(39/5.6)))))*0.93,0) -> 52 | AH193: =ROUND(IF($AC193>79,32-(($AC193-79)*(8/4)),IF($AC193>76,48-(($AC193-76)*(16/3)),IF(86-(($AC193-70.4)*(38/5.6))>95,95,86-(($AC193-70.4)*(38/5.6)))))*0.93,0) -> 47 | AL193: 179 | AM193: 64
A194: 245 | B194: Haller | C194: Marco | D194: 69 | E194: 58 | F194: 62 | G194: 53 | H194: 67 | I194: 66 | J194: 71 | K194: 55 | L194: 77 | M194: 74 | N194: 63 | O194: 61 | P194: 68 | Q194: McCormick Pro Cycling | R194: McCormick Pro Cycling | S194: PCT | T194: AUT | U194: EU | V194: 4 | W194: 100 | X194: 1 | Y194: 4 | Z194: 1991 | AA194: =2025-Z194 -> 34 | AB194: 5 | AC194: 72.53127719 | AD194: =(Tabla1124434[[#This Row],[Mountain]]+Tabla1124434[[#This Row],[Hill]])/2 -> 60 | AE194: 115000 | AF194: =ROUND(IF($AC194>79,44-(($AC194-79)*(14/4)),IF($AC194>76,67-(($AC194-76)*(23/3)),IF(110-(($AC194-70.4)*(43/5.6))>119,119,110-(($AC194-70.4)*(43/5.6)))))*0.93,0) -> 87 | AG194: =ROUND(IF($AC194>79,37-(($AC194-79)*(9/4)),IF($AC194>76,54-(($AC194-76)*(17/3)),IF(93-(($AC194-70.4)*(39/5.6))>100,100,93-(($AC194-70.4)*(39/5.6)))))*0.93,0) -> 73 | AH194: =ROUND(IF($AC194>79,32-(($AC194-79)*(8/4)),IF($AC194>76,48-(($AC194-76)*(16/3)),IF(86-(($AC194-70.4)*(38/5.6))>95,95,86-(($AC194-70.4)*(38/5.6)))))*0.93,0) -> 67 | AL194: 178 | AM194: 72
A195: 246 | B195: Andreev | C195: Yordan | D195: 67 | E195: 60 | F195: 60 | G195: 60 | H195: 63 | I195: 66 | J195: 63 | K195: 60 | L195: 69 | M195: 68 | N195: 64 | O195: 64 | P195: 60 | Q195: Free Agent | R195: Free Agent | S195: - | T195: BUL | U195: EU | V195: 3 | W195: 12 | X195: 2 | Y195: 11 | Z195: 1994 | AA195: =2025-Z195 -> 31 | AB195: 4 | AC195: 66.72299539 | AD195: =(Tabla1124434[[#This Row],[Mountain]]+Tabla1124434[[#This Row],[Hill]])/2 -> 60 | AF195: =ROUND(IF($AC195>79,44-(($AC195-79)*(14/4)),IF($AC195>76,67-(($AC195-76)*(23/3)),IF(110-(($AC195-70.4)*(43/5.6))>119,119,110-(($AC195-70.4)*(43/5.6)))))*0.93,0) -> 111 | AG195: =ROUND(IF($AC195>79,37-(($AC195-79)*(9/4)),IF($AC195>76,54-(($AC195-76)*(17/3)),IF(93-(($AC195-70.4)*(39/5.6))>100,100,93-(($AC195-70.4)*(39/5.6)))))*0.93,0) -> 93 | AH195: =ROUND(IF($AC195>79,32-(($AC195-79)*(8/4)),IF($AC195>76,48-(($AC195-76)*(16/3)),IF(86-(($AC195-70.4)*(38/5.6))>95,95,86-(($AC195-70.4)*(38/5.6)))))*0.93,0) -> 88 | AL195: 0 | AM195: 0
A196: 247 | B196: Sander Hansen | C196: Marcus | D196: 69 | E196: 59 | F196: 62 | G196: 68 | H196: 70 | I196: 71 | J196: 64 | K196: 63 | L196: 65 | M196: 64 | N196: 67 | O196: 61 | P196: 66 | Q196: Free Agent | R196: Free Agent | S196: - | T196: DEN | U196: EU | V196: 2 | W196: 22 | X196: 25 | Y196: 8 | Z196: 2000 | AA196: =2025-Z196 -> 25 | AB196: 5 | AC196: 66.01542203 | AD196: =(Tabla1124434[[#This Row],[Mountain]]+Tabla1124434[[#This Row],[Hill]])/2 -> 60.5 | AF196: =ROUND(IF($AC196>79,44-(($AC196-79)*(14/4)),IF($AC196>76,67-(($AC196-76)*(23/3)),IF(110-(($AC196-70.4)*(43/5.6))>119,119,110-(($AC196-70.4)*(43/5.6)))))*0.93,0) -> 111 | AG196: =ROUND(IF($AC196>79,37-(($AC196-79)*(9/4)),IF($AC196>76,54-(($AC196-76)*(17/3)),IF(93-(($AC196-70.4)*(39/5.6))>100,100,93-(($AC196-70.4)*(39/5.6)))))*0.93,0) -> 93 | AH196: =ROUND(IF($AC196>79,32-(($AC196-79)*(8/4)),IF($AC196>76,48-(($AC196-76)*(16/3)),IF(86-(($AC196-70.4)*(38/5.6))>95,95,86-(($AC196-70.4)*(38/5.6)))))*0.93,0) -> 88 | AL196: 182 | AM196: 68
A197: 249 | B197: Soto | C197: Nelson Andres | D197: 68 | E197: 62 | F197: 66 | G197: 61 | H197: 64 | I197: 67 | J197: 68 | K197: 58 | L197: 70 | M197: 71 | N197: 66 | O197: 60 | P197: 61 | Q197: Free Agent | R197: Free Agent | S197: - | T197: COL | U197: SA | V197: 4 | W197: 100 | X197: 19 | Y197: 6 | Z197: 1994 | AA197: =2025-Z197 -> 31 | AB197: 4 | AC197: 68.56333198 | AD197: =(Tabla1124434[[#This Row],[Mountain]]+Tabla1124434[[#This Row],[Hill]])/2 -> 64 | AF197: =ROUND(IF($AC197>79,44-(($AC197-79)*(14/4)),IF($AC197>76,67-(($AC197-76)*(23/3)),IF(110-(($AC197-70.4)*(43/5.6))>119,119,110-(($AC197-70.4)*(43/5.6)))))*0.93,0) -> 111 | AG197: =ROUND(IF($AC197>79,37-(($AC197-79)*(9/4)),IF($AC197>76,54-(($AC197-76)*(17/3)),IF(93-(($AC197-70.4)*(39/5.6))>100,100,93-(($AC197-70.4)*(39/5.6)))))*0.93,0) -> 93 | AH197: =ROUND(IF($AC197>79,32-(($AC197-79)*(8/4)),IF($AC197>76,48-(($AC197-76)*(16/3)),IF(86-(($AC197-70.4)*(38/5.6))>95,95,86-(($AC197-70.4)*(38/5.6)))))*0.93,0) -> 88 | AI197: Yes | AL197: 0 | AM197: 0
A198: 250 | B198: Tabellion | C198: Valentin | D198: 68 | E198: 59 | F198: 61 | G198: 65 | H198: 69 | I198: 71 | J198: 64 | K198: 61 | L198: 67 | M198: 65 | N198: 63 | O198: 65 | P198: 63 | Q198: Free Agent | R198: Free Agent | S198: - | T198: FRA | U198: EU | V198: 2 | W198: 0 | X198: 23 | Y198: 3 | Z198: 1999 | AA198: =2025-Z198 -> 26 | AB198: 3 | AC198: 65.48382387 | AD198: =(Tabla1124434[[#This Row],[Mountain]]+Tabla1124434[[#This Row],[Hill]])/2 -> 60 | AF198: =ROUND(IF($AC198>79,44-(($AC198-79)*(14/4)),IF($AC198>76,67-(($AC198-76)*(23/3)),IF(110-(($AC198-70.4)*(43/5.6))>119,119,110-(($AC198-70.4)*(43/5.6)))))*0.93,0) -> 111 | AG198: =ROUND(IF($AC198>79,37-(($AC198-79)*(9/4)),IF($AC198>76,54-(($AC198-76)*(17/3)),IF(93-(($AC198-70.4)*(39/5.6))>100,100,93-(($AC198-70.4)*(39/5.6)))))*0.93,0) -> 93 | AH198: =ROUND(IF($AC198>79,32-(($AC198-79)*(8/4)),IF($AC198>76,48-(($AC198-76)*(16/3)),IF(86-(($AC198-70.4)*(38/5.6))>95,95,86-(($AC198-70.4)*(38/5.6)))))*0.93,0) -> 88 | AL198: 183 | AM198: 79
A199: 252 | B199: Bobridge | C199: Jack | D199: 66 | E199: 62 | F199: 76 | G199: 70 | H199: 64 | I199: 64 | J199: 59 | K199: 50 | L199: 62 | M199: 70 | N199: 59 | O199: 59 | P199: 70 | Q199: Fastned | R199: Fastned | S199: PT | T199: AUS | U199: OC | V199: 4 | W199: 100 | X199: 13 | Y199: 7 | Z199: 1989 | AA199: =2025-Z199 -> 36 | AB199: 7 | AC199: 71.27885642 | AD199: =(Tabla1124434[[#This Row],[Mountain]]+Tabla1124434[[#This Row],[Hill]])/2 -> 69 | AE199: 50000 | AF199: =ROUND(IF($AC199>79,44-(($AC199-79)*(14/4)),IF($AC199>76,67-(($AC199-76)*(23/3)),IF(110-(($AC199-70.4)*(43/5.6))>119,119,110-(($AC199-70.4)*(43/5.6)))))*0.93,0) -> 96 | AG199: =ROUND(IF($AC199>79,37-(($AC199-79)*(9/4)),IF($AC199>76,54-(($AC199-76)*(17/3)),IF(93-(($AC199-70.4)*(39/5.6))>100,100,93-(($AC199-70.4)*(39/5.6)))))*0.93,0) -> 81 | AH199: =ROUND(IF($AC199>79,32-(($AC199-79)*(8/4)),IF($AC199>76,48-(($AC199-76)*(16/3)),IF(86-(($AC199-70.4)*(38/5.6))>95,95,86-(($AC199-70.4)*(38/5.6)))))*0.93,0) -> 74 | AL199: 180 | AM199: 65
A200: 253 | B200: Colebrook | C200: Roy | D200: 65 | E200: 52 | F200: 60 | G200: 64 | H200: 65 | I200: 64 | J200: 63 | K200: 63 | L200: 65 | M200: 61 | N200: 58 | O200: 61 | P200: 64 | Q200: Free Agent | R200: Free Agent | S200: - | T200: BAH | U200: NA | V200: 1 | W200: 0 | X200: 16 | Y200: 6 | Z200: 1995 | AA200: =2025-Z200 -> 30 | AB200: 2 | AC200: 63.51925085 | AD200: =(Tabla1124434[[#This Row],[Mountain]]+Tabla1124434[[#This Row],[Hill]])/2 -> 56 | AF200: =ROUND(IF($AC200>79,44-(($AC200-79)*(14/4)),IF($AC200>76,67-(($AC200-76)*(23/3)),IF(110-(($AC200-70.4)*(43/5.6))>119,119,110-(($AC200-70.4)*(43/5.6)))))*0.93,0) -> 111 | AG200: =ROUND(IF($AC200>79,37-(($AC200-79)*(9/4)),IF($AC200>76,54-(($AC200-76)*(17/3)),IF(93-(($AC200-70.4)*(39/5.6))>100,100,93-(($AC200-70.4)*(39/5.6)))))*0.93,0) -> 93 | AH200: =ROUND(IF($AC200>79,32-(($AC200-79)*(8/4)),IF($AC200>76,48-(($AC200-76)*(16/3)),IF(86-(($AC200-70.4)*(38/5.6))>95,95,86-(($AC200-70.4)*(38/5.6)))))*0.93,0) -> 88 | AL200: 0 | AM200: 0
... 2050 more rows

Sheet OVL (hidden)
A1: ID | B1: Flat | C1: Mountain | D1: Hill | E1: TT | F1: Stamina | G1: Resistance | H1: Recovery | I1: Cobbles | J1: Sprint | K1: Acceleration | L1: Fighter | M1: Downhill | N1: Prologue | O1: Puncheur | P1: Stage Racer | Q1: Sprinter | R1: Time Trial | S1: Cobbles | T1: Climber | U1: Flat | V1: OVL
A2: =DYN_cyclist!A2 -> 1 | B2: =DYN_cyclist!D2 -> 75 | C2: =DYN_cyclist!E2 -> 76 | D2: =DYN_cyclist!F2 -> 77 | E2: =DYN_cyclist!G2 -> 79 | F2: =DYN_cyclist!H2 -> 79 | G2: =DYN_cyclist!I2 -> 81 | H2: =DYN_cyclist!J2 -> 67 | I2: =DYN_cyclist!K2 -> 63 | J2: =DYN_cyclist!L2 -> 64 | K2: =DYN_cyclist!M2 -> 71 | L2: =DYN_cyclist!N2 -> 81 | M2: =DYN_cyclist!O2 -> 66 | N2: =DYN_cyclist!P2 -> 79 | O2: =((($B2*6)^2+($C2*6)^2+($D2*11)^2+($E2*0)^2+($F2*3)^2+($G2*4)^2+($H2*0)^2+($I2*0)^2+($J2*5)^2+($K2*5)^2+($L2*1)^2+($M2*1)^2)+($N2*0)^2)/1846025*91.12 -> 75.43863807 | P2: =((($B2*2)^2+($C2*14)^2+($D2*10)^2+($E2*7)^2+($F2*2)^2+($G2*7)^2+($H2*5)^2+($I2*0)^2+($J2*0)^2+($K2*3)^2+($L2*0)^2+($M2*0)^2)+($N2*0)^2)/3088326.56*90.98 -> 75.33785059 | Q2: =((($B2*5)^2+($C2*2)^2+($D2*1)^2+($E2*0)^2+($F2*2)^2+($G2*1)^2+($H2*1)^2+($I2*0)^2+($J2*10.75)^2+($K2*7)^2+($L2*0)^2+($M2*0)^2)+($N2*1)^2)/1485576.56*IF(B2>77,92,IF(B2>75,92-0.5,IF(B2>73,92-0.88,92-1.65))) -> 57.18189167 | R2: =((($B2*1)^2+($C2*4)^2+($D2*2)^2+($E2*13)^2+($F2*0)^2+($G2*3.5)^2+($H2*0)^2+($I2*0)^2+($J2*0)^2+($K2*1)^2+($L2*0)^2+($M2*0)^2+($N2*6)^2)/1697831.25*IF(E2>81,87,IF(E2>80,87-0.1,IF(E2>79,87-0.2,86.6)))) -> 75.8246243 | S2: =(($B2*7)^2+($C2*3)^2+($D2*4)^2+($E2*0)^2+($F2*2.5)^2+($G2*2)^2+($H2*0)^2+($I2*11)^2+($J2*1)^2+($K2*5)^2+($L2*3)^2+($M2*0)^2+($N2*0)^2)/1680031.25*91.49 -> 63.01486621 | T2: =(($B2*1)^2+($C2*14.5)^2+($D2*2)^2+($E2*0)^2+($F2*1)^2+($G2*3)^2+($H2*2.5)^2+($I2*0)^2+($J2*0)^2+($K2*3)^2+($L2*1)^2+($M2*1.25)^2+($N2*0)^2)/1693126.56*81.55 -> 67.23049258 | U2: =((($B2*13)^2+($C2*4)^2+($D2*3)^2+($E2*2)^2+($F2*2)^2+($G2*2)^2+($H2*0)^2+($I2*2)^2+($J2*0)^2+($K2*0)^2+($L2*3)^2+($M2*1)^2)+($N2*0)^2)/1569500*81.55 -> 65.04541271 | V2: =((LARGE(O2:U2,1)*9)^2+(LARGE(O2:U2,2)*4)^2+(LARGE(O2:U2,3)^2))^(1/4)*2.82883066759522 -> 77.46833795
A3: =DYN_cyclist!A3 -> 4 | B3: =DYN_cyclist!D3 -> 74 | C3: =DYN_cyclist!E3 -> 63 | D3: =DYN_cyclist!F3 -> 69 | E3: =DYN_cyclist!G3 -> 58 | F3: =DYN_cyclist!H3 -> 74 | G3: =DYN_cyclist!I3 -> 79 | H3: =DYN_cyclist!J3 -> 70 | I3: =DYN_cyclist!K3 -> 70 | J3: =DYN_cyclist!L3 -> 68 | K3: =DYN_cyclist!M3 -> 71 | L3: =DYN_cyclist!N3 -> 67 | M3: =DYN_cyclist!O3 -> 72 | N3: =DYN_cyclist!P3 -> 63 | O3: =((($B3*6)^2+($C3*6)^2+($D3*11)^2+($E3*0)^2+($F3*3)^2+($G3*4)^2+($H3*0)^2+($I3*0)^2+($J3*5)^2+($K3*5)^2+($L3*1)^2+($M3*1)^2)+($N3*0)^2)/1846025*91.12 -> 64.98451195 | P3: =((($B3*2)^2+($C3*14)^2+($D3*10)^2+($E3*7)^2+($F3*2)^2+($G3*7)^2+($H3*5)^2+($I3*0)^2+($J3*0)^2+($K3*3)^2+($L3*0)^2+($M3*0)^2)+($N3*0)^2)/3088326.56*90.98 -> 57.0434362 | Q3: =((($B3*5)^2+($C3*2)^2+($D3*1)^2+($E3*0)^2+($F3*2)^2+($G3*1)^2+($H3*1)^2+($I3*0)^2+($J3*10.75)^2+($K3*7)^2+($L3*0)^2+($M3*0)^2)+($N3*1)^2)/1485576.56*IF(B3>77,92,IF(B3>75,92-0.5,IF(B3>73,92-0.88,92-1.65))) -> 59.85953462 | R3: =((($B3*1)^2+($C3*4)^2+($D3*2)^2+($E3*13)^2+($F3*0)^2+($G3*3.5)^2+($H3*0)^2+($I3*0)^2+($J3*0)^2+($K3*1)^2+($L3*0)^2+($M3*0)^2+($N3*6)^2)/1697831.25*IF(E3>81,87,IF(E3>80,87-0.1,IF(E3>79,87-0.2,86.6)))) -> 44.93228279 | S3: =(($B3*7)^2+($C3*3)^2+($D3*4)^2+($E3*0)^2+($F3*2.5)^2+($G3*2)^2+($H3*0)^2+($I3*11)^2+($J3*1)^2+($K3*5)^2+($L3*3)^2+($M3*0)^2+($N3*0)^2)/1680031.25*91.49 -> 65.53176103 | T3: =(($B3*1)^2+($C3*14.5)^2+($D3*2)^2+($E3*0)^2+($F3*1)^2+($G3*3)^2+($H3*2.5)^2+($I3*0)^2+($J3*0)^2+($K3*3)^2+($L3*1)^2+($M3*1.25)^2+($N3*0)^2)/1693126.56*81.55 -> 48.60990834 | U3: =((($B3*13)^2+($C3*4)^2+($D3*3)^2+($E3*2)^2+($F3*2)^2+($G3*2)^2+($H3*0)^2+($I3*2)^2+($J3*0)^2+($K3*0)^2+($L3*3)^2+($M3*1)^2)+($N3*0)^2)/1569500*81.55 -> 60.13272017 | V3: =((LARGE(O3:U3,1)*9)^2+(LARGE(O3:U3,2)*4)^2+(LARGE(O3:U3,3)^2))^(1/4)*2.82883066759522 -> 71.9728186
A4: =DYN_cyclist!A4 -> 6 | B4: =DYN_cyclist!D4 -> 70 | C4: =DYN_cyclist!E4 -> 60 | D4: =DYN_cyclist!F4 -> 67 | E4: =DYN_cyclist!G4 -> 68 | F4: =DYN_cyclist!H4 -> 64 | G4: =DYN_cyclist!I4 -> 65 | H4: =DYN_cyclist!J4 -> 66 | I4: =DYN_cyclist!K4 -> 61 | J4: =DYN_cyclist!L4 -> 69 | K4: =DYN_cyclist!M4 -> 70 | L4: =DYN_cyclist!N4 -> 67 | M4: =DYN_cyclist!O4 -> 67 | N4: =DYN_cyclist!P4 -> 71 | O4: 59.43628733 | P4: 52.35171545 | Q4: 58.48807715 | R4: 56.10912866 | S4: 54.71474012 | T4: 43.57541816 | U4: 53.91574721 | V4: 68.51024425
A5: =DYN_cyclist!A5 -> 7 | B5: =DYN_cyclist!D5 -> 66 | C5: =DYN_cyclist!E5 -> 67 | D5: =DYN_cyclist!F5 -> 69 | E5: =DYN_cyclist!G5 -> 61 | F5: =DYN_cyclist!H5 -> 66 | G5: =DYN_cyclist!I5 -> 68 | H5: =DYN_cyclist!J5 -> 67 | I5: =DYN_cyclist!K5 -> 60 | J5: =DYN_cyclist!L5 -> 62 | K5: =DYN_cyclist!M5 -> 63 | L5: =DYN_cyclist!N5 -> 76 | M5: =DYN_cyclist!O5 -> 62 | N5: =DYN_cyclist!P5 -> 61 | O5: 59.85574956 | P5: 57.37623813 | Q5: 48.68967836 | R5: 46.8564807 | S5: 52.62728211 | T5: 52.43970233 | U5: 50.49755779 | V5: 68.59042481
A6: =DYN_cyclist!A6 -> 8 | B6: =DYN_cyclist!D6 -> 61 | C6: =DYN_cyclist!E6 -> 66 | D6: =DYN_cyclist!F6 -> 63 | E6: =DYN_cyclist!G6 -> 65 | F6: =DYN_cyclist!H6 -> 61 | G6: =DYN_cyclist!I6 -> 57 | H6: =DYN_cyclist!J6 -> 58 | I6: =DYN_cyclist!K6 -> 46 | J6: =DYN_cyclist!L6 -> 51 | K6: =DYN_cyclist!M6 -> 58 | L6: =DYN_cyclist!N6 -> 59 | M6: =DYN_cyclist!O6 -> 54 | N6: =DYN_cyclist!P6 -> 63 | O6: 49.95322269 | P6: 51.87921742 | Q6: 36.813101 | R6: 50.46385926 | S6: 37.86718361 | T6: 49.50173759 | U6: 42.69775104 | V6: 63.95440544
A7: =DYN_cyclist!A7 -> 9 | B7: =DYN_cyclist!D7 -> 56 | C7: =DYN_cyclist!E7 -> 68 | D7: =DYN_cyclist!F7 -> 65 | E7: =DYN_cyclist!G7 -> 54 | F7: =DYN_cyclist!H7 -> 67 | G7: =DYN_cyclist!I7 -> 68 | H7: =DYN_cyclist!J7 -> 67 | I7: =DYN_cyclist!K7 -> 54 | J7: =DYN_cyclist!L7 -> 57 | K7: =DYN_cyclist!M7 -> 68 | L7: =DYN_cyclist!N7 -> 69 | M7: =DYN_cyclist!O7 -> 65 | N7: =DYN_cyclist!P7 -> 52 | O7: 54.82827411 | P7: 55.46026289 | Q7: 44.57559361 | R7: 38.02189269 | S7: 44.87099404 | T7: 53.91491308 | U7: 38.90950803 | V7: 66.21263488
A8: =DYN_cyclist!A8 -> 10 | B8: =DYN_cyclist!D8 -> 75 | C8: =DYN_cyclist!E8 -> 62 | D8: =DYN_cyclist!F8 -> 68 | E8: =DYN_cyclist!G8 -> 62 | F8: =DYN_cyclist!H8 -> 69 | G8: =DYN_cyclist!I8 -> 70 | H8: =DYN_cyclist!J8 -> 77 | I8: =DYN_cyclist!K8 -> 72 | J8: =DYN_cyclist!L8 -> 77 | K8: =DYN_cyclist!M8 -> 78 | L8: =DYN_cyclist!N8 -> 56 | M8: =DYN_cyclist!O8 -> 60 | N8: =DYN_cyclist!P8 -> 62 | O8: 65.58468155 | P8: 55.64291067 | Q8: 72.2315308 | R8: 47.93332459 | S8: 67.91253978 | T8: 47.28661405 | U8: 60.28958506 | V8: 75.24926
A9: =DYN_cyclist!A9 -> 11 | B9: =DYN_cyclist!D9 -> 75 | C9: =DYN_cyclist!E9 -> 61 | D9: =DYN_cyclist!F9 -> 69 | E9: =DYN_cyclist!G9 -> 62 | F9: =DYN_cyclist!H9 -> 74 | G9: =DYN_cyclist!I9 -> 73 | H9: =DYN_cyclist!J9 -> 68 | I9: =DYN_cyclist!K9 -> 73 | J9: =DYN_cyclist!L9 -> 75 | K9: =DYN_cyclist!M9 -> 73 | L9: =DYN_cyclist!N9 -> 66 | M9: =DYN_cyclist!O9 -> 68 | N9: =DYN_cyclist!P9 -> 63 | O9: 65.64475281 | P9: 54.8785297 | Q9: 67.91516178 | R9: 48.31996469 | S9: 68.817389 | T9: 45.70351598 | U9: 61.14301529 | V9: 73.73939291
A10: =DYN_cyclist!A10 -> 12 | B10: =DYN_cyclist!D10 -> 56 | C10: =DYN_cyclist!E10 -> 65 | D10: =DYN_cyclist!F10 -> 58 | E10: =DYN_cyclist!G10 -> 61 | F10: =DYN_cyclist!H10 -> 58 | G10: =DYN_cyclist!I10 -> 54 | H10: =DYN_cyclist!J10 -> 55 | I10: =DYN_cyclist!K10 -> 46 | J10: =DYN_cyclist!L10 -> 46 | K10: =DYN_cyclist!M10 -> 49 | L10: =DYN_cyclist!N10 -> 52 | M10: =DYN_cyclist!O10 -> 49 | N10: =DYN_cyclist!P10 -> 61 | O10: 42.79531547 | P10: 47.51632161 | Q10: 29.43362201 | R10: 45.14659829 | S10: 33.80247561 | T10: 47.2731669 | U10: 36.5307109 | V10: 61.31204274
A11: =DYN_cyclist!A11 -> 13 | B11: =DYN_cyclist!D11 -> 73 | C11: =DYN_cyclist!E11 -> 67 | D11: =DYN_cyclist!F11 -> 74 | E11: =DYN_cyclist!G11 -> 62 | F11: =DYN_cyclist!H11 -> 76 | G11: =DYN_cyclist!I11 -> 73 | H11: =DYN_cyclist!J11 -> 70 | I11: =DYN_cyclist!K11 -> 73 | J11: =DYN_cyclist!L11 -> 71 | K11: =DYN_cyclist!M11 -> 73 | L11: =DYN_cyclist!N11 -> 72 | M11: =DYN_cyclist!O11 -> 68 | N11: =DYN_cyclist!P11 -> 64 | O11: 70.20735472 | P11: 61.62306423 | Q11: 63.11448248 | R11: 49.31071003 | S11: 69.50306112 | T11: 53.74177979 | U11: 59.96619086 | V11: 74.47952219
A12: =DYN_cyclist!A12 -> 14 | B12: =DYN_cyclist!D12 -> 68 | C12: =DYN_cyclist!E12 -> 59 | D12: =DYN_cyclist!F12 -> 62 | E12: =DYN_cyclist!G12 -> 58 | F12: =DYN_cyclist!H12 -> 66 | G12: =DYN_cyclist!I12 -> 69 | H12: =DYN_cyclist!J12 -> 64 | I12: =DYN_cyclist!K12 -> 58 | J12: =DYN_cyclist!L12 -> 70 | K12: =DYN_cyclist!M12 -> 71 | L12: =DYN_cyclist!N12 -> 63 | M12: =DYN_cyclist!O12 -> 64 | N12: =DYN_cyclist!P12 -> 60 | O12: 55.72134661 | P12: 48.56339422 | Q12: 59.38977826 | R12: 42.70116753 | S12: 51.15546411 | T12: 42.40587664 | U12: 50.65738436 | V12: 68.20780372
A13: =DYN_cyclist!A13 -> 15 | B13: =DYN_cyclist!D13 -> 71 | C13: =DYN_cyclist!E13 -> 53 | D13: =DYN_cyclist!F13 -> 55 | E13: =DYN_cyclist!G13 -> 75 | F13: =DYN_cyclist!H13 -> 73 | G13: =DYN_cyclist!I13 -> 69 | H13: =DYN_cyclist!J13 -> 68 | I13: =DYN_cyclist!K13 -> 58 | J13: =DYN_cyclist!L13 -> 60 | K13: =DYN_cyclist!M13 -> 72 | L13: =DYN_cyclist!N13 -> 75 | M13: =DYN_cyclist!O13 -> 68 | N13: =DYN_cyclist!P13 -> 75 | O13: 49.48899084 | P13: 46.12486955 | Q13: 51.49185886 | R13: 65.22251681 | S13: 52.49191483 | T13: 35.85028619 | U13: 54.85142889 | V13: 70.93888274
A14: =DYN_cyclist!A14 -> 16 | B14: =DYN_cyclist!D14 -> 69 | C14: =DYN_cyclist!E14 -> 75 | D14: =DYN_cyclist!F14 -> 75 | E14: =DYN_cyclist!G14 -> 63 | F14: =DYN_cyclist!H14 -> 70 | G14: =DYN_cyclist!I14 -> 75 | H14: =DYN_cyclist!J14 -> 72 | I14: =DYN_cyclist!K14 -> 70 | J14: =DYN_cyclist!L14 -> 69 | K14: =DYN_cyclist!M14 -> 74 | L14: =DYN_cyclist!N14 -> 75 | M14: =DYN_cyclist!O14 -> 72 | N14: =DYN_cyclist!P14 -> 61 | O14: 71.8364852 | P14: 69.30699755 | Q14: 60.80579556 | R14: 50.82059695 | S14: 66.01452518 | T14: 65.54584994 | U14: 56.04420481 | V14: 75.19314508
A15: =DYN_cyclist!A15 -> 17 | B15: =DYN_cyclist!D15 -> 77 | C15: =DYN_cyclist!E15 -> 62 | D15: =DYN_cyclist!F15 -> 66 | E15: =DYN_cyclist!G15 -> 60 | F15: =DYN_cyclist!H15 -> 74 | G15: =DYN_cyclist!I15 -> 74 | H15: =DYN_cyclist!J15 -> 65 | I15: =DYN_cyclist!K15 -> 65 | J15: =DYN_cyclist!L15 -> 62 | K15: =DYN_cyclist!M15 -> 71 | L15: =DYN_cyclist!N15 -> 85 | M15: =DYN_cyclist!O15 -> 72 | N15: =DYN_cyclist!P15 -> 66 | O15: 61.71682321 | P15: 53.92121964 | Q15: 55.13425466 | R15: 47.0377059 | S15: 63.01044156 | T15: 46.88481887 | U15: 64.84646085 | V15: 71.49194816
A16: =DYN_cyclist!A16 -> 18 | B16: =DYN_cyclist!D16 -> 74 | C16: =DYN_cyclist!E16 -> 60 | D16: =DYN_cyclist!F16 -> 65 | E16: =DYN_cyclist!G16 -> 65 | F16: =DYN_cyclist!H16 -> 73 | G16: =DYN_cyclist!I16 -> 72 | H16: =DYN_cyclist!J16 -> 68 | I16: =DYN_cyclist!K16 -> 73 | J16: =DYN_cyclist!L16 -> 70 | K16: =DYN_cyclist!M16 -> 70 | L16: =DYN_cyclist!N16 -> 71 | M16: =DYN_cyclist!O16 -> 66 | N16: =DYN_cyclist!P16 -> 66 | O16: 60.38039819 | P16: 52.79289823 | Q16: 61.17460355 | R16: 51.98663801 | S16: 67.52404125 | T16: 44.12465645 | U16: 59.80828678 | V16: 72.55868014
A17: =DYN_cyclist!A17 -> 19 | B17: =DYN_cyclist!D17 -> 69 | C17: =DYN_cyclist!E17 -> 65 | D17: =DYN_cyclist!F17 -> 64 | E17: =DYN_cyclist!G17 -> 63 | F17: =DYN_cyclist!H17 -> 70 | G17: =DYN_cyclist!I17 -> 66 | H17: =DYN_cyclist!J17 -> 68 | I17: =DYN_cyclist!K17 -> 75 | J17: =DYN_cyclist!L17 -> 70 | K17: =DYN_cyclist!M17 -> 70 | L17: =DYN_cyclist!N17 -> 63 | M17: =DYN_cyclist!O17 -> 64 | N17: =DYN_cyclist!P17 -> 63 | O17: 58.53975962 | P17: 54.3220726 | Q17: 59.53647161 | R17: 48.99920213 | S17: 66.90871438 | T17: 49.943799 | U17: 53.2213122 | V17: 72.13237395
A18: =DYN_cyclist!A18 -> 20 | B18: =DYN_cyclist!D18 -> 72 | C18: =DYN_cyclist!E18 -> 76 | D18: =DYN_cyclist!F18 -> 79 | E18: =DYN_cyclist!G18 -> 68 | F18: =DYN_cyclist!H18 -> 71 | G18: =DYN_cyclist!I18 -> 78 | H18: =DYN_cyclist!J18 -> 73 | I18: =DYN_cyclist!K18 -> 69 | J18: =DYN_cyclist!L18 -> 70 | K18: =DYN_cyclist!M18 -> 79 | L18: =DYN_cyclist!N18 -> 78 | M18: =DYN_cyclist!O18 -> 74 | N18: =DYN_cyclist!P18 -> 66 | O18: 78.11331444 | P18: 73.97771379 | Q18: 64.88950165 | R18: 58.22903754 | S18: 68.2600864 | T18: 67.83915786 | U18: 60.63397079 | V18: 78.28282112
A19: =DYN_cyclist!A19 -> 21 | B19: =DYN_cyclist!D19 -> 77 | C19: =DYN_cyclist!E19 -> 65 | D19: =DYN_cyclist!F19 -> 70 | E19: =DYN_cyclist!G19 -> 72 | F19: =DYN_cyclist!H19 -> 74 | G19: =DYN_cyclist!I19 -> 73 | H19: =DYN_cyclist!J19 -> 69 | I19: =DYN_cyclist!K19 -> 75 | J19: =DYN_cyclist!L19 -> 68 | K19: =DYN_cyclist!M19 -> 69 | L19: =DYN_cyclist!N19 -> 70 | M19: =DYN_cyclist!O19 -> 65 | N19: =DYN_cyclist!P19 -> 76 | O19: 65.98173429 | P19: 60.1185473 | Q19: 60.07985041 | R19: 63.61510595 | S19: 71.38597743 | T19: 50.64001981 | U19: 64.87015425 | V19: 74.71511831
A20: =DYN_cyclist!A20 -> 22 | B20: =DYN_cyclist!D20 -> 73 | C20: =DYN_cyclist!E20 -> 62 | D20: =DYN_cyclist!F20 -> 63 | E20: =DYN_cyclist!G20 -> 77 | F20: =DYN_cyclist!H20 -> 72 | G20: =DYN_cyclist!I20 -> 72 | H20: =DYN_cyclist!J20 -> 70 | I20: =DYN_cyclist!K20 -> 53 | J20: =DYN_cyclist!L20 -> 65 | K20: =DYN_cyclist!M20 -> 71 | L20: =DYN_cyclist!N20 -> 64 | M20: =DYN_cyclist!O20 -> 73 | N20: =DYN_cyclist!P20 -> 75 | O20: 58.30179453 | P20: 56.11358222 | Q20: 56.21271856 | R20: 69.15197432 | S20: 50.06588205 | T20: 46.7041176 | U20: 58.00951045 | V20: 73.06669768
A21: =DYN_cyclist!A21 -> 23 | B21: =DYN_cyclist!D21 -> 66 | C21: =DYN_cyclist!E21 -> 53 | D21: =DYN_cyclist!F21 -> 60 | E21: =DYN_cyclist!G21 -> 56 | F21: =DYN_cyclist!H21 -> 61 | G21: =DYN_cyclist!I21 -> 59 | H21: =DYN_cyclist!J21 -> 55 | I21: =DYN_cyclist!K21 -> 59 | J21: =DYN_cyclist!L21 -> 62 | K21: =DYN_cyclist!M21 -> 61 | L21: =DYN_cyclist!N21 -> 66 | M21: =DYN_cyclist!O21 -> 60 | N21: =DYN_cyclist!P21 -> 56 | O21: 48.3633335 | P21: 40.54247573 | Q21: 47.12269904 | R21: 38.40480934 | S21: 48.50945099 | T21: 34.04202724 | U21: 47.36540389 | V21: 61.96811224
A22: =DYN_cyclist!A22 -> 24 | B22: =DYN_cyclist!D22 -> 72 | C22: =DYN_cyclist!E22 -> 59 | D22: =DYN_cyclist!F22 -> 64 | E22: =DYN_cyclist!G22 -> 62 | F22: =DYN_cyclist!H22 -> 69 | G22: =DYN_cyclist!I22 -> 71 | H22: =DYN_cyclist!J22 -> 63 | I22: =DYN_cyclist!K22 -> 53 | J22: =DYN_cyclist!L22 -> 72 | K22: =DYN_cyclist!M22 -> 72 | L22: =DYN_cyclist!N22 -> 71 | M22: =DYN_cyclist!O22 -> 74 | N22: =DYN_cyclist!P22 -> 66 | O22: 59.27053608 | P22: 50.46092793 | Q22: 62.8325562 | R22: 48.48920342 | S22: 50.14665587 | T22: 42.80153074 | U22: 56.39243552 | V22: 70.1965156
A23: =DYN_cyclist!A23 -> 25 | B23: =DYN_cyclist!D23 -> 76 | C23: =DYN_cyclist!E23 -> 62 | D23: =DYN_cyclist!F23 -> 66 | E23: =DYN_cyclist!G23 -> 56 | F23: =DYN_cyclist!H23 -> 76 | G23: =DYN_cyclist!I23 -> 74 | H23: =DYN_cyclist!J23 -> 79 | I23: =DYN_cyclist!K23 -> 63 | J23: =DYN_cyclist!L23 -> 80 | K23: =DYN_cyclist!M23 -> 79 | L23: =DYN_cyclist!N23 -> 57 | M23: =DYN_cyclist!O23 -> 64 | N23: =DYN_cyclist!P23 -> 59 | O23: 65.96317489 | P23: 55.071665 | Q23: 76.8574556 | R23: 41.4847068 | S23: 60.84162432 | T23: 47.74558149 | U23: 61.49981927 | V23: 77.10219511
A24: =DYN_cyclist!A24 -> 26 | B24: =DYN_cyclist!D24 -> 72 | C24: =DYN_cyclist!E24 -> 58 | D24: =DYN_cyclist!F24 -> 68 | E24: =DYN_cyclist!G24 -> 60 | F24: =DYN_cyclist!H24 -> 74 | G24: =DYN_cyclist!I24 -> 72 | H24: =DYN_cyclist!J24 -> 64 | I24: =DYN_cyclist!K24 -> 70 | J24: =DYN_cyclist!L24 -> 71 | K24: =DYN_cyclist!M24 -> 73 | L24: =DYN_cyclist!N24 -> 73 | M24: =DYN_cyclist!O24 -> 66 | N24: =DYN_cyclist!P24 -> 63 | O24: 62.60811874 | P24: 51.41125613 | Q24: 62.43009598 | R24: 45.78427838 | S24: 64.93294834 | T24: 41.84552119 | U24: 57.18076085 | V24: 71.50023124
A25: =DYN_cyclist!A25 -> 27 | B25: =DYN_cyclist!D25 -> 73 | C25: =DYN_cyclist!E25 -> 73 | D25: =DYN_cyclist!F25 -> 74 | E25: =DYN_cyclist!G25 -> 74 | F25: =DYN_cyclist!H25 -> 77 | G25: =DYN_cyclist!I25 -> 75 | H25: =DYN_cyclist!J25 -> 78 | I25: =DYN_cyclist!K25 -> 62 | J25: =DYN_cyclist!L25 -> 68 | K25: =DYN_cyclist!M25 -> 76 | L25: =DYN_cyclist!N25 -> 76 | M25: =DYN_cyclist!O25 -> 65 | N25: =DYN_cyclist!P25 -> 74 | O25: 72.04828944 | P25: 70.26486733 | Q25: 61.93129222 | R25: 66.80590374 | S25: 61.12214759 | T25: 62.93261888 | U25: 61.04450061 | V25: 75.36998073
A26: =DYN_cyclist!A26 -> 28 | B26: =DYN_cyclist!D26 -> 77 | C26: =DYN_cyclist!E26 -> 62 | D26: =DYN_cyclist!F26 -> 67 | E26: =DYN_cyclist!G26 -> 61 | F26: =DYN_cyclist!H26 -> 72 | G26: =DYN_cyclist!I26 -> 73 | H26: =DYN_cyclist!J26 -> 76 | I26: =DYN_cyclist!K26 -> 60 | J26: =DYN_cyclist!L26 -> 78 | K26: =DYN_cyclist!M26 -> 78 | L26: =DYN_cyclist!N26 -> 64 | M26: =DYN_cyclist!O26 -> 66 | N26: =DYN_cyclist!P26 -> 72 | O26: 66.12127532 | P26: 55.6599087 | Q26: 74.29954494 | R26: 49.58961219 | S26: 58.88497279 | T26: 47.53866323 | U26: 63.20641994 | V26: 76.0041944
A27: =DYN_cyclist!A27 -> 30 | B27: =DYN_cyclist!D27 -> 72 | C27: =DYN_cyclist!E27 -> 70 | D27: =DYN_cyclist!F27 -> 74 | E27: =DYN_cyclist!G27 -> 74 | F27: =DYN_cyclist!H27 -> 69 | G27: =DYN_cyclist!I27 -> 72 | H27: =DYN_cyclist!J27 -> 67 | I27: =DYN_cyclist!K27 -> 61 | J27: =DYN_cyclist!L27 -> 67 | K27: =DYN_cyclist!M27 -> 72 | L27: =DYN_cyclist!N27 -> 64 | M27: =DYN_cyclist!O27 -> 65 | N27: =DYN_cyclist!P27 -> 72 | O27: 69.18110864 | P27: 65.66485345 | Q27: 58.46770307 | R27: 65.60647909 | S27: 57.5841644 | T27: 57.51613849 | U27: 58.26899481 | V27: 73.70947124
A28: =DYN_cyclist!A28 -> 31 | B28: =DYN_cyclist!D28 -> 66 | C28: =DYN_cyclist!E28 -> 71 | D28: =DYN_cyclist!F28 -> 69 | E28: =DYN_cyclist!G28 -> 61 | F28: =DYN_cyclist!H28 -> 71 | G28: =DYN_cyclist!I28 -> 69 | H28: =DYN_cyclist!J28 -> 68 | I28: =DYN_cyclist!K28 -> 64 | J28: =DYN_cyclist!L28 -> 64 | K28: =DYN_cyclist!M28 -> 76 | L28: =DYN_cyclist!N28 -> 69 | M28: =DYN_cyclist!O28 -> 74 | N28: =DYN_cyclist!P28 -> 59 | O28: 63.82040308 | P28: 61.42050194 | Q28: 56.14870367 | R28: 47.04404342 | S28: 58.4054897 | T28: 59.01994138 | U28: 50.84054062 | V28: 70.86221572
A29: =DYN_cyclist!A29 -> 33 | B29: =DYN_cyclist!D29 -> 72 | C29: =DYN_cyclist!E29 -> 76 | D29: =DYN_cyclist!F29 -> 72 | E29: =DYN_cyclist!G29 -> 75 | F29: =DYN_cyclist!H29 -> 72 | G29: =DYN_cyclist!I29 -> 74 | H29: =DYN_cyclist!J29 -> 74 | I29: =DYN_cyclist!K29 -> 50 | J29: =DYN_cyclist!L29 -> 64 | K29: =DYN_cyclist!M29 -> 67 | L29: =DYN_cyclist!N29 -> 70 | M29: =DYN_cyclist!O29 -> 69 | N29: =DYN_cyclist!P29 -> 76 | O29: 68.13580956 | P29: 71.09176098 | Q29: 54.04646392 | R29: 68.78024079 | S29: 49.34753554 | T29: 66.55278531 | U29: 59.19033574 | V29: 74.83279211
A30: =DYN_cyclist!A30 -> 35 | B30: =DYN_cyclist!D30 -> 71 | C30: =DYN_cyclist!E30 -> 70 | D30: =DYN_cyclist!F30 -> 76 | E30: =DYN_cyclist!G30 -> 68 | F30: =DYN_cyclist!H30 -> 75 | G30: =DYN_cyclist!I30 -> 67 | H30: =DYN_cyclist!J30 -> 66 | I30: =DYN_cyclist!K30 -> 61 | J30: =DYN_cyclist!L30 -> 75 | K30: =DYN_cyclist!M30 -> 79 | L30: =DYN_cyclist!N30 -> 74 | M30: =DYN_cyclist!O30 -> 66 | N30: =DYN_cyclist!P30 -> 71 | O30: 73.33446587 | P30: 64.58278318 | Q30: 69.55375487 | R30: 57.67318422 | S30: 59.7839134 | T30: 57.8018763 | U30: 57.66377378 | V30: 75.86108657
A31: =DYN_cyclist!A31 -> 36 | B31: =DYN_cyclist!D31 -> 73 | C31: =DYN_cyclist!E31 -> 73 | D31: =DYN_cyclist!F31 -> 76 | E31: =DYN_cyclist!G31 -> 70 | F31: =DYN_cyclist!H31 -> 71 | G31: =DYN_cyclist!I31 -> 75 | H31: =DYN_cyclist!J31 -> 72 | I31: =DYN_cyclist!K31 -> 73 | J31: =DYN_cyclist!L31 -> 71 | K31: =DYN_cyclist!M31 -> 76 | L31: =DYN_cyclist!N31 -> 70 | M31: =DYN_cyclist!O31 -> 72 | N31: =DYN_cyclist!P31 -> 71 | O31: 73.96425154 | P31: 69.54971288 | Q31: 64.58311887 | R31: 61.1032013 | S31: 70.45983539 | T31: 62.70669638 | U31: 60.82933746 | V31: 76.23275191
A32: =DYN_cyclist!A32 -> 38 | B32: =DYN_cyclist!D32 -> 67 | C32: =DYN_cyclist!E32 -> 59 | D32: =DYN_cyclist!F32 -> 63 | E32: =DYN_cyclist!G32 -> 60 | F32: =DYN_cyclist!H32 -> 63 | G32: =DYN_cyclist!I32 -> 66 | H32: =DYN_cyclist!J32 -> 61 | I32: =DYN_cyclist!K32 -> 62 | J32: =DYN_cyclist!L32 -> 71 | K32: =DYN_cyclist!M32 -> 72 | L32: =DYN_cyclist!N32 -> 60 | M32: =DYN_cyclist!O32 -> 63 | N32: =DYN_cyclist!P32 -> 63 | O32: 56.06222754 | P32: 48.38790505 | Q32: 60.49011902 | R32: 45.1859241 | S32: 53.86859589 | T32: 42.15102485 | U32: 49.33543781 | V32: 68.78462345
A33: =DYN_cyclist!A33 -> 39 | B33: =DYN_cyclist!D33 -> 62 | C33: =DYN_cyclist!E33 -> 66 | D33: =DYN_cyclist!F33 -> 65 | E33: =DYN_cyclist!G33 -> 60 | F33: =DYN_cyclist!H33 -> 65 | G33: =DYN_cyclist!I33 -> 65 | H33: =DYN_cyclist!J33 -> 62 | I33: =DYN_cyclist!K33 -> 60 | J33: =DYN_cyclist!L33 -> 60 | K33: =DYN_cyclist!M33 -> 64 | L33: =DYN_cyclist!N33 -> 62 | M33: =DYN_cyclist!O33 -> 62 | N33: =DYN_cyclist!P33 -> 60 | O33: 54.89525578 | P33: 53.76152067 | Q33: 46.40709763 | R33: 45.10442887 | S33: 49.81005517 | T33: 50.55347575 | U33: 44.60164087 | V33: 65.80883957
A34: =DYN_cyclist!A34 -> 40 | B34: =DYN_cyclist!D34 -> 68 | C34: =DYN_cyclist!E34 -> 62 | D34: =DYN_cyclist!F34 -> 64 | E34: =DYN_cyclist!G34 -> 64 | F34: =DYN_cyclist!H34 -> 66 | G34: =DYN_cyclist!I34 -> 66 | H34: =DYN_cyclist!J34 -> 64 | I34: =DYN_cyclist!K34 -> 64 | J34: =DYN_cyclist!L34 -> 69 | K34: =DYN_cyclist!M34 -> 67 | L34: =DYN_cyclist!N34 -> 70 | M34: =DYN_cyclist!O34 -> 64 | N34: =DYN_cyclist!P34 -> 67 | O34: 56.74487789 | P34: 51.72741355 | Q34: 56.9009062 | R34: 50.70990065 | S34: 55.98533831 | T34: 45.76043536 | U34: 51.73247263 | V34: 67.1182359
A35: =DYN_cyclist!A35 -> 41 | B35: =DYN_cyclist!D35 -> 67 | C35: =DYN_cyclist!E35 -> 77 | D35: =DYN_cyclist!F35 -> 71 | E35: =DYN_cyclist!G35 -> 74 | F35: =DYN_cyclist!H35 -> 76 | G35: =DYN_cyclist!I35 -> 74 | H35: =DYN_cyclist!J35 -> 75 | I35: =DYN_cyclist!K35 -> 59 | J35: =DYN_cyclist!L35 -> 60 | K35: =DYN_cyclist!M35 -> 68 | L35: =DYN_cyclist!N35 -> 66 | M35: =DYN_cyclist!O35 -> 65 | N35: =DYN_cyclist!P35 -> 72 | O35: 66.0828238 | P35: 71.4722281 | Q35: 50.05162454 | R35: 66.47593157 | S35: 53.99917093 | T35: 68.10650253 | U35: 53.16150714 | V35: 74.9355156
A36: =DYN_cyclist!A36 -> 42 | B36: =DYN_cyclist!D36 -> 76 | C36: =DYN_cyclist!E36 -> 60 | D36: =DYN_cyclist!F36 -> 69 | E36: =DYN_cyclist!G36 -> 62 | F36: =DYN_cyclist!H36 -> 77 | G36: =DYN_cyclist!I36 -> 76 | H36: =DYN_cyclist!J36 -> 67 | I36: =DYN_cyclist!K36 -> 79 | J36: =DYN_cyclist!L36 -> 67 | K36: =DYN_cyclist!M36 -> 68 | L36: =DYN_cyclist!N36 -> 71 | M36: =DYN_cyclist!O36 -> 73 | N36: =DYN_cyclist!P36 -> 60 | O36: 64.04913784 | P36: 54.60994908 | Q36: 58.29571161 | R36: 47.79468961 | S36: 74.73609648 | T36: 44.44084077 | U36: 63.10192995 | V36: 76.03848698
A37: =DYN_cyclist!A37 -> 43 | B37: =DYN_cyclist!D37 -> 75 | C37: =DYN_cyclist!E37 -> 63 | D37: =DYN_cyclist!F37 -> 68 | E37: =DYN_cyclist!G37 -> 65 | F37: =DYN_cyclist!H37 -> 74 | G37: =DYN_cyclist!I37 -> 74 | H37: =DYN_cyclist!J37 -> 79 | I37: =DYN_cyclist!K37 -> 72 | J37: =DYN_cyclist!L37 -> 75 | K37: =DYN_cyclist!M37 -> 77 | L37: =DYN_cyclist!N37 -> 63 | M37: =DYN_cyclist!O37 -> 73 | N37: =DYN_cyclist!P37 -> 69 | O37: 66.13939048 | P37: 58.01904049 | Q37: 69.92767221 | R37: 53.35539065 | S37: 68.52331947 | T37: 49.03356155 | U37: 61.22038257 | V37: 74.28707377
A38: =DYN_cyclist!A38 -> 44 | B38: =DYN_cyclist!D38 -> 70 | C38: =DYN_cyclist!E38 -> 54 | D38: =DYN_cyclist!F38 -> 59 | E38: =DYN_cyclist!G38 -> 72 | F38: =DYN_cyclist!H38 -> 65 | G38: =DYN_cyclist!I38 -> 66 | H38: =DYN_cyclist!J38 -> 69 | I38: =DYN_cyclist!K38 -> 51 | J38: =DYN_cyclist!L38 -> 59 | K38: =DYN_cyclist!M38 -> 61 | L38: =DYN_cyclist!N38 -> 67 | M38: =DYN_cyclist!O38 -> 65 | N38: =DYN_cyclist!P38 -> 72 | O38: 49.31381181 | P38: 46.43112864 | Q38: 45.82330812 | R38: 60.45678639 | S38: 44.5187641 | T38: 36.10847946 | U38: 52.79966311 | V38: 68.46365834
A39: =DYN_cyclist!A39 -> 45 | B39: =DYN_cyclist!D39 -> 77 | C39: =DYN_cyclist!E39 -> 64 | D39: =DYN_cyclist!F39 -> 71 | E39: =DYN_cyclist!G39 -> 61 | F39: =DYN_cyclist!H39 -> 76 | G39: =DYN_cyclist!I39 -> 76 | H39: =DYN_cyclist!J39 -> 77 | I39: =DYN_cyclist!K39 -> 79 | J39: =DYN_cyclist!L39 -> 77 | K39: =DYN_cyclist!M39 -> 76 | L39: =DYN_cyclist!N39 -> 64 | M39: =DYN_cyclist!O39 -> 71 | N39: =DYN_cyclist!P39 -> 65 | O39: 69.94441341 | P39: 59.4871457 | Q39: 72.48656557 | R39: 48.41053903 | S39: 76.76298433 | T39: 50.38333473 | U39: 64.47448477 | V39: 77.59979129
A40: =DYN_cyclist!A40 -> 46 | B40: =DYN_cyclist!D40 -> 73 | C40: =DYN_cyclist!E40 -> 60 | D40: =DYN_cyclist!F40 -> 63 | E40: =DYN_cyclist!G40 -> 75 | F40: =DYN_cyclist!H40 -> 73 | G40: =DYN_cyclist!I40 -> 74 | H40: =DYN_cyclist!J40 -> 70 | I40: =DYN_cyclist!K40 -> 61 | J40: =DYN_cyclist!L40 -> 62 | K40: =DYN_cyclist!M40 -> 68 | L40: =DYN_cyclist!N40 -> 70 | M40: =DYN_cyclist!O40 -> 65 | N40: =DYN_cyclist!P40 -> 75 | O40: 57.16369843 | P40: 54.59392321 | Q40: 52.28591567 | R40: 66.49352873 | S40: 55.87431345 | T40: 44.1416257 | U40: 58.34246515 | V40: 71.8363384
A41: =DYN_cyclist!A41 -> 47 | B41: =DYN_cyclist!D41 -> 67 | C41: =DYN_cyclist!E41 -> 69 | D41: =DYN_cyclist!F41 -> 73 | E41: =DYN_cyclist!G41 -> 58 | F41: =DYN_cyclist!H41 -> 68 | G41: =DYN_cyclist!I41 -> 69 | H41: =DYN_cyclist!J41 -> 61 | I41: =DYN_cyclist!K41 -> 58 | J41: =DYN_cyclist!L41 -> 57 | K41: =DYN_cyclist!M41 -> 64 | L41: =DYN_cyclist!N41 -> 67 | M41: =DYN_cyclist!O41 -> 61 | N41: =DYN_cyclist!P41 -> 58 | O41: 63.54798463 | P41: 59.8177971 | Q41: 45.19435735 | R41: 43.56031676 | S41: 51.68609624 | T41: 55.13492885 | U41: 51.50987932 | V41: 70.57419082
A42: =DYN_cyclist!A42 -> 48 | B42: =DYN_cyclist!D42 -> 63 | C42: =DYN_cyclist!E42 -> 57 | D42: =DYN_cyclist!F42 -> 69 | E42: =DYN_cyclist!G42 -> 58 | F42: =DYN_cyclist!H42 -> 65 | G42: =DYN_cyclist!I42 -> 60 | H42: =DYN_cyclist!J42 -> 57 | I42: =DYN_cyclist!K42 -> 58 | J42: =DYN_cyclist!L42 -> 68 | K42: =DYN_cyclist!M42 -> 69 | L42: =DYN_cyclist!N42 -> 72 | M42: =DYN_cyclist!O42 -> 59 | N42: =DYN_cyclist!P42 -> 58 | O42: 57.99043094 | P42: 47.45866972 | Q42: 55.45063309 | R42: 41.49245975 | S42: 49.99471994 | T42: 39.32788626 | U42: 45.40939895 | V42: 67.49526961
A43: =DYN_cyclist!A43 -> 49 | B43: =DYN_cyclist!D43 -> 72 | C43: =DYN_cyclist!E43 -> 67 | D43: =DYN_cyclist!F43 -> 78 | E43: =DYN_cyclist!G43 -> 61 | F43: =DYN_cyclist!H43 -> 78 | G43: =DYN_cyclist!I43 -> 74 | H43: =DYN_cyclist!J43 -> 75 | I43: =DYN_cyclist!K43 -> 65 | J43: =DYN_cyclist!L43 -> 65 | K43: =DYN_cyclist!M43 -> 76 | L43: =DYN_cyclist!N43 -> 75 | M43: =DYN_cyclist!O43 -> 71 | N43: =DYN_cyclist!P43 -> 61 | O43: 73.42094479 | P43: 64.12050753 | Q43: 58.63315881 | R43: 47.79315942 | S43: 63.28839172 | T43: 54.39513346 | U43: 59.04469404 | V43: 75.46347254
A44: =DYN_cyclist!A44 -> 50 | B44: =DYN_cyclist!D44 -> 77 | C44: =DYN_cyclist!E44 -> 66 | D44: =DYN_cyclist!F44 -> 70 | E44: =DYN_cyclist!G44 -> 56 | F44: =DYN_cyclist!H44 -> 75 | G44: =DYN_cyclist!I44 -> 77 | H44: =DYN_cyclist!J44 -> 68 | I44: =DYN_cyclist!K44 -> 74 | J44: =DYN_cyclist!L44 -> 67 | K44: =DYN_cyclist!M44 -> 71 | L44: =DYN_cyclist!N44 -> 74 | M44: =DYN_cyclist!O44 -> 69 | N44: =DYN_cyclist!P44 -> 59 | O44: 66.9883844 | P44: 58.77564421 | Q44: 59.92014556 | R44: 42.24318244 | S44: 71.30593878 | T44: 52.38211165 | U44: 64.97531972 | V44: 74.7622941
A45: =DYN_cyclist!A45 -> 51 | B45: =DYN_cyclist!D45 -> 73 | C45: =DYN_cyclist!E45 -> 68 | D45: =DYN_cyclist!F45 -> 67 | E45: =DYN_cyclist!G45 -> 74 | F45: =DYN_cyclist!H45 -> 74 | G45: =DYN_cyclist!I45 -> 76 | H45: =DYN_cyclist!J45 -> 69 | I45: =DYN_cyclist!K45 -> 75 | J45: =DYN_cyclist!L45 -> 68 | K45: =DYN_cyclist!M45 -> 69 | L45: =DYN_cyclist!N45 -> 70 | M45: =DYN_cyclist!O45 -> 70 | N45: =DYN_cyclist!P45 -> 71 | O45: 63.5561784 | P45: 62.20765497 | Q45: 58.46703027 | R45: 65.27300025 | S45: 69.7197468 | T45: 54.81708283 | U45: 59.92966352 | V45: 73.90752928
A46: =DYN_cyclist!A46 -> 52 | B46: =DYN_cyclist!D46 -> 69 | C46: =DYN_cyclist!E46 -> 61 | D46: =DYN_cyclist!F46 -> 66 | E46: =DYN_cyclist!G46 -> 69 | F46: =DYN_cyclist!H46 -> 67 | G46: =DYN_cyclist!I46 -> 70 | H46: =DYN_cyclist!J46 -> 64 | I46: =DYN_cyclist!K46 -> 55 | J46: =DYN_cyclist!L46 -> 70 | K46: =DYN_cyclist!M46 -> 71 | L46: =DYN_cyclist!N46 -> 68 | M46: =DYN_cyclist!O46 -> 68 | N46: =DYN_cyclist!P46 -> 70 | O46: 59.67647363 | P46: 53.70652012 | Q46: 59.80747723 | R46: 57.52464127 | S46: 50.24756528 | T46: 45.07948596 | U46: 52.90950491 | V46: 68.80667324
A47: =DYN_cyclist!A47 -> 54 | B47: =DYN_cyclist!D47 -> 72 | C47: =DYN_cyclist!E47 -> 79 | D47: =DYN_cyclist!F47 -> 76 | E47: =DYN_cyclist!G47 -> 77 | F47: =DYN_cyclist!H47 -> 74 | G47: =DYN_cyclist!I47 -> 78 | H47: =DYN_cyclist!J47 -> 76 | I47: =DYN_cyclist!K47 -> 58 | J47: =DYN_cyclist!L47 -> 62 | K47: =DYN_cyclist!M47 -> 68 | L47: =DYN_cyclist!N47 -> 73 | M47: =DYN_cyclist!O47 -> 65 | N47: =DYN_cyclist!P47 -> 78 | O47: 72.95809502 | P47: 77.12829968 | Q47: 52.97176181 | R47: 72.85334464 | S47: 56.3966 | T47: 71.78256483 | U47: 60.4563222 | V47: 77.80679643
A48: =DYN_cyclist!A48 -> 55 | B48: =DYN_cyclist!D48 -> 77 | C48: =DYN_cyclist!E48 -> 62 | D48: =DYN_cyclist!F48 -> 70 | E48: =DYN_cyclist!G48 -> 67 | F48: =DYN_cyclist!H48 -> 70 | G48: =DYN_cyclist!I48 -> 76 | H48: =DYN_cyclist!J48 -> 69 | I48: =DYN_cyclist!K48 -> 69 | J48: =DYN_cyclist!L48 -> 71 | K48: =DYN_cyclist!M48 -> 71 | L48: =DYN_cyclist!N48 -> 71 | M48: =DYN_cyclist!O48 -> 68 | N48: =DYN_cyclist!P48 -> 69 | O48: 66.2886061 | P48: 57.56701669 | Q48: 63.62224002 | R48: 55.74304407 | S48: 65.8803968 | T48: 47.1059459 | U48: 64.28925014 | V48: 72.41842458
A49: =DYN_cyclist!A49 -> 56 | B49: =DYN_cyclist!D49 -> 76 | C49: =DYN_cyclist!E49 -> 71 | D49: =DYN_cyclist!F49 -> 70 | E49: =DYN_cyclist!G49 -> 70 | F49: =DYN_cyclist!H49 -> 74 | G49: =DYN_cyclist!I49 -> 73 | H49: =DYN_cyclist!J49 -> 73 | I49: =DYN_cyclist!K49 -> 69 | J49: =DYN_cyclist!L49 -> 70 | K49: =DYN_cyclist!M49 -> 73 | L49: =DYN_cyclist!N49 -> 70 | M49: =DYN_cyclist!O49 -> 69 | N49: =DYN_cyclist!P49 -> 72 | O49: 68.22781681 | P49: 64.97108647 | Q49: 63.72255454 | R49: 60.76707014 | S49: 66.47278353 | T49: 59.3536338 | U49: 63.99427764 | V49: 73.34762847
A50: =DYN_cyclist!A50 -> 59 | B50: =DYN_cyclist!D50 -> 67 | C50: =DYN_cyclist!E50 -> 51 | D50: =DYN_cyclist!F50 -> 63 | E50: =DYN_cyclist!G50 -> 55 | F50: =DYN_cyclist!H50 -> 64 | G50: =DYN_cyclist!I50 -> 60 | H50: =DYN_cyclist!J50 -> 65 | I50: =DYN_cyclist!K50 -> 52 | J50: =DYN_cyclist!L50 -> 72 | K50: =DYN_cyclist!M50 -> 70 | L50: =DYN_cyclist!N50 -> 66 | M50: =DYN_cyclist!O50 -> 60 | N50: =DYN_cyclist!P50 -> 59 | O50: 53.80296588 | P50: 41.69630892 | Q50: 60.42063049 | R50: 38.12829173 | S50: 45.79566573 | T50: 32.9551284 | U50: 48.45103989 | V50: 68.52707244
A51: =DYN_cyclist!A51 -> 60 | B51: =DYN_cyclist!D51 -> 71 | C51: =DYN_cyclist!E51 -> 55 | D51: =DYN_cyclist!F51 -> 61 | E51: =DYN_cyclist!G51 -> 75 | F51: =DYN_cyclist!H51 -> 73 | G51: =DYN_cyclist!I51 -> 70 | H51: =DYN_cyclist!J51 -> 73 | I51: =DYN_cyclist!K51 -> 71 | J51: =DYN_cyclist!L51 -> 60 | K51: =DYN_cyclist!M51 -> 65 | L51: =DYN_cyclist!N51 -> 72 | M51: =DYN_cyclist!O51 -> 66 | N51: =DYN_cyclist!P51 -> 74 | O51: 52.92109812 | P51: 49.88803253 | Q51: 48.77109864 | R51: 65.30513418 | S51: 62.76305556 | T51: 37.98711699 | U51: 55.51375311 | V51: 71.64960765
A52: =DYN_cyclist!A52 -> 61 | B52: =DYN_cyclist!D52 -> 61 | C52: =DYN_cyclist!E52 -> 64 | D52: =DYN_cyclist!F52 -> 65 | E52: =DYN_cyclist!G52 -> 55 | F52: =DYN_cyclist!H52 -> 60 | G52: =DYN_cyclist!I52 -> 62 | H52: =DYN_cyclist!J52 -> 57 | I52: =DYN_cyclist!K52 -> 49 | J52: =DYN_cyclist!L52 -> 57 | K52: =DYN_cyclist!M52 -> 61 | L52: =DYN_cyclist!N52 -> 65 | M52: =DYN_cyclist!O52 -> 62 | N52: =DYN_cyclist!P52 -> 57 | O52: 52.75904888 | P52: 50.25450647 | Q52: 42.33961478 | R52: 39.02773588 | S52: 40.81516258 | T52: 47.39600956 | U52: 42.90579576 | V52: 64.37082301
A53: =DYN_cyclist!A53 -> 63 | B53: =DYN_cyclist!D53 -> 75 | C53: =DYN_cyclist!E53 -> 65 | D53: =DYN_cyclist!F53 -> 75 | E53: =DYN_cyclist!G53 -> 74 | F53: =DYN_cyclist!H53 -> 74 | G53: =DYN_cyclist!I53 -> 78 | H53: =DYN_cyclist!J53 -> 72 | I53: =DYN_cyclist!K53 -> 63 | J53: =DYN_cyclist!L53 -> 67 | K53: =DYN_cyclist!M53 -> 72 | L53: =DYN_cyclist!N53 -> 75 | M53: =DYN_cyclist!O53 -> 70 | N53: =DYN_cyclist!P53 -> 72 | O53: 70.79242012 | P53: 64.15356089 | Q53: 59.759008 | R53: 65.67084897 | S53: 61.38287562 | T53: 51.48876217 | U53: 62.78726489 | V53: 74.42234161
A54: =DYN_cyclist!A54 -> 64 | B54: =DYN_cyclist!D54 -> 69 | C54: =DYN_cyclist!E54 -> 64 | D54: =DYN_cyclist!F54 -> 68 | E54: =DYN_cyclist!G54 -> 57 | F54: =DYN_cyclist!H54 -> 72 | G54: =DYN_cyclist!I54 -> 71 | H54: =DYN_cyclist!J54 -> 67 | I54: =DYN_cyclist!K54 -> 60 | J54: =DYN_cyclist!L54 -> 67 | K54: =DYN_cyclist!M54 -> 69 | L54: =DYN_cyclist!N54 -> 66 | M54: =DYN_cyclist!O54 -> 68 | N54: =DYN_cyclist!P54 -> 57 | O54: 61.49766431 | P54: 54.97933949 | Q54: 56.29308973 | R54: 41.89404468 | S54: 54.18606845 | T54: 49.00727231 | U54: 53.20026872 | V54: 69.29501086
A55: =DYN_cyclist!A55 -> 65 | B55: =DYN_cyclist!D55 -> 66 | C55: =DYN_cyclist!E55 -> 74 | D55: =DYN_cyclist!F55 -> 71 | E55: =DYN_cyclist!G55 -> 71 | F55: =DYN_cyclist!H55 -> 73 | G55: =DYN_cyclist!I55 -> 72 | H55: =DYN_cyclist!J55 -> 72 | I55: =DYN_cyclist!K55 -> 55 | J55: =DYN_cyclist!L55 -> 62 | K55: =DYN_cyclist!M55 -> 67 | L55: =DYN_cyclist!N55 -> 67 | M55: =DYN_cyclist!O55 -> 68 | N55: =DYN_cyclist!P55 -> 71 | O55: 64.7731026 | P55: 67.37823696 | Q55: 50.8897745 | R55: 61.89781487 | S55: 50.09644622 | T55: 63.20972305 | U55: 51.36117203 | V55: 72.80916593
A56: =DYN_cyclist!A56 -> 67 | B56: =DYN_cyclist!D56 -> 63 | C56: =DYN_cyclist!E56 -> 64 | D56: =DYN_cyclist!F56 -> 66 | E56: =DYN_cyclist!G56 -> 59 | F56: =DYN_cyclist!H56 -> 62 | G56: =DYN_cyclist!I56 -> 66 | H56: =DYN_cyclist!J56 -> 64 | I56: =DYN_cyclist!K56 -> 61 | J56: =DYN_cyclist!L56 -> 65 | K56: =DYN_cyclist!M56 -> 66 | L56: =DYN_cyclist!N56 -> 66 | M56: =DYN_cyclist!O56 -> 63 | N56: =DYN_cyclist!P56 -> 61 | O56: 56.4955106 | P56: 52.88787508 | Q56: 51.64734423 | R56: 44.21685642 | S56: 51.46543518 | T56: 48.21284841 | U56: 45.73876846 | V56: 66.53045672
A57: =DYN_cyclist!A57 -> 68 | B57: =DYN_cyclist!D57 -> 73 | C57: =DYN_cyclist!E57 -> 67 | D57: =DYN_cyclist!F57 -> 79 | E57: =DYN_cyclist!G57 -> 66 | F57: =DYN_cyclist!H57 -> 76 | G57: =DYN_cyclist!I57 -> 78 | H57: =DYN_cyclist!J57 -> 70 | I57: =DYN_cyclist!K57 -> 65 | J57: =DYN_cyclist!L57 -> 70 | K57: =DYN_cyclist!M57 -> 77 | L57: =DYN_cyclist!N57 -> 83 | M57: =DYN_cyclist!O57 -> 67 | N57: =DYN_cyclist!P57 -> 68 | O57: 76.01654625 | P57: 65.86470548 | Q57: 64.03610154 | R57: 55.3521322 | S57: 64.70428205 | T57: 54.54850391 | U57: 61.1481073 | V57: 76.74286854
A58: =DYN_cyclist!A58 -> 69 | B58: =DYN_cyclist!D58 -> 68 | C58: =DYN_cyclist!E58 -> 58 | D58: =DYN_cyclist!F58 -> 64 | E58: =DYN_cyclist!G58 -> 69 | F58: =DYN_cyclist!H58 -> 60 | G58: =DYN_cyclist!I58 -> 64 | H58: =DYN_cyclist!J58 -> 56 | I58: =DYN_cyclist!K58 -> 57 | J58: =DYN_cyclist!L58 -> 58 | K58: =DYN_cyclist!M58 -> 60 | L58: =DYN_cyclist!N58 -> 65 | M58: =DYN_cyclist!O58 -> 62 | N58: =DYN_cyclist!P58 -> 68 | O58: 52.48406369 | P58: 48.50868826 | Q58: 44.06640516 | R58: 56.09060064 | S58: 48.2377498 | T58: 40.02463087 | U58: 50.75569121 | V58: 66.28640206
A59: =DYN_cyclist!A59 -> 71 | B59: =DYN_cyclist!D59 -> 77 | C59: =DYN_cyclist!E59 -> 61 | D59: =DYN_cyclist!F59 -> 69 | E59: =DYN_cyclist!G59 -> 62 | F59: =DYN_cyclist!H59 -> 74 | G59: =DYN_cyclist!I59 -> 76 | H59: =DYN_cyclist!J59 -> 72 | I59: =DYN_cyclist!K59 -> 67 | J59: =DYN_cyclist!L59 -> 70 | K59: =DYN_cyclist!M59 -> 70 | L59: =DYN_cyclist!N59 -> 69 | M59: =DYN_cyclist!O59 -> 62 | N59: =DYN_cyclist!P59 -> 67 | O59: 65.09542412 | P59: 55.85828776 | Q59: 62.3054401 | R59: 49.54772331 | S59: 63.7658735 | T59: 45.85534514 | U59: 63.87965559 | V59: 71.6944736
A60: =DYN_cyclist!A60 -> 72 | B60: =DYN_cyclist!D60 -> 62 | C60: =DYN_cyclist!E60 -> 59 | D60: =DYN_cyclist!F60 -> 69 | E60: =DYN_cyclist!G60 -> 58 | F60: =DYN_cyclist!H60 -> 61 | G60: =DYN_cyclist!I60 -> 57 | H60: =DYN_cyclist!J60 -> 55 | I60: =DYN_cyclist!K60 -> 56 | J60: =DYN_cyclist!L60 -> 58 | K60: =DYN_cyclist!M60 -> 57 | L60: =DYN_cyclist!N60 -> 66 | M60: =DYN_cyclist!O60 -> 64 | N60: =DYN_cyclist!P60 -> 57 | O60: 54.2482928 | P60: 47.65159881 | Q60: 41.79089453 | R60: 41.16781774 | S60: 45.49158967 | T60: 40.77838217 | U60: 43.92430045 | V60: 64.8840598
A61: =DYN_cyclist!A61 -> 73 | B61: =DYN_cyclist!D61 -> 65 | C61: =DYN_cyclist!E61 -> 58 | D61: =DYN_cyclist!F61 -> 66 | E61: =DYN_cyclist!G61 -> 58 | F61: =DYN_cyclist!H61 -> 57 | G61: =DYN_cyclist!I61 -> 56 | H61: =DYN_cyclist!J61 -> 60 | I61: =DYN_cyclist!K61 -> 52 | J61: =DYN_cyclist!L61 -> 52 | K61: =DYN_cyclist!M61 -> 53 | L61: =DYN_cyclist!N61 -> 63 | M61: =DYN_cyclist!O61 -> 54 | N61: =DYN_cyclist!P61 -> 58 | O61: 50.56484383 | P61: 45.9159146 | Q61: 36.28744603 | R61: 41.12725502 | S61: 42.24152233 | T61: 39.33707078 | U61: 46.52958783 | V61: 62.86188068
A62: =DYN_cyclist!A62 -> 74 | B62: =DYN_cyclist!D62 -> 70 | C62: =DYN_cyclist!E62 -> 68 | D62: =DYN_cyclist!F62 -> 71 | E62: =DYN_cyclist!G62 -> 69 | F62: =DYN_cyclist!H62 -> 68 | G62: =DYN_cyclist!I62 -> 73 | H62: =DYN_cyclist!J62 -> 69 | I62: =DYN_cyclist!K62 -> 57 | J62: =DYN_cyclist!L62 -> 59 | K62: =DYN_cyclist!M62 -> 70 | L62: =DYN_cyclist!N62 -> 65 | M62: =DYN_cyclist!O62 -> 73 | N62: =DYN_cyclist!P62 -> 70 | O62: 64.10812317 | P62: 62.04235873 | Q62: 49.98618802 | R62: 58.66928521 | S62: 52.80851607 | T62: 54.72799202 | U62: 55.21493562 | V62: 71.04902287
A63: =DYN_cyclist!A63 -> 75 | B63: =DYN_cyclist!D63 -> 76 | C63: =DYN_cyclist!E63 -> 65 | D63: =DYN_cyclist!F63 -> 69 | E63: =DYN_cyclist!G63 -> 75 | F63: =DYN_cyclist!H63 -> 76 | G63: =DYN_cyclist!I63 -> 72 | H63: =DYN_cyclist!J63 -> 68 | I63: =DYN_cyclist!K63 -> 75 | J63: =DYN_cyclist!L63 -> 65 | K63: =DYN_cyclist!M63 -> 74 | L63: =DYN_cyclist!N63 -> 73 | M63: =DYN_cyclist!O63 -> 68 | N63: =DYN_cyclist!P63 -> 75 | O63: 65.32924297 | P63: 60.24233536 | Q63: 59.20084049 | R63: 67.04898676 | S63: 72.08907589 | T63: 50.87685777 | U63: 63.80686072 | V63: 75.11501522
A64: =DYN_cyclist!A64 -> 76 | B64: =DYN_cyclist!D64 -> 77 | C64: =DYN_cyclist!E64 -> 58 | D64: =DYN_cyclist!F64 -> 63 | E64: =DYN_cyclist!G64 -> 77 | F64: =DYN_cyclist!H64 -> 72 | G64: =DYN_cyclist!I64 -> 80 | H64: =DYN_cyclist!J64 -> 69 | I64: =DYN_cyclist!K64 -> 63 | J64: =DYN_cyclist!L64 -> 74 | K64: =DYN_cyclist!M64 -> 73 | L64: =DYN_cyclist!N64 -> 66 | M64: =DYN_cyclist!O64 -> 64 | N64: =DYN_cyclist!P64 -> 79 | O64: 61.32648344 | P64: 55.14204331 | Q64: 67.61161227 | R64: 70.69644348 | S64: 59.92783048 | T64: 42.40202341 | U64: 63.43046811 | V64: 74.53651543
A65: =DYN_cyclist!A65 -> 77 | B65: =DYN_cyclist!D65 -> 65 | C65: =DYN_cyclist!E65 -> 65 | D65: =DYN_cyclist!F65 -> 66 | E65: =DYN_cyclist!G65 -> 60 | F65: =DYN_cyclist!H65 -> 63 | G65: =DYN_cyclist!I65 -> 68 | H65: =DYN_cyclist!J65 -> 66 | I65: =DYN_cyclist!K65 -> 59 | J65: =DYN_cyclist!L65 -> 67 | K65: =DYN_cyclist!M65 -> 68 | L65: =DYN_cyclist!N65 -> 65 | M65: =DYN_cyclist!O65 -> 63 | N65: =DYN_cyclist!P65 -> 59 | O65: 58.09685134 | P65: 54.49879906 | Q65: 54.77002111 | R65: 45.10140675 | S65: 51.0462908 | T65: 49.84186008 | U65: 48.08924782 | V65: 67.50937724
A66: =DYN_cyclist!A66 -> 78 | B66: =DYN_cyclist!D66 -> 69 | C66: =DYN_cyclist!E66 -> 73 | D66: =DYN_cyclist!F66 -> 72 | E66: =DYN_cyclist!G66 -> 75 | F66: =DYN_cyclist!H66 -> 70 | G66: =DYN_cyclist!I66 -> 73 | H66: =DYN_cyclist!J66 -> 75 | I66: =DYN_cyclist!K66 -> 60 | J66: =DYN_cyclist!L66 -> 63 | K66: =DYN_cyclist!M66 -> 69 | L66: =DYN_cyclist!N66 -> 71 | M66: =DYN_cyclist!O66 -> 64 | N66: =DYN_cyclist!P66 -> 73 | O66: 66.50065714 | P66: 68.39711699 | Q66: 53.11640635 | R66: 67.49510015 | S66: 55.55180359 | T66: 62.04785487 | U66: 55.27474068 | V66: 73.52009259
A67: =DYN_cyclist!A67 -> 80 | B67: =DYN_cyclist!D67 -> 66 | C67: =DYN_cyclist!E67 -> 74 | D67: =DYN_cyclist!F67 -> 71 | E67: =DYN_cyclist!G67 -> 71 | F67: =DYN_cyclist!H67 -> 70 | G67: =DYN_cyclist!I67 -> 74 | H67: =DYN_cyclist!J67 -> 69 | I67: =DYN_cyclist!K67 -> 57 | J67: =DYN_cyclist!L67 -> 58 | K67: =DYN_cyclist!M67 -> 68 | L67: =DYN_cyclist!N67 -> 64 | M67: =DYN_cyclist!O67 -> 68 | N67: =DYN_cyclist!P67 -> 73 | O67: =((($B67*6)^2+($C67*6)^2+($D67*11)^2+($E67*0)^2+($F67*3)^2+($G67*4)^2+($H67*0)^2+($I67*0)^2+($J67*5)^2+($K67*5)^2+($L67*1)^2+($M67*1)^2)+($N67*0)^2)/1846025*91.12 -> 64.36800416 | P67: =((($B67*2)^2+($C67*14)^2+($D67*10)^2+($E67*7)^2+($F67*2)^2+($G67*7)^2+($H67*5)^2+($I67*0)^2+($J67*0)^2+($K67*3)^2+($L67*0)^2+($M67*0)^2)+($N67*0)^2)/3088326.56*90.98 -> 67.47344948 | Q67: =((($B67*5)^2+($C67*2)^2+($D67*1)^2+($E67*0)^2+($F67*2)^2+($G67*1)^2+($H67*1)^2+($I67*0)^2+($J67*10.75)^2+($K67*7)^2+($L67*0)^2+($M67*0)^2)+($N67*1)^2)/1485576.56*IF(B67>77,92,IF(B67>75,92-0.5,IF(B67>73,92-0.88,92-1.65))) -> 47.8236889 | R67: =((($B67*1)^2+($C67*4)^2+($D67*2)^2+($E67*13)^2+($F67*0)^2+($G67*3.5)^2+($H67*0)^2+($I67*0)^2+($J67*0)^2+($K67*1)^2+($L67*0)^2+($M67*0)^2+($N67*6)^2)/1697831.25*IF(E67>81,87,IF(E67>80,87-0.1,IF(E67>79,87-0.2,86.6)))) -> 62.61598283 | S67: =(($B67*7)^2+($C67*3)^2+($D67*4)^2+($E67*0)^2+($F67*2.5)^2+($G67*2)^2+($H67*0)^2+($I67*11)^2+($J67*1)^2+($K67*5)^2+($L67*3)^2+($M67*0)^2+($N67*0)^2)/1680031.25*91.49 -> 51.45508829 | T67: =(($B67*1)^2+($C67*14.5)^2+($D67*2)^2+($E67*0)^2+($F67*1)^2+($G67*3)^2+($H67*2.5)^2+($I67*0)^2+($J67*0)^2+($K67*3)^2+($L67*1)^2+($M67*1.25)^2+($N67*0)^2)/1693126.56*81.55 -> 63.22789342 | U67: =((($B67*13)^2+($C67*4)^2+($D67*3)^2+($E67*2)^2+($F67*2)^2+($G67*2)^2+($H67*0)^2+($I67*2)^2+($J67*0)^2+($K67*0)^2+($L67*3)^2+($M67*1)^2)+($N67*0)^2)/1569500*81.55 -> 51.19547407 | V67: =((LARGE(O67:U67,1)*9)^2+(LARGE(O67:U67,2)*4)^2+(LARGE(O67:U67,3)^2))^(1/4)*2.82883066759522 -> 72.81767825
A68: =DYN_cyclist!A68 -> 82 | B68: =DYN_cyclist!D68 -> 73 | C68: =DYN_cyclist!E68 -> 79 | D68: =DYN_cyclist!F68 -> 74 | E68: =DYN_cyclist!G68 -> 76 | F68: =DYN_cyclist!H68 -> 73 | G68: =DYN_cyclist!I68 -> 77 | H68: =DYN_cyclist!J68 -> 75 | I68: =DYN_cyclist!K68 -> 58 | J68: =DYN_cyclist!L68 -> 64 | K68: =DYN_cyclist!M68 -> 66 | L68: =DYN_cyclist!N68 -> 70 | M68: =DYN_cyclist!O68 -> 66 | N68: =DYN_cyclist!P68 -> 76 | O68: 71.20181289 | P68: 75.61741954 | Q68: 54.07334554 | R68: 70.80458947 | S68: 55.8769274 | T68: 71.48504457 | U68: 61.30091937 | V68: 77.03630682
A69: =DYN_cyclist!A69 -> 83 | B69: =DYN_cyclist!D69 -> 73 | C69: =DYN_cyclist!E69 -> 70 | D69: =DYN_cyclist!F69 -> 71 | E69: =DYN_cyclist!G69 -> 68 | F69: =DYN_cyclist!H69 -> 75 | G69: =DYN_cyclist!I69 -> 71 | H69: =DYN_cyclist!J69 -> 70 | I69: =DYN_cyclist!K69 -> 65 | J69: =DYN_cyclist!L69 -> 67 | K69: =DYN_cyclist!M69 -> 79 | L69: =DYN_cyclist!N69 -> 75 | M69: =DYN_cyclist!O69 -> 78 | N69: =DYN_cyclist!P69 -> 70 | O69: 68.58316025 | P69: 63.64892274 | Q69: 62.02088114 | R69: 57.62391218 | S69: 63.36442775 | T69: 58.21441236 | U69: 60.22796142 | V69: 73.2603472
A70: =DYN_cyclist!A70 -> 86 | B70: =DYN_cyclist!D70 -> 75 | C70: =DYN_cyclist!E70 -> 74 | D70: =DYN_cyclist!F70 -> 69 | E70: =DYN_cyclist!G70 -> 67 | F70: =DYN_cyclist!H70 -> 72 | G70: =DYN_cyclist!I70 -> 78 | H70: =DYN_cyclist!J70 -> 72 | I70: =DYN_cyclist!K70 -> 62 | J70: =DYN_cyclist!L70 -> 62 | K70: =DYN_cyclist!M70 -> 66 | L70: =DYN_cyclist!N70 -> 70 | M70: =DYN_cyclist!O70 -> 68 | N70: =DYN_cyclist!P70 -> 71 | O70: 65.85828465 | P70: 67.15290262 | Q70: 52.87210098 | R70: 57.70270408 | S70: 58.8024155 | T70: 63.56219694 | U70: 62.77806811 | V70: 72.80324856
A71: =DYN_cyclist!A71 -> 87 | B71: =DYN_cyclist!D71 -> 67 | C71: =DYN_cyclist!E71 -> 73 | D71: =DYN_cyclist!F71 -> 73 | E71: =DYN_cyclist!G71 -> 64 | F71: =DYN_cyclist!H71 -> 66 | G71: =DYN_cyclist!I71 -> 69 | H71: =DYN_cyclist!J71 -> 70 | I71: =DYN_cyclist!K71 -> 53 | J71: =DYN_cyclist!L71 -> 55 | K71: =DYN_cyclist!M71 -> 66 | L71: =DYN_cyclist!N71 -> 70 | M71: =DYN_cyclist!O71 -> 68 | N71: =DYN_cyclist!P71 -> 64 | O71: 64.54752689 | P71: 65.05975902 | Q71: 44.58404734 | R71: 51.69112057 | S71: 48.75939648 | T71: 61.42939999 | U71: 52.20228793 | V71: 71.72503069
A72: =DYN_cyclist!A72 -> 88 | B72: =DYN_cyclist!D72 -> 69 | C72: =DYN_cyclist!E72 -> 59 | D72: =DYN_cyclist!F72 -> 67 | E72: =DYN_cyclist!G72 -> 67 | F72: =DYN_cyclist!H72 -> 71 | G72: =DYN_cyclist!I72 -> 69 | H72: =DYN_cyclist!J72 -> 69 | I72: =DYN_cyclist!K72 -> 57 | J72: =DYN_cyclist!L72 -> 66 | K72: =DYN_cyclist!M72 -> 69 | L72: =DYN_cyclist!N72 -> 63 | M72: =DYN_cyclist!O72 -> 64 | N72: =DYN_cyclist!P72 -> 71 | O72: 59.10458738 | P72: 52.59985131 | Q72: 55.27421487 | R72: 55.16903252 | S72: 51.14758142 | T72: 42.64854561 | U72: 52.51430306 | V72: 68.05063222
A73: =DYN_cyclist!A73 -> 89 | B73: =DYN_cyclist!D73 -> 73 | C73: =DYN_cyclist!E73 -> 57 | D73: =DYN_cyclist!F73 -> 64 | E73: =DYN_cyclist!G73 -> 63 | F73: =DYN_cyclist!H73 -> 72 | G73: =DYN_cyclist!I73 -> 77 | H73: =DYN_cyclist!J73 -> 70 | I73: =DYN_cyclist!K73 -> 55 | J73: =DYN_cyclist!L73 -> 77 | K73: =DYN_cyclist!M73 -> 77 | L73: =DYN_cyclist!N73 -> 66 | M73: =DYN_cyclist!O73 -> 67 | N73: =DYN_cyclist!P73 -> 70 | O73: 61.76129667 | P73: 51.53374798 | Q73: 70.69944695 | R73: 50.97652305 | S73: 52.89967763 | T73: 41.36035482 | U73: 57.44455782 | V73: 74.03669851
A74: =DYN_cyclist!A74 -> 90 | B74: =DYN_cyclist!D74 -> 77 | C74: =DYN_cyclist!E74 -> 61 | D74: =DYN_cyclist!F74 -> 70 | E74: =DYN_cyclist!G74 -> 75 | F74: =DYN_cyclist!H74 -> 73 | G74: =DYN_cyclist!I74 -> 76 | H74: =DYN_cyclist!J74 -> 74 | I74: =DYN_cyclist!K74 -> 66 | J74: =DYN_cyclist!L74 -> 73 | K74: =DYN_cyclist!M74 -> 71 | L74: =DYN_cyclist!N74 -> 65 | M74: =DYN_cyclist!O74 -> 73 | N74: =DYN_cyclist!P74 -> 77 | O74: 66.61053275 | P74: 59.07377252 | Q74: 65.86352033 | R74: 67.57975776 | S74: 62.9131944 | T74: 46.11001029 | U74: 64.08312791 | V74: 73.07350931
A75: =DYN_cyclist!A75 -> 91 | B75: =DYN_cyclist!D75 -> 63 | C75: =DYN_cyclist!E75 -> 66 | D75: =DYN_cyclist!F75 -> 67 | E75: =DYN_cyclist!G75 -> 58 | F75: =DYN_cyclist!H75 -> 65 | G75: =DYN_cyclist!I75 -> 66 | H75: =DYN_cyclist!J75 -> 68 | I75: =DYN_cyclist!K75 -> 58 | J75: =DYN_cyclist!L75 -> 60 | K75: =DYN_cyclist!M75 -> 68 | L75: =DYN_cyclist!N75 -> 64 | M75: =DYN_cyclist!O75 -> 69 | N75: =DYN_cyclist!P75 -> 58 | O75: 57.50684993 | P75: 55.1168556 | Q75: 48.2277494 | R75: 42.80576859 | S75: 49.68943221 | T75: 51.21198311 | U75: 45.91735231 | V75: 67.2338809
A76: =DYN_cyclist!A76 -> 92 | B76: =DYN_cyclist!D76 -> 68 | C76: =DYN_cyclist!E76 -> 59 | D76: =DYN_cyclist!F76 -> 71 | E76: =DYN_cyclist!G76 -> 58 | F76: =DYN_cyclist!H76 -> 68 | G76: =DYN_cyclist!I76 -> 69 | H76: =DYN_cyclist!J76 -> 68 | I76: =DYN_cyclist!K76 -> 59 | J76: =DYN_cyclist!L76 -> 68 | K76: =DYN_cyclist!M76 -> 73 | L76: =DYN_cyclist!N76 -> 62 | M76: =DYN_cyclist!O76 -> 66 | N76: =DYN_cyclist!P76 -> 58 | O76: 63.01104533 | P76: 52.58647677 | Q76: 58.46398936 | R76: 42.52672617 | S76: 53.37639701 | T76: 42.94673717 | U76: 51.25221354 | V76: 70.19508068
A77: =DYN_cyclist!A77 -> 94 | B77: =DYN_cyclist!D77 -> 54 | C77: =DYN_cyclist!E77 -> 59 | D77: =DYN_cyclist!F77 -> 65 | E77: =DYN_cyclist!G77 -> 52 | F77: =DYN_cyclist!H77 -> 53 | G77: =DYN_cyclist!I77 -> 55 | H77: =DYN_cyclist!J77 -> 51 | I77: =DYN_cyclist!K77 -> 46 | J77: =DYN_cyclist!L77 -> 59 | K77: =DYN_cyclist!M77 -> 66 | L77: =DYN_cyclist!N77 -> 62 | M77: =DYN_cyclist!O77 -> 61 | N77: =DYN_cyclist!P77 -> 52 | O77: 50.28255336 | P77: 44.56093318 | Q77: 44.1741635 | R77: 34.23764997 | S77: 36.73049597 | T77: 40.78874073 | U77: 34.68059885 | V77: 62.51538903
A78: =DYN_cyclist!A78 -> 95 | B78: =DYN_cyclist!D78 -> 76 | C78: =DYN_cyclist!E78 -> 61 | D78: =DYN_cyclist!F78 -> 68 | E78: =DYN_cyclist!G78 -> 75 | F78: =DYN_cyclist!H78 -> 74 | G78: =DYN_cyclist!I78 -> 70 | H78: =DYN_cyclist!J78 -> 66 | I78: =DYN_cyclist!K78 -> 77 | J78: =DYN_cyclist!L78 -> 64 | K78: =DYN_cyclist!M78 -> 68 | L78: =DYN_cyclist!N78 -> 70 | M78: =DYN_cyclist!O78 -> 62 | N78: =DYN_cyclist!P78 -> 77 | O78: 61.98761278 | P78: 56.06005464 | Q78: 55.48950335 | R78: 66.94702527 | S78: 72.18464849 | T78: 45.0796425 | U78: 63.02445874 | V78: 75.1377616
A79: =DYN_cyclist!A79 -> 98 | B79: =DYN_cyclist!D79 -> 68 | C79: =DYN_cyclist!E79 -> 51 | D79: =DYN_cyclist!F79 -> 55 | E79: =DYN_cyclist!G79 -> 58 | F79: =DYN_cyclist!H79 -> 52 | G79: =DYN_cyclist!I79 -> 57 | H79: =DYN_cyclist!J79 -> 47 | I79: =DYN_cyclist!K79 -> 47 | J79: =DYN_cyclist!L79 -> 61 | K79: =DYN_cyclist!M79 -> 64 | L79: =DYN_cyclist!N79 -> 58 | M79: =DYN_cyclist!O79 -> 55 | N79: =DYN_cyclist!P79 -> 60 | O79: 44.63432515 | P79: 37.05198822 | Q79: 47.41473633 | R79: 40.8229645 | S79: 39.86096141 | T79: 31.51409697 | U79: 48.30659325 | V79: 61.74518476
A80: =DYN_cyclist!A80 -> 100 | B80: =DYN_cyclist!D80 -> 75 | C80: =DYN_cyclist!E80 -> 66 | D80: =DYN_cyclist!F80 -> 69 | E80: =DYN_cyclist!G80 -> 74 | F80: =DYN_cyclist!H80 -> 71 | G80: =DYN_cyclist!I80 -> 72 | H80: =DYN_cyclist!J80 -> 68 | I80: =DYN_cyclist!K80 -> 63 | J80: =DYN_cyclist!L80 -> 71 | K80: =DYN_cyclist!M80 -> 70 | L80: =DYN_cyclist!N80 -> 71 | M80: =DYN_cyclist!O80 -> 73 | N80: =DYN_cyclist!P80 -> 76 | O80: 65.28393039 | P80: 60.52652942 | Q80: 62.63731316 | R80: 66.11169597 | S80: 59.7073464 | T80: 51.95028538 | U80: 61.96386709 | V80: 72.27643097
A81: =DYN_cyclist!A81 -> 101 | B81: =DYN_cyclist!D81 -> 70 | C81: =DYN_cyclist!E81 -> 55 | D81: =DYN_cyclist!F81 -> 59 | E81: =DYN_cyclist!G81 -> 59 | F81: =DYN_cyclist!H81 -> 65 | G81: =DYN_cyclist!I81 -> 71 | H81: =DYN_cyclist!J81 -> 70 | I81: =DYN_cyclist!K81 -> 61 | J81: =DYN_cyclist!L81 -> 70 | K81: =DYN_cyclist!M81 -> 72 | L81: =DYN_cyclist!N81 -> 59 | M81: =DYN_cyclist!O81 -> 59 | N81: =DYN_cyclist!P81 -> 72 | O81: 53.51840483 | P81: 46.08126976 | Q81: 60.23296092 | R81: 46.36841468 | S81: 53.67647046 | T81: 38.08072932 | U81: 52.40144763 | V81: 68.45058539
A82: =DYN_cyclist!A82 -> 102 | B82: =DYN_cyclist!D82 -> 64 | C82: =DYN_cyclist!E82 -> 73 | D82: =DYN_cyclist!F82 -> 71 | E82: =DYN_cyclist!G82 -> 73 | F82: =DYN_cyclist!H82 -> 70 | G82: =DYN_cyclist!I82 -> 69 | H82: =DYN_cyclist!J82 -> 72 | I82: =DYN_cyclist!K82 -> 52 | J82: =DYN_cyclist!L82 -> 65 | K82: =DYN_cyclist!M82 -> 70 | L82: =DYN_cyclist!N82 -> 73 | M82: =DYN_cyclist!O82 -> 65 | N82: =DYN_cyclist!P82 -> 75 | O82: 64.52432763 | P82: 66.36236177 | Q82: 54.26672061 | R82: 65.07617989 | S82: 47.96927521 | T82: 61.69313227 | U82: 49.14402004 | V82: 72.38204871
A83: =DYN_cyclist!A83 -> 103 | B83: =DYN_cyclist!D83 -> 71 | C83: =DYN_cyclist!E83 -> 67 | D83: =DYN_cyclist!F83 -> 70 | E83: =DYN_cyclist!G83 -> 76 | F83: =DYN_cyclist!H83 -> 74 | G83: =DYN_cyclist!I83 -> 71 | H83: =DYN_cyclist!J83 -> 71 | I83: =DYN_cyclist!K83 -> 58 | J83: =DYN_cyclist!L83 -> 65 | K83: =DYN_cyclist!M83 -> 65 | L83: =DYN_cyclist!N83 -> 67 | M83: =DYN_cyclist!O83 -> 67 | N83: =DYN_cyclist!P83 -> 75 | O83: 63.4844088 | P83: 62.04118035 | Q83: 53.62752198 | R83: 68.40377644 | S83: 53.23170391 | T83: 52.99788131 | U83: 56.70678882 | V83: 73.15871258
A84: =DYN_cyclist!A84 -> 104 | B84: =DYN_cyclist!D84 -> 71 | C84: =DYN_cyclist!E84 -> 65 | D84: =DYN_cyclist!F84 -> 78 | E84: =DYN_cyclist!G84 -> 69 | F84: =DYN_cyclist!H84 -> 77 | G84: =DYN_cyclist!I84 -> 74 | H84: =DYN_cyclist!J84 -> 71 | I84: =DYN_cyclist!K84 -> 63 | J84: =DYN_cyclist!L84 -> 62 | K84: =DYN_cyclist!M84 -> 69 | L84: =DYN_cyclist!N84 -> 73 | M84: =DYN_cyclist!O84 -> 69 | N84: =DYN_cyclist!P84 -> 69 | O84: 70.87776376 | P84: 63.36307895 | Q84: 52.63896496 | R84: 58.39317565 | S84: 59.49011615 | T84: 51.05619235 | U84: 57.5472812 | V84: 74.25235798
A85: =DYN_cyclist!A85 -> 106 | B85: =DYN_cyclist!D85 -> 71 | C85: =DYN_cyclist!E85 -> 75 | D85: =DYN_cyclist!F85 -> 70 | E85: =DYN_cyclist!G85 -> 77 | F85: =DYN_cyclist!H85 -> 78 | G85: =DYN_cyclist!I85 -> 77 | H85: =DYN_cyclist!J85 -> 76 | I85: =DYN_cyclist!K85 -> 53 | J85: =DYN_cyclist!L85 -> 62 | K85: =DYN_cyclist!M85 -> 67 | L85: =DYN_cyclist!N85 -> 60 | M85: =DYN_cyclist!O85 -> 68 | N85: =DYN_cyclist!P85 -> 77 | O85: 66.29285107 | P85: 70.78612054 | Q85: 52.27794849 | R85: 71.77625848 | S85: 50.43472148 | T85: 65.21914451 | U85: 57.46986196 | V85: 75.29279777
A86: =DYN_cyclist!A86 -> 107 | B86: =DYN_cyclist!D86 -> 60 | C86: =DYN_cyclist!E86 -> 65 | D86: =DYN_cyclist!F86 -> 63 | E86: =DYN_cyclist!G86 -> 60 | F86: =DYN_cyclist!H86 -> 63 | G86: =DYN_cyclist!I86 -> 57 | H86: =DYN_cyclist!J86 -> 54 | I86: =DYN_cyclist!K86 -> 46 | J86: =DYN_cyclist!L86 -> 47 | K86: =DYN_cyclist!M86 -> 55 | L86: =DYN_cyclist!N86 -> 60 | M86: =DYN_cyclist!O86 -> 61 | N86: =DYN_cyclist!P86 -> 58 | O86: 48.75915223 | P86: 49.81576882 | Q86: 32.82820538 | R86: 43.8350364 | S86: 37.13996056 | T86: 47.96574822 | U86: 41.54545135 | V86: 62.70020895
A87: =DYN_cyclist!A87 -> 108 | B87: =DYN_cyclist!D87 -> 69 | C87: =DYN_cyclist!E87 -> 60 | D87: =DYN_cyclist!F87 -> 66 | E87: =DYN_cyclist!G87 -> 58 | F87: =DYN_cyclist!H87 -> 70 | G87: =DYN_cyclist!I87 -> 71 | H87: =DYN_cyclist!J87 -> 63 | I87: =DYN_cyclist!K87 -> 68 | J87: =DYN_cyclist!L87 -> 68 | K87: =DYN_cyclist!M87 -> 67 | L87: =DYN_cyclist!N87 -> 62 | M87: =DYN_cyclist!O87 -> 60 | N87: =DYN_cyclist!P87 -> 64 | O87: 58.6446005 | P87: 51.00336238 | Q87: 56.24516124 | R87: 43.9672956 | S87: 59.74637869 | T87: 43.54291559 | U87: 52.54766088 | V87: 68.67405618
A88: =DYN_cyclist!A88 -> 109 | B88: =DYN_cyclist!D88 -> 68 | C88: =DYN_cyclist!E88 -> 54 | D88: =DYN_cyclist!F88 -> 56 | E88: =DYN_cyclist!G88 -> 62 | F88: =DYN_cyclist!H88 -> 58 | G88: =DYN_cyclist!I88 -> 68 | H88: =DYN_cyclist!J88 -> 68 | I88: =DYN_cyclist!K88 -> 57 | J88: =DYN_cyclist!L88 -> 64 | K88: =DYN_cyclist!M88 -> 68 | L88: =DYN_cyclist!N88 -> 65 | M88: =DYN_cyclist!O88 -> 63 | N88: =DYN_cyclist!P88 -> 69 | O88: 48.43954551 | P88: 43.87187969 | Q88: 52.16888637 | R88: 48.25823438 | S88: 48.65037292 | T88: 36.42163839 | U88: 49.81091666 | V88: 64.03169972
A89: =DYN_cyclist!A89 -> 110 | B89: =DYN_cyclist!D89 -> 73 | C89: =DYN_cyclist!E89 -> 60 | D89: =DYN_cyclist!F89 -> 69 | E89: =DYN_cyclist!G89 -> 69 | F89: =DYN_cyclist!H89 -> 72 | G89: =DYN_cyclist!I89 -> 70 | H89: =DYN_cyclist!J89 -> 69 | I89: =DYN_cyclist!K89 -> 71 | J89: =DYN_cyclist!L89 -> 67 | K89: =DYN_cyclist!M89 -> 68 | L89: =DYN_cyclist!N89 -> 74 | M89: =DYN_cyclist!O89 -> 71 | N89: =DYN_cyclist!P89 -> 70 | O89: 62.23929999 | P89: 54.72899419 | Q89: 56.74448195 | R89: 57.51622524 | S89: 65.40492993 | T89: 44.08485082 | U89: 58.96950905 | V89: 71.66721454
A90: =DYN_cyclist!A90 -> 111 | B90: =DYN_cyclist!D90 -> 65 | C90: =DYN_cyclist!E90 -> 71 | D90: =DYN_cyclist!F90 -> 51 | E90: =DYN_cyclist!G90 -> 71 | F90: =DYN_cyclist!H90 -> 72 | G90: =DYN_cyclist!I90 -> 62 | H90: =DYN_cyclist!J90 -> 73 | I90: =DYN_cyclist!K90 -> 63 | J90: =DYN_cyclist!L90 -> 50 | K90: =DYN_cyclist!M90 -> 54 | L90: =DYN_cyclist!N90 -> 78 | M90: =DYN_cyclist!O90 -> 64 | N90: =DYN_cyclist!P90 -> 71 | O90: 44.52464698 | P90: 55.40137371 | Q90: 36.19471358 | R90: 60.12080824 | S90: 51.85377033 | T90: 57.13918157 | U90: 49.31418649 | V90: 68.71121567
A91: =DYN_cyclist!A91 -> 112 | B91: =DYN_cyclist!D91 -> 76 | C91: =DYN_cyclist!E91 -> 65 | D91: =DYN_cyclist!F91 -> 70 | E91: =DYN_cyclist!G91 -> 61 | F91: =DYN_cyclist!H91 -> 74 | G91: =DYN_cyclist!I91 -> 78 | H91: =DYN_cyclist!J91 -> 69 | I91: =DYN_cyclist!K91 -> 67 | J91: =DYN_cyclist!L91 -> 72 | K91: =DYN_cyclist!M91 -> 78 | L91: =DYN_cyclist!N91 -> 73 | M91: =DYN_cyclist!O91 -> 76 | N91: =DYN_cyclist!P91 -> 67 | O91: 68.72748922 | P91: 59.42928759 | Q91: 67.79027599 | R91: 49.17216431 | S91: 65.69861826 | T91: 51.67082712 | U91: 63.42459672 | V91: 73.68880604
A92: =DYN_cyclist!A92 -> 113 | B92: =DYN_cyclist!D92 -> 70 | C92: =DYN_cyclist!E92 -> 61 | D92: =DYN_cyclist!F92 -> 66 | E92: =DYN_cyclist!G92 -> 61 | F92: =DYN_cyclist!H92 -> 65 | G92: =DYN_cyclist!I92 -> 71 | H92: =DYN_cyclist!J92 -> 75 | I92: =DYN_cyclist!K92 -> 62 | J92: =DYN_cyclist!L92 -> 75 | K92: =DYN_cyclist!M92 -> 77 | L92: =DYN_cyclist!N92 -> 63 | M92: =DYN_cyclist!O92 -> 65 | N92: =DYN_cyclist!P92 -> 62 | O92: 61.85596936 | P92: 53.75559934 | Q92: 67.7337721 | R92: 46.76121378 | S92: 56.8834076 | T92: 45.91822799 | U92: 53.73155177 | V92: 72.69362406
A93: =DYN_cyclist!A93 -> 114 | B93: =DYN_cyclist!D93 -> 73 | C93: =DYN_cyclist!E93 -> 65 | D93: =DYN_cyclist!F93 -> 69 | E93: =DYN_cyclist!G93 -> 73 | F93: =DYN_cyclist!H93 -> 75 | G93: =DYN_cyclist!I93 -> 73 | H93: =DYN_cyclist!J93 -> 73 | I93: =DYN_cyclist!K93 -> 75 | J93: =DYN_cyclist!L93 -> 66 | K93: =DYN_cyclist!M93 -> 69 | L93: =DYN_cyclist!N93 -> 63 | M93: =DYN_cyclist!O93 -> 74 | N93: =DYN_cyclist!P93 -> 73 | O93: 63.83664256 | P93: 60.28354895 | Q93: 56.56404594 | R93: 63.98525828 | S93: 69.24364006 | T93: 50.8118105 | U93: 59.22722679 | V93: 73.5887629
A94: =DYN_cyclist!A94 -> 115 | B94: =DYN_cyclist!D94 -> 73 | C94: =DYN_cyclist!E94 -> 62 | D94: =DYN_cyclist!F94 -> 69 | E94: =DYN_cyclist!G94 -> 60 | F94: =DYN_cyclist!H94 -> 75 | G94: =DYN_cyclist!I94 -> 74 | H94: =DYN_cyclist!J94 -> 83 | I94: =DYN_cyclist!K94 -> 66 | J94: =DYN_cyclist!L94 -> 78 | K94: =DYN_cyclist!M94 -> 77 | L94: =DYN_cyclist!N94 -> 62 | M94: =DYN_cyclist!O94 -> 66 | N94: =DYN_cyclist!P94 -> 66 | O94: 66.78793299 | P94: 57.25860707 | Q94: 72.14163886 | R94: 47.13502582 | S94: 62.35005125 | T94: 47.90285333 | U94: 58.20129194 | V94: 75.10272363
A95: =DYN_cyclist!A95 -> 116 | B95: =DYN_cyclist!D95 -> 62 | C95: =DYN_cyclist!E95 -> 67 | D95: =DYN_cyclist!F95 -> 68 | E95: =DYN_cyclist!G95 -> 58 | F95: =DYN_cyclist!H95 -> 60 | G95: =DYN_cyclist!I95 -> 61 | H95: =DYN_cyclist!J95 -> 61 | I95: =DYN_cyclist!K95 -> 54 | J95: =DYN_cyclist!L95 -> 62 | K95: =DYN_cyclist!M95 -> 59 | L95: =DYN_cyclist!N95 -> 62 | M95: =DYN_cyclist!O95 -> 64 | N95: =DYN_cyclist!P95 -> 58 | O95: 56.39358197 | P95: 54.3094051 | Q95: 46.14133757 | R95: 42.4804125 | S95: 44.56928687 | T95: 51.44396841 | U95: 44.4860316 | V95: 66.61104754
A96: =DYN_cyclist!A96 -> 118 | B96: =DYN_cyclist!D96 -> 69 | C96: =DYN_cyclist!E96 -> 81 | D96: =DYN_cyclist!F96 -> 73 | E96: =DYN_cyclist!G96 -> 79 | F96: =DYN_cyclist!H96 -> 71 | G96: =DYN_cyclist!I96 -> 68 | H96: =DYN_cyclist!J96 -> 70 | I96: =DYN_cyclist!K96 -> 54 | J96: =DYN_cyclist!L96 -> 68 | K96: =DYN_cyclist!M96 -> 69 | L96: =DYN_cyclist!N96 -> 64 | M96: =DYN_cyclist!O96 -> 67 | N96: =DYN_cyclist!P96 -> 79 | O96: 69.84278094 | P96: 75.29207081 | Q96: 58.03126831 | R96: 75.07420764 | S96: 51.24179258 | T96: 74.01895336 | U96: 55.81392154 | V96: 77.20553117
A97: =DYN_cyclist!A97 -> 119 | B97: =DYN_cyclist!D97 -> 73 | C97: =DYN_cyclist!E97 -> 60 | D97: =DYN_cyclist!F97 -> 62 | E97: =DYN_cyclist!G97 -> 59 | F97: =DYN_cyclist!H97 -> 70 | G97: =DYN_cyclist!I97 -> 73 | H97: =DYN_cyclist!J97 -> 68 | I97: =DYN_cyclist!K97 -> 73 | J97: =DYN_cyclist!L97 -> 72 | K97: =DYN_cyclist!M97 -> 71 | L97: =DYN_cyclist!N97 -> 67 | M97: =DYN_cyclist!O97 -> 69 | N97: =DYN_cyclist!P97 -> 64 | O97: 58.28476529 | P97: 50.77534725 | Q97: 62.7158462 | R97: 45.10845836 | S97: 66.62226887 | T97: 44.15137918 | U97: 57.88854938 | V97: 72.26386224
A98: =DYN_cyclist!A98 -> 120 | B98: =DYN_cyclist!D98 -> 74 | C98: =DYN_cyclist!E98 -> 59 | D98: =DYN_cyclist!F98 -> 67 | E98: =DYN_cyclist!G98 -> 59 | F98: =DYN_cyclist!H98 -> 75 | G98: =DYN_cyclist!I98 -> 73 | H98: =DYN_cyclist!J98 -> 81 | I98: =DYN_cyclist!K98 -> 73 | J98: =DYN_cyclist!L98 -> 80 | K98: =DYN_cyclist!M98 -> 80 | L98: =DYN_cyclist!N98 -> 67 | M98: =DYN_cyclist!O98 -> 68 | N98: =DYN_cyclist!P98 -> 69 | O98: 65.67969977 | P98: 53.87800282 | Q98: 76.52728694 | R98: 46.44084355 | S98: 69.681368 | T98: 44.27446267 | U98: 59.52562861 | V98: 77.25886165
A99: =DYN_cyclist!A99 -> 121 | B99: =DYN_cyclist!D99 -> 72 | C99: =DYN_cyclist!E99 -> 68 | D99: =DYN_cyclist!F99 -> 69 | E99: =DYN_cyclist!G99 -> 77 | F99: =DYN_cyclist!H99 -> 68 | G99: =DYN_cyclist!I99 -> 74 | H99: =DYN_cyclist!J99 -> 71 | I99: =DYN_cyclist!K99 -> 58 | J99: =DYN_cyclist!L99 -> 60 | K99: =DYN_cyclist!M99 -> 60 | L99: =DYN_cyclist!N99 -> 63 | M99: =DYN_cyclist!O99 -> 64 | N99: =DYN_cyclist!P99 -> 75 | O99: 61.52570085 | P99: 63.01071603 | Q99: 47.43328207 | R99: 70.05167351 | S99: 52.22331771 | T99: 54.16707965 | U99: 57.69126021 | V99: 73.8623005
A100: =DYN_cyclist!A100 -> 122 | B100: =DYN_cyclist!D100 -> 71 | C100: =DYN_cyclist!E100 -> 61 | D100: =DYN_cyclist!F100 -> 67 | E100: =DYN_cyclist!G100 -> 63 | F100: =DYN_cyclist!H100 -> 68 | G100: =DYN_cyclist!I100 -> 68 | H100: =DYN_cyclist!J100 -> 64 | I100: =DYN_cyclist!K100 -> 78 | J100: =DYN_cyclist!L100 -> 60 | K100: =DYN_cyclist!M100 -> 61 | L100: =DYN_cyclist!N100 -> 75 | M100: =DYN_cyclist!O100 -> 66 | N100: =DYN_cyclist!P100 -> 63 | O100: 57.61346777 | P100: 52.25558969 | Q100: 47.13022528 | R100: 48.78966847 | S100: 69.87593039 | T100: 44.46129599 | U100: 56.32644731 | V100: 73.3394636
A101: =DYN_cyclist!A101 -> 125 | B101: =DYN_cyclist!D101 -> 65 | C101: =DYN_cyclist!E101 -> 50 | D101: =DYN_cyclist!F101 -> 57 | E101: =DYN_cyclist!G101 -> 72 | F101: =DYN_cyclist!H101 -> 63 | G101: =DYN_cyclist!I101 -> 61 | H101: =DYN_cyclist!J101 -> 56 | I101: =DYN_cyclist!K101 -> 53 | J101: =DYN_cyclist!L101 -> 55 | K101: =DYN_cyclist!M101 -> 54 | L101: =DYN_cyclist!N101 -> 60 | M101: =DYN_cyclist!O101 -> 54 | N101: =DYN_cyclist!P101 -> 70 | O101: 43.70971154 | P101: 40.90912643 | Q101: 38.86081729 | R101: 59.07621305 | S101: 41.90018385 | T101: 30.55147371 | U101: 45.79239038 | V101: 67.18393849
A102: =DYN_cyclist!A102 -> 128 | B102: =DYN_cyclist!D102 -> 77 | C102: =DYN_cyclist!E102 -> 62 | D102: =DYN_cyclist!F102 -> 66 | E102: =DYN_cyclist!G102 -> 71 | F102: =DYN_cyclist!H102 -> 71 | G102: =DYN_cyclist!I102 -> 77 | H102: =DYN_cyclist!J102 -> 70 | I102: =DYN_cyclist!K102 -> 63 | J102: =DYN_cyclist!L102 -> 65 | K102: =DYN_cyclist!M102 -> 73 | L102: =DYN_cyclist!N102 -> 71 | M102: =DYN_cyclist!O102 -> 71 | N102: =DYN_cyclist!P102 -> 71 | O102: 62.59202735 | P102: 57.17744664 | Q102: 58.71980504 | R102: 61.01475647 | S102: 60.61662028 | T102: 47.272324 | U102: 64.06774798 | V102: 71.09173091
A103: =DYN_cyclist!A103 -> 129 | B103: =DYN_cyclist!D103 -> 75 | C103: =DYN_cyclist!E103 -> 67 | D103: =DYN_cyclist!F103 -> 72 | E103: =DYN_cyclist!G103 -> 77 | F103: =DYN_cyclist!H103 -> 75 | G103: =DYN_cyclist!I103 -> 74 | H103: =DYN_cyclist!J103 -> 72 | I103: =DYN_cyclist!K103 -> 55 | J103: =DYN_cyclist!L103 -> 56 | K103: =DYN_cyclist!M103 -> 68 | L103: =DYN_cyclist!N103 -> 73 | M103: =DYN_cyclist!O103 -> 69 | N103: =DYN_cyclist!P103 -> 76 | O103: 65.83153147 | P103: 64.02408717 | Q103: 48.55890613 | R103: 70.3797967 | S103: 53.84479804 | T103: 53.55340819 | U103: 62.45742775 | V103: 74.25098579
A104: =DYN_cyclist!A104 -> 130 | B104: =DYN_cyclist!D104 -> 70 | C104: =DYN_cyclist!E104 -> 71 | D104: =DYN_cyclist!F104 -> 72 | E104: =DYN_cyclist!G104 -> 65 | F104: =DYN_cyclist!H104 -> 71 | G104: =DYN_cyclist!I104 -> 73 | H104: =DYN_cyclist!J104 -> 72 | I104: =DYN_cyclist!K104 -> 57 | J104: =DYN_cyclist!L104 -> 69 | K104: =DYN_cyclist!M104 -> 72 | L104: =DYN_cyclist!N104 -> 72 | M104: =DYN_cyclist!O104 -> 68 | N104: =DYN_cyclist!P104 -> 67 | O104: 67.83096151 | P104: 64.53364503 | Q104: 60.0410683 | R104: 53.67822194 | S104: 54.20579561 | T104: 59.24206784 | U104: 56.01557528 | V104: 72.97748735
A105: =DYN_cyclist!A105 -> 131 | B105: =DYN_cyclist!D105 -> 72 | C105: =DYN_cyclist!E105 -> 50 | D105: =DYN_cyclist!F105 -> 60 | E105: =DYN_cyclist!G105 -> 59 | F105: =DYN_cyclist!H105 -> 67 | G105: =DYN_cyclist!I105 -> 61 | H105: =DYN_cyclist!J105 -> 70 | I105: =DYN_cyclist!K105 -> 69 | J105: =DYN_cyclist!L105 -> 73 | K105: =DYN_cyclist!M105 -> 71 | L105: =DYN_cyclist!N105 -> 69 | M105: =DYN_cyclist!O105 -> 65 | N105: =DYN_cyclist!P105 -> 68 | O105: 53.32851648 | P105: 41.52170353 | Q105: 63.08316114 | R105: 44.1183761 | S105: 61.39192915 | T105: 32.29695217 | U105: 55.14837585 | V105: 70.49602311
A106: =DYN_cyclist!A106 -> 132 | B106: =DYN_cyclist!D106 -> 74 | C106: =DYN_cyclist!E106 -> 70 | D106: =DYN_cyclist!F106 -> 69 | E106: =DYN_cyclist!G106 -> 73 | F106: =DYN_cyclist!H106 -> 75 | G106: =DYN_cyclist!I106 -> 73 | H106: =DYN_cyclist!J106 -> 74 | I106: =DYN_cyclist!K106 -> 66 | J106: =DYN_cyclist!L106 -> 67 | K106: =DYN_cyclist!M106 -> 71 | L106: =DYN_cyclist!N106 -> 77 | M106: =DYN_cyclist!O106 -> 70 | N106: =DYN_cyclist!P106 -> 76 | O106: 65.87526453 | P106: 64.38083954 | Q106: 59.25782783 | R106: 65.37869794 | S106: 62.95392847 | T106: 57.87113805 | U106: 61.70209653 | V106: 72.18687902
A107: =DYN_cyclist!A107 -> 133 | B107: =DYN_cyclist!D107 -> 74 | C107: =DYN_cyclist!E107 -> 70 | D107: =DYN_cyclist!F107 -> 70 | E107: =DYN_cyclist!G107 -> 81 | F107: =DYN_cyclist!H107 -> 74 | G107: =DYN_cyclist!I107 -> 71 | H107: =DYN_cyclist!J107 -> 74 | I107: =DYN_cyclist!K107 -> 60 | J107: =DYN_cyclist!L107 -> 63 | K107: =DYN_cyclist!M107 -> 69 | L107: =DYN_cyclist!N107 -> 75 | M107: =DYN_cyclist!O107 -> 66 | N107: =DYN_cyclist!P107 -> 81 | O107: 65.38274933 | P107: 66.06119914 | Q107: 54.73288419 | R107: 77.54186426 | S107: 57.42154122 | T107: 57.58893738 | U107: 61.6047769 | V107: 77.42358057
A108: =DYN_cyclist!A108 -> 135 | B108: =DYN_cyclist!D108 -> 69 | C108: =DYN_cyclist!E108 -> 60 | D108: =DYN_cyclist!F108 -> 63 | E108: =DYN_cyclist!G108 -> 59 | F108: =DYN_cyclist!H108 -> 69 | G108: =DYN_cyclist!I108 -> 71 | H108: =DYN_cyclist!J108 -> 61 | I108: =DYN_cyclist!K108 -> 61 | J108: =DYN_cyclist!L108 -> 65 | K108: =DYN_cyclist!M108 -> 64 | L108: =DYN_cyclist!N108 -> 67 | M108: =DYN_cyclist!O108 -> 63 | N108: =DYN_cyclist!P108 -> 59 | O108: 55.344186 | P108: 49.72895221 | Q108: 52.15985868 | R108: 43.74756069 | S108: 53.17105207 | T108: 43.27548061 | U108: 52.49523402 | V108: 65.98777406
A109: =DYN_cyclist!A109 -> 136 | B109: =DYN_cyclist!D109 -> 70 | C109: =DYN_cyclist!E109 -> 75 | D109: =DYN_cyclist!F109 -> 75 | E109: =DYN_cyclist!G109 -> 64 | F109: =DYN_cyclist!H109 -> 73 | G109: =DYN_cyclist!I109 -> 72 | H109: =DYN_cyclist!J109 -> 74 | I109: =DYN_cyclist!K109 -> 58 | J109: =DYN_cyclist!L109 -> 66 | K109: =DYN_cyclist!M109 -> 68 | L109: =DYN_cyclist!N109 -> 70 | M109: =DYN_cyclist!O109 -> 69 | N109: =DYN_cyclist!P109 -> 64 | O109: 70.31797073 | P109: 68.909827 | Q109: 55.74975189 | R109: 52.29201241 | S109: 54.77683508 | T109: 65.03385549 | U109: 56.60843001 | V109: 74.48693282
A110: =DYN_cyclist!A110 -> 137 | B110: =DYN_cyclist!D110 -> 75 | C110: =DYN_cyclist!E110 -> 59 | D110: =DYN_cyclist!F110 -> 65 | E110: =DYN_cyclist!G110 -> 78 | F110: =DYN_cyclist!H110 -> 72 | G110: =DYN_cyclist!I110 -> 74 | H110: =DYN_cyclist!J110 -> 72 | I110: =DYN_cyclist!K110 -> 60 | J110: =DYN_cyclist!L110 -> 62 | K110: =DYN_cyclist!M110 -> 65 | L110: =DYN_cyclist!N110 -> 73 | M110: =DYN_cyclist!O110 -> 66 | N110: =DYN_cyclist!P110 -> 78 | O110: 58.47805948 | P110: 55.44470837 | Q110: 51.98272238 | R110: 71.24282239 | S110: 55.64928219 | T110: 42.93618897 | U110: 61.20999073 | V110: 74.24420749
A111: =DYN_cyclist!A111 -> 138 | B111: =DYN_cyclist!D111 -> 68 | C111: =DYN_cyclist!E111 -> 62 | D111: =DYN_cyclist!F111 -> 68 | E111: =DYN_cyclist!G111 -> 61 | F111: =DYN_cyclist!H111 -> 65 | G111: =DYN_cyclist!I111 -> 68 | H111: =DYN_cyclist!J111 -> 64 | I111: =DYN_cyclist!K111 -> 60 | J111: =DYN_cyclist!L111 -> 69 | K111: =DYN_cyclist!M111 -> 71 | L111: =DYN_cyclist!N111 -> 64 | M111: =DYN_cyclist!O111 -> 66 | N111: =DYN_cyclist!P111 -> 64 | O111: 60.70617492 | P111: 53.25932764 | Q111: 58.5385562 | R111: 47.05907751 | S111: 53.54833239 | T111: 46.19215325 | U111: 51.46436305 | V111: 69.10833695
A112: =DYN_cyclist!A112 -> 139 | B112: =DYN_cyclist!D112 -> 68 | C112: =DYN_cyclist!E112 -> 77 | D112: =DYN_cyclist!F112 -> 73 | E112: =DYN_cyclist!G112 -> 71 | F112: =DYN_cyclist!H112 -> 72 | G112: =DYN_cyclist!I112 -> 76 | H112: =DYN_cyclist!J112 -> 72 | I112: =DYN_cyclist!K112 -> 57 | J112: =DYN_cyclist!L112 -> 59 | K112: =DYN_cyclist!M112 -> 70 | L112: =DYN_cyclist!N112 -> 66 | M112: =DYN_cyclist!O112 -> 64 | N112: =DYN_cyclist!P112 -> 71 | O112: 68.20412395 | P112: 71.82031942 | Q112: 50.09924894 | R112: 62.73079789 | S112: 53.31475132 | T112: 68.24720249 | U112: 54.27561679 | V112: 75.10915639
A113: =DYN_cyclist!A113 -> 144 | B113: =DYN_cyclist!D113 -> 69 | C113: =DYN_cyclist!E113 -> 58 | D113: =DYN_cyclist!F113 -> 62 | E113: =DYN_cyclist!G113 -> 66 | F113: =DYN_cyclist!H113 -> 66 | G113: =DYN_cyclist!I113 -> 71 | H113: =DYN_cyclist!J113 -> 60 | I113: =DYN_cyclist!K113 -> 65 | J113: =DYN_cyclist!L113 -> 64 | K113: =DYN_cyclist!M113 -> 63 | L113: =DYN_cyclist!N113 -> 65 | M113: =DYN_cyclist!O113 -> 70 | N113: =DYN_cyclist!P113 -> 67 | O113: 53.71535168 | P113: 49.0905982 | Q113: 50.76514293 | R113: 52.91644364 | S113: 55.82033263 | T113: 40.80784731 | U113: 52.36793393 | V113: 66.27905085
A114: =DYN_cyclist!A114 -> 145 | B114: =DYN_cyclist!D114 -> 72 | C114: =DYN_cyclist!E114 -> 65 | D114: =DYN_cyclist!F114 -> 67 | E114: =DYN_cyclist!G114 -> 62 | F114: =DYN_cyclist!H114 -> 70 | G114: =DYN_cyclist!I114 -> 73 | H114: =DYN_cyclist!J114 -> 69 | I114: =DYN_cyclist!K114 -> 60 | J114: =DYN_cyclist!L114 -> 62 | K114: =DYN_cyclist!M114 -> 54 | L114: =DYN_cyclist!N114 -> 70 | M114: =DYN_cyclist!O114 -> 68 | N114: =DYN_cyclist!P114 -> 62 | O114: 58.72772293 | P114: 56.32863526 | Q114: 46.92905409 | R114: 48.30068433 | S114: 52.94612972 | T114: 49.72745237 | U114: 57.3376777 | V114: 68.06334253
A115: =DYN_cyclist!A115 -> 147 | B115: =DYN_cyclist!D115 -> 69 | C115: =DYN_cyclist!E115 -> 65 | D115: =DYN_cyclist!F115 -> 68 | E115: =DYN_cyclist!G115 -> 62 | F115: =DYN_cyclist!H115 -> 67 | G115: =DYN_cyclist!I115 -> 71 | H115: =DYN_cyclist!J115 -> 67 | I115: =DYN_cyclist!K115 -> 58 | J115: =DYN_cyclist!L115 -> 70 | K115: =DYN_cyclist!M115 -> 71 | L115: =DYN_cyclist!N115 -> 70 | M115: =DYN_cyclist!O115 -> 67 | N115: =DYN_cyclist!P115 -> 66 | O115: 62.29102938 | P115: 56.57541598 | Q115: 59.94577768 | R115: 49.17523744 | S115: 53.12786741 | T115: 50.41756824 | U115: 53.48505722 | V115: 70.0022613
A116: =DYN_cyclist!A116 -> 149 | B116: =DYN_cyclist!D116 -> 69 | C116: =DYN_cyclist!E116 -> 63 | D116: =DYN_cyclist!F116 -> 66 | E116: =DYN_cyclist!G116 -> 57 | F116: =DYN_cyclist!H116 -> 69 | G116: =DYN_cyclist!I116 -> 70 | H116: =DYN_cyclist!J116 -> 59 | I116: =DYN_cyclist!K116 -> 65 | J116: =DYN_cyclist!L116 -> 66 | K116: =DYN_cyclist!M116 -> 68 | L116: =DYN_cyclist!N116 -> 69 | M116: =DYN_cyclist!O116 -> 63 | N116: =DYN_cyclist!P116 -> 58 | O116: 59.02654904 | P116: 52.42445052 | Q116: 54.73706908 | R116: 41.85179876 | S116: 57.83869791 | T116: 47.19542805 | U116: 53.13739806 | V116: 68.24522816
A117: =DYN_cyclist!A117 -> 150 | B117: =DYN_cyclist!D117 -> 61 | C117: =DYN_cyclist!E117 -> 55 | D117: =DYN_cyclist!F117 -> 62 | E117: =DYN_cyclist!G117 -> 53 | F117: =DYN_cyclist!H117 -> 60 | G117: =DYN_cyclist!I117 -> 57 | H117: =DYN_cyclist!J117 -> 54 | I117: =DYN_cyclist!K117 -> 65 | J117: =DYN_cyclist!L117 -> 53 | K117: =DYN_cyclist!M117 -> 56 | L117: =DYN_cyclist!N117 -> 58 | M117: =DYN_cyclist!O117 -> 65 | N117: =DYN_cyclist!P117 -> 59 | O117: 46.82191593 | P117: 41.37708773 | Q117: 37.17776655 | R117: 36.23842102 | S117: 50.60522735 | T117: 35.85228806 | U117: 41.66495757 | V117: 62.88733868
A118: =DYN_cyclist!A118 -> 151 | B118: =DYN_cyclist!D118 -> 66 | C118: =DYN_cyclist!E118 -> 73 | D118: =DYN_cyclist!F118 -> 69 | E118: =DYN_cyclist!G118 -> 59 | F118: =DYN_cyclist!H118 -> 70 | G118: =DYN_cyclist!I118 -> 69 | H118: =DYN_cyclist!J118 -> 69 | I118: =DYN_cyclist!K118 -> 60 | J118: =DYN_cyclist!L118 -> 59 | K118: =DYN_cyclist!M118 -> 69 | L118: =DYN_cyclist!N118 -> 67 | M118: =DYN_cyclist!O118 -> 67 | N118: =DYN_cyclist!P118 -> 59 | O118: 62.19596181 | P118: 62.55215226 | Q118: 48.84560466 | R118: 45.15849549 | S118: 53.68168475 | T118: 61.44352748 | U118: 50.71921583 | V118: 70.35486066
A119: =DYN_cyclist!A119 -> 153 | B119: =DYN_cyclist!D119 -> 58 | C119: =DYN_cyclist!E119 -> 66 | D119: =DYN_cyclist!F119 -> 61 | E119: =DYN_cyclist!G119 -> 62 | F119: =DYN_cyclist!H119 -> 58 | G119: =DYN_cyclist!I119 -> 54 | H119: =DYN_cyclist!J119 -> 57 | I119: =DYN_cyclist!K119 -> 46 | J119: =DYN_cyclist!L119 -> 46 | K119: =DYN_cyclist!M119 -> 59 | L119: =DYN_cyclist!N119 -> 52 | M119: =DYN_cyclist!O119 -> 46 | N119: =DYN_cyclist!P119 -> 62 | O119: 46.88410967 | P119: 49.98015183 | Q119: 33.07346593 | R119: 46.67918299 | S119: 36.25648584 | T119: 49.19368418 | U119: 38.81941074 | V119: 62.82371164
A120: =DYN_cyclist!A120 -> 154 | B120: =DYN_cyclist!D120 -> 76 | C120: =DYN_cyclist!E120 -> 58 | D120: =DYN_cyclist!F120 -> 60 | E120: =DYN_cyclist!G120 -> 78 | F120: =DYN_cyclist!H120 -> 70 | G120: =DYN_cyclist!I120 -> 74 | H120: =DYN_cyclist!J120 -> 70 | I120: =DYN_cyclist!K120 -> 62 | J120: =DYN_cyclist!L120 -> 61 | K120: =DYN_cyclist!M120 -> 69 | L120: =DYN_cyclist!N120 -> 70 | M120: =DYN_cyclist!O120 -> 65 | N120: =DYN_cyclist!P120 -> 77 | O120: 55.16145487 | P120: 52.84521798 | Q120: 53.00986488 | R120: 70.77024952 | S120: 57.47420145 | T120: 41.74087298 | U120: 61.93066515 | V120: 74.08201944
A121: =DYN_cyclist!A121 -> 155 | B121: =DYN_cyclist!D121 -> 65 | C121: =DYN_cyclist!E121 -> 57 | D121: =DYN_cyclist!F121 -> 63 | E121: =DYN_cyclist!G121 -> 72 | F121: =DYN_cyclist!H121 -> 65 | G121: =DYN_cyclist!I121 -> 65 | H121: =DYN_cyclist!J121 -> 66 | I121: =DYN_cyclist!K121 -> 52 | J121: =DYN_cyclist!L121 -> 53 | K121: =DYN_cyclist!M121 -> 62 | L121: =DYN_cyclist!N121 -> 67 | M121: =DYN_cyclist!O121 -> 63 | N121: =DYN_cyclist!P121 -> 70 | O121: 50.82714347 | P121: 49.25719066 | Q121: 40.50135615 | R121: 60.19661627 | S121: 44.08702646 | T121: 39.39754537 | U121: 47.35833743 | V121: 68.17151623
A122: =DYN_cyclist!A122 -> 156 | B122: =DYN_cyclist!D122 -> 70 | C122: =DYN_cyclist!E122 -> 74 | D122: =DYN_cyclist!F122 -> 73 | E122: =DYN_cyclist!G122 -> 70 | F122: =DYN_cyclist!H122 -> 72 | G122: =DYN_cyclist!I122 -> 76 | H122: =DYN_cyclist!J122 -> 73 | I122: =DYN_cyclist!K122 -> 60 | J122: =DYN_cyclist!L122 -> 66 | K122: =DYN_cyclist!M122 -> 69 | L122: =DYN_cyclist!N122 -> 64 | M122: =DYN_cyclist!O122 -> 63 | N122: =DYN_cyclist!P122 -> 73 | O122: 68.77872501 | P122: 69.1036104 | Q122: 56.17055259 | R122: 61.68149738 | S122: 55.87304732 | T122: 63.63438774 | U122: 56.23806467 | V122: 73.93134503
A123: =DYN_cyclist!A123 -> 157 | B123: =DYN_cyclist!D123 -> 69 | C123: =DYN_cyclist!E123 -> 60 | D123: =DYN_cyclist!F123 -> 61 | E123: =DYN_cyclist!G123 -> 65 | F123: =DYN_cyclist!H123 -> 68 | G123: =DYN_cyclist!I123 -> 65 | H123: =DYN_cyclist!J123 -> 69 | I123: =DYN_cyclist!K123 -> 66 | J123: =DYN_cyclist!L123 -> 64 | K123: =DYN_cyclist!M123 -> 69 | L123: =DYN_cyclist!N123 -> 70 | M123: =DYN_cyclist!O123 -> 69 | N123: =DYN_cyclist!P123 -> 66 | O123: 53.87848685 | P123: 49.82054123 | Q123: 53.2533954 | R123: 51.24104145 | S123: 58.01458144 | T123: 43.54812046 | U123: 52.70114842 | V123: 67.38112822
A124: =DYN_cyclist!A124 -> 158 | B124: =DYN_cyclist!D124 -> 65 | C124: =DYN_cyclist!E124 -> 77 | D124: =DYN_cyclist!F124 -> 72 | E124: =DYN_cyclist!G124 -> 74 | F124: =DYN_cyclist!H124 -> 70 | G124: =DYN_cyclist!I124 -> 72 | H124: =DYN_cyclist!J124 -> 73 | I124: =DYN_cyclist!K124 -> 61 | J124: =DYN_cyclist!L124 -> 57 | K124: =DYN_cyclist!M124 -> 67 | L124: =DYN_cyclist!N124 -> 67 | M124: =DYN_cyclist!O124 -> 62 | N124: =DYN_cyclist!P124 -> 71 | O124: 65.23605108 | P124: 71.08386588 | Q124: 46.53211311 | R124: 66.03972615 | S124: 54.50126742 | T124: 67.78267197 | U124: 50.75969207 | V124: 74.73511358
A125: =DYN_cyclist!A125 -> 159 | B125: =DYN_cyclist!D125 -> 69 | C125: =DYN_cyclist!E125 -> 65 | D125: =DYN_cyclist!F125 -> 71 | E125: =DYN_cyclist!G125 -> 62 | F125: =DYN_cyclist!H125 -> 67 | G125: =DYN_cyclist!I125 -> 70 | H125: =DYN_cyclist!J125 -> 68 | I125: =DYN_cyclist!K125 -> 50 | J125: =DYN_cyclist!L125 -> 62 | K125: =DYN_cyclist!M125 -> 67 | L125: =DYN_cyclist!N125 -> 64 | M125: =DYN_cyclist!O125 -> 61 | N125: =DYN_cyclist!P125 -> 62 | O125: 62.60836554 | P125: 57.55340648 | Q125: 50.87274542 | R125: 48.20391273 | S125: 46.56423551 | T125: 50.14161702 | U125: 53.05530248 | V125: 69.92404801
A126: =DYN_cyclist!A126 -> 160 | B126: =DYN_cyclist!D126 -> 68 | C126: =DYN_cyclist!E126 -> 75 | D126: =DYN_cyclist!F126 -> 71 | E126: =DYN_cyclist!G126 -> 74 | F126: =DYN_cyclist!H126 -> 72 | G126: =DYN_cyclist!I126 -> 75 | H126: =DYN_cyclist!J126 -> 76 | I126: =DYN_cyclist!K126 -> 58 | J126: =DYN_cyclist!L126 -> 63 | K126: =DYN_cyclist!M126 -> 69 | L126: =DYN_cyclist!N126 -> 73 | M126: =DYN_cyclist!O126 -> 71 | N126: =DYN_cyclist!P126 -> 74 | O126: 66.34991136 | P126: 70.02568712 | Q126: 53.07663129 | R126: 66.87098771 | S126: 53.95391689 | T126: 65.28366498 | U126: 54.47524412 | V126: 74.19158869
A127: =DYN_cyclist!A127 -> 162 | B127: =DYN_cyclist!D127 -> 72 | C127: =DYN_cyclist!E127 -> 67 | D127: =DYN_cyclist!F127 -> 76 | E127: =DYN_cyclist!G127 -> 65 | F127: =DYN_cyclist!H127 -> 74 | G127: =DYN_cyclist!I127 -> 68 | H127: =DYN_cyclist!J127 -> 71 | I127: =DYN_cyclist!K127 -> 61 | J127: =DYN_cyclist!L127 -> 68 | K127: =DYN_cyclist!M127 -> 71 | L127: =DYN_cyclist!N127 -> 68 | M127: =DYN_cyclist!O127 -> 68 | N127: =DYN_cyclist!P127 -> 69 | O127: 70.153799 | P127: 62.01419562 | Q127: 59.05635802 | R127: 53.41465991 | S127: 57.83694166 | T127: 53.36316417 | U127: 58.10745358 | V127: 73.81731113
A128: =DYN_cyclist!A128 -> 163 | B128: =DYN_cyclist!D128 -> 71 | C128: =DYN_cyclist!E128 -> 63 | D128: =DYN_cyclist!F128 -> 72 | E128: =DYN_cyclist!G128 -> 61 | F128: =DYN_cyclist!H128 -> 74 | G128: =DYN_cyclist!I128 -> 74 | H128: =DYN_cyclist!J128 -> 73 | I128: =DYN_cyclist!K128 -> 72 | J128: =DYN_cyclist!L128 -> 63 | K128: =DYN_cyclist!M128 -> 68 | L128: =DYN_cyclist!N128 -> 70 | M128: =DYN_cyclist!O128 -> 69 | N128: =DYN_cyclist!P128 -> 63 | O128: 64.81032012 | P128: 57.85474587 | Q128: 52.8513609 | R128: 47.57449564 | S128: 66.04235287 | T128: 48.27517434 | U128: 56.65519331 | V128: 72.17852439
A129: =DYN_cyclist!A129 -> 164 | B129: =DYN_cyclist!D129 -> 69 | C129: =DYN_cyclist!E129 -> 58 | D129: =DYN_cyclist!F129 -> 59 | E129: =DYN_cyclist!G129 -> 62 | F129: =DYN_cyclist!H129 -> 69 | G129: =DYN_cyclist!I129 -> 69 | H129: =DYN_cyclist!J129 -> 65 | I129: =DYN_cyclist!K129 -> 68 | J129: =DYN_cyclist!L129 -> 65 | K129: =DYN_cyclist!M129 -> 65 | L129: =DYN_cyclist!N129 -> 65 | M129: =DYN_cyclist!O129 -> 64 | N129: =DYN_cyclist!P129 -> 64 | O129: 51.94149735 | P129: 47.45386785 | Q129: 52.50822497 | R129: 47.54538382 | S129: 58.56559422 | T129: 40.87465262 | U129: 52.15890198 | V129: 67.52485825
A130: =DYN_cyclist!A130 -> 166 | B130: =DYN_cyclist!D130 -> 69 | C130: =DYN_cyclist!E130 -> 58 | D130: =DYN_cyclist!F130 -> 63 | E130: =DYN_cyclist!G130 -> 60 | F130: =DYN_cyclist!H130 -> 62 | G130: =DYN_cyclist!I130 -> 66 | H130: =DYN_cyclist!J130 -> 66 | I130: =DYN_cyclist!K130 -> 61 | J130: =DYN_cyclist!L130 -> 72 | K130: =DYN_cyclist!M130 -> 71 | L130: =DYN_cyclist!N130 -> 61 | M130: =DYN_cyclist!O130 -> 68 | N130: =DYN_cyclist!P130 -> 68 | O130: 56.32043029 | P130: 48.15941856 | Q130: 61.50215944 | R130: 46.29974752 | S130: 53.55643291 | T130: 41.15756373 | U130: 51.66570503 | V130: 69.2921052
A131: =DYN_cyclist!A131 -> 167 | B131: =DYN_cyclist!D131 -> 67 | C131: =DYN_cyclist!E131 -> 80 | D131: =DYN_cyclist!F131 -> 73 | E131: =DYN_cyclist!G131 -> 76 | F131: =DYN_cyclist!H131 -> 75 | G131: =DYN_cyclist!I131 -> 75 | H131: =DYN_cyclist!J131 -> 74 | I131: =DYN_cyclist!K131 -> 52 | J131: =DYN_cyclist!L131 -> 58 | K131: =DYN_cyclist!M131 -> 65 | L131: =DYN_cyclist!N131 -> 57 | M131: =DYN_cyclist!O131 -> 69 | N131: =DYN_cyclist!P131 -> 73 | O131: =((($B131*6)^2+($C131*6)^2+($D131*11)^2+($E131*0)^2+($F131*3)^2+($G131*4)^2+($H131*0)^2+($I131*0)^2+($J131*5)^2+($K131*5)^2+($L131*1)^2+($M131*1)^2)+($N131*0)^2)/1846025*91.12 -> 67.87869274 | P131: =((($B131*2)^2+($C131*14)^2+($D131*10)^2+($E131*7)^2+($F131*2)^2+($G131*7)^2+($H131*5)^2+($I131*0)^2+($J131*0)^2+($K131*3)^2+($L131*0)^2+($M131*0)^2)+($N131*0)^2)/3088326.56*90.98 -> 75.45503977 | Q131: =((($B131*5)^2+($C131*2)^2+($D131*1)^2+($E131*0)^2+($F131*2)^2+($G131*1)^2+($H131*1)^2+($I131*0)^2+($J131*10.75)^2+($K131*7)^2+($L131*0)^2+($M131*0)^2)+($N131*1)^2)/1485576.56*IF(B131>77,92,IF(B131>75,92-0.5,IF(B131>73,92-0.88,92-1.65))) -> 47.30807272 | R131: =((($B131*1)^2+($C131*4)^2+($D131*2)^2+($E131*13)^2+($F131*0)^2+($G131*3.5)^2+($H131*0)^2+($I131*0)^2+($J131*0)^2+($K131*1)^2+($L131*0)^2+($M131*0)^2+($N131*6)^2)/1697831.25*IF(E131>81,87,IF(E131>80,87-0.1,IF(E131>79,87-0.2,86.6)))) -> 69.84409084 | S131: =(($B131*7)^2+($C131*3)^2+($D131*4)^2+($E131*0)^2+($F131*2.5)^2+($G131*2)^2+($H131*0)^2+($I131*11)^2+($J131*1)^2+($K131*5)^2+($L131*3)^2+($M131*0)^2+($N131*0)^2)/1680031.25*91.49 -> 48.24348144 | T131: =(($B131*1)^2+($C131*14.5)^2+($D131*2)^2+($E131*0)^2+($F131*1)^2+($G131*3)^2+($H131*2.5)^2+($I131*0)^2+($J131*0)^2+($K131*3)^2+($L131*1)^2+($M131*1.25)^2+($N131*0)^2)/1693126.56*81.55 -> 72.7582138 | U131: =((($B131*13)^2+($C131*4)^2+($D131*3)^2+($E131*2)^2+($F131*2)^2+($G131*2)^2+($H131*0)^2+($I131*2)^2+($J131*0)^2+($K131*0)^2+($L131*3)^2+($M131*1)^2)+($N131*0)^2)/1569500*81.55 -> 53.09837668 | V131: =((LARGE(O131:U131,1)*9)^2+(LARGE(O131:U131,2)*4)^2+(LARGE(O131:U131,3)^2))^(1/4)*2.82883066759522 -> 77.06289968
A132: =DYN_cyclist!A132 -> 169 | B132: =DYN_cyclist!D132 -> 71 | C132: =DYN_cyclist!E132 -> 72 | D132: =DYN_cyclist!F132 -> 76 | E132: =DYN_cyclist!G132 -> 67 | F132: =DYN_cyclist!H132 -> 75 | G132: =DYN_cyclist!I132 -> 72 | H132: =DYN_cyclist!J132 -> 72 | I132: =DYN_cyclist!K132 -> 55 | J132: =DYN_cyclist!L132 -> 67 | K132: =DYN_cyclist!M132 -> 73 | L132: =DYN_cyclist!N132 -> 76 | M132: =DYN_cyclist!O132 -> 70 | N132: =DYN_cyclist!P132 -> 67 | O132: 71.90243031 | P132: 67.39897632 | Q132: 58.97991343 | R132: 56.11538968 | S132: 54.33186431 | T132: 60.88845517 | U132: 58.04016639 | V132: 75.03994022
A133: =DYN_cyclist!A133 -> 170 | B133: =DYN_cyclist!D133 -> 65 | C133: =DYN_cyclist!E133 -> 62 | D133: =DYN_cyclist!F133 -> 64 | E133: =DYN_cyclist!G133 -> 62 | F133: =DYN_cyclist!H133 -> 63 | G133: =DYN_cyclist!I133 -> 61 | H133: =DYN_cyclist!J133 -> 62 | I133: =DYN_cyclist!K133 -> 56 | J133: =DYN_cyclist!L133 -> 64 | K133: =DYN_cyclist!M133 -> 65 | L133: =DYN_cyclist!N133 -> 64 | M133: =DYN_cyclist!O133 -> 56 | N133: =DYN_cyclist!P133 -> 59 | O133: 54.12898941 | P133: 50.09881397 | Q133: 50.62428812 | R133: 46.25614993 | S133: 47.53515507 | T133: 45.1460384 | U133: 47.33864489 | V133: 65.12113733
A134: =DYN_cyclist!A134 -> 171 | B134: =DYN_cyclist!D134 -> 73 | C134: =DYN_cyclist!E134 -> 64 | D134: =DYN_cyclist!F134 -> 68 | E134: =DYN_cyclist!G134 -> 75 | F134: =DYN_cyclist!H134 -> 71 | G134: =DYN_cyclist!I134 -> 71 | H134: =DYN_cyclist!J134 -> 67 | I134: =DYN_cyclist!K134 -> 60 | J134: =DYN_cyclist!L134 -> 63 | K134: =DYN_cyclist!M134 -> 68 | L134: =DYN_cyclist!N134 -> 75 | M134: =DYN_cyclist!O134 -> 65 | N134: =DYN_cyclist!P134 -> 75 | O134: 61.67565687 | P134: 58.42286885 | Q134: 53.2034371 | R134: 66.76015113 | S134: 56.06017629 | T134: 48.99944846 | U134: 59.22473275 | V134: 72.24390996
A135: =DYN_cyclist!A135 -> 172 | B135: =DYN_cyclist!D135 -> 73 | C135: =DYN_cyclist!E135 -> 53 | D135: =DYN_cyclist!F135 -> 65 | E135: =DYN_cyclist!G135 -> 56 | F135: =DYN_cyclist!H135 -> 71 | G135: =DYN_cyclist!I135 -> 67 | H135: =DYN_cyclist!J135 -> 78 | I135: =DYN_cyclist!K135 -> 66 | J135: =DYN_cyclist!L135 -> 79 | K135: =DYN_cyclist!M135 -> 78 | L135: =DYN_cyclist!N135 -> 61 | M135: =DYN_cyclist!O135 -> 64 | N135: =DYN_cyclist!P135 -> 56 | O135: 61.07464815 | P135: 46.98835168 | Q135: 73.09735408 | R135: 39.33230694 | S135: 61.12127627 | T135: 36.66177568 | U135: 56.59621959 | V135: 75.08339984
A136: =DYN_cyclist!A136 -> 173 | B136: =DYN_cyclist!D136 -> 69 | C136: =DYN_cyclist!E136 -> 58 | D136: =DYN_cyclist!F136 -> 60 | E136: =DYN_cyclist!G136 -> 58 | F136: =DYN_cyclist!H136 -> 70 | G136: =DYN_cyclist!I136 -> 69 | H136: =DYN_cyclist!J136 -> 62 | I136: =DYN_cyclist!K136 -> 65 | J136: =DYN_cyclist!L136 -> 66 | K136: =DYN_cyclist!M136 -> 64 | L136: =DYN_cyclist!N136 -> 67 | M136: =DYN_cyclist!O136 -> 62 | N136: =DYN_cyclist!P136 -> 60 | O136: 52.71704342 | P136: 46.81312764 | Q136: 53.03221504 | R136: 42.51468869 | S136: 56.04834543 | T136: 40.72741121 | U136: 52.17111239 | V136: 66.3272894
A137: =DYN_cyclist!A137 -> 175 | B137: =DYN_cyclist!D137 -> 70 | C137: =DYN_cyclist!E137 -> 71 | D137: =DYN_cyclist!F137 -> 73 | E137: =DYN_cyclist!G137 -> 72 | F137: =DYN_cyclist!H137 -> 75 | G137: =DYN_cyclist!I137 -> 75 | H137: =DYN_cyclist!J137 -> 70 | I137: =DYN_cyclist!K137 -> 62 | J137: =DYN_cyclist!L137 -> 65 | K137: =DYN_cyclist!M137 -> 68 | L137: =DYN_cyclist!N137 -> 64 | M137: =DYN_cyclist!O137 -> 64 | N137: =DYN_cyclist!P137 -> 70 | O137: 67.7579579 | P137: 66.48358687 | Q137: 54.78166778 | R137: 62.88551259 | S137: 57.19120037 | T137: 59.00605773 | U137: 56.05303788 | V137: 73.12677793
A138: =DYN_cyclist!A138 -> 177 | B138: =DYN_cyclist!D138 -> 81 | C138: =DYN_cyclist!E138 -> 60 | D138: =DYN_cyclist!F138 -> 64 | E138: =DYN_cyclist!G138 -> 62 | F138: =DYN_cyclist!H138 -> 71 | G138: =DYN_cyclist!I138 -> 67 | H138: =DYN_cyclist!J138 -> 73 | I138: =DYN_cyclist!K138 -> 68 | J138: =DYN_cyclist!L138 -> 70 | K138: =DYN_cyclist!M138 -> 75 | L138: =DYN_cyclist!N138 -> 78 | M138: =DYN_cyclist!O138 -> 68 | N138: =DYN_cyclist!P138 -> 66 | O138: 61.82047944 | P138: 51.66501871 | Q138: 65.56653196 | R138: 48.33414443 | S138: 66.91019834 | T138: 44.43382971 | U138: 69.34711676 | V138: 73.88867323
A139: =DYN_cyclist!A139 -> 178 | B139: =DYN_cyclist!D139 -> 65 | C139: =DYN_cyclist!E139 -> 65 | D139: =DYN_cyclist!F139 -> 66 | E139: =DYN_cyclist!G139 -> 66 | F139: =DYN_cyclist!H139 -> 68 | G139: =DYN_cyclist!I139 -> 73 | H139: =DYN_cyclist!J139 -> 65 | I139: =DYN_cyclist!K139 -> 60 | J139: =DYN_cyclist!L139 -> 60 | K139: =DYN_cyclist!M139 -> 72 | L139: =DYN_cyclist!N139 -> 70 | M139: =DYN_cyclist!O139 -> 67 | N139: =DYN_cyclist!P139 -> 76 | O139: 58.59760967 | P139: 56.73694143 | Q139: 50.52454638 | R139: 56.30137121 | S139: 53.2517442 | T139: 50.45398123 | U139: 48.89643434 | V139: 67.94442465
A140: =DYN_cyclist!A140 -> 179 | B140: =DYN_cyclist!D140 -> 68 | C140: =DYN_cyclist!E140 -> 65 | D140: =DYN_cyclist!F140 -> 70 | E140: =DYN_cyclist!G140 -> 68 | F140: =DYN_cyclist!H140 -> 70 | G140: =DYN_cyclist!I140 -> 71 | H140: =DYN_cyclist!J140 -> 70 | I140: =DYN_cyclist!K140 -> 60 | J140: =DYN_cyclist!L140 -> 63 | K140: =DYN_cyclist!M140 -> 69 | L140: =DYN_cyclist!N140 -> 72 | M140: =DYN_cyclist!O140 -> 65 | N140: =DYN_cyclist!P140 -> 66 | O140: 62.38520848 | P140: 58.77517286 | Q140: 52.50147416 | R140: 55.9339222 | S140: 54.40504133 | T140: 50.48009888 | U140: 52.82678582 | V140: 69.93942115
A141: =DYN_cyclist!A141 -> 180 | B141: =DYN_cyclist!D141 -> 67 | C141: =DYN_cyclist!E141 -> 58 | D141: =DYN_cyclist!F141 -> 61 | E141: =DYN_cyclist!G141 -> 60 | F141: =DYN_cyclist!H141 -> 61 | G141: =DYN_cyclist!I141 -> 63 | H141: =DYN_cyclist!J141 -> 66 | I141: =DYN_cyclist!K141 -> 58 | J141: =DYN_cyclist!L141 -> 67 | K141: =DYN_cyclist!M141 -> 70 | L141: =DYN_cyclist!N141 -> 63 | M141: =DYN_cyclist!O141 -> 60 | N141: =DYN_cyclist!P141 -> 60 | O141: 52.92568861 | P141: 46.78626074 | Q141: 55.65291801 | R141: 44.10598159 | S141: 50.02772108 | T141: 40.79675724 | U141: 49.04384266 | V141: 66.10481313
A142: =DYN_cyclist!A142 -> 182 | B142: =DYN_cyclist!D142 -> 68 | C142: =DYN_cyclist!E142 -> 55 | D142: =DYN_cyclist!F142 -> 60 | E142: =DYN_cyclist!G142 -> 67 | F142: =DYN_cyclist!H142 -> 64 | G142: =DYN_cyclist!I142 -> 63 | H142: =DYN_cyclist!J142 -> 67 | I142: =DYN_cyclist!K142 -> 55 | J142: =DYN_cyclist!L142 -> 58 | K142: =DYN_cyclist!M142 -> 64 | L142: =DYN_cyclist!N142 -> 65 | M142: =DYN_cyclist!O142 -> 63 | N142: =DYN_cyclist!P142 -> 68 | O142: 49.65755562 | P142: 45.70056697 | Q142: 45.62712021 | R142: 53.31403733 | S142: 46.97984016 | T142: 37.09665141 | U142: 50.22201803 | V142: 64.66504225
A143: =DYN_cyclist!A143 -> 183 | B143: =DYN_cyclist!D143 -> 72 | C143: =DYN_cyclist!E143 -> 77 | D143: =DYN_cyclist!F143 -> 77 | E143: =DYN_cyclist!G143 -> 68 | F143: =DYN_cyclist!H143 -> 71 | G143: =DYN_cyclist!I143 -> 73 | H143: =DYN_cyclist!J143 -> 74 | I143: =DYN_cyclist!K143 -> 63 | J143: =DYN_cyclist!L143 -> 64 | K143: =DYN_cyclist!M143 -> 70 | L143: =DYN_cyclist!N143 -> 73 | M143: =DYN_cyclist!O143 -> 78 | N143: =DYN_cyclist!P143 -> 71 | O143: 73.27128493 | P143: 72.60488003 | Q143: 55.26538104 | R143: 59.00791569 | S143: 60.44050531 | T143: 68.47349526 | U143: 59.97227009 | V143: 76.10585615
A144: =DYN_cyclist!A144 -> 186 | B144: =DYN_cyclist!D144 -> 69 | C144: =DYN_cyclist!E144 -> 78 | D144: =DYN_cyclist!F144 -> 76 | E144: =DYN_cyclist!G144 -> 61 | F144: =DYN_cyclist!H144 -> 71 | G144: =DYN_cyclist!I144 -> 75 | H144: =DYN_cyclist!J144 -> 75 | I144: =DYN_cyclist!K144 -> 60 | J144: =DYN_cyclist!L144 -> 68 | K144: =DYN_cyclist!M144 -> 76 | L144: =DYN_cyclist!N144 -> 72 | M144: =DYN_cyclist!O144 -> 69 | N144: =DYN_cyclist!P144 -> 61 | O144: 73.77510359 | P144: 72.4650661 | Q144: 60.9189135 | R144: 49.10352266 | S144: 58.03773942 | T144: 70.43964317 | U144: 55.97577451 | V144: 76.32101043
A145: =DYN_cyclist!A145 -> 187 | B145: =DYN_cyclist!D145 -> 74 | C145: =DYN_cyclist!E145 -> 57 | D145: =DYN_cyclist!F145 -> 57 | E145: =DYN_cyclist!G145 -> 78 | F145: =DYN_cyclist!H145 -> 72 | G145: =DYN_cyclist!I145 -> 72 | H145: =DYN_cyclist!J145 -> 72 | I145: =DYN_cyclist!K145 -> 51 | J145: =DYN_cyclist!L145 -> 64 | K145: =DYN_cyclist!M145 -> 69 | L145: =DYN_cyclist!N145 -> 65 | M145: =DYN_cyclist!O145 -> 66 | N145: =DYN_cyclist!P145 -> 78 | O145: 52.65909465 | P145: 50.93295461 | Q145: 55.0167148 | R145: 70.69164889 | S145: 47.84358772 | T145: 40.44416294 | U145: 58.46773883 | V145: 73.77104654
A146: =DYN_cyclist!A146 -> 188 | B146: =DYN_cyclist!D146 -> 78 | C146: =DYN_cyclist!E146 -> 75 | D146: =DYN_cyclist!F146 -> 76 | E146: =DYN_cyclist!G146 -> 72 | F146: =DYN_cyclist!H146 -> 75 | G146: =DYN_cyclist!I146 -> 78 | H146: =DYN_cyclist!J146 -> 73 | I146: =DYN_cyclist!K146 -> 74 | J146: =DYN_cyclist!L146 -> 74 | K146: =DYN_cyclist!M146 -> 81 | L146: =DYN_cyclist!N146 -> 74 | M146: =DYN_cyclist!O146 -> 83 | N146: =DYN_cyclist!P146 -> 72 | O146: 78.07185194 | P146: 72.80405449 | Q146: 72.69094701 | R146: 64.42078787 | S146: 75.26166407 | T146: 66.50767848 | U146: 68.36945202 | V146: 78.38880218
A147: =DYN_cyclist!A147 -> 190 | B147: =DYN_cyclist!D147 -> 71 | C147: =DYN_cyclist!E147 -> 69 | D147: =DYN_cyclist!F147 -> 71 | E147: =DYN_cyclist!G147 -> 61 | F147: =DYN_cyclist!H147 -> 72 | G147: =DYN_cyclist!I147 -> 71 | H147: =DYN_cyclist!J147 -> 68 | I147: =DYN_cyclist!K147 -> 72 | J147: =DYN_cyclist!L147 -> 57 | K147: =DYN_cyclist!M147 -> 71 | L147: =DYN_cyclist!N147 -> 67 | M147: =DYN_cyclist!O147 -> 80 | N147: =DYN_cyclist!P147 -> 61 | O147: 64.57704423 | P147: 60.93551316 | Q147: 49.06220846 | R147: 47.48575752 | S147: 66.43885662 | T147: 56.13747515 | U147: 56.98861564 | V147: 72.35405024
A148: =DYN_cyclist!A148 -> 192 | B148: =DYN_cyclist!D148 -> 72 | C148: =DYN_cyclist!E148 -> 53 | D148: =DYN_cyclist!F148 -> 65 | E148: =DYN_cyclist!G148 -> 67 | F148: =DYN_cyclist!H148 -> 69 | G148: =DYN_cyclist!I148 -> 74 | H148: =DYN_cyclist!J148 -> 70 | I148: =DYN_cyclist!K148 -> 51 | J148: =DYN_cyclist!L148 -> 79 | K148: =DYN_cyclist!M148 -> 78 | L148: =DYN_cyclist!N148 -> 53 | M148: =DYN_cyclist!O148 -> 64 | N148: =DYN_cyclist!P148 -> 73 | O148: 61.42707935 | P148: 49.44408058 | Q148: 72.93016502 | R148: 55.6313914 | S148: 48.84278425 | T148: 36.66880782 | U148: 54.95986779 | V148: 75.00714195
A149: =DYN_cyclist!A149 -> 193 | B149: =DYN_cyclist!D149 -> 63 | C149: =DYN_cyclist!E149 -> 72 | D149: =DYN_cyclist!F149 -> 72 | E149: =DYN_cyclist!G149 -> 63 | F149: =DYN_cyclist!H149 -> 67 | G149: =DYN_cyclist!I149 -> 64 | H149: =DYN_cyclist!J149 -> 67 | I149: =DYN_cyclist!K149 -> 54 | J149: =DYN_cyclist!L149 -> 57 | K149: =DYN_cyclist!M149 -> 61 | L149: =DYN_cyclist!N149 -> 69 | M149: =DYN_cyclist!O149 -> 69 | N149: =DYN_cyclist!P149 -> 62 | O149: 61.52644126 | P149: 62.13545018 | Q149: 43.38288911 | R149: 49.51130485 | S149: 46.85944864 | T149: 59.23080017 | U149: 47.27515072 | V149: 70.08665498
A150: =DYN_cyclist!A150 -> 194 | B150: =DYN_cyclist!D150 -> 68 | C150: =DYN_cyclist!E150 -> 58 | D150: =DYN_cyclist!F150 -> 63 | E150: =DYN_cyclist!G150 -> 60 | F150: =DYN_cyclist!H150 -> 65 | G150: =DYN_cyclist!I150 -> 70 | H150: =DYN_cyclist!J150 -> 62 | I150: =DYN_cyclist!K150 -> 58 | J150: =DYN_cyclist!L150 -> 62 | K150: =DYN_cyclist!M150 -> 60 | L150: =DYN_cyclist!N150 -> 68 | M150: =DYN_cyclist!O150 -> 63 | N150: =DYN_cyclist!P150 -> 58 | O150: 53.256352 | P150: 48.21430128 | Q150: 47.59963488 | R150: 44.24552193 | S150: 49.49442054 | T150: 40.62054739 | U150: 50.96898382 | V150: 64.70616552
A151: =DYN_cyclist!A151 -> 195 | B151: =DYN_cyclist!D151 -> 62 | C151: =DYN_cyclist!E151 -> 66 | D151: =DYN_cyclist!F151 -> 66 | E151: =DYN_cyclist!G151 -> 58 | F151: =DYN_cyclist!H151 -> 64 | G151: =DYN_cyclist!I151 -> 66 | H151: =DYN_cyclist!J151 -> 68 | I151: =DYN_cyclist!K151 -> 58 | J151: =DYN_cyclist!L151 -> 59 | K151: =DYN_cyclist!M151 -> 61 | L151: =DYN_cyclist!N151 -> 63 | M151: =DYN_cyclist!O151 -> 60 | N151: =DYN_cyclist!P151 -> 58 | O151: 55.10834339 | P151: 54.45570008 | Q151: 44.47083437 | R151: 42.72619885 | S151: 47.89799058 | T151: 50.68919361 | U151: 44.61099353 | V151: 65.98308465
A152: =DYN_cyclist!A152 -> 196 | B152: =DYN_cyclist!D152 -> 69 | C152: =DYN_cyclist!E152 -> 75 | D152: =DYN_cyclist!F152 -> 74 | E152: =DYN_cyclist!G152 -> 63 | F152: =DYN_cyclist!H152 -> 68 | G152: =DYN_cyclist!I152 -> 72 | H152: =DYN_cyclist!J152 -> 72 | I152: =DYN_cyclist!K152 -> 56 | J152: =DYN_cyclist!L152 -> 65 | K152: =DYN_cyclist!M152 -> 76 | L152: =DYN_cyclist!N152 -> 75 | M152: =DYN_cyclist!O152 -> 76 | N152: =DYN_cyclist!P152 -> 64 | O152: 70.21367282 | P152: 68.27848431 | Q152: 57.85243638 | R152: 51.21853494 | S152: 54.45034983 | T152: 65.4872809 | U152: 55.48964403 | V152: 74.38936178
A153: =DYN_cyclist!A153 -> 197 | B153: =DYN_cyclist!D153 -> 66 | C153: =DYN_cyclist!E153 -> 64 | D153: =DYN_cyclist!F153 -> 68 | E153: =DYN_cyclist!G153 -> 64 | F153: =DYN_cyclist!H153 -> 66 | G153: =DYN_cyclist!I153 -> 66 | H153: =DYN_cyclist!J153 -> 68 | I153: =DYN_cyclist!K153 -> 61 | J153: =DYN_cyclist!L153 -> 64 | K153: =DYN_cyclist!M153 -> 69 | L153: =DYN_cyclist!N153 -> 67 | M153: =DYN_cyclist!O153 -> 70 | N153: =DYN_cyclist!P153 -> 64 | O153: 59.4044007 | P153: 55.16731941 | Q153: 52.73181905 | R153: 50.30185067 | S153: 53.51542655 | T153: 48.71876199 | U153: 49.60718455 | V153: 68.1777535
A154: =DYN_cyclist!A154 -> 198 | B154: =DYN_cyclist!D154 -> 72 | C154: =DYN_cyclist!E154 -> 66 | D154: =DYN_cyclist!F154 -> 69 | E154: =DYN_cyclist!G154 -> 69 | F154: =DYN_cyclist!H154 -> 72 | G154: =DYN_cyclist!I154 -> 71 | H154: =DYN_cyclist!J154 -> 70 | I154: =DYN_cyclist!K154 -> 72 | J154: =DYN_cyclist!L154 -> 66 | K154: =DYN_cyclist!M154 -> 67 | L154: =DYN_cyclist!N154 -> 65 | M154: =DYN_cyclist!O154 -> 70 | N154: =DYN_cyclist!P154 -> 70 | O154: 63.03695939 | P154: 59.34718447 | Q154: 55.38788397 | R154: 58.2070156 | S154: 65.55735597 | T154: 51.70727623 | U154: 57.79143759 | V154: 71.80859838
A155: =DYN_cyclist!A155 -> 199 | B155: =DYN_cyclist!D155 -> 68 | C155: =DYN_cyclist!E155 -> 70 | D155: =DYN_cyclist!F155 -> 77 | E155: =DYN_cyclist!G155 -> 57 | F155: =DYN_cyclist!H155 -> 74 | G155: =DYN_cyclist!I155 -> 71 | H155: =DYN_cyclist!J155 -> 71 | I155: =DYN_cyclist!K155 -> 55 | J155: =DYN_cyclist!L155 -> 59 | K155: =DYN_cyclist!M155 -> 72 | L155: =DYN_cyclist!N155 -> 65 | M155: =DYN_cyclist!O155 -> 59 | N155: =DYN_cyclist!P155 -> 58 | O155: 69.82204969 | P155: 64.00305322 | Q155: 50.64740282 | R155: 43.0421953 | S155: 52.11892303 | T155: 57.66528244 | U155: 53.09645419 | V155: 73.82074686
A156: =DYN_cyclist!A156 -> 200 | B156: =DYN_cyclist!D156 -> 76 | C156: =DYN_cyclist!E156 -> 65 | D156: =DYN_cyclist!F156 -> 71 | E156: =DYN_cyclist!G156 -> 77 | F156: =DYN_cyclist!H156 -> 70 | G156: =DYN_cyclist!I156 -> 76 | H156: =DYN_cyclist!J156 -> 67 | I156: =DYN_cyclist!K156 -> 60 | J156: =DYN_cyclist!L156 -> 71 | K156: =DYN_cyclist!M156 -> 71 | L156: =DYN_cyclist!N156 -> 61 | M156: =DYN_cyclist!O156 -> 64 | N156: =DYN_cyclist!P156 -> 79 | O156: 67.44466928 | P156: 62.0425944 | Q156: 63.5636042 | R156: 71.20543482 | S156: 57.48454834 | T156: 50.79884198 | U156: 62.74169665 | V156: 74.7484914
A157: =DYN_cyclist!A157 -> 202 | B157: =DYN_cyclist!D157 -> 72 | C157: =DYN_cyclist!E157 -> 60 | D157: =DYN_cyclist!F157 -> 64 | E157: =DYN_cyclist!G157 -> 66 | F157: =DYN_cyclist!H157 -> 71 | G157: =DYN_cyclist!I157 -> 73 | H157: =DYN_cyclist!J157 -> 63 | I157: =DYN_cyclist!K157 -> 63 | J157: =DYN_cyclist!L157 -> 66 | K157: =DYN_cyclist!M157 -> 66 | L157: =DYN_cyclist!N157 -> 69 | M157: =DYN_cyclist!O157 -> 59 | N157: =DYN_cyclist!P157 -> 66 | O157: 57.6780308 | P157: 52.11630603 | Q157: 54.66019495 | R157: 53.13750471 | S157: 56.69705465 | T157: 43.6223914 | U157: 56.72232463 | V157: 67.49894262
A158: =DYN_cyclist!A158 -> 203 | B158: =DYN_cyclist!D158 -> 69 | C158: =DYN_cyclist!E158 -> 65 | D158: =DYN_cyclist!F158 -> 72 | E158: =DYN_cyclist!G158 -> 58 | F158: =DYN_cyclist!H158 -> 74 | G158: =DYN_cyclist!I158 -> 71 | H158: =DYN_cyclist!J158 -> 64 | I158: =DYN_cyclist!K158 -> 62 | J158: =DYN_cyclist!L158 -> 60 | K158: =DYN_cyclist!M158 -> 67 | L158: =DYN_cyclist!N158 -> 65 | M158: =DYN_cyclist!O158 -> 62 | N158: =DYN_cyclist!P158 -> 58 | O158: 63.7236079 | P158: 57.21276837 | Q158: 49.35391886 | R158: 43.30217414 | S158: 55.96148601 | T158: 50.13435308 | U158: 53.60290073 | V158: 70.43828015
A159: =DYN_cyclist!A159 -> 204 | B159: =DYN_cyclist!D159 -> 68 | C159: =DYN_cyclist!E159 -> 63 | D159: =DYN_cyclist!F159 -> 64 | E159: =DYN_cyclist!G159 -> 60 | F159: =DYN_cyclist!H159 -> 66 | G159: =DYN_cyclist!I159 -> 69 | H159: =DYN_cyclist!J159 -> 64 | I159: =DYN_cyclist!K159 -> 64 | J159: =DYN_cyclist!L159 -> 62 | K159: =DYN_cyclist!M159 -> 68 | L159: =DYN_cyclist!N159 -> 65 | M159: =DYN_cyclist!O159 -> 65 | N159: =DYN_cyclist!P159 -> 59 | O159: 56.29491111 | P159: 52.35360085 | Q159: 50.85200643 | R159: 44.94539139 | S159: 55.93785153 | T159: 47.23756068 | U159: 51.50852838 | V159: 66.72268931
A160: =DYN_cyclist!A160 -> 205 | B160: =DYN_cyclist!D160 -> 72 | C160: =DYN_cyclist!E160 -> 68 | D160: =DYN_cyclist!F160 -> 66 | E160: =DYN_cyclist!G160 -> 78 | F160: =DYN_cyclist!H160 -> 74 | G160: =DYN_cyclist!I160 -> 74 | H160: =DYN_cyclist!J160 -> 70 | I160: =DYN_cyclist!K160 -> 58 | J160: =DYN_cyclist!L160 -> 65 | K160: =DYN_cyclist!M160 -> 71 | L160: =DYN_cyclist!N160 -> 58 | M160: =DYN_cyclist!O160 -> 63 | N160: =DYN_cyclist!P160 -> 79 | O160: 61.99862008 | P160: 62.41996829 | Q160: 56.33180048 | R160: 72.50976656 | S160: 53.85976019 | T160: 54.67360132 | U160: 57.4216438 | V160: 74.9221665
A161: =DYN_cyclist!A161 -> 206 | B161: =DYN_cyclist!D161 -> 69 | C161: =DYN_cyclist!E161 -> 74 | D161: =DYN_cyclist!F161 -> 71 | E161: =DYN_cyclist!G161 -> 65 | F161: =DYN_cyclist!H161 -> 71 | G161: =DYN_cyclist!I161 -> 71 | H161: =DYN_cyclist!J161 -> 68 | I161: =DYN_cyclist!K161 -> 57 | J161: =DYN_cyclist!L161 -> 60 | K161: =DYN_cyclist!M161 -> 70 | L161: =DYN_cyclist!N161 -> 64 | M161: =DYN_cyclist!O161 -> 60 | N161: =DYN_cyclist!P161 -> 64 | O161: 65.38803087 | P161: 65.70424056 | Q161: 50.8451796 | R161: 53.08088778 | S161: 52.87763603 | T161: 63.06696101 | U161: 54.46791787 | V161: 72.10286168
A162: =DYN_cyclist!A162 -> 207 | B162: =DYN_cyclist!D162 -> 60 | C162: =DYN_cyclist!E162 -> 61 | D162: =DYN_cyclist!F162 -> 62 | E162: =DYN_cyclist!G162 -> 64 | F162: =DYN_cyclist!H162 -> 60 | G162: =DYN_cyclist!I162 -> 56 | H162: =DYN_cyclist!J162 -> 57 | I162: =DYN_cyclist!K162 -> 48 | J162: =DYN_cyclist!L162 -> 53 | K162: =DYN_cyclist!M162 -> 52 | L162: =DYN_cyclist!N162 -> 57 | M162: =DYN_cyclist!O162 -> 55 | N162: =DYN_cyclist!P162 -> 64 | O162: 47.15642941 | P162: 47.20693983 | Q162: 35.92649419 | R162: 48.93090476 | S162: 37.29623945 | T162: 42.66282965 | U162: 40.90967831 | V162: 62.07135021
A163: =DYN_cyclist!A163 -> 208 | B163: =DYN_cyclist!D163 -> 69 | C163: =DYN_cyclist!E163 -> 71 | D163: =DYN_cyclist!F163 -> 71 | E163: =DYN_cyclist!G163 -> 73 | F163: =DYN_cyclist!H163 -> 70 | G163: =DYN_cyclist!I163 -> 70 | H163: =DYN_cyclist!J163 -> 70 | I163: =DYN_cyclist!K163 -> 60 | J163: =DYN_cyclist!L163 -> 67 | K163: =DYN_cyclist!M163 -> 68 | L163: =DYN_cyclist!N163 -> 68 | M163: =DYN_cyclist!O163 -> 65 | N163: =DYN_cyclist!P163 -> 73 | O163: 65.25441304 | P163: 64.69611318 | Q163: 56.21390452 | R163: 64.40431286 | S163: 54.83002626 | T163: 58.62981726 | U163: 54.6294591 | V163: 71.84345435
A164: =DYN_cyclist!A164 -> 209 | B164: =DYN_cyclist!D164 -> 73 | C164: =DYN_cyclist!E164 -> 62 | D164: =DYN_cyclist!F164 -> 69 | E164: =DYN_cyclist!G164 -> 58 | F164: =DYN_cyclist!H164 -> 76 | G164: =DYN_cyclist!I164 -> 73 | H164: =DYN_cyclist!J164 -> 71 | I164: =DYN_cyclist!K164 -> 76 | J164: =DYN_cyclist!L164 -> 72 | K164: =DYN_cyclist!M164 -> 70 | L164: =DYN_cyclist!N164 -> 55 | M164: =DYN_cyclist!O164 -> 64 | N164: =DYN_cyclist!P164 -> 65 | O164: 64.30526746 | P164: 55.0896941 | Q164: 62.65709588 | R164: 44.71581228 | S164: 69.87495016 | T164: 46.7850203 | U164: 58.05170134 | V164: 73.89305402
A165: =DYN_cyclist!A165 -> 210 | B165: =DYN_cyclist!D165 -> 70 | C165: =DYN_cyclist!E165 -> 57 | D165: =DYN_cyclist!F165 -> 63 | E165: =DYN_cyclist!G165 -> 60 | F165: =DYN_cyclist!H165 -> 65 | G165: =DYN_cyclist!I165 -> 66 | H165: =DYN_cyclist!J165 -> 63 | I165: =DYN_cyclist!K165 -> 50 | J165: =DYN_cyclist!L165 -> 61 | K165: =DYN_cyclist!M165 -> 63 | L165: =DYN_cyclist!N165 -> 68 | M165: =DYN_cyclist!O165 -> 53 | N165: =DYN_cyclist!P165 -> 61 | O165: 53.35911975 | P165: 46.98743844 | Q165: 48.2227053 | R165: 44.50019612 | S165: 44.85852332 | T165: 39.34373265 | U165: 52.94405779 | V165: 64.9439972
